Workbook

Sheet Summary
B2: Inputs: | L2: Assumptions: | N2: Current year plus three required data set.
C3: Rate Impact for Year (2025-2029) | D3: 2025 | I3: Include CA Climate Credit in Rates | J3: N | L3: Current Effective Rates | N3: 2025-03-01
C4: Baseline Region - (Residential bill) | D4: 9 warm | I4: Typical residential average usage kWh/month | J4: 500 | L4: Sales Forecast | N4: =D3 -> 2025
L5: Residential bill calculated using | N5: Schedule D, Basic, Single Family | S5: Annual Usage
L6: Non-CARE bill impact calculated with average summer usage of | P6: =IF($D$4="All",SUMPRODUCT('Res Bill Impact'!P$22:P$30,'Res Bill Impact'!$T$22:$T$30),VLOOKUP(D$4,'Res Bill Impact'!$O$22:$S$30,2,FALSE)) -> 736.1896342 | Q6: kWh per month | R6: Non-CARE | S6: =(P6*4)+(P7*8) -> 6577.192703
B7: Pending Proceedings | D7: Include in Impact (Y) | E7: Applicable Year(s) | L7: Non-CARE bill impact calculated with average winter usage of | P7: =IF($D$4="All",SUMPRODUCT('Res Bill Impact'!Q$22:Q$30,'Res Bill Impact'!$T$22:$T$30),VLOOKUP(D$4,'Res Bill Impact'!$O$22:$S$30,3,FALSE)) -> 454.0542708 | Q7: kWh per month
B8: 2025 GRC | D8: Y | E8: 2025-2028 | L8: CARE bill impact calculated with average summer usage of | P8: =IF($D$4="All",SUMPRODUCT('Res Bill Impact'!R$22:R$30,'Res Bill Impact'!$U$22:$U$30),VLOOKUP(D$4,'Res Bill Impact'!$O$22:$S$30,4,FALSE)) -> 685.496621 | Q8: kWh per month | R8: CARE | S8: =(P8*4)+(P9*8) -> 6135.943566
B9: WMCE | D9: Y | E9: 2025 | L9: CARE bill impact calculated with average winter usage of | P9: =IF($D$4="All",SUMPRODUCT('Res Bill Impact'!S$22:S$30,'Res Bill Impact'!$U$22:$U$30),VLOOKUP(D$4,'Res Bill Impact'!$O$22:$S$30,5,FALSE)) -> 424.2446352 | Q9: kWh per month
B10: 2021 ERRA Review | D10: Y | E10: 2025 | L10: Essential Use (Basic) bill impact calculated with average summer usage of | P10: =IF($D$4="All",SUMPRODUCT('Res Bill Impact'!I$22:I$30,'Res Bill Impact'!$T$22:$T$30),VLOOKUP(D$4,'Res Bill Impact'!$H$22:$L$30,2,FALSE)) -> 514.0473 | Q10: kWh per month | R10: Essential Use (Basic) | S10: =(P10*4)+(P11*8) -> 4976.2212
B11: 2022 ERRA Review | D11: Y | E11: 2025 | L11: Essential Use (Basic) bill impact calculated with average winter usage of | P11: =IF($D$4="All",SUMPRODUCT('Res Bill Impact'!J$22:J$30,'Res Bill Impact'!$T$22:$T$30),VLOOKUP(D$4,'Res Bill Impact'!$H$22:$L$30,3,FALSE)) -> 365.004 | Q11: kWh per month
B12: 2023 ERRA Review | D12: Y | E12: 2025 | L12: Essential Use (All-Electric) bill impact calculated with average summer usage of | P12: =IF($D$4="All",SUMPRODUCT('Res Bill Impact'!K$22:K$30,'Res Bill Impact'!$T$22:$T$30),VLOOKUP(D$4,'Res Bill Impact'!$H$22:$L$30,4,FALSE)) -> 380.2125 | Q12: kWh per month | R12: Essential Use (All-Electric) | S12: =(P12*4)+(P13*8) -> 4903.2204
B13: 2022 WM/VM (Non-IRR Portion) | D13: Y | E13: 2025 | L13: Essential Use (All-Electric) bill impact calculated with average winter usage of | P13: =IF($D$4="All",SUMPRODUCT('Res Bill Impact'!L$22:L$30,'Res Bill Impact'!$T$22:$T$30),VLOOKUP(D$4,'Res Bill Impact'!$H$22:$L$30,5,FALSE)) -> 422.7963 | Q13: kWh per month
B14: Thomas Fire WEMA FRC | D14: Y | E14: 2026-2029 | L14: Average monthly usage is for all customers (Non-CARE and CARE) based on seasonal usage in | R14: 2024
B15: Thomas Fire CEMA | D15: Y | E15: 2025 | L15: Summer season | N15: 4 | O15: months
B16: Woolsey CEMA | D16: Y | E16: 2027 | L16: Winter Season | N16: 8 | O16: months
B17: Woolsey WEMA FRC | D17: Y | E17: 2027-2029 | L17: Residential Bi-Annual Climate Credit | N17: -56
B18: Section 851 - Sale of GO 5 Property | D18: Y | E18: 2025
B19: Section 851 - Sale of Hydroelectric San Bernardino | D19: Y | E19: 2025
B20: Section 851 - Sale of Hydroelectric Fontana Union Water | D20: Y | E20: 2025
B21: Section 851 - Sale of Irwindale Business Center | D21: Y | E21: 2025
B22: Section 851 - Sale of Hydroelectric TULE | D22: Y | E22: 2026
B27: Outputs:
D28: (A) | E28: (B) | F28: (C) | G28: (D) | H28: (D)/(A) | I28: (D)/(B) | J28: (D)/(C) | N28: (A) | O28: (B) | P28: (C) | Q28: (D) | R28: (D)/(A) | S28: (D)/(B) | T28: (D)/(C)
B29: Bundled Average Rates - ¢/kWh | L29: Total System (Bundled and Unbundled) Average Rates - ¢/kWh
B30: Customer Group | D30: 2025-01-01 | E30: =N3 -> 2025-03-01 | F30: =$D$3&" Authorized" -> 2025 Authorized | G30: =$D$3&" w/Pending" -> 2025 w/Pending | H30: ="% Change over "&MONTH(D30)&"/"&DAY(D30)&"/"&YEAR(D30) -> % Change over 1/1/2025 | I30: ="% Change over "&MONTH(E30)&"/"&DAY(E30)&"/"&YEAR(E30) -> % Change over 3/1/2025 | J30: % Change over Authorized | L30: Customer Group | N30: =$D$30 -> 2025-01-01 | O30: =$E$30 -> 2025-03-01 | P30: =$D$3&" Authorized" -> 2025 Authorized | Q30: =$D$3&" w/Pending" -> 2025 w/Pending | R30: =$H$30 -> % Change over 1/1/2025 | S30: =$I$30 -> % Change over 3/1/2025 | T30: % Change over Authorized
B31: Residential | D31: =IF(J3="Y",'SAR and RAR'!W28,'SAR and RAR'!X28) -> 31.62973815 | E31: ='SAR and RAR'!G28 -> 31.3824852 | F31: ='SAR and RAR'!H28 -> 31.46124851 | G31: ='SAR and RAR'!I28 -> 35.87368469 | H31: =$G31/D31-1 -> 0.1341758356 | I31: =$G31/E31-1 -> 0.1431116581 | J31: =$G31/F31-1 -> 0.1402498755 | L31: Total Residential (RAR) | N31: =IF(J3="Y",'SAR and RAR'!Z28,'SAR and RAR'!AA28) -> 28.36130718 | O31: ='SAR and RAR'!O28 -> 28.11056783 | P31: ='SAR and RAR'!P28 -> 27.87314737 | Q31: ='SAR and RAR'!Q28 -> 32.22601306 | R31: =$Q31/N31-1 -> 0.1362668463 | S31: 0.146402067 | T31: 0.156166996
C32: Small Commercial | D32: =IF(J3="Y",'SAR and AR (GS1)'!W28,'SAR and AR (GS1)'!X28) -> 29.17406766 | E32: ='SAR and AR (GS1)'!G28 -> 28.97896301 | F32: ='SAR and AR (GS1)'!H28 -> 29.36895291 | G32: ='SAR and AR (GS1)'!I28 -> 33.10820336 | H32: 0.1348504344 | I32: =$G32/E32-1 -> 0.1424909631 | J32: =$G32/F32-1 -> 0.1273198423 | M32: Total Small Commercial (AR) | N32: =IF(J3="Y",'SAR and AR (GS1)'!Z28,'SAR and AR (GS1)'!AA28) -> 25.77950096 | O32: ='SAR and AR (GS1)'!O28 -> 25.58432245 | P32: ='SAR and AR (GS1)'!P28 -> 25.45534706 | Q32: ='SAR and AR (GS1)'!Q28 -> 28.999104 | R32: =$Q32/N32-1 -> 0.124890045 | S32: =$Q32/O32-1 -> 0.1334716429 | T32: =$Q32/P32-1 -> 0.1392146383
B33: System | D33: =IF(J3="Y",'SAR and RAR'!W29,'SAR and RAR'!X29) -> 27.30660685 | E33: ='SAR and RAR'!G29 -> 27.09446696 | F33: ='SAR and RAR'!H29 -> 27.34463232 | G33: ='SAR and RAR'!I29 -> 30.96524288 | H33: 0.1339835464 | I33: =$G33/E33-1 -> 0.1428622281 | J33: =$G33/F33-1 -> 0.1324066277 | L33: Total System (SAR) | N33: =IF(J3="Y",'SAR and RAR'!Z29,'SAR and RAR'!AA29) -> 22.91911704 | O33: ='SAR and RAR'!O29 -> 22.71448393 | P33: ='SAR and RAR'!P29 -> 22.67570112 | Q33: ='SAR and RAR'!Q29 -> 26.01545044 | R33: 0.1350982845 | S33: 0.1453243013 | T33: 0.1472831778
B36: Bundled Residential Monthly Average Bills
D37: =$D$30 -> 2025-01-01 | E37: =$E$30 -> 2025-03-01 | F37: =$D$3&" Authorized" -> 2025 Authorized | G37: =$D$3&" w/Pending" -> 2025 w/Pending | H37: =$H$30 -> % Change over 1/1/2025 | I37: =$I$30 -> % Change over 3/1/2025 | J37: % Change over Authorized
B38: Non-CARE | D38: =((D44*4)+(D50*8))/12 -> 186.8593137 | E38: =((E44*4)+(E50*8))/12 -> 185.4490066 | F38: 183.9426762 | G38: 211.0580755 | H38: =$G38/D38-1 -> 0.1295025724 | I38: 0.138092241 | J38: =$G38/F38-1 -> 0.1474122258
B39: CARE | D39: 104.2673392 | E39: =((E45*4)+(E51*8))/12 -> 103.354591 | F39: 102.4838772 | G39: 118.1575644 | H39: 0.1332174131 | I39: 0.1432251178 | J39: 0.1529380783
B40: Total | D40: 157.9521226 | E40: =((E46*4)+(E52*8))/12 -> 156.7159611 | F40: 155.4320965 | G40: 178.5428966 | H40: 0.1303608565 | I40: 0.139277042 | J40: =$G40/F40-1 -> 0.1486874371
B42: Bundled Residential Monthly Average Bills - Summer
D43: =$D$30 -> 2025-01-01 | E43: =$E$30 -> 2025-03-01 | F43: =$D$3&" Authorized" -> 2025 Authorized | G43: =$D$3&" w/Pending" -> 2025 w/Pending | H43: =$H$30 -> % Change over 1/1/2025 | I43: =$I$30 -> % Change over 3/1/2025 | J43: % Change over Authorized
B44: Non-CARE | D44: =VLOOKUP($D$4,'Res Bill Impact'!$B$37:$J$46,2,FALSE)+O17 -> 257.9491103 | E44: =VLOOKUP($D$4,'Res Bill Impact'!$B$37:$J$46,4,FALSE) -> 256.0260579 | F44: =VLOOKUP($D$4,'Res Bill Impact'!$B$37:$J$46,6,FALSE) -> 253.9712799 | G44: =VLOOKUP($D$4,'Res Bill Impact'!$B$37:$J$46,8,FALSE) -> 290.959264 | H44: =$G44/D44-1 -> 0.1279715742 | I44: 0.1364439479 | J44: =$G44/F44-1 -> 0.145638452
B45: CARE | D45: =VLOOKUP($D$4,'Res Bill Impact'!$B$52:$J$61,2,FALSE) -> 145.4334121 | E45: =VLOOKUP($D$4,'Res Bill Impact'!$B$52:$J$61,4,FALSE) -> 144.1909156 | F45: =VLOOKUP($D$4,'Res Bill Impact'!$B$52:$J$61,6,FALSE) -> 143.0028667 | G45: =VLOOKUP($D$4,'Res Bill Impact'!$B$52:$J$61,8,FALSE) -> 164.3888934 | H45: 0.1303378709 | I45: 0.1400780184 | J45: 0.1495496364
B46: Total | D46: =D44*0.65+D45*0.35 -> 218.5686159 | E46: =E44*0.65+E45*0.35 -> 216.8837581 | F46: =F44*0.65+F45*0.35 -> 215.1323353 | G46: =G44*0.65+G45*0.35 -> 246.6596343 | H46: 0.1285226529 | I46: 0.1372895621 | J46: =$G46/F46-1 -> 0.1465483975
B48: Bundled Residential Monthly Average Bills - Winter
D49: =$D$30 -> 2025-01-01 | E49: =$E$30 -> 2025-03-01 | F49: =$D$3&" Authorized" -> 2025 Authorized | G49: =$D$3&" w/Pending" -> 2025 w/Pending | H49: =$H$30 -> % Change over 1/1/2025 | I49: =$I$30 -> % Change over 3/1/2025 | J49: % Change over Authorized
B50: Non-CARE | D50: =VLOOKUP($D$4,'Res Bill Impact'!$B$37:$J$46,3,FALSE) -> 151.3144154 | E50: =VLOOKUP($D$4,'Res Bill Impact'!$B$37:$J$46,5,FALSE) -> 150.160481 | F50: =VLOOKUP($D$4,'Res Bill Impact'!$B$37:$J$46,7,FALSE) -> 148.9283743 | G50: =VLOOKUP($D$4,'Res Bill Impact'!$B$37:$J$46,9,FALSE) -> 171.1074813 | H50: =$G50/D50-1 -> 0.130807536 | I50: 0.1394974242 | J50: =$G50/F50-1 -> 0.1489246562
B51: CARE | D51: =VLOOKUP($D$4,'Res Bill Impact'!$B$52:$J$61,3,FALSE) -> 83.68430279 | E51: =VLOOKUP($D$4,'Res Bill Impact'!$B$52:$J$61,5,FALSE) -> 82.93642863 | F51: =VLOOKUP($D$4,'Res Bill Impact'!$B$52:$J$61,7,FALSE) -> 82.22438246 | G51: =VLOOKUP($D$4,'Res Bill Impact'!$B$52:$J$61,9,FALSE) -> 95.04189996 | H51: 0.1357195649 | I51: 0.1459608465 | J51: 0.1558846308
B52: Total | D52: =D50*0.65+D51*0.35 -> 127.643876 | E52: =E50*0.65+E51*0.35 -> 126.6320626 | F52: =F50*0.65+F51*0.35 -> 125.5819772 | G52: =G50*0.65+G51*0.35 -> 144.4845278 | H52: 0.1319346633 | I52: 0.1409790285 | J52: 0.1505196133
B55: Bundled Residential Monthly Average Bills
D56: =$D$30 -> 2025-01-01 | E56: =$E$30 -> 2025-03-01 | F56: =$D$3&" Authorized" -> 2025 Authorized | G56: =$D$3&" w/Pending" -> 2025 w/Pending | H56: =$H$30 -> % Change over 1/1/2025 | I56: =$I$30 -> % Change over 3/1/2025 | J56: % Change over Authorized
B57: Essential Use (Basic) - Non-CARE | D57: =((D64*4)+(D71*8))/12 -> 129.7299798 | E57: 128.7305887 | F57: 127.6650117 | G57: 146.8464243 | H57: =$G57/D57-1 -> 0.1319390057 | I57: 0.1407267365 | J57: =$G57/F57-1 -> 0.1502479993
B58: Essential Use (Basic) - CARE | D58: 77.88462184 | E58: 77.17965717 | F58: 76.51234633 | G58: 88.52458487 | H58: 0.1366118596 | I58: 0.146993756 | J58: =$G58/F58-1 -> 0.1569973883
B59: Essential Use (All-Electric) - Non-CARE | D59: 127.7037209 | E59: 126.7189908 | F59: 125.6690458 | G59: 144.5690685 | H59: 0.1320662188 | I59: 0.140863477 | J59: 0.1503952112
B60: Essential Use (All-Electric) - CARE | D60: 76.61452959 | E60: 75.9199067 | F60: 75.26238526 | G60: 87.09840514 | H60: 0.1368392602 | I60: 0.1472406767 | J60: 0.1572634172
B62: Bundled Residential Monthly Average Bills - Summer
D63: =$D$30 -> 2025-01-01 | E63: =$E$30 -> 2025-03-01 | F63: =$D$3&" Authorized" -> 2025 Authorized | G63: =$D$3&" w/Pending" -> 2025 w/Pending | H63: =$H$30 -> % Change over 1/1/2025 | I63: =$I$30 -> % Change over 3/1/2025 | J63: % Change over Authorized
B64: Essential Use (Basic) - Non-CARE | D64: =VLOOKUP($D$4,'Res Bill Impact'!$L$37:$T$46,2,FALSE) -> 162.8255414 | E64: =VLOOKUP($D$4,'Res Bill Impact'!$L$37:$T$46,4,FALSE) -> 161.5866874 | F64: =VLOOKUP($D$4,'Res Bill Impact'!$L$37:$T$46,6,FALSE) -> 160.2657888 | G64: =VLOOKUP($D$4,'Res Bill Impact'!$L$37:$T$46,8,FALSE) -> 184.0432367 | H64: =$G64/D64-1 -> 0.1303093798 | I64: 0.138975244 | J64: =$G64/F64-1 -> 0.1483625923
B65: Essential Use (Basic) - CARE | D65: =VLOOKUP($D$4,'Res Bill Impact'!$V$37:$AD$46,2,FALSE) -> 98.62946196 | E65: =VLOOKUP($D$4,'Res Bill Impact'!$V$37:$AD$46,4,FALSE) -> 97.75558155 | F65: =VLOOKUP($D$4,'Res Bill Impact'!$V$37:$AD$46,6,FALSE) -> 96.92837715 | G65: =VLOOKUP($D$4,'Res Bill Impact'!$V$37:$AD$46,8,FALSE) -> 111.8188538 | H65: 0.1337266934 | I65: 0.1438615781 | J65: =$G65/F65-1 -> 0.1536235009
B66: Essential Use (All-Electric) - Non-CARE | D66: =VLOOKUP($D$4,'Res Bill Impact'!$L$52:$T$61,2,FALSE) -> 118.2478462 | E66: =VLOOKUP($D$4,'Res Bill Impact'!$L$52:$T$61,4,FALSE) -> 117.331534 | F66: =VLOOKUP($D$4,'Res Bill Impact'!$L$52:$T$61,6,FALSE) -> 116.354538 | G66: =VLOOKUP($D$4,'Res Bill Impact'!$L$52:$T$61,8,FALSE) -> 133.9414078 | H66: 0.1327175262 | I66: 0.1415635948 | J66: 0.15114898
B67: Essential Use (All-Electric) - CARE | D67: =VLOOKUP($D$4,'Res Bill Impact'!$V$52:$AD$61,2,FALSE) -> 70.68743242 | E67: =VLOOKUP($D$4,'Res Bill Impact'!$V$52:$AD$61,4,FALSE) -> 70.04107117 | F67: =VLOOKUP($D$4,'Res Bill Impact'!$V$46:$AD$61,6,FALSE) -> 69.42923359 | G67: =VLOOKUP($D$4,'Res Bill Impact'!$V$52:$AD$61,8,FALSE) -> 80.44289974 | H67: 0.1380085114 | I67: 0.1485104154 | J67: 0.1586315386
B69: Bundled Residential Monthly Average Bills - Winter
D70: =$D$30 -> 2025-01-01 | E70: =$E$30 -> 2025-03-01 | F70: =$D$3&" Authorized" -> 2025 Authorized | G70: =$D$3&" w/Pending" -> 2025 w/Pending | H70: =$H$30 -> % Change over 1/1/2025 | I70: =$I$30 -> % Change over 3/1/2025 | J70: % Change over Authorized
B71: Essential Use (Basic) - Non-CARE | D71: =VLOOKUP($D$4,'Res Bill Impact'!$L$37:$T$46,3,FALSE) -> 113.182199 | E71: =VLOOKUP($D$4,'Res Bill Impact'!$L$37:$T$46,5,FALSE) -> 112.3025393 | F71: =VLOOKUP($D$4,'Res Bill Impact'!$L$37:$T$46,7,FALSE) -> 111.3646232 | G71: =VLOOKUP($D$4,'Res Bill Impact'!$L$37:$T$46,9,FALSE) -> 128.2480181 | H71: =$G71/D71-1 -> 0.1331112073 | I71: 0.1419868053 | J71: =$G71/F71-1 -> 0.151604652
B72: Essential Use (Basic) - CARE | D72: =VLOOKUP($D$4,'Res Bill Impact'!$V$37:$AD$46,3,FALSE) -> 67.51220179 | E72: =VLOOKUP($D$4,'Res Bill Impact'!$V$37:$AD$46,5,FALSE) -> 66.89169499 | F72: =VLOOKUP($D$4,'Res Bill Impact'!$V$37:$AD$46,7,FALSE) -> 66.30433091 | G72: =VLOOKUP($D$4,'Res Bill Impact'!$V$37:$AD$46,9,FALSE) -> 76.87745042 | H72: 0.1387193483 | I72: 0.1492824398 | J72: 0.1594634824
B73: Essential Use (All-Electric) - Non-CARE | D73: =VLOOKUP($D$4,'Res Bill Impact'!$L$52:$T$61,3,FALSE) -> 132.4316583 | E73: =VLOOKUP($D$4,'Res Bill Impact'!$L$52:$T$61,5,FALSE) -> 131.4127192 | F73: =VLOOKUP($D$4,'Res Bill Impact'!$L$52:$T$61,7,FALSE) -> 130.3262996 | G73: =VLOOKUP($D$4,'Res Bill Impact'!$L$52:$T$61,9,FALSE) -> 149.8828988 | H73: 0.1317754436 | I73: 0.1405509278 | J73: 0.1500587311
B74: Essential Use (All-Electric) - CARE | D74: =VLOOKUP($D$4,'Res Bill Impact'!$V$52:$AD$61,3,FALSE) -> 79.57807818 | E74: =VLOOKUP($D$4,'Res Bill Impact'!$V$52:$AD$61,5,FALSE) -> 78.85932447 | F74: =VLOOKUP($D$4,'Res Bill Impact'!$V$46:$AD$61,7,FALSE) -> 78.17896109 | G74: =VLOOKUP($D$4,'Res Bill Impact'!$V$52:$AD$61,9,FALSE) -> 90.42615784 | H74: 0.1363199503 | I74: 0.1466768001 | J74: 0.156655916
B77: Bundled Residential Monthly Average Bills
D78: =$D$30 -> 2025-01-01 | E78: =$E$30 -> 2025-03-01 | F78: =$D$3&" Authorized" -> 2025 Authorized | G78: =$D$3&" w/Pending" -> 2025 w/Pending | H78: =$H$30 -> % Change over 1/1/2025 | I78: =$I$30 -> % Change over 3/1/2025 | J78: % Change over Authorized
B79: =J4&"kWh Monthly Usage - Non-CARE" -> 500kWh Monthly Usage - Non-CARE | D79: =((D84*4)+(D89*8))/12 -> 166.708113 | E79: 165.4428148 | F79: 164.0919506 | G79: 188.4088082 | H79: =$G79/D79-1 -> 0.1301718001 | I79: =$G79/E79-1 -> 0.1388152965 | J79: =$G79/F79-1 -> 0.1481904352
B80: =J4&"kWh Monthly Usage - CARE" -> 500kWh Monthly Usage - CARE | D80: 101.4753954 | E80: 100.5848966 | F80: 99.7357059 | G80: 115.0219578 | H80: =$G80/D80-1 -> 0.1334960295 | I80: =$G80/E80-1 -> 0.1435311032 | J80: 0.1532675965
B82: Bundled Residential Monthly Average Bills - Summer
D83: =$D$30 -> 2025-01-01 | E83: =$E$30 -> 2025-03-01 | F83: =$D$3&" Authorized" -> 2025 Authorized | G83: =$D$3&" w/Pending" -> 2025 w/Pending | H83: =$H$30 -> % Change over 1/1/2025 | I83: =$I$30 -> % Change over 3/1/2025 | J83: % Change over Authorized
B84: =J4&"kWh Monthly Usage - Non-CARE" -> 500kWh Monthly Usage - Non-CARE | D84: =VLOOKUP($D$4,'Res Bill Impact'!$L$67:$T$76,2,FALSE) -> 158.1466667 | E84: =VLOOKUP($D$4,'Res Bill Impact'!$L$67:$T$76,4,FALSE) -> 156.9416667 | F84: =VLOOKUP($D$4,'Res Bill Impact'!$L$67:$T$76,6,FALSE) -> 155.6568641 | G84: =VLOOKUP($D$4,'Res Bill Impact'!$L$67:$T$76,8,FALSE) -> 178.7845489 | H84: =$G84/D84-1 -> 0.1304983702 | I84: =$G84/E84-1 -> 0.1391783503 | J84: =$G84/F84-1 -> 0.1485812076
B85: =J4&"kWh Monthly Usage - CARE" -> 500kWh Monthly Usage - CARE | D85: =VLOOKUP($D$4,'Res Bill Impact'!$V$67:$AD$76,2,FALSE) -> 95.69666667 | E85: =VLOOKUP($D$4,'Res Bill Impact'!$V$67:$AD$76,4,FALSE) -> 94.84666667 | F85: =VLOOKUP($D$4,'Res Bill Impact'!$V$67:$AD$76,6,FALSE) -> 94.04206717 | G85: =VLOOKUP($D$4,'Res Bill Impact'!$V$67:$AD$76,8,FALSE) -> 108.5256338 | H85: =$G85/D85-1 -> 0.1340586623 | I85: =$G85/E85-1 -> 0.1442219068 | J85: 0.1540115723
B87: Bundled Residential Monthly Average Bills - Winter
D88: =$D$30 -> 2025-01-01 | E88: =$E$30 -> 2025-03-01 | F88: =$D$3&" Authorized" -> 2025 Authorized | G88: =$D$3&" w/Pending" -> 2025 w/Pending | H88: =$H$30 -> % Change over 1/1/2025 | I88: =$I$30 -> % Change over 3/1/2025 | J88: % Change over Authorized
B89: =J4&"kWh Monthly Usage - Non-CARE" -> 500kWh Monthly Usage - Non-CARE | D89: =VLOOKUP($D$4,'Res Bill Impact'!$L$67:$T$76,3,FALSE) -> 170.9888361 | E89: =VLOOKUP($D$4,'Res Bill Impact'!$L$67:$T$76,5,FALSE) -> 169.6933888 | F89: =VLOOKUP($D$4,'Res Bill Impact'!$L$67:$T$76,7,FALSE) -> 168.3094938 | G89: =VLOOKUP($D$4,'Res Bill Impact'!$L$67:$T$76,9,FALSE) -> 193.2209378 | H89: =$G89/D89-1 -> 0.1300207787 | I89: =$G89/E89-1 -> 0.1386474105 | J89: =$G89/F89-1 -> 0.1480097371
B90: =J4&"kWh Monthly Usage - CARE" -> 500kWh Monthly Usage - CARE | D90: =VLOOKUP($D$4,'Res Bill Impact'!$V$67:$AD$76,3,FALSE) -> 104.3647598 | E90: =VLOOKUP($D$4,'Res Bill Impact'!$V$67:$AD$76,5,FALSE) -> 103.4540116 | F90: =VLOOKUP($D$4,'Res Bill Impact'!$V$67:$AD$76,7,FALSE) -> 102.5825253 | G90: =VLOOKUP($D$4,'Res Bill Impact'!$V$67:$AD$76,9,FALSE) -> 118.2701198 | H90: =$G90/D90-1 -> 0.133238078 | I90: =$G90/E90-1 -> 0.1432144388 | J90: 0.1529265782
B93: Bundled Residential Monthly Average Bills
D94: =$D$30 -> 2025-01-01 | E94: =$E$30 -> 2025-03-01 | F94: =$D$3&" Authorized" -> 2025 Authorized | G94: =$D$3&" w/Pending" -> 2025 w/Pending | H94: =$H$30 -> % Change over 1/1/2025 | I94: =$I$30 -> % Change over 3/1/2025 | J94: % Change over Authorized
B95: All-Electric - Non-CARE | D95: =((D101*4)+(D107*8))/12 -> 139.7381152 | E95: =((E101*4)+(E107*8))/12 -> 138.6672297 | F95: 137.524436 | G95: 158.0958235 | H95: =$G95/D95-1 -> 0.1313722335 | I95: 0.1401094829 | J95: =$G95/F95-1 -> 0.1495835075
B96: All-Electric - CARE | D96: =((D102*4)+(D108*8))/12 -> 81.86581957 | E96: 81.131589 | F96: 80.43356806 | G96: 92.99861777 | H96: 0.1359883558 | I96: 0.1462689061 | J96: 0.1562164904
B97: All-Electric - Total | D97: =((D103*4)+(D109*8))/12 -> 119.4828118 | E97: 118.5297555 | F97: 117.5426322 | G97: 135.3118015 | H97: 0.1324792205 | I97: 0.1415850898 | J97: =$G97/F97-1 -> 0.1511721231
B99: Bundled Residential Monthly Average Bills - Summer
D100: =$D$30 -> 2025-01-01 | E100: =$E$30 -> 2025-03-01 | F100: =$D$3&" Authorized" -> 2025 Authorized | G100: =$D$3&" w/Pending" -> 2025 w/Pending | H100: =$H$30 -> % Change over 1/1/2025 | I100: =$I$30 -> % Change over 3/1/2025 | J100: % Change over Authorized
B101: All-Electric - Non-CARE | D101: =VLOOKUP($D$4,'Res Bill Impact'!$B$67:$J$76,2,FALSE) -> 182.7427053 | E101: =VLOOKUP($D$4,'Res Bill Impact'!$B$67:$J$76,4,FALSE) -> 181.3624989 | F101: =VLOOKUP($D$4,'Res Bill Impact'!$B$67:$J$76,6,FALSE) -> 179.8879243 | G101: =VLOOKUP($D$4,'Res Bill Impact'!$B$67:$J$76,8,FALSE) -> 206.4316875 | H101: =$G101/D101-1 -> 0.1296302481 | I101: =$G101/E101-1 -> 0.1382269696 | J101: =$G101/F101-1 -> 0.1475572263
B102: All-Electric - CARE | D102: =VLOOKUP($D$4,'Res Bill Impact'!$B$82:$J$91,2,FALSE) -> 106.1209049 | E102: =VLOOKUP($D$4,'Res Bill Impact'!$B$82:$J$91,4,FALSE) -> 105.1954786 | F102: =VLOOKUP($D$4,'Res Bill Impact'!$B$82:$J$91,6,FALSE) -> 104.3104595 | G102: =VLOOKUP($D$4,'Res Bill Impact'!$B$82:$J$91,8,FALSE) -> 120.241657 | H102: =$G102/D102-1 -> 0.1330628696 | I102: =$G102/E102-1 -> 0.1430306571 | J102: =$G102/F102-1 -> 0.1527286682
B103: All-Electric - Total | D103: =D101*0.65+D102*0.35 -> 155.9250751 | E103: =E101*0.65+E102*0.35 -> 154.7040418 | F103: =F101*0.65+F102*0.35 -> 153.4358116 | G103: =G101*0.65+G102*0.35 -> 176.2651768 | H103: =$G103/D103-1 -> 0.1304479198 | I103: =$G103/E103-1 -> 0.1393702117 | J103: =$G103/F103-1 -> 0.1487877241
B105: Bundled Residential Monthly Average Bills - Winter
D106: =$D$30 -> 2025-01-01 | E106: =$E$30 -> 2025-03-01 | F106: =$D$3&" Authorized" -> 2025 Authorized | G106: =$D$3&" w/Pending" -> 2025 w/Pending | H106: =$H$30 -> % Change over 1/1/2025 | I106: =$I$30 -> % Change over 3/1/2025 | J106: % Change over Authorized
B107: All-Electric - Non-CARE | D107: =VLOOKUP($D$4,'Res Bill Impact'!$B$67:$J$76,3,FALSE) -> 118.2358202 | E107: =VLOOKUP($D$4,'Res Bill Impact'!$B$67:$J$76,5,FALSE) -> 117.3195951 | F107: =VLOOKUP($D$4,'Res Bill Impact'!$B$67:$J$76,7,FALSE) -> 116.3426919 | G107: =VLOOKUP($D$4,'Res Bill Impact'!$B$67:$J$76,9,FALSE) -> 133.9278916 | H107: =$G107/D107-1 -> 0.1327184208 | I107: 0.1415645565 | J107: =$G107/F107-1 -> 0.1511500154
B108: All-Electric - CARE | D108: =VLOOKUP($D$4,'Res Bill Impact'!$B$82:$J$91,3,FALSE) -> 69.73827691 | E108: =VLOOKUP($D$4,'Res Bill Impact'!$B$82:$J$91,5,FALSE) -> 69.0996442 | F108: =VLOOKUP($D$4,'Res Bill Impact'!$B$82:$J$91,7,FALSE) -> 68.49512236 | G108: =VLOOKUP($D$4,'Res Bill Impact'!$B$82:$J$91,9,FALSE) -> 79.37709815 | H108: 0.1382142156 | I108: 0.1487338187 | J108: 0.1588722731
B109: All-Electric - Total | D109: =D107*0.65+D108*0.35 -> 101.2616801 | E109: =E107*0.65+E108*0.35 -> 100.4426123 | F109: =F107*0.65+F108*0.35 -> 99.59604256 | G109: =G107*0.65+G108*0.35 -> 114.8351139 | H109: 0.1340431425 | I109: 0.1432907931 | J109: 0.1530088036
B111: Small Commercial Monthly Average Bills
D112: =$D$30 -> 2025-01-01 | E112: =$E$30 -> 2025-03-01 | F112: =$D$3&" Authorized" -> 2025 Authorized | G112: =$D$3&" w/Pending" -> 2025 w/Pending | H112: =$H$30 -> % Change over 1/1/2025 | I112: =$I$30 -> % Change over 3/1/2025 | J112: % Change over Authorized
B113: NAICS 531 | D113: =((D119*4)+(D125*8))/12 -> 200.0192632 | E113: =((E119*4)+(E125*8))/12 -> 198.8346835 | F113: 201.5172875 | G113: 226.7088393 | H113: =$G113/D113-1 -> 0.1334350286 | I113: 0.1401875932 | J113: =$G113/F113-1 -> 0.1250093833
B114: NAICS 621 | D114: =((D120*4)+(D126*8))/12 -> 276.15071 | E114: 274.487772 | F114: 278.2697672 | G114: 313.7853816 | H114: 0.1362830884 | I114: 0.1431670683 | J114: 0.1276301585
B115: NAICS 722 | D115: =((D121*4)+(D127*8))/12 -> 798.5610323 | E115: 793.6171429 | F115: 804.9431298 | G115: 911.3021726 | H115: 0.1411803678 | I115: 0.1482894248 | J115: =$G115/F115-1 -> 0.1321323692
B117: Small Commercial Monthly Average Bills - Summer
D118: =D112 -> 2025-01-01 | E118: =$E$30 -> 2025-03-01 | F118: =$D$3&" Authorized" -> 2025 Authorized | G118: =$D$3&" w/Pending" -> 2025 w/Pending | H118: =$H$30 -> % Change over 1/1/2025 | I118: =$I$30 -> % Change over 3/1/2025 | J118: % Change over Authorized
B119: NAICS 531 | D119: ='Bill Impact (GS1)'!C37 -> 221.6737636 | E119: ='Bill Impact (GS1)'!E37 -> 220.4281496 | F119: ='Bill Impact (GS1)'!G37 -> 223.4245499 | G119: ='Bill Impact (GS1)'!I37 -> 251.5628723 | H119: =$G119/D119-1 -> 0.1348337677 | I119: =$G119/E119-1 -> 0.1412465821 | J119: =$G119/F119-1 -> 0.1259410501
B120: NAICS 621 | D120: ='Bill Impact (GS1)'!C38 -> 369.469769 | E120: ='Bill Impact (GS1)'!E38 -> 367.3738187 | F120: ='Bill Impact (GS1)'!G38 -> 372.5056345 | G120: ='Bill Impact (GS1)'!I38 -> 420.6970218 | H120: =$G120/D120-1 -> 0.1386507291 | I120: =$G120/E120-1 -> 0.1451469877 | J120: =$G120/F120-1 -> 0.1293708951
B121: NAICS 722 | D121: ='Bill Impact (GS1)'!C39 -> 1048.787661 | E121: ='Bill Impact (GS1)'!E39 -> 1042.716307 | F121: ='Bill Impact (GS1)'!G39 -> 1057.662204 | G121: ='Bill Impact (GS1)'!I39 -> 1198.014775 | H121: =$G121/D121-1 -> 0.1422853446 | I121: =$G121/E121-1 -> 0.1489364532 | J121: =$G121/F121-1 -> 0.1327007528
B123: Small Commercial Monthly Average Bills - Winter
D124: =D112 -> 2025-01-01 | E124: =$E$30 -> 2025-03-01 | F124: =$D$3&" Authorized" -> 2025 Authorized | G124: =$D$3&" w/Pending" -> 2025 w/Pending | H124: =$H$30 -> % Change over 1/1/2025 | I124: =$I$30 -> % Change over 3/1/2025 | J124: % Change over Authorized
B125: NAICS 531 | D125: ='Bill Impact (GS1)'!D37 -> 189.192013 | E125: ='Bill Impact (GS1)'!F37 -> 188.0379505 | F125: ='Bill Impact (GS1)'!H37 -> 190.5636562 | G125: ='Bill Impact (GS1)'!J37 -> 214.2818228 | H125: =$G125/D125-1 -> 0.1326155866 | I125: 0.1395668915 | J125: =$G125/F125-1 -> 0.1244632214
B126: NAICS 621 | D126: ='Bill Impact (GS1)'!D38 -> 229.4911805 | E126: ='Bill Impact (GS1)'!F38 -> 228.0447487 | F126: ='Bill Impact (GS1)'!H38 -> 231.1518335 | G126: ='Bill Impact (GS1)'!J38 -> 260.3295615 | H126: 0.1343771946 | I126: 0.1415722705 | J126: 0.1262275433
B127: NAICS 722 | D127: ='Bill Impact (GS1)'!D39 -> 673.4477179 | E127: ='Bill Impact (GS1)'!F39 -> 669.0675611 | F127: ='Bill Impact (GS1)'!H39 -> 678.5835925 | G127: ='Bill Impact (GS1)'!J39 -> 767.9458714 | H127: 0.140319955 | I127: 0.1477852403 | J127: 0.1316894188

Sheet Selected Data
A1: Summary of Selected Data
N2: 2025 Revenue
N3: Requirement
N4: $000
A5: 1 | B5: Current total system-level revenue requirement that is used for defining the reporting threshold: | N5: ='Authorized Rev Req'!L98 -> 17435388.66
B7: A | C7: One-percent reporting threshold | N7: =N5*0.01 -> 174353.8866
A9: 2 | B9: List of currently open proceedings that exceed the threshold for use of the affordability metrics (proceedings shaded gray filed prior to D.22-08-023):
N10: Annual Revenue
B11: A | C11: ='Incremental Rev Req'!B87 -> A.23-05-010 | D11: ='Incremental Rev Req'!$A$86 -> 2025 GRC | N11: =SUM('Incremental Rev Req'!L86:L88) -> 2005750.592
B12: B | C12: A.23-10-001 | D12: 2022 Wildfire Mgmt/Veg. Mgmt (WM/VM) | N12: 383538
B13: C | C13: ='Incremental Rev Req'!B89 -> A.24-04-005 | D13: =Summary!B9 -> WMCE | N13: ='Incremental Rev Req'!F89 -> 326337
B14: D | C14: A.24-10-002 | D14: Woolsey WEMA FRC/CEMA | N14: =SUM('Incremental Rev Req'!D101:D102) -> 419967
A17: 3 | B17: List of currently open proceedings for which affordability metrics have been filed: | N17: Annual Revenue
B18: A | C18: =C11 -> A.23-05-010 | D18: 2025 GRC | N18: =N11 -> 2005750.592
B19: B | C19: A.23-10-001 | D19: 2022 Wildfire Mgmt/Veg. Mgmt (WM/VM) | N19: =N12 -> 383538
B20: C | C20: =C13 -> A.24-04-005 | D20: WMCE | N20: =N13 -> 326337
B21: D | C21: =C14 -> A.24-10-002 | D21: =D14 -> Woolsey WEMA FRC/CEMA | N21: =N14 -> 419967
A25: 4 | B25: List of currently open proceedings that do not exceed the threshold for use of the affordability metrics (proceedings shaded gray filed prior to D.22-08-023):
N26: Annual Revenue
B27: A | C27: ='Incremental Rev Req'!$B$90 -> A.22-04-001 | D27: ='Incremental Rev Req'!$A$90 -> 2021 ERRA Review | N27: ='Incremental Rev Req'!$D$90 -> 25706
B28: B | C28: ='Incremental Rev Req'!B91 -> A.23-04-003 | D28: ='Incremental Rev Req'!A91 -> 2022 ERRA Review | N28: ='Incremental Rev Req'!D91+'Incremental Rev Req'!D92 -> 50874
B29: C | C29: ='Incremental Rev Req'!B94 -> A.24-04-001 | D29: 2023 ERRA Review | N29: =SUM('Incremental Rev Req'!D93:D94) -> -63195
B30: D | C30: A.24-08-003 | D30: Section 851 - Sale of GO 5 Property | N30: 29400
B31: E | C31: A.24-08-012 | D31: Section 851 - Sale of Hydroelectric San Bernardino | N31: 60300
B32: F | C32: A.24-09-008 | D32: Section 851 - Sale of Hydroelectric Fontana Union Water | N32: 9500
B33: G | C33: A.24-12-010 | D33: Section 851 - Sale of Irwindale Business Center | N33: ='Incremental Rev Req'!D103 -> 1400
B34: H | C34: A.XX-XX-XXX | D34: Section 851 - Sale of Hydroelectric TULE | N34: ='Incremental Rev Req'!D104 -> 31100
A37: 5 | B37: Total system-level revenue requirement if all pending revenue were granted in full: requests were granted in full
B38: A | C38: YE 2025 | N38: ='Incremental Rev Req'!$T$76 -> 19950319.01
B39: B | C39: YE 2026 | N39: ='Incremental Rev Req'!$U$76 -> 18469849.9
B40: C | C40: YE 2027 | N40: ='Incremental Rev Req'!$V$76 -> 19594850.81
B41: D | C41: YE 2028 | N41: ='Incremental Rev Req'!$W$76 -> 20409404.14
B42: E | C42: YE 2029 | N42: ='Incremental Rev Req'!$X$76 -> 20409404.14
A44: 6 | B44: Bundled residential average rate (RAR) if all pending revenue were granted in full (from Cost and Rate Tracker (CRT) as submitted by utility):
N45: cents/kWh
B46: A | C46: YE 2025 | N46: 35.87368469 | R46: =Summary!G31 -> 35.87368469 | S46: =Summary!G31 -> 35.87368469
B47: B | C47: YE 2026 | N47: 34.12520137
B48: C | C48: YE 2027 | N48: 35.0528215
B49: D | C49: YE 2028 | N49: 35.63065408
B50: E | C50: YE 2029 | N50: 35.63065408
A52: 7 | B52: Bundled residential average monthly bill corresponding to RAR above for typical customer in climate zone 9 using 500 kWh (from CRT as submitted by utility):
M53: Non-CARE | N53: CARE
B54: A | C54: YE 2025 | M54: 188.4088082 | N54: 115.0219578 | Q54: =Summary!G79 -> 188.4088082 | R54: =Summary!G80 -> 115.0219578 | S54: =Summary!G79 -> 188.4088082 | T54: =Summary!G80 -> 115.0219578
B55: B | C55: YE 2026 | M55: 178.7571632 | N55: 108.9546658
B56: C | C56: YE 2027 | M56: 183.9272495 | N56: 112.2047256
B57: D | C57: YE 2028 | M57: 175.8108759 | N57: 107.1025478
B58: E | C58: YE 2029 | M58: 175.8108759 | N58: 107.1025478
A60: 8 | B60: Bundled small commercial average rate (TOU-GS-1) if all pending revenue were granted in full (from Cost and Rate Tracker (CRT) as submitted by utility):
N61: cents/kWh
B62: A | C62: YE 2025 | N62: 33.10820336 | R62: =Summary!G32 -> 33.10820336 | S62: =Summary!G32 -> 33.10820336
B63: B | C63: YE 2026 | N63: 25.77906581
B64: C | C64: YE 2027 | N64: 26.04399981
B65: D | C65: YE 2028 | N65: 29.83176079
B66: E | C66: YE 2029 | N66: 29.83176079
A68: 9 | B68: Bundled small commercial average monthly bill corresponding to TOU-GS-1 rate above for typical customer by NAICS (from CRT as submitted by utility):
L69: NAICS 531 | M69: NAICS 621 | N69: NAICS 722
B70: A | C70: YE 2025 | L70: 226.7088393 | M70: 313.7853816 | N70: 911.3021726 | P70: =Summary!G113 -> 226.7088393 | Q70: =Summary!G114 -> 313.7853816 | R70: =Summary!G115 -> 911.3021726 | S70: =Summary!G113 -> 226.7088393 | T70: =Summary!G114 -> 313.7853816 | U70: =Summary!G115 -> 911.3021726
B71: B | C71: YE 2026 | L71: 178.5824801 | M71: 245.9357617 | N71: 708.1120901
B72: C | C72: YE 2027 | L72: 180.5197344 | M72: 248.6669461 | N72: 716.2912014
B73: D | C73: YE 2028 | L73: 206.9333524 | M73: 285.905457 | N73: 827.8098229
B74: E | C74: YE 2029 | L74: 206.9333524 | M74: 285.905457 | N74: 827.8098229

Sheet Authorized Rev Req
B2: Annual Period 2025
B3: Reporting Date: Quarter Ended March 31
C4: January 1, 2023 | D4: March 1, 2023 | E4: June 1, 2023 | F4: October 1, 2023 | G4: January 1, 2024 | H4: March 1, 2024 | I4: June 1, 2024 | J4: October 1, 2024 | K4: January 1, 2025 | L4: March 1, 2025
C5: 4929-E-A | D5: 4977-E | E5: 5041-E | F5: 5109-E | G5: 5178-E | H5: 5235-E | I5: 5307-E | J5: 5379-E / E-A | K5: 5449-E | L5: 5484-E
B6: Filing Description | M6: Revenue Recovery Mechanism | N6: Authority for Revenue Requirement | O6: Balancing Account
A7: Safety Affordability Reliability Proceedings | B7: Safety Affordability Reliability Proceedings
A8: 2018 GRC (Attrition Years) | B8: General Rate Case (GRC-G) | C8: 735101 | D8: 729370 | E8: 729370 | F8: 729370 | G8: 754977 | H8: 766648.8347 | I8: 766648.8347 | J8: 766648.8347 | K8: 760627.5753 | L8: 760627.5753 | M8: Generation | N8: D.23-11-096; Advice 5120-E; Advice 5406-E | O8: N
A9: 2018 GRC (Attrition Years) | B9: General Rate Case (GRC-N) | C9: 62456 | D9: 61815 | E9: 61815 | F9: 61815 | G9: 61347 | H9: 62607.60614 | I9: 62607.60614 | J9: 62607.60614 | K9: 61952.34378 | L9: 61952.34378 | M9: New System Gen | N9: D.23-11-096; Advice 5120-E; Advice 5406-E | O9: N
A10: 2018 GRC (Attrition Years) | B10: General Rate Case (GRC-D) | C10: 6995075 | D10: 6911672 | E10: 6841923 | F10: 6841923 | G10: 7565233 | H10: 7752988.246 | I10: 7752988.246 | J10: 7752988.246 | K10: 7655298.489 | L10: 7655298.489 | M10: Distribution | N10: D.23-11-096; Advice 5120-E; Advice 5406-E | O10: N
A11: 2018 GRC Memo Account/One-Time/FF&U | B11: 2021 GRCRRMA (27-month amortization) | C11: -3564.790897 | D11: -3564.790897 | E11: -3564.790897 | F11: -3564.790897 | G11: 0 | H11: 0 | I11: 0 | J11: 0 | M11: Generation | N11: D.21-08-036 | O11: Y
A12: 2018 GRC Memo Account/One-Time/FF&U | B12: 2021 GRCRRMA (27-month amortization) | C12: 2213.394759 | D12: 2213.394759 | E12: 2213.394759 | F12: 2213.394759 | G12: 0 | H12: 0 | I12: 0 | J12: 0 | M12: New System Gen | N12: D.21-08-036 | O12: Y
A13: Non-utility Affiliate Credits | B13: 2021 GRCRRMA (27-month amortization) | C13: 322298.9749 | D13: 322298.9749 | E13: 322298.9749 | F13: 322298.9749 | G13: 0 | H13: 0 | I13: 0 | J13: 0 | M13: Distribution | N13: D.21-08-036 | O13: Y
A14: Pole Loading & Deteriorated Poles Balancing Account | B14: Non-utility Affiliate Credits | C14: -4288.865465 | D14: -4288.865465 | E14: -4288.865465 | F14: -4288.865465 | G14: -4485.891476 | H14: -4485.891476 | I14: -4485.891476 | J14: -4485.891476 | K14: -4572.580314 | L14: -4572.580314 | M14: Distribution | N14: D.15-10-037 | O14: N
A15: Tax Accounting Memorandum Account (TAMA) | B15: Pole Loading & Deteriorated Pole Programs Balancing Account | C15: 52270.76244 | D15: 52270.76244 | E15: 52270.76244 | F15: 52270.76244 | G15: -51916.65043 | H15: -51916.65043 | I15: -51916.65043 | J15: -51916.65043 | K15: -14072.56849 | L15: -14072.56849 | M15: Distribution | N15: D.21-08-036 | O15: Y
A16: Pension/PBOP/Medical Balancing Accounts | B16: 2020 TAMA Balance | C16: 142.5835769 | D16: 142.5835769 | E16: 142.5835769 | F16: 142.5835769 | G16: 0 | H16: 0 | I16: 0 | M16: Distribution | N16: D.15-10-037; Advice 4453-E | O16: Y
B17: 2022/2023 TAMA Balance | C17: 18398 | D17: 18398 | E17: 18398 | F17: 18398 | G17: 19974.10359 | H17: 19974.10359 | I17: 19974.10359 | J17: 19974.10359 | K17: 14976.03009 | L17: 14976.03009 | M17: Generation | N17: Advice 5260-E | O17: Y
B18: 2022/2023 TAMA Balance | C18: 119343.2066 | D18: 119343.2066 | E18: 119343.2066 | F18: 129422.3922 | G18: 129422.3922 | H18: 129422.3922 | I18: 129422.3922 | J18: 97197.38039 | K18: 97197.38039 | L18: 97197.38039 | M18: Distribution | N18: Advice 5260-E | O18: Y
A19: Pension/PBOP/Medical Balancing Accounts | B19: Pension/PBOP/Medical Balancing Accounts | C19: -9738 | D19: -9738 | E19: -9738 | F19: -9738 | G19: -12071.66001 | H19: -12071.66001 | I19: -12071.66001 | J19: -12071.66001 | K19: -10009.34302 | L19: -10009.34302 | M19: Generation | N19: D.21-08-036 | O19: Y
A20: 2019 ERRA Forecast | B20: Pension/PBOP/Medical Balancing Accounts | C20: -63095.20256 | D20: -63095.20256 | E20: -63095.20256 | F20: -63095.20256 | G20: -78219.42906 | H20: -78219.42906 | I20: -78219.42906 | J20: -78219.42906 | K20: -64990.5188 | L20: -64990.5188 | M20: Distribution | N20: D.21-08-036 | O20: Y
A21: 2019 ERRA Forecast | B21: ERRA Forecast | C21: 4995616 | D21: 4995616 | E21: 4995616 | F21: 4995616 | G21: 4703703 | H21: 4703703 | I21: 4703703 | J21: 4703703 | K21: 4088354.669 | L21: 4088354.669 | M21: Generation | N21: D.24-12-039 | O21: N
A22: 2020 ERRA Forecast | B22: ERRA Forecast | C22: 288812 | D22: 288812 | E22: 288812 | F22: 288812 | G22: 402997 | H22: 402997 | I22: 402997 | J22: 402997 | K22: 457466.7391 | L22: 457466.7391 | M22: New System Gen | N22: D.24-12-039 | O22: N
A23: 2019 ERRA Forecast | B23: ERRA Forecast (BA) | C23: 4417.190949 | D23: 4417.190949 | E23: 4417.190949 | F23: 4417.190949 | G23: 222439.7825 | H23: 222439.7825 | I23: 222439.7825 | J23: 222439.7825 | K23: 78023.95761 | L23: 78023.95761 | M23: New System Gen | N23: D.24-12-039 | O23: Y
A24: 2019 ERRA Forecast | B24: ERRA Forecast | C24: -773198 | D24: -773198 | E24: -773198 | F24: -773198 | G24: -955105 | H24: -955105 | I24: -955105 | J24: -955105 | K24: -641623.9439 | L24: -641623.9439 | M24: GHG Revenue | N24: D.24-12-039 | O24: N
A25: 2019 ERRA Forecast | B25: ERRA Forecast | C25: 4740 | D25: 4740 | E25: 4740 | F25: 4740 | G25: 4958 | H25: 4958 | I25: 4958 | J25: 4958 | K25: 5157.179022 | L25: 5157.179022 | M25: Nuclear | N25: D.24-12-039 | O25: N
A26: 2019 ERRA Forecast | B26: ERRA Forecast | C26: -11473 | D26: -11473 | E26: -11473 | F26: -11473 | G26: -3582 | H26: -3582 | I26: -3582 | J26: -3582 | K26: -19169.38659 | L26: -19169.38659 | M26: Distribution | N26: D.24-12-039 | O26: N
B27: ERRA Forecast | C27: 11161.49722 | D27: 11161.49722 | E27: 11161.49722 | F27: 11161.49722 | G27: 6584.546087 | H27: 6584.546087 | I27: 6584.546087 | J27: 6584.546087 | K27: 2344.499701 | L27: 2344.499701 | M27: Public Purpose | N27: D.24-12-039 | O27: N
B28: Modified CAM (MCAM) Rate Component: | G28: 2362.884396 | H28: 2362.884396 | I28: 2362.884396 | J28: 2362.884396 | K28: 4709.193664 | L28: 4709.193664 | M28: MCAM | N28: D.24-12-039 | O28: N
A29: 2018 ERRA Balancing Account Trigger | B29: TMNBA/BMNBC BA | C29: -48062.22234 | D29: -48062.22234 | E29: -48062.22234 | F29: -48062.22234 | G29: 8772.952 | H29: 8772.952 | I29: 8772.952 | J29: 8772.952 | K29: 18400.88905 | L29: 18400.88905 | M29: Public Purpose | N29: D.24-12-039 | O29: Y
B30: ERRA/PABA/ESMA Balancing Account | C30: 1079567.057 | D30: 1079567.057 | E30: 1079567.057 | F30: 1079567.057 | G30: 676260.1571 | H30: 676260.1571 | I30: 676260.1571 | J30: 676260.1571 | K30: 459053.5617 | L30: 459053.5617 | M30: Generation | N30: D.24-12-039 | O30: Y
B31: 2023 ERRA Trigger | C31: 0 | D31: 0 | E31: 459077.8602 | F31: 459077.8602 | G31: 459077.8602 | H31: 459077.8602 | I31: 0 | J31: =I31 -> 0 | K31: 0 | L31: 0 | M31: Generation | N31: D.23-04-012; Advice 5036-E | O31: Y
B32: 2024 ERRA Trigger | J32: -750729.8226 | K32: -750729.8226 | L32: -750729.8226 | M32: Generation | N32: D.24-08-015 | O32: Y
B33: DAC-GT/CSGT Clean Energy Programs (BA) | C33: 2938.502779 | D33: 2938.502779 | E33: 2938.502779 | F33: 2938.502779 | G33: 2572.453913 | H33: 2572.453913 | I33: 2572.453913 | J33: 2572.453913 | K33: 2996.690392 | L33: 2996.690392 | M33: Public Purpose | N33: D.24-12-039 | O33: N
B34: 2020 ERRA Review | C34: -3742 | D34: -3742 | E34: -3742 | F34: -3742 | G34: 0 | H34: 0 | I34: 0 | J34: 0 | K34: 0 | L34: 0 | M34: Generation | N34: D.22-10-004; Advice 4902-E | O34: N
B35: 2020 ERRA Review | C35: 22865.94671 | D35: 22865.94671 | E35: 22865.94671 | F35: 22865.94671 | G35: 0 | H35: 0 | I35: 0 | J35: 0 | K35: 0 | L35: 0 | M35: Distribution | N35: D.22-10-004; Advice 4902-E | O35: N
B36: 2020 ERRA Review | C36: 12456.60375 | D36: 12456.60375 | E36: 12456.60375 | F36: 12456.60375 | G36: 0 | H36: 0 | I36: 0 | J36: 0 | K36: 0 | L36: 0 | M36: Public Purpose | N36: D.22-10-004; Advice 4902-E | O36: N
A37: BRRBA | B37: BRRBA Balancing Account | C37: 7542.575977 | D37: 7542.575977 | E37: 7542.575977 | F37: 7542.575977 | G37: 4756.555825 | H37: 4756.555825 | I37: 4756.555825 | J37: 4756.555825 | K37: -484.3566812 | L37: -484.3566812 | M37: Generation | N37: D.15-10-037 | O37: Y
A38: NDAM Balancing Account | B38: BRRBA (Inc. FRC FF) | C38: -307497.1264 | D38: -307497.1264 | E38: -306980.6966 | F38: -306980.6966 | G38: 695357.185 | H38: 695357.185 | I38: 695357.185 | J38: 695357.185 | K38: 676672.1218 | L38: 676672.1218 | M38: Distribution | N38: =N37 -> D.15-10-037 | O38: Y
A39: CARE Balancing Account | B39: NDAM Balancing Account | C39: 2770.566274 | D39: 2770.566274 | E39: 2770.566274 | F39: 2770.566274 | G39: 1927 | H39: 1927 | I39: 1927 | J39: 1927 | K39: -6072.630664 | L39: -6072.630664 | M39: Nuclear | N39: D.15-10-037 | O39: Y
A40: PPPAM Balancing Account | B40: CARE Balancing Account | C40: -83502.67593 | D40: -83502.67593 | E40: -83502.67593 | F40: -83502.67593 | G40: 55214.93072 | H40: 55214.93072 | I40: 55214.93072 | J40: 55214.93072 | K40: 107382.1747 | L40: 107382.1747 | M40: Public Purpose | N40: D.15-10-037 | O40: Y
B41: PPPAM Balancing Account | C41: 49633.64016 | D41: 49633.64016 | E41: 49633.64016 | F41: 49633.64016 | G41: 57989.27786 | H41: 57989.27786 | I41: 57989.27786 | J41: 57989.27786 | K41: 191863.3206 | L41: 191863.3206 | M41: Public Purpose | N41: D.15-10-037 | O41: Y
B42: Emergency Reliability OIR | C42: 1979.89967 | D42: 1979.89967 | E42: 1979.89967 | F42: 1979.89967 | G42: 0 | H42: 0 | I42: 0 | M42: Distribution | N42: D.21-12-015 | O42: N
B43: Emergency Reliability OIR | C43: 10010.72867 | D43: 10010.72867 | E43: 10010.72867 | F43: 10010.72867 | G43: 0 | H43: 0 | I43: 0 | M43: Public Purpose | N43: D.21-12-015 | O43: N
B44: Emergency Reliability UOS | F44: 17991 | G44: 17006 | H44: 17591 | I44: 17591 | J44: 17591 | K44: 29550.51254 | L44: 29550.51254 | M44: Generation | N44: Advice 5421-E; Advice 5120-E; Advice 5142-E; Advice 5407-E | O44: N
B45: Emergency Reliability UOS | C45: 86303 | D45: 84963 | E45: 84963 | F45: 66972 | G45: 62428 | H45: 64611 | I45: 64611 | J45: 64611 | K45: 79159.14371 | L45: 79159.14371 | M45: Distribution | N45: Advice 5421-E; Advice 5120-E; Advice 5142-E; Advice 5407-E | O45: N
B46: 2021 GRC Track 2 Non-AB 1054 CapEx | C46: 0 | D46: 0 | E46: 0 | F46: 0 | G46: 0 | H46: 0 | I46: 0 | J46: 0 | M46: Distribution | O46: N
B47: 2021 GRC Track 2 O&M (36-Month Amortization) | C47: 135161.6901 | D47: 135161.6901 | E47: 135161.6901 | F47: 135161.6901 | G47: 135161.6901 | H47: 135161.6901 | I47: 135161.6901 | J47: 135161.6901 | K47: 135161.6901 | L47: 0 | M47: Distribution | N47: D.21-01-012; Advice 4658-E/E-A | O47: N
B48: 2021 GRC Track 3 O&M (36-Month Amortization) | C48: 135415.5795 | D48: 135415.5795 | E48: 135415.5795 | F48: 135415.5795 | G48: 135415.5795 | H48: 135415.5795 | I48: 135415.5795 | J48: 135415.5795 | K48: 135415.5795 | L48: 135415.5795 | M48: Distribution | N48: D.22-06-032 | O48: N
B49: VMBA Undercollection Threshold | C49: 26556.1553 | D49: 26556.1553 | E49: 26556.1553 | F49: 29215.51344 | G49: 29215.51344 | H49: 29215.51344 | I49: 29215.51344 | J49: 34738.53028 | K49: 34738.53028 | L49: 34738.53028 | M49: Distribution | N49: Advice 5049-E; Advice 5245-E | O49: Y
B50: WRMBA Undercollection | J50: 129014.0578 | K50: 129014.0578 | L50: 129014.0578 | M50: Distribution | N50: Advice 5267-E | O50: Y
B51: 2020 Vegetation Management Z-Factor | F51: 37644.69531 | G51: 37644.69531 | H51: 37644.69531 | I51: 37644.69531 | J51: 0 | M51: Distribution | N51: Resolution E-5287 | O51: N
B52: 2021 Wildfire Mitigation/Vegetation Management | I52: 378956.9667 | J52: 378956.9667 | K52: 378956.9667 | L52: 378956.9667 | M52: Distribution | N52: D.24-03-008 | O52: N
B53: 2022 WMVM (55% Interm Rate Recovery) | J53: 149902.8146 | K53: 149902.8146 | L53: 149902.8146 | M53: Distribution | N53: D.24-07-012 | O53: N
B54: Mobilehome Master Meter Balancing Account | C54: 14300.59952 | D54: 14300.59952 | E54: 14300.59952 | F54: 14300.59952 | G54: 18034.35236 | H54: 18034.35236 | I54: 18034.35236 | J54: 18034.35236 | K54: 23332.92938 | L54: 23332.92938 | M54: Distribution | N54: D.15-10-037 | O54: Y
B55: WEMA 2 | C55: 0 | D55: 0 | E55: 214140.3257 | F55: 214140.3257 | G55: 214140.3257 | H55: 214140.3257 | I55: 0 | J55: 0 | K55: 0 | L55: 0 | M55: Distribution | N55: D.23-05-033 | O55: N
B56: 2017 CEMA Fires | C56: 1460.866949 | D56: 1460.866949 | E56: 1460.866949 | F56: 1460.866949 | G56: 0 | H56: 0 | I56: 0 | J56: 0 | K56: 0 | L56: 0 | M56: Distribution | N56: D.22-06-002 | O56: N
B57: CEMA - 2020 Storms | J57: 288149.1807 | K57: 288149.1807 | L57: 288149.1807 | M57: Distribution | N57: D.24-05-037 | O57: N
B58: 2021 CEMA/WEMA | G58: 137221.3298 | H58: 137221.3298 | I58: 137221.3298 | J58: 137221.3298 | K58: 0 | L58: 0 | M58: Distribution | N58: D.23-11-089 | O58: Y
B59: Wildfire Self-Insurance Credit | I59: -24268.43314 | J59: -24268.43314 | K59: -24268.43314 | L59: -24268.43314 | M59: Distribution | N59: D.23-05-013 | O59: N
B60: CSRP Track 1 | C60: 201345.1951 | D60: 201345.1951 | E60: 201345.1951 | F60: 201345.1951 | G60: 0 | H60: 0 | I60: 0 | J60: 0 | K60: 0 | L60: 0 | M60: Distribution | N60: D.22-09-015; Advice 4876-E | O60: N
B61: CSRP Track 2 | E61: 38155.501 | F61: 38155.501 | G61: 38155.501 | H61: 38155.501 | I61: 0 | J61: 0 | K61: 0 | L61: 0 | M61: Distribution | N61: D.23-03-019 | O61: N
B62: Diablo Canyon Extended Operations NBC | J62: 0 | K62: 282858.6909 | L62: 282858.6909 | M62: DCPP | N62: D.24-12-033 | O62: N
A63: SJV DAC Pilots | B63: GSRP Recovery Bonds FRC #1 (AB 1054) | C63: 19256.772 | D63: 19256.772 | E63: 19256.772 | F63: 19256.772 | G63: 19256.772 | H63: 19256.772 | I63: 19256.772 | J63: 19256.772 | K63: 19256.772 | L63: 19256.772 | M63: Securitization | N63: D.20-11-007; Advice 4416-E | O63: N
A64: SJV DAC Pilots | B64: 2021 GRC Tracks 1 and 2 Recovery Bonds FRC #2 (AB 1054) | C64: 31732.126 | D64: 31732.126 | E64: 31732.126 | F64: 31732.126 | G64: 31732.126 | H64: 31732.126 | I64: 31732.126 | J64: 31732.126 | K64: 31732.126 | L64: 31732.126 | M64: Securitization | N64: D.21-10-025; Advice 4717-E-A | O64: N
A65: SJV DAC Pilots | B65: 2021 GRC Tracks 1 and 3 Recovery Bonds FRC #3 (AB 1054) | E65: 55255.382 | F65: 55255.382 | G65: 55255.382 | H65: 55255.382 | I65: 55255.382 | J65: 55255.382 | K65: 55255.382 | L65: 55255.382 | M65: Securitization | N65: D.23-02-023; Advice 5018-E | O65: N
B66: Grid Safety & Resiliency Program | M66: Distribution | N66: D.20-04-013; Advice 4197-E | O66: N
A67: Public Policy Proceedings | B67: Subtotal Safety Affordability Reliability | C67: =SUM(C8:C66) -> 14145181.23 | D67: 14054066.23 | E67: 14751462.73 | F67: 14801845.97 | G67: 15661213.72 | H67: 15864669.4 | I67: 15507984.25 | J67: 15259973.79 | K67: 14918967.61 | L67: =SUM(L8:L66) -> 14783805.92
A68: Demand Response | B68: Public Policy Proceedings
A69: Energy Efficiency | B69: Demand Response | C69: 4649.427316 | D69: 4649.427316 | E69: 4649.427316 | F69: 4649.427316 | G69: 10.11184714 | H69: 11.12303186 | I69: 11.12303186 | J69: 11.12303186 | K69: 11.04213708 | L69: 11.04213708 | M69: Generation | N69: D.23-12-005; Advice 5421-E | O69: N
B70: Demand Response (Inc. ELPBA 2023-2025) | C70: 23987.96955 | D70: 23987.96955 | E70: 23987.96955 | F70: 23987.96955 | G70: 40702.88087 | H70: 49287.83909 | I70: 49287.83909 | J70: 49287.83909 | K70: 52035.59468 | L70: 52035.59468 | M70: Distribution | N70: D.23-12-005; Advice 5421-E | O70: N
B71: Energy Efficiency (Inc. IDSM) | C71: 415373.5539 | D71: 415373.5539 | E71: 415373.5539 | F71: 415373.5539 | G71: 288996.5913 | H71: 288996.5913 | I71: 288996.5913 | J71: 288996.5913 | K71: 482807.0296 | L71: 482807.0296 | M71: Public Purpose | N71: D.23-08-005; Advice 5123-E; D.24-09-031 | O71: N
B72: Energy Efficiency Market Access Program | C72: 47007.4494 | D72: 47007.4494 | E72: 47007.4494 | F72: 47007.4494 | G72: 0 | H72: 0 | I72: 0 | J72: 0 | M72: Public Purpose | N72: D.20-08-042; D.21-11-028 | O72: N
B73: Smart Heat Pump Water Heater (SHPWH) Program | C73: 14055.46753 | D73: 14055.46753 | E73: 14055.46753 | F73: 14055.46753 | G73: 0 | H73: 0 | I73: 0 | J73: 0 | M73: Public Purpose | N73: D.22-04-044; Advice 4858-E | O73: N
B74: New Home Energy Storage Pilot (NHESP) | E74: 5055.923571 | F74: 5055.923571 | G74: 5055.923571 | H74: 5055.923571 | I74: 0 | J74: 0 | M74: Public Purpose | N74: D.22-04-044; Advice 4852-E | O74: N
B75: California Hub for EE Financing (CHEEF) | C75: 549.4028246 | D75: 549.4028246 | E75: 549.4028246 | F75: 549.4028246 | G75: 0 | H75: 0 | I75: 0 | J75: 0 | M75: Public Purpose | N75: D.23-08-005; Advice 5123-E | O75: N
B76: Energy Efficiency Market Transformation | C76: 6441 | D76: 6441 | E76: 6441 | F76: 6441 | G76: 6441 | H76: 6441 | I76: 6441 | J76: 6441 | K76: 6441 | L76: 6441 | M76: Public Purpose | N76: D.19-12-021 | O76: N
B77: 2020 RUBA Uncollectibles (36-Month Amortization) | C77: 25700.14834 | D77: 25700.14834 | E77: 25700.14834 | F77: 25700.14834 | G77: 25700.14834 | H77: 25700.14834 | I77: 25700.14834 | J77: 25700.14834 | K77: 25700.14834 | L77: 0 | M77: Public Purpose | N77: Advice 4658-E/E-A | O77: N
A78: Charge Ready Phase 1 Pilot | B78: Schools Energy Efficiency Stimulus Program | C78: 75509.17701 | D78: 75509.17701 | E78: 75509.17701 | F78: 75509.17701 | G78: 0 | H78: 0 | I78: 0 | J78: 0 | M78: Public Purpose | N78: D.21-01-004; Advice 4633-E-A | O78: N
A79: CA Solar Initiatives/MASH/SASH | B79: Charge Ready Programs (Pilot, Bridge and Schools and Parks) | C79: 30457 | D79: 30254 | E79: 30254 | F79: 30254 | G79: 41775 | H79: 42322 | I79: 42322 | J79: 42322 | K79: 76686.14532 | L79: 76686.14532 | M79: Distribution | N79: Advice 5120-E; Advice 5141-E; Advice 5407-E | O79: N
B80: Transportation Electrification | C80: 15772 | D80: 15678 | E80: 15678 | F80: 15678 | G80: 15804 | H80: 16033 | I80: 16033 | J80: 16033 | K80: 27307.65104 | L80: 27307.65104 | M80: Distribution | N80: Advice 5120-E; Advice 5141-E; Advice 5407-E | O80: N
B81: Low Income Programs (ESAP) | C81: 61811.10058 | D81: 61811.10058 | E81: 61811.10058 | F81: 61811.10058 | G81: 92017.80899 | H81: 92017.80899 | I81: 92017.80899 | J81: 92017.80899 | K81: 92462.20343 | L81: 92462.20343 | M81: Public Purpose | N81: D.21-06-015 | O81: N
A82: Statewide ME&O | B82: Low Income Programs (CARE/FERA Admin) | C82: 10644.40881 | D82: 10644.40881 | E82: 10644.40881 | F82: 10644.40881 | G82: 10571.12016 | H82: 10571.12016 | I82: 10571.12016 | J82: 10571.12016 | K82: 10971.64941 | L82: 10971.64941 | M82: Public Purpose | N82: D.21-06-015; Advice 4638-E | O82: N
A83: EPIC - RD&D and Renewables | B83: Statewide ME&O | C83: 0 | D83: 0 | E83: 0 | F83: 0 | G83: 0 | H83: 0 | I83: 0 | J83: 0 | K83: 0 | L83: 0 | M83: Public Purpose | O83: N
A84: Self-Generation Incentive Program (SGIP) | B84: EPIC - RD&D and Renewables | C84: 76885.42974 | D84: 76885.42974 | E84: 76885.42974 | F84: 76885.42974 | G84: 76885.42974 | H84: 76885.42974 | I84: 76885.42974 | J84: 76885.42974 | K84: 76885.42974 | L84: 76885.42974 | M84: Public Purpose | N84: D.20-08-042; D.21-11-028 | O84: N
A85: Aliso Canyon Energy Storage | B85: Self-Generation Incentive Program (SGIP) | C85: 56626.34399 | D85: 56626.34399 | E85: 56626.34399 | F85: 56626.34399 | G85: 56626.34399 | H85: 56626.34399 | I85: 56626.34399 | J85: 56626.34399 | K85: 0 | L85: 0 | M85: Public Purpose | N85: D.20-01-021; Advice 4169-E | O85: N
A86: Non-CPUC Jurisdictional Proceedings | B86: Subtotal Public Policy | C86: =SUM(C69:C85) -> 865469.879 | D86: 865172.879 | E86: 870228.8025 | F86: 870228.8025 | G86: 660586.3588 | H86: 669948.3282 | I86: 664892.4046 | J86: 664892.4046 | K86: 851307.8937 | L86: =SUM(L69:L85) -> 825607.7453
A87: DWR Bond/Power | B87: Non-CPUC Jurisdictional Proceedings
A88: Wildfire Fund Charge | B88: DWR Bond/Power | M88: DWR | O88: N
A89: Wildfire Fund Charge | B89: DWR Bond Refund | C89: -145519.4203 | D89: -145519.4203 | E89: 0 | F89: 0 | G89: 0 | H89: 0 | I89: 0 | M89: DWR | N89: D.21-12-001; Advice 4690-E | O89: N
A90: FERC Base Transmission | B90: Wildfire Fund Charge (AB1054) | C90: 402302 | D90: 402302 | E90: 402302 | F90: 402302 | G90: 408912 | H90: 408912 | I90: 408912 | J90: 408912 | K90: 416803 | L90: 416803 | M90: DWR | N90: D.22-12-007 | O90: N
A91: TRBAA | B91: FERC Base Transmission | C91: 1414935.849 | D91: 1414935.849 | E91: 1414935.849 | F91: 1414935.849 | G91: 1124500.46 | H91: 1124500.46 | I91: 1124500.46 | J91: 1124500.46 | K91: 1344347 | L91: 1344347 | M91: FERC | N91: ER25-550; Advice 5449-E | O91: N
A92: RSBAA | B92: TRBAA (BA) | C92: -156456 | D92: -156456 | E92: -156456 | F92: -156456 | G92: -283956 | H92: -283956 | I92: -283956 | J92: -283956 | K92: -214482 | L92: -214482 | M92: TOTCA | N92: ER25-267; Advice 5449-E | O92: Y
A93: TACBAA | B93: RSBAA (BA) | C93: -2676 | D93: -2676 | E93: -2676 | F93: -2676 | G93: 4738 | H93: 4738 | I93: 4738 | J93: 4738 | K93: 8496 | L93: 8496 | M93: TOTCA | N93: ER25-305; Advice 5449-E | O93: Y
A94: Total Approved, Implemented Since Jan 1 or To Be Implemented | B94: TACBAA (BA) | C94: 156958 | D94: 156958 | E94: 98958 | F94: 98958 | G94: 98974 | H94: 98974 | I94: 270811 | J94: 270811 | K94: 270811 | L94: 270811 | M94: TOTCA | N94: ER24-1671-000 | O94: Y
B95: Subtotal Non-CPUC Jurisdictional | C95: =SUM(C89:C94) -> 1669544.429 | D95: 1669544.429 | E95: 1757063.849 | F95: 1757063.849 | G95: 1353168.46 | H95: =SUM(H89:H94) -> 1353168.46 | I95: 1525005.46 | J95: 1525005.46 | K95: 1825975 | L95: =SUM(L89:L94) -> 1825975
B96: PUCRF | C96: =E96 -> 107475 | D96: =E96 -> 107475 | E96: 107475 | F96: 107475 | G96: 80194.53144 | H96: =G96 -> 80194.53144 | I96: =H96 -> 80194.53144 | J96: =I96 -> 80194.53144 | K96: 63307.71418 | L96: 63307.71418 | M96: PUCRF | O96: N
B97: Total Authorized Revenue | C97: =C67+C86+C95+C96 -> 16787670.54 | D97: 16696258.54 | E97: 17486230.38 | F97: 17536613.62 | G97: 17755163.07 | H97: 17967980.72 | I97: 17778076.65 | J97: 17530066.19 | K97: 17659558.21 | L97: =L67+L86+L95+L96 -> 17498696.38
B98: w/o PUCRF | C98: =C97-C96 -> 16680195.54 | D98: 16588783.54 | E98: 17378755.38 | F98: 17429138.62 | G98: 17674968.54 | H98: 17887786.19 | I98: =I97-I96 -> 17697882.12 | J98: 17449871.66 | K98: 17596250.5 | L98: =L97-L96 -> 17435388.66
C99: 0 | D99: 0 | E99: 0 | F99: 0 | G99: 0 | H99: 0 | I99: 0 | J99: 0 | K99: 0 | L99: 0

Sheet Incremental Rev Req
A2: Annual Period 2025
A3: Reporting Date: Quarter Ended March 31
A5: Current Revenue Requirement ($000): | B5: ='Authorized Rev Req'!L97 -> 17498696.38 | C5: Inc. PUCRF
A6: Current Revenue Requirement Effective: | B6: March 1, 2025
A7: Approved Application(s), Implemented Since Jan 1 or To Be Implemented
A8: Filing Description | B8: Proceeding | C8: Authority for Revenue Requirement | D8: Authorized Revenue Requirement ($000) | E8: Revenue Recovery Mechanism | F8: 2025 | G8: =F8+1 -> 2026 | H8: =G8+1 -> 2027 | I8: 2028 | J8: 2029 | K8: Existing or New Item (if existing, use delta from prior for rate impact) | S8: Total Authorized
A9: Safety Affordability Reliability Proceedings | T9: =F8 -> 2025 | U9: =G8 -> 2026 | V9: 2027 | W9: 2028 | X9: 2029
A10: General Rate Case (GRC-G) | C10: =VLOOKUP(A10,'Authorized Rev Req'!B$7:$N$95,13,FALSE) -> D.23-11-096; Advice 5120-E; Advice 5406-E | D10: ='Authorized Rev Req'!$L8 -> 760627.5753 | E10: Generation | F10: ='Authorized Rev Req'!$L8 -> 760627.5753 | G10: =F10 -> 760627.5753 | H10: =G10 -> 760627.5753 | I10: =H10 -> 760627.5753 | J10: =I10 -> 760627.5753 | K10: Existing | S10: Generation | T10: =SUMIF($E$10:$E$78,$S10,F$10:F$78) -> 5342079.691 | U10: =SUMIF($E$10:$E$78,$S10,G$10:G$78) -> 4893225.829 | V10: =SUMIF($E$10:$E$78,$S10,H$10:H$78) -> 4893225.829 | W10: =SUMIF($E$10:$E$78,$S10,I$10:I$78) -> 4893225.829 | X10: =SUMIF($E$10:$E$78,$S10,J$10:J$78) -> 4893225.829
A11: General Rate Case (GRC-N) | C11: =VLOOKUP(A11,'Authorized Rev Req'!B$7:$N$95,13,FALSE) -> D.23-11-096; Advice 5120-E; Advice 5406-E | D11: ='Authorized Rev Req'!$L9 -> 61952.34378 | E11: New System Gen | F11: ='Authorized Rev Req'!$L9 -> 61952.34378 | G11: ='Authorized Rev Req'!K9 -> 61952.34378 | H11: =G11 -> 61952.34378 | I11: 61952.34378 | J11: 61952.34378 | K11: Existing | S11: New System Gen | T11: 597443.0405 | U11: 519419.0828 | V11: 519419.0828 | W11: 519419.0828 | X11: 519419.0828
A12: General Rate Case (GRC-D) | C12: =VLOOKUP(A12,'Authorized Rev Req'!B$7:$N$95,13,FALSE) -> D.23-11-096; Advice 5120-E; Advice 5406-E | D12: ='Authorized Rev Req'!$L10 -> 7655298.489 | E12: Distribution | F12: ='Authorized Rev Req'!$L10 -> 7655298.489 | G12: ='Authorized Rev Req'!K10 -> 7655298.489 | H12: 7655298.489 | I12: 7655298.489 | J12: 7655298.489 | K12: Existing | S12: Distribution | T12: 8734787.216 | U12: 8068268.367 | V12: 8067779.772 | W12: 8067779.772 | X12: 8067779.772
A13: Non-utility Affiliate Credits | C13: =VLOOKUP(A13,'Authorized Rev Req'!B$7:$N$95,13,FALSE) -> D.15-10-037 | D13: ='Authorized Rev Req'!$L14 -> -4572.580314 | E13: Distribution | F13: ='Authorized Rev Req'!$L14 -> -4572.580314 | G13: ='Authorized Rev Req'!K14 -> -4572.580314 | H13: -4572.580314 | I13: -4572.580314 | J13: -4572.580314 | K13: Existing | S13: GHG Revenue | T13: -641623.9439 | U13: -641623.9439 | V13: -641623.9439 | W13: -641623.9439 | X13: -641623.9439
A14: Pole Loading & Deteriorated Pole Programs Balancing Account | C14: =VLOOKUP(A14,'Authorized Rev Req'!B$7:$N$95,13,FALSE) -> D.21-08-036 | D14: ='Authorized Rev Req'!$L15 -> -14072.56849 | E14: Distribution | F14: ='Authorized Rev Req'!$L15 -> -14072.56849 | K14: Existing | S14: MCAM | T14: 4709.193664 | U14: 1558 | V14: 1558 | W14: 1558 | X14: 1558
A15: 2022/2023 TAMA Balance | C15: =VLOOKUP(A15,'Authorized Rev Req'!B$7:$N$95,13,FALSE) -> Advice 5260-E | D15: ='Authorized Rev Req'!$L17 -> 14976.03009 | E15: Generation | F15: ='Authorized Rev Req'!$L17 -> 14976.03009 | G15: =F15 -> 14976.03009 | H15: =G15 -> 14976.03009 | I15: 14976.03009 | J15: 14976.03009 | K15: Existing | S15: Nuclear | T15: -915.4516419 | U15: 5157.179022 | V15: 5157.179022 | W15: 5157.179022 | X15: 5157.179022
A16: 2022/2023 TAMA Balance | C16: =VLOOKUP(A16,'Authorized Rev Req'!B$7:$N$95,13,FALSE) -> Advice 5260-E | D16: ='Authorized Rev Req'!$L18 -> 97197.38039 | E16: Distribution | F16: ='Authorized Rev Req'!$L18 -> 97197.38039 | G16: =F16 -> 97197.38039 | H16: =G16 -> 97197.38039 | I16: 97197.38039 | J16: 97197.38039 | K16: Existing | S16: Public Purpose | T16: 992554.8866 | U16: 667782.9488 | V16: 666682.9488 | W16: 666682.9488 | X16: 666682.9488
A17: Pension/PBOP/Medical Balancing Accounts | C17: =VLOOKUP(A17,'Authorized Rev Req'!B$7:$N$95,13,FALSE) -> D.21-08-036 | D17: ='Authorized Rev Req'!$L19 -> -10009.34302 | E17: Generation | F17: ='Authorized Rev Req'!$L19 -> -10009.34302 | K17: Existing | S17: DCPP | T17: 282858.6909 | U17: 282858.6909 | V17: 282858.6909 | W17: 282858.6909 | X17: 282858.6909
A18: Pension/PBOP/Medical Balancing Accounts | C18: =VLOOKUP(A18,'Authorized Rev Req'!B$7:$N$95,13,FALSE) -> D.21-08-036 | D18: ='Authorized Rev Req'!$L20 -> -64990.5188 | E18: Distribution | F18: ='Authorized Rev Req'!$L20 -> -64990.5188 | K18: Existing | S18: DWR | T18: 416803 | U18: 416803 | V18: 416803 | W18: 416803 | X18: 416803
A19: 2025 ERRA Forecast F&PP | C19: D.24-12-039 | D19: ='Authorized Rev Req'!$L21 -> 4088354.669 | E19: Generation | F19: ='Authorized Rev Req'!$L21 -> 4088354.669 | G19: =F19 -> 4088354.669 | H19: 4088354.669 | I19: 4088354.669 | J19: 4088354.669 | K19: Existing | S19: FERC | T19: 1344347 | U19: 1344347 | V19: 1344347 | W19: 1344347 | X19: 1344347
A20: 2025 ERRA Forecast F&PP | C20: D.24-12-039 | D20: ='Authorized Rev Req'!$L22 -> 457466.7391 | E20: New System Gen | F20: ='Authorized Rev Req'!$L22 -> 457466.7391 | G20: 457466.7391 | H20: 457466.7391 | I20: 457466.7391 | J20: 457466.7391 | K20: Existing | S20: TOTCA | T20: 64825 | U20: 64825 | V20: 64825 | W20: 64825 | X20: 64825
A21: 2025 ERRA Forecast (BA) | C21: D.24-12-039 | D21: ='Authorized Rev Req'!$L23 -> 78023.95761 | E21: New System Gen | F21: ='Authorized Rev Req'!$L23 -> 78023.95761 | I21: =H21 -> 0 | J21: 0 | K21: Existing | S21: Securitization | T21: 106244.28 | U21: 106244.28 | V21: 106244.28 | W21: 106244.28 | X21: 106244.28
A22: 2025 ERRA Forecast | C22: D.24-12-039 | D22: ='Authorized Rev Req'!$L24 -> -641623.9439 | E22: GHG Revenue | F22: ='Authorized Rev Req'!$L24 -> -641623.9439 | G22: =F22 -> -641623.9439 | H22: -641623.9439 | I22: -641623.9439 | J22: -641623.9439 | K22: Existing | S22: PUCRF | T22: 63307.71418 | U22: 63307.71418 | V22: 63307.71418 | W22: 63307.71418 | X22: 63307.71418
A23: 2025 ERRA Forecast | C23: D.24-12-039 | D23: ='Authorized Rev Req'!$L25 -> 5157.179022 | E23: Nuclear | F23: ='Authorized Rev Req'!$L25 -> 5157.179022 | G23: 5157.179022 | H23: 5157.179022 | I23: 5157.179022 | J23: 5157.179022 | K23: Existing | T23: =SUM(T10:T22) -> 17307420.32 | U23: =SUM(U10:U22) -> 15792173.15 | V23: =SUM(V10:V22) -> 15790584.55 | W23: =SUM(W10:W22) -> 15790584.55 | X23: =SUM(X10:X22) -> 15790584.55
A24: 2025 ERRA Forecast | C24: D.24-12-039 | D24: ='Authorized Rev Req'!$L26 -> -19169.38659 | E24: Distribution | F24: ='Authorized Rev Req'!$L26 -> -19169.38659 | G24: -19169.38659 | H24: -19169.38659 | I24: -19169.38659 | J24: -19169.38659 | K24: Existing | S24: Check | T24: =T23=F78 -> TRUE | U24: =U23=G78 -> TRUE | V24: =V23=H78 -> TRUE | W24: =W23=I78 -> TRUE | X24: =X23=J78 -> TRUE
A25: 2025 ERRA Forecast | C25: D.24-12-039 | D25: ='Authorized Rev Req'!$L27 -> 2344.499701 | E25: Public Purpose | F25: ='Authorized Rev Req'!$L27 -> 2344.499701 | G25: 2344.499701 | H25: 2344.499701 | I25: 2344.499701 | J25: 2344.499701 | K25: Existing | T25: =T23-F78 -> 0
A26: 2025 ERRA Forecast | C26: D.24-12-039 | D26: ='Authorized Rev Req'!$L28 -> 4709.193664 | E26: MCAM | F26: ='Authorized Rev Req'!$L28 -> 4709.193664 | G26: 1558 | H26: =G26 -> 1558 | I26: 1558 | J26: 1558 | K26: Existing
A27: 2025 ERRA Forecast (BA) | C27: D.24-12-039 | D27: ='Authorized Rev Req'!$L29 -> 18400.88905 | E27: Public Purpose | F27: ='Authorized Rev Req'!$L29 -> 18400.88905 | K27: Existing
A28: 2025 ERRA/PABA (BA) | C28: D.24-12-039 | D28: ='Authorized Rev Req'!$L30 -> 459053.5617 | E28: Generation | F28: ='Authorized Rev Req'!$L30 -> 459053.5617 | G28: -294 | H28: -294 | I28: =H28 -> -294 | J28: =I28 -> -294 | K28: Existing
A29: DAC-GT/CSGT Clean Energy Programs (BA) | C29: D.24-12-039 | D29: ='Authorized Rev Req'!$L33 -> 2996.690392 | E29: Public Purpose | F29: ='Authorized Rev Req'!$L33 -> 2996.690392 | G29: =F29 -> 2996.690392 | H29: =G29 -> 2996.690392 | I29: =H29 -> 2996.690392 | J29: =I29 -> 2996.690392 | K29: Existing
A30: 2024 ERRA Trigger | C30: D.24-08-015 | D30: ='Authorized Rev Req'!$L32 -> -750729.8226 | E30: Generation | F30: 0 | G30: 0 | K30: Existing
A31: BRRBA Balancing Account | C31: =VLOOKUP(A31,'Authorized Rev Req'!B$7:$N$95,13,FALSE) -> D.15-10-037 | D31: ='Authorized Rev Req'!$L37 -> -484.3566812 | E31: Generation | F31: ='Authorized Rev Req'!$L37 -> -484.3566812 | K31: Existing
A32: BRRBA Balancing Account | C32: =VLOOKUP(A32,'Authorized Rev Req'!B$7:$N$95,13,FALSE) -> D.15-10-037 | D32: ='Authorized Rev Req'!$L38 -> 676672.1218 | E32: Distribution | F32: ='Authorized Rev Req'!$L38 -> 676672.1218 | G32: =80000+993 -> 80993 | H32: =G32 -> 80993 | I32: =H32 -> 80993 | J32: =I32 -> 80993 | K32: Existing
A33: NDAM Balancing Account | C33: =VLOOKUP(A33,'Authorized Rev Req'!B$7:$N$95,13,FALSE) -> D.15-10-037 | D33: ='Authorized Rev Req'!$L39 -> -6072.630664 | E33: Nuclear | F33: ='Authorized Rev Req'!$L39 -> -6072.630664 | K33: Existing
A34: CARE Balancing Account | C34: =VLOOKUP(A34,'Authorized Rev Req'!B$7:$N$95,13,FALSE) -> D.15-10-037 | D34: ='Authorized Rev Req'!$L40 -> 107382.1747 | E34: Public Purpose | F34: ='Authorized Rev Req'!$L40 -> 107382.1747 | K34: Existing
A35: PPPAM Balancing Account | C35: =VLOOKUP(A35,'Authorized Rev Req'!B$7:$N$95,13,FALSE) -> D.15-10-037 | D35: ='Authorized Rev Req'!$L41 -> 191863.3206 | E35: Public Purpose | F35: ='Authorized Rev Req'!$L41 -> 191863.3206 | G35: 0 | H35: 0 | I35: 0 | J35: 0 | K35: Existing
A36: Emergency Reliability UOS | C36: =VLOOKUP(A36,'Authorized Rev Req'!B$7:$N$95,13,FALSE) -> Advice 5421-E; Advice 5120-E; Advice 5142-E; Advice 5407-E | D36: ='Authorized Rev Req'!$L44 -> 29550.51254 | E36: Generation | F36: ='Authorized Rev Req'!$L44 -> 29550.51254 | G36: ='Authorized Rev Req'!$K44 -> 29550.51254 | H36: =G36 -> 29550.51254 | I36: 29550.51254 | J36: 29550.51254 | K36: Existing
A37: Emergency Reliability UOS | C37: =VLOOKUP(A37,'Authorized Rev Req'!B$7:$N$95,13,FALSE) -> Advice 5421-E; Advice 5120-E; Advice 5142-E; Advice 5407-E | D37: ='Authorized Rev Req'!$L45 -> 79159.14371 | E37: Distribution | F37: ='Authorized Rev Req'!$L45 -> 79159.14371 | G37: ='Authorized Rev Req'!$K45 -> 79159.14371 | H37: 79159.14371 | I37: 79159.14371 | J37: 79159.14371 | K37: Existing
A38: 2021 GRC Track 2 O&M (36-Month Amortization) | C38: =VLOOKUP(A38,'Authorized Rev Req'!B$7:$N$95,13,FALSE) -> D.21-01-012; Advice 4658-E/E-A | D38: ='Authorized Rev Req'!$L47 -> 0 | E38: Distribution | F38: ='Authorized Rev Req'!$L47 -> 0 | K38: Existing
A39: 2021 GRC Track 3 O&M (36-Month Amortization) | C39: =VLOOKUP(A39,'Authorized Rev Req'!B$7:$N$95,13,FALSE) -> D.22-06-032 | D39: ='Authorized Rev Req'!$L48 -> 135415.5795 | E39: Distribution | K39: Existing
A40: VMBA Undercollection Threshold | C40: =VLOOKUP(A40,'Authorized Rev Req'!B$7:$N$95,13,FALSE) -> Advice 5049-E; Advice 5245-E | D40: ='Authorized Rev Req'!$L49 -> 34738.53028 | E40: Distribution | K40: Existing
A41: 2022 WMVM (55% Interm Rate Recovery) | C41: =VLOOKUP(A41,'Authorized Rev Req'!B$7:$N$95,13,FALSE) -> D.24-07-012 | D41: ='Authorized Rev Req'!$L53 -> 149902.8146 | E41: Distribution | F41: ='Authorized Rev Req'!$L53 -> 149902.8146 | K41: Existing
A42: 2020 Vegetation Management Z-Factor | C42: =VLOOKUP(A42,'Authorized Rev Req'!B$7:$N$95,13,FALSE) -> Resolution E-5287 | D42: 0 | E42: Distribution | F42: 0 | G42: 0 | K42: Existing
A43: 2021 Wildfire Mitigation/Vegetation Management | C43: =VLOOKUP(A43,'Authorized Rev Req'!B$7:$N$95,13,FALSE) -> D.24-03-008 | D43: ='Authorized Rev Req'!$L52 -> 378956.9667 | E43: Distribution | G43: 0 | K43: Existing
A44: Mobilehome Master Meter Balancing Account | C44: =VLOOKUP(A44,'Authorized Rev Req'!B$7:$N$95,13,FALSE) -> D.15-10-037 | D44: ='Authorized Rev Req'!$L54 -> 23332.92938 | E44: Distribution | F44: ='Authorized Rev Req'!$L54 -> 23332.92938 | G44: =F44 -> 23332.92938 | H44: =G44 -> 23332.92938 | I44: 23332.92938 | J44: 23332.92938 | K44: Existing
A45: WRMBA Undercollection | C45: =VLOOKUP(A45,'Authorized Rev Req'!B$7:$N$95,13,FALSE) -> Advice 5267-E | D45: ='Authorized Rev Req'!$L50 -> 129014.0578 | E45: Distribution | G45: 0 | K45: Existing
A46: CEMA - 2020 Storms | C46: =VLOOKUP(A46,'Authorized Rev Req'!B$7:$N$95,13,FALSE) -> D.24-05-037 | D46: ='Authorized Rev Req'!$L57 -> 288149.1807 | E46: Distribution | K46: Existing
A47: 2021 CEMA/WEMA | C47: =VLOOKUP(A47,'Authorized Rev Req'!B$7:$N$95,13,FALSE) -> D.23-11-089 | D47: ='Authorized Rev Req'!$L58 -> 0 | E47: Distribution | F47: ='Authorized Rev Req'!$L58 -> 0 | G47: ='Authorized Rev Req'!$K58 -> 0 | K47: Existing
A48: Wildfire Self-Insurance Credit | C48: =VLOOKUP(A48,'Authorized Rev Req'!B$7:$N$95,13,FALSE) -> D.23-05-013 | D48: ='Authorized Rev Req'!$L59 -> -24268.43314 | E48: Distribution | G48: 0 | K48: Existing
A49: CSRP Track 1 | C49: =VLOOKUP(A49,'Authorized Rev Req'!B$7:$N$95,13,FALSE) -> D.22-09-015; Advice 4876-E | D49: ='Authorized Rev Req'!$L60 -> 0 | E49: Distribution | F49: ='Authorized Rev Req'!$L60 -> 0 | G49: ='Authorized Rev Req'!$K60 -> 0 | K49: Existing
A50: ='Authorized Rev Req'!$B$61 -> CSRP Track 2 | C50: =VLOOKUP(A50,'Authorized Rev Req'!B$7:$N$95,13,FALSE) -> D.23-03-019 | D50: 0 | E50: Distribution | F50: 0 | G50: 0 | K50: Existing
A51: Diablo Canyon Extended Operations NBC | C51: =VLOOKUP(A51,'Authorized Rev Req'!B$7:$N$95,13,FALSE) -> D.24-12-033 | D51: ='Authorized Rev Req'!L62 -> 282858.6909 | E51: DCPP | F51: =D51 -> 282858.6909 | G51: =F51 -> 282858.6909 | H51: =G51 -> 282858.6909 | I51: =H51 -> 282858.6909 | J51: =I51 -> 282858.6909 | K51: Existing
A52: GSRP Recovery Bonds FRC #1 (AB 1054) | C52: =VLOOKUP(A52,'Authorized Rev Req'!B$7:$N$95,13,FALSE) -> D.20-11-007; Advice 4416-E | D52: ='Authorized Rev Req'!$L63 -> 19256.772 | E52: Securitization | F52: ='Authorized Rev Req'!$L63 -> 19256.772 | G52: ='Authorized Rev Req'!$K63 -> 19256.772 | H52: =G52 -> 19256.772 | I52: 19256.772 | J52: 19256.772 | K52: Existing
A53: 2021 GRC Tracks 1 and 2 Recovery Bonds FRC #2 (AB 1054) | C53: =VLOOKUP(A53,'Authorized Rev Req'!B$7:$N$95,13,FALSE) -> D.21-10-025; Advice 4717-E-A | D53: ='Authorized Rev Req'!$L64 -> 31732.126 | E53: Securitization | F53: ='Authorized Rev Req'!$L64 -> 31732.126 | G53: ='Authorized Rev Req'!$K64 -> 31732.126 | H53: 31732.126 | I53: 31732.126 | J53: 31732.126 | K53: Existing
A54: ='Authorized Rev Req'!$B$65 -> 2021 GRC Tracks 1 and 3 Recovery Bonds FRC #3 (AB 1054) | C54: =VLOOKUP(A54,'Authorized Rev Req'!B$7:$N$95,13,FALSE) -> D.23-02-023; Advice 5018-E | D54: ='Authorized Rev Req'!$L65 -> 55255.382 | E54: Securitization | F54: ='Authorized Rev Req'!$L65 -> 55255.382 | G54: ='Authorized Rev Req'!$K65 -> 55255.382 | H54: 55255.382 | I54: 55255.382 | J54: 55255.382 | K54: Existing
A56: Public Policy Proceedings
A57: Demand Response | C57: =VLOOKUP(A57,'Authorized Rev Req'!B$7:$N$95,13,FALSE) -> D.23-12-005; Advice 5421-E | D57: ='Authorized Rev Req'!$L69 -> 11.04213708 | E57: Generation | F57: ='Authorized Rev Req'!$L69 -> 11.04213708 | G57: ='Authorized Rev Req'!$K69 -> 11.04213708 | H57: =G57 -> 11.04213708 | I57: =H57 -> 11.04213708 | J57: =I57 -> 11.04213708 | K57: Existing
A58: Demand Response | C58: =VLOOKUP(A58,'Authorized Rev Req'!B$7:$N$95,13,FALSE) -> D.23-12-005; Advice 5421-E | D58: ='Authorized Rev Req'!$L70 -> 52035.59468 | E58: Distribution | F58: ='Authorized Rev Req'!$L70 -> 52035.59468 | G58: ='Authorized Rev Req'!$K70 -> 52035.59468 | H58: 51547 | I58: =H58 -> 51547 | J58: =I58 -> 51547 | K58: Existing
A59: Energy Efficiency (Inc. IDSM) | C59: =VLOOKUP(A59,'Authorized Rev Req'!B$7:$N$95,13,FALSE) -> D.23-08-005; Advice 5123-E; D.24-09-031 | D59: ='Authorized Rev Req'!$L71 -> 482807.0296 | E59: Public Purpose | F59: ='Authorized Rev Req'!$L71 -> 482807.0296 | G59: 483700 | H59: 482600 | I59: 482600 | J59: =I59 -> 482600 | K59: Existing
A60: Energy Efficiency Market Transformation | C60: =VLOOKUP(A60,'Authorized Rev Req'!B$7:$N$95,13,FALSE) -> D.19-12-021 | D60: ='Authorized Rev Req'!$L76 -> 6441 | E60: Public Purpose | F60: ='Authorized Rev Req'!$L76 -> 6441 | G60: 16103 | H60: 16103 | I60: 16103 | J60: 16103 | K60: Existing
A61: 2020 RUBA Uncollectibles (36-Month Amortization) | C61: =VLOOKUP(A61,'Authorized Rev Req'!B$7:$N$95,13,FALSE) -> Advice 4658-E/E-A | D61: ='Authorized Rev Req'!$L77 -> 0 | E61: Public Purpose | F61: ='Authorized Rev Req'!$L77 -> 0 | G61: 0 | K61: Existing | S61: Total w/Authorized and Pending
A62: Charge Ready Programs (Pilot, Bridge and Schools and Parks) | C62: =VLOOKUP(A62,'Authorized Rev Req'!B$7:$N$95,13,FALSE) -> Advice 5120-E; Advice 5141-E; Advice 5407-E | D62: ='Authorized Rev Req'!$L79 -> 76686.14532 | E62: Distribution | F62: ='Authorized Rev Req'!$L79 -> 76686.14532 | G62: ='Authorized Rev Req'!$K79 -> 76686.14532 | H62: =G62 -> 76686.14532 | I62: 76686.14532 | J62: 76686.14532 | K62: Existing | T62: =T9 -> 2025 | U62: =U9 -> 2026 | V62: =V9 -> 2027 | W62: =W9 -> 2028 | X62: =X9 -> 2029
A63: Transportation Electrification | C63: =VLOOKUP(A63,'Authorized Rev Req'!B$7:$N$95,13,FALSE) -> Advice 5120-E; Advice 5141-E; Advice 5407-E | D63: ='Authorized Rev Req'!$L80 -> 27307.65104 | E63: Distribution | F63: ='Authorized Rev Req'!$L80 -> 27307.65104 | G63: ='Authorized Rev Req'!$K80 -> 27307.65104 | H63: 27307.65104 | I63: 27307.65104 | J63: 27307.65104 | K63: Existing | S63: Generation | T63: =T10+SUMIFS(L$86:L$122,$Q$86:$Q$122,"Y",$E$86:$E$122,$S63) -> 5617501.115 | U63: =U10+SUMIFS(M$86:M$122,$Q$86:$Q$122,"Y",$E$86:$E$122,$S63) -> 5165599.496 | V63: =V10+SUMIFS(N$86:N$122,$Q$86:$Q$122,"Y",$E$86:$E$122,$S63) -> 5169350.648 | W63: =W10+SUMIFS(O$86:O$122,$Q$86:$Q$122,"Y",$E$86:$E$122,$S63) -> 5212741.253 | X63: =X10+SUMIFS(P$86:P$122,$Q$86:$Q$122,"Y",$E$86:$E$122,$S63) -> 5212741.253
A64: TE Funding Cycle 1 | C64: D.22-11-040; Advice 4954-E | D64: 0 | E64: Distribution | F64: 0 | G64: 0 | H64: 0 | I64: 0 | J64: 0 | K64: On hold | S64: New System Gen | T64: 603154.6967 | U64: 526398.1042 | V64: 528811.5763 | W64: 531634.7391 | X64: 531634.7391
A65: Low Income Programs (ESAP) | C65: =VLOOKUP(A65,'Authorized Rev Req'!B$7:$N$95,13,FALSE) -> D.21-06-015 | D65: ='Authorized Rev Req'!$L81 -> 92462.20343 | E65: Public Purpose | F65: ='Authorized Rev Req'!$L81 -> 92462.20343 | G65: 74799.329 | H65: 74799.329 | I65: 74799.329 | J65: 74799.329 | K65: Existing | S65: Distribution | T65: 11085654.83 | U65: 10368972.43 | V65: 11488908.72 | W65: 12257248.28 | X65: 12257248.28
A66: Low Income Programs (CARE/FERA Admin) | C66: =VLOOKUP(A66,'Authorized Rev Req'!B$7:$N$95,13,FALSE) -> D.21-06-015; Advice 4638-E | D66: ='Authorized Rev Req'!$L82 -> 10971.64941 | E66: Public Purpose | F66: ='Authorized Rev Req'!$L82 -> 10971.64941 | G66: =9276+1678 -> 10954 | H66: =9276+1678 -> 10954 | I66: 10954 | J66: 10954 | K66: Existing | S66: GHG Revenue | T66: -641623.9439 | U66: -641623.9439 | V66: -641623.9439 | W66: -641623.9439 | X66: -641623.9439
A67: EPIC - RD&D and Renewables | C67: =VLOOKUP(A67,'Authorized Rev Req'!B$7:$N$95,13,FALSE) -> D.20-08-042; D.21-11-028 | D67: ='Authorized Rev Req'!$L84 -> 76885.42974 | E67: Public Purpose | F67: ='Authorized Rev Req'!$L84 -> 76885.42974 | G67: ='Authorized Rev Req'!$K84 -> 76885.42974 | H67: =G67 -> 76885.42974 | I67: 76885.42974 | J67: 76885.42974 | K67: Existing | S67: MCAM | T67: 4709.193664 | U67: 1558 | V67: 1558 | W67: 1558 | X67: 1558
A68: Self-Generation Incentive Program (SGIP) | C68: =VLOOKUP(A68,'Authorized Rev Req'!B$7:$N$95,13,FALSE) -> D.20-01-021; Advice 4169-E | D68: ='Authorized Rev Req'!$L85 -> 0 | E68: Public Purpose | F68: ='Authorized Rev Req'!$L85 -> 0 | G68: ='Authorized Rev Req'!$K85 -> 0 | H68: 0 | I68: 0 | J68: 0 | K68: Existing | S68: Nuclear | T68: -915.4516419 | U68: 5157.179022 | V68: 5157.179022 | W68: 5157.179022 | X68: 5157.179022
S69: Public Purpose | T69: 1003452.887 | U69: 667782.9488 | V69: 666682.9488 | W69: 666682.9488 | X69: 666682.9488
A70: Non-CPUC Jurisdictional Proceedings | S70: DCPP | T70: 282858.6909 | U70: 282858.6909 | V70: 282858.6909 | W70: 282858.6909 | X70: 282858.6909
A71: Wildfire Fund Charge (AB1054) | C71: =VLOOKUP(A71,'Authorized Rev Req'!B$7:$N$95,13,FALSE) -> D.22-12-007 | D71: ='Authorized Rev Req'!$L90 -> 416803 | E71: DWR | F71: ='Authorized Rev Req'!$L90 -> 416803 | G71: ='Authorized Rev Req'!K90 -> 416803 | H71: =G71 -> 416803 | I71: 416803 | J71: 416803 | K71: Existing | S71: DWR | T71: 416803 | U71: 416803 | V71: 416803 | W71: 416803 | X71: 416803
A72: FERC Base Transmission | C72: =VLOOKUP(A72,'Authorized Rev Req'!B$7:$N$95,13,FALSE) -> ER25-550; Advice 5449-E | D72: ='Authorized Rev Req'!$L91 -> 1344347 | E72: FERC | F72: ='Authorized Rev Req'!$L91 -> 1344347 | G72: ='Authorized Rev Req'!K91 -> 1344347 | H72: 1344347 | I72: 1344347 | J72: 1344347 | K72: Existing | S72: FERC | T72: 1344347 | U72: 1344347 | V72: 1344347 | W72: 1344347 | X72: 1344347
A73: TRBAA (BA) | C73: =VLOOKUP(A73,'Authorized Rev Req'!B$7:$N$95,13,FALSE) -> ER25-267; Advice 5449-E | D73: ='Authorized Rev Req'!$L92 -> -214482 | E73: TOTCA | F73: ='Authorized Rev Req'!$L92 -> -214482 | G73: ='Authorized Rev Req'!K92 -> -214482 | H73: -214482 | I73: -214482 | J73: -214482 | K73: Existing | S73: TOTCA | T73: 64825 | U73: 64825 | V73: 64825 | W73: 64825 | X73: 64825
A74: RSBAA (BA) | C74: =VLOOKUP(A74,'Authorized Rev Req'!B$7:$N$95,13,FALSE) -> ER25-305; Advice 5449-E | D74: ='Authorized Rev Req'!$L93 -> 8496 | E74: TOTCA | F74: ='Authorized Rev Req'!$L93 -> 8496 | G74: ='Authorized Rev Req'!K93 -> 8496 | H74: 8496 | I74: 8496 | J74: 8496 | K74: Existing | S74: Securitization | T74: 106244.28 | U74: 203864.28 | V74: 203864.28 | W74: 203864.28 | X74: 203864.28
A75: TACBAA (BA) | C75: =VLOOKUP(A75,'Authorized Rev Req'!B$7:$N$95,13,FALSE) -> ER24-1671-000 | D75: ='Authorized Rev Req'!$L94 -> 270811 | E75: TOTCA | F75: ='Authorized Rev Req'!$L94 -> 270811 | G75: ='Authorized Rev Req'!K94 -> 270811 | H75: 270811 | I75: 270811 | J75: 270811 | K75: Existing | S75: PUCRF | T75: 63307.71418 | U75: 63307.71418 | V75: 63307.71418 | W75: 63307.71418 | X75: 63307.71418
A76: Total Approved, Implemented Since Jan 1 or To Be Implemented | D76: =SUM(D10:D75) -> 17435388.66 | F76: =SUM(F10:F75) -> 17244112.6 | G76: =SUM(G10:G75) -> 15728865.43 | H76: =SUM(H10:H75) -> 15727276.84 | I76: =SUM(I10:I75) -> 15727276.84 | J76: =SUM(J10:J75) -> 15727276.84 | S76: Total | T76: =SUM(T63:T75) -> 19950319.01 | U76: 18469849.9 | V76: 19594850.81 | W76: 20409404.14 | X76: 20409404.14
A77: PUCRF | D77: ='Authorized Rev Req'!L96 -> 63307.71418 | E77: PUCRF | F77: =D77 -> 63307.71418 | G77: ='Authorized Rev Req'!K96 -> 63307.71418 | H77: =G77 -> 63307.71418 | I77: =H77 -> 63307.71418 | J77: =I77 -> 63307.71418 | S77: Increase over current | T77: =T76-T23 -> 2642898.692 | U77: =U76-U23 -> 2677676.755 | V77: =V76-V23 -> 3804266.256 | W77: =W76-W23 -> 4618819.592 | X77: =X76-X23 -> 4618819.592
D78: =SUM(D76:D77) -> 17498696.38 | E78: w/PUCRF | F78: =SUM(F76:F77) -> 17307420.32 | G78: =SUM(G76:G77) -> 15792173.15 | H78: =SUM(H76:H77) -> 15790584.55 | I78: =SUM(I76:I77) -> 15790584.55 | J78: =SUM(J76:J77) -> 15790584.55
D79: =-'Authorized Rev Req'!L97+D78 -> 0 | S79: Check | T79: =T77-L110 -> 0 | U79: =U77-M110 -> 0 | V79: =V77-N110 -> 0 | W79: =W77-O110 -> 0 | X79: =X77-P110 -> 0
A83: Pending Application(s), Not Yet Approved
A84: Filing Description | B84: Proceeding | C84: Basis for Revenue Requirement | D84: Proposed Revenue Requirement ($000) | E84: Proposed Revenue Recovery Mechanism | F84: =F8 -> 2025 | G84: =F84+1 -> 2026 | H84: =G84+1 -> 2027 | I84: 2028 | J84: 2029 | K84: Existing or New Item (if existing, use delta from prior for rate impact) | L84: =F84 -> 2025 | M84: =G84 -> 2026 | N84: 2027 | O84: 2028 | P84: 2029
A85: Safety Affordability Reliability Proceedings | Q85: Include in Impact
A86: 2025 GRC | B86: A.23-05-010 | C86: Filed Application | D86: =F86 -> 966249 | E86: Generation | F86: 966249 | G86: 1001901.243 | H86: 1036752.394 | I86: 1080143 | J86: =I86 -> 1080143 | K86: Existing | L86: =F86-F10 -> 205621.4247 | M86: =G86-F10 -> 241273.6676 | N86: =H86-H10 -> 276124.8189 | O86: 319515.4247 | P86: 319515.4247 | Q86: =VLOOKUP('Incremental Rev Req'!A86,Summary!$B$8:$D$26,3,FALSE) -> Y
A87: 2025 GRC | B87: A.23-05-010 | C87: Filed Application | D87: =F87 -> 67664 | E87: New System Gen | F87: 67664 | G87: 68931.36513 | H87: 71344.83727 | I87: 74168 | J87: =I87 -> 74168 | K87: Existing | L87: =F87-F11 -> 5711.656224 | M87: =G87-F11 -> 6979.021357 | N87: 9392.493493 | O87: 12215.65622 | P87: 12215.65622 | Q87: =Q86 -> Y
A88: 2025 GRC (Inc. One Time Recoveries) | B88: A.23-05-010 | C88: Filed Application | D88: =F88 -> 9449716 | E88: Distribution | F88: 9449716 | G88: 9956002.556 | H88: 10656460.43 | I88: 11477767 | J88: 11477767 | K88: Existing | L88: =F88-F12 -> 1794417.511 | M88: =G88-F12 -> 2300704.066 | N88: 3001161.944 | O88: 3822468.511 | P88: 3822468.511 | Q88: =Q87 -> Y
A89: WMCE | B89: A.24-04-005 | C89: Filed Application | D89: =F89 -> 326337 | E89: Distribution | F89: 326337 | G89: 0 | H89: 0 | I89: 0 | J89: 0 | K89: New | L89: =F89 -> 326337 | M89: =G89 -> 0 | N89: =H89 -> 0 | O89: =I89 -> 0 | P89: =J89 -> 0 | Q89: =VLOOKUP('Incremental Rev Req'!A89,Summary!$B$8:$D$26,3,FALSE) -> Y
A90: 2021 ERRA Review | B90: A.22-04-001 | C90: Filed Application | D90: =F90 -> 25706 | E90: Distribution | F90: 25706 | G90: 0 | H90: 0 | I90: 0 | J90: 0 | K90: New | L90: 25706 | M90: 0 | N90: 0 | O90: 0 | P90: 0 | Q90: =VLOOKUP('Incremental Rev Req'!A90,Summary!$B$8:$D$26,3,FALSE) -> Y
A91: 2022 ERRA Review | B91: A.23-04-003 | C91: Filed Application | D91: 50640 | E91: Distribution | F91: 50640 | G91: 0 | H91: 0 | I91: 0 | J91: 0 | K91: New | L91: 50640 | M91: 0 | N91: 0 | O91: 0 | P91: 0 | Q91: =VLOOKUP('Incremental Rev Req'!A91,Summary!$B$8:$D$26,3,FALSE) -> Y
A92: 2022 ERRA Review | B92: A.23-04-003 | C92: Filed Application | D92: 234 | E92: Public Purpose | F92: 234 | G92: 0 | H92: 0 | I92: 0 | J92: 0 | K92: New | L92: 234 | M92: 0 | N92: 0 | O92: 0 | P92: 0 | Q92: =VLOOKUP('Incremental Rev Req'!A92,Summary!$B$8:$D$26,3,FALSE) -> Y
A93: 2023 ERRA Review | B93: A.24-04-001 | C93: Filed Application | D93: -73859 | E93: Distribution | F93: -73859 | G93: 0 | H93: 0 | I93: 0 | J93: 0 | K93: New | L93: -73859 | M93: 0 | N93: 0 | O93: 0 | P93: 0 | Q93: =VLOOKUP('Incremental Rev Req'!A93,Summary!$B$8:$D$26,3,FALSE) -> Y
A94: 2023 ERRA Review | B94: A.24-04-001 | C94: Filed Application | D94: 10664 | E94: Public Purpose | F94: 10664 | G94: 0 | H94: 0 | I94: 0 | J94: 0 | K94: New | L94: 10664 | M94: 0 | N94: 0 | O94: 0 | P94: 0 | Q94: =Q93 -> Y
A95: 2022 WM/VM (Non-IRR Portion) | B95: A.23-10-001 | C95: Filed Application | D95: 173752 | E95: Distribution | F95: 173752 | G95: 0 | H95: 0 | I95: 0 | J95: 0 | K95: New | L95: 173752 | M95: 0 | N95: 0 | O95: 0 | P95: 0 | Q95: =VLOOKUP('Incremental Rev Req'!A95,Summary!$B$8:$D$26,3,FALSE) -> Y
A96: Section 851 - Sale of GO 5 Property | B96: A.24-08-003 | C96: Filed Application | D96: 29400 | E96: Distribution | F96: 29400 | G96: 0 | H96: 0 | I96: 0 | J96: 0 | K96: New | L96: 29400 | M96: 0 | N96: 0 | O96: 0 | P96: 0 | Q96: =VLOOKUP('Incremental Rev Req'!A96,Summary!$B$8:$D$26,3,FALSE) -> Y
A97: Section 851 - Sale of Hydroelectric San Bernardino | B97: A.24-08-012 | C97: Filed Application | D97: 60300 | E97: Generation | F97: 60300 | G97: 0 | H97: 0 | I97: 0 | J97: 0 | K97: New | L97: 60300 | M97: 0 | N97: 0 | O97: 0 | P97: 0 | Q97: =VLOOKUP('Incremental Rev Req'!A97,Summary!$B$8:$D$26,3,FALSE) -> Y
A98: Section 851 - Sale of Hydroelectric Fontana Union Water | B98: A.24-09-008 | C98: Filed Application | D98: 9500 | E98: Generation | F98: 9500 | G98: 0 | H98: 0 | I98: 0 | J98: 0 | K98: New | L98: 9500 | M98: 0 | N98: 0 | O98: 0 | P98: 0 | Q98: =VLOOKUP('Incremental Rev Req'!A98,Summary!$B$8:$D$26,3,FALSE) -> Y
A99: Thomas Fire WEMA FRC | B99: A.23-08-013 | C99: Filed Application | D99: =G99 -> 97620 | E99: Securitization | F99: 0 | G99: =162700*60% -> 97620 | H99: =G99 -> 97620 | I99: =H99 -> 97620 | J99: =I99 -> 97620 | K99: New | L99: =F99 -> 0 | M99: 97620 | N99: 97620 | O99: =H99 -> 97620 | P99: =I99 -> 97620 | Q99: =VLOOKUP('Incremental Rev Req'!A99,Summary!$B$8:$D$26,3,FALSE) -> Y
A100: Thomas Fire CEMA | B100: A.23-08-013 | C100: Filed Application | D100: =F100 -> 23074.1 | E100: Distribution | F100: =27146*85% -> 23074.1 | G100: 0 | H100: 0 | I100: 0 | J100: 0 | K100: New | L100: =F100 -> 23074.1 | M100: =G100 -> 0 | N100: 0 | O100: =I100 -> 0 | P100: 0 | Q100: =VLOOKUP('Incremental Rev Req'!A100,Summary!$B$8:$D$26,3,FALSE) -> Y
A101: Woolsey CEMA | B101: A.24-10-002 | C101: Filed Application | D101: =H101 -> 52967 | E101: Distribution | F101: 0 | G101: 0 | H101: 52967 | I101: 0 | J101: 0 | K101: New | L101: =F101 -> 0 | M101: 0 | N101: 52967 | O101: 0 | P101: 0 | Q101: =VLOOKUP('Incremental Rev Req'!A101,Summary!$B$8:$D$26,3,FALSE) -> Y
A102: Woolsey WEMA FRC | B102: A.24-10-002 | C102: Filed Application | D102: =I102 -> 367000 | E102: Distribution | F102: 0 | G102: 0 | H102: 367000 | I102: 367000 | J102: =I102 -> 367000 | K102: New | L102: 0 | M102: 0 | N102: 367000 | O102: 367000 | P102: 367000 | Q102: =VLOOKUP('Incremental Rev Req'!A102,Summary!$B$8:$D$26,3,FALSE) -> Y
A103: Section 851 - Sale of Irwindale Business Center | B103: A.24-12-010 | C103: Filed Application | D103: =F103 -> 1400 | E103: Distribution | F103: 1400 | G103: 0 | H103: 0 | I103: 0 | J103: 0 | K103: New | L103: 1400 | M103: 0 | N103: 0 | O103: =I103 -> 0 | P103: =J103 -> 0 | Q103: =VLOOKUP('Incremental Rev Req'!A103,Summary!$B$8:$D$26,3,FALSE) -> Y
A104: Section 851 - Sale of Hydroelectric TULE | B104: A.XX-XX-XXX | C104: Pending | D104: =G104 -> 31100 | E104: Generation | F104: 0 | G104: 31100 | H104: 0 | I104: 0 | J104: 0 | K104: New | M104: =G104 -> 31100 | Q104: =VLOOKUP('Incremental Rev Req'!A104,Summary!$B$8:$D$26,3,FALSE) -> Y
A106: Public Policy Proceedings
A108: Non-CPUC Jurisdictional Proceedings
A110: Total Pending, Filed but not Approved | D110: =SUM(D86:D109) -> 11669464.1 | F110: =SUM(F86:F109) -> 11120777.1 | G110: =SUM(G86:G109) -> 11155555.16 | H110: =SUM(H86:H109) -> 12282144.66 | I110: =SUM(I86:I109) -> 13096698 | J110: =SUM(J86:J109) -> 13096698 | L110: =SUM(L86:L109) -> 2642898.692 | M110: =SUM(M86:M109) -> 2677676.755 | N110: =SUM(N86:N109) -> 3804266.256 | O110: =SUM(O86:O109) -> 4618819.592 | P110: =SUM(P86:P109) -> 4618819.592
L111: =L110+F78 -> 19950319.01 | M111: =M110+G78 -> 18469849.9 | N111: =N110+H78 -> 19594850.81 | O111: =O110+I78 -> 20409404.14 | P111: =P110+J78 -> 20409404.14
A114: Applications Projected to be Filed, Next 12 Months*
A115: Filing Description | B115: Estimated Filing Date | C115: Filing Basis | D115: Proposed Revenue Requirement ($000) | E115: Proposed Revenue Recovery Mechanism | F115: =F84 -> 2025 | G115: =F115+1 -> 2026 | H115: =G115+1 -> 2027 | I115: =H115+1 -> 2028 | J115: =I115+1 -> 2029 | K115: Existing or New Item (if existing, use delta from prior for rate impact)
A116: Safety Affordability Reliability Proceedings
A118: Public Policy Proceedings
A121: Non-CPUC Jurisdictional Proceedings | F121: =SUM(F116:F120) -> 0 | G121: =SUM(G116:G120) -> 0 | H121: =SUM(H116:H120) -> 0 | I121: =SUM(I116:I120) -> 0 | J121: =SUM(J116:J120) -> 0 | L121: =SUM(L116:L120) -> 0 | M121: 0 | N121: 0 | O121: 0 | P121: 0
A123: * All amounts in this Projected section are estimates and subject to change. SCE provides this data in an effort to be as helpful and transparent as possible to further the Commission's efforts to understand the impact all pending rate increases.
A126: *Did not include 2024 VMWM

Sheet SAR and AR (GS1) (hidden)
B1: CONFIDENTIAL This Excel Sheet Is Marked Confidential In Accordance With Applicable Law and Regulation. Basis for Confidentiality In Accompanying Confidentiality Declaration. Public Disclosure Restricted.
C2: Total Revenue ($000)
C3: Authorized | D3: w/ Pending
B4: Generation | C4: =INDEX('Incremental Rev Req'!$S$9:$X$22,MATCH(B4,'Incremental Rev Req'!$S$9:$S$22,0),MATCH(Summary!$D$3,'Incremental Rev Req'!$S$9:$X$9,0)) -> 5342079.691 | D4: =INDEX('Incremental Rev Req'!$S$62:$X$75,MATCH(B4,'Incremental Rev Req'!$S$62:$S$75,0),MATCH(Summary!$D$3,'Incremental Rev Req'!$S$62:$X$62,0)) -> 5617501.115 | G4: Allocation
B5: Distribution | C5: =INDEX('Incremental Rev Req'!$S$9:$X$22,MATCH(B5,'Incremental Rev Req'!$S$9:$S$22,0),MATCH(Summary!$D$3,'Incremental Rev Req'!$S$9:$X$9,0)) -> 8734787.216 | D5: =INDEX('Incremental Rev Req'!$S$62:$X$75,MATCH(B5,'Incremental Rev Req'!$S$62:$S$75,0),MATCH(Summary!$D$3,'Incremental Rev Req'!$S$62:$X$62,0)) -> 11085654.83 | G5: Generation | H5: Distribution | I5: NDC | J5: PPPC | K5: DCPP | L5: NSGC | M5: Transmission | N5: TOTCA | O5: GHG Rev | P5: DWRBC | Q5: PUCRF | R5: SECURITIZATION
B6: Nuclear | C6: =INDEX('Incremental Rev Req'!$S$9:$X$22,MATCH(B6,'Incremental Rev Req'!$S$9:$S$22,0),MATCH(Summary!$D$3,'Incremental Rev Req'!$S$9:$X$9,0)) -> -915.4516419 | D6: =INDEX('Incremental Rev Req'!$S$62:$X$75,MATCH(B6,'Incremental Rev Req'!$S$62:$S$75,0),MATCH(Summary!$D$3,'Incremental Rev Req'!$S$62:$X$62,0)) -> -915.4516419 | F6: GS-1 | G6: =VLOOKUP(Summary!$D$3,'SAR and AR (GS1)'!$F$37:$R$42,'SAR and AR (GS1)'!G$35,FALSE) -> 0.08563472365 | H6: =VLOOKUP(Summary!$D$3,'SAR and AR (GS1)'!$F$37:$R$42,'SAR and AR (GS1)'!H$35,FALSE) -> 0.06773079218 | I6: =VLOOKUP(Summary!$D$3,'SAR and AR (GS1)'!$F$37:$R$42,'SAR and AR (GS1)'!I$35,FALSE) -> 0.06977236108 | J6: =VLOOKUP(Summary!$D$3,'SAR and AR (GS1)'!$F$37:$R$42,'SAR and AR (GS1)'!J$35,FALSE) -> 0.07080918219 | K6: =VLOOKUP(Summary!$D$3,'SAR and AR (GS1)'!$F$37:$R$42,'SAR and AR (GS1)'!K$35,FALSE) -> 0.07045250454 | L6: =VLOOKUP(Summary!$D$3,'SAR and AR (GS1)'!$F$37:$R$42,'SAR and AR (GS1)'!L$35,FALSE) -> 0.07024021054 | M6: =VLOOKUP(Summary!$D$3,'SAR and AR (GS1)'!$F$37:$R$42,'SAR and AR (GS1)'!M$35,FALSE) -> 0.06906624045 | N6: =VLOOKUP(Summary!$D$3,'SAR and AR (GS1)'!$F$37:$R$42,'SAR and AR (GS1)'!N$35,FALSE) -> 0.06980629846 | O6: =VLOOKUP(Summary!$D$3,'SAR and AR (GS1)'!$F$37:$R$42,'SAR and AR (GS1)'!O$35,FALSE) -> 0.08057708049 | P6: =VLOOKUP(Summary!$D$3,'SAR and AR (GS1)'!$F$37:$R$42,'SAR and AR (GS1)'!P$35,FALSE) -> 0.07882003163 | Q6: =VLOOKUP(Summary!$D$3,'SAR and AR (GS1)'!$F$37:$R$42,'SAR and AR (GS1)'!Q$35,FALSE) -> 0.06977236029 | R6: =VLOOKUP(Summary!$D$3,'SAR and AR (GS1)'!$F$37:$R$42,'SAR and AR (GS1)'!R$35,FALSE) -> 0.0826858972
B7: Public Purpose | C7: =INDEX('Incremental Rev Req'!$S$9:$X$22,MATCH(B7,'Incremental Rev Req'!$S$9:$S$22,0),MATCH(Summary!$D$3,'Incremental Rev Req'!$S$9:$X$9,0)) -> 992554.8866 | D7: =INDEX('Incremental Rev Req'!$S$62:$X$75,MATCH(B7,'Incremental Rev Req'!$S$62:$S$75,0),MATCH(Summary!$D$3,'Incremental Rev Req'!$S$62:$X$62,0)) -> 1003452.887
B8: DCPP | C8: =INDEX('Incremental Rev Req'!$S$9:$X$22,MATCH(B8,'Incremental Rev Req'!$S$9:$S$22,0),MATCH(Summary!$D$3,'Incremental Rev Req'!$S$9:$X$9,0)) -> 282858.6909 | D8: =INDEX('Incremental Rev Req'!$S$62:$X$75,MATCH(B8,'Incremental Rev Req'!$S$62:$S$75,0),MATCH(Summary!$D$3,'Incremental Rev Req'!$S$62:$X$62,0)) -> 282858.6909 | G8: Revenue ($000) - System | X8: Authorized | Y8: w/Pending
B9: New System Gen | C9: =INDEX('Incremental Rev Req'!$S$9:$X$22,MATCH(B9,'Incremental Rev Req'!$S$9:$S$22,0),MATCH(Summary!$D$3,'Incremental Rev Req'!$S$9:$X$9,0)) -> 597443.0405 | D9: =INDEX('Incremental Rev Req'!$S$62:$X$75,MATCH(B9,'Incremental Rev Req'!$S$62:$S$75,0),MATCH(Summary!$D$3,'Incremental Rev Req'!$S$62:$X$62,0)) -> 603154.6967 | F9: Authorized | G9: Generation | H9: Distribution | I9: NDC | J9: PPPC | K9: DCPP | L9: NSGC | M9: Transmission | N9: TOTCA | O9: GHG Rev | P9: DWRBC | Q9: PUCRF | R9: SECURITIZATION | S9: Total | T9: CARE Adj. | W9: % of CARE Sales | X9: =VLOOKUP(Summary!$D$3,$F$58:$Q$63,$Q$35,FALSE) -> 0 | Y9: =X9 -> 0
B10: FERC | C10: =INDEX('Incremental Rev Req'!$S$9:$X$22,MATCH(B10,'Incremental Rev Req'!$S$9:$S$22,0),MATCH(Summary!$D$3,'Incremental Rev Req'!$S$9:$X$9,0)) -> 1344347 | D10: =INDEX('Incremental Rev Req'!$S$62:$X$75,MATCH(B10,'Incremental Rev Req'!$S$62:$S$75,0),MATCH(Summary!$D$3,'Incremental Rev Req'!$S$62:$X$62,0)) -> 1344347 | F10: GS-1 | G10: =G6*G11 -> 457467.518 | H10: =H6*H11 -> 591614.0577 | I10: =I6*I11 -> -63.87322251 | J10: =J6*J11 -> 70281.9998 | K10: =K6*K11 -> 19928.1032 | L10: 41964.52495 | M10: 92848.99315 | N10: 4525.193298 | O10: -51700.18417 | P10: 32852.42564 | Q10: 4417.128643 | R10: =R6*R11 -> 8784.903614 | S10: =SUM(G10:R10) -> 1272920.791 | T10: =X14 -> 80873.30655 | W10: CARE Effective Discount | X10: ='SAR and RAR'!X10 -> 0.325 | Y10: =X10 -> 0.325
B11: TOTCA | C11: =INDEX('Incremental Rev Req'!$S$9:$X$22,MATCH(B11,'Incremental Rev Req'!$S$9:$S$22,0),MATCH(Summary!$D$3,'Incremental Rev Req'!$S$9:$X$9,0)) -> 64825 | D11: =INDEX('Incremental Rev Req'!$S$62:$X$75,MATCH(B11,'Incremental Rev Req'!$S$62:$S$75,0),MATCH(Summary!$D$3,'Incremental Rev Req'!$S$62:$X$62,0)) -> 64825 | F11: Total System | G11: =C4 -> 5342079.691 | H11: =C5 -> 8734787.216 | I11: =C6 -> -915.4516419 | J11: =C7 -> 992554.8866 | K11: =C8 -> 282858.6909 | L11: =C9 -> 597443.0405 | M11: =C10 -> 1344347 | N11: =C11 -> 64825 | O11: =C12 -> -641623.9439 | P11: =C14 -> 416803 | Q11: =C15 -> 63307.71418 | R11: =C16 -> 106244.28 | S11: =SUM(G11:R11) -> 17302711.12 | T11: 0 | W11: CARE Discounst | X11: ='SAR and RAR'!X11 -> 1019742.869 | Y11: ='SAR and RAR'!Y11 -> 1167027.066
B12: GHG Revenue | C12: =INDEX('Incremental Rev Req'!$S$9:$X$22,MATCH(B12,'Incremental Rev Req'!$S$9:$S$22,0),MATCH(Summary!$D$3,'Incremental Rev Req'!$S$9:$X$9,0)) -> -641623.9439 | D12: =INDEX('Incremental Rev Req'!$S$62:$X$75,MATCH(B12,'Incremental Rev Req'!$S$62:$S$75,0),MATCH(Summary!$D$3,'Incremental Rev Req'!$S$62:$X$62,0)) -> -641623.9439 | F12: w/Pending | W12: GS-1 Sales | X12: =VLOOKUP(Summary!$D$3,'SAR and AR (GS1)'!$F$58:$O$63,10,FALSE) -> 5521410.798 | Y12: =X12 -> 5521410.798
B13: MCAM | C13: =INDEX('Incremental Rev Req'!$S$9:$X$22,MATCH(B13,'Incremental Rev Req'!$S$9:$S$22,0),MATCH(Summary!$D$3,'Incremental Rev Req'!$S$9:$X$9,0)) -> 4709.193664 | D13: =INDEX('Incremental Rev Req'!$S$62:$X$75,MATCH(B13,'Incremental Rev Req'!$S$62:$S$75,0),MATCH(Summary!$D$3,'Incremental Rev Req'!$S$62:$X$62,0)) -> 4709.193664 | F13: GS-1 | G13: =G6*G14 -> 481053.1556 | H13: =H6*H14 -> 750840.1832 | I13: =I6*I14 -> -63.87322251 | J13: =J6*J14 -> 71053.67827 | K13: =K6*K14 -> 19928.1032 | L13: 42365.71288 | M13: 92848.99315 | N13: 4525.193298 | O13: -51700.18417 | P13: 32852.42564 | Q13: 4417.128643 | R13: =R6*R14 -> 8784.903614 | S13: =SUM(G13:R13) -> 1456905.42 | T13: =Y14 -> 92554.05503 | W13: Total Sales (excl. CARE&SL) | X13: =VLOOKUP(Summary!$D$3,'SAR and AR (GS1)'!$F$64:$O$69,2,FALSE) -> 69620243.43 | Y13: =X13 -> 69620243.43
B14: DWR | C14: =INDEX('Incremental Rev Req'!$S$9:$X$22,MATCH(B14,'Incremental Rev Req'!$S$9:$S$22,0),MATCH(Summary!$D$3,'Incremental Rev Req'!$S$9:$X$9,0)) -> 416803 | D14: =INDEX('Incremental Rev Req'!$S$62:$X$75,MATCH(B14,'Incremental Rev Req'!$S$62:$S$75,0),MATCH(Summary!$D$3,'Incremental Rev Req'!$S$62:$X$62,0)) -> 416803 | F14: Total System | G14: =D4 -> 5617501.115 | H14: =D5 -> 11085654.83 | I14: =D6 -> -915.4516419 | J14: =D7 -> 1003452.887 | K14: =D8 -> 282858.6909 | L14: =D9 -> 603154.6967 | M14: =D10 -> 1344347 | N14: =D11 -> 64825 | O14: =D12 -> -641623.9439 | P14: =D14 -> 416803 | Q14: =D15 -> 63307.71418 | R14: =D16 -> 106244.28 | S14: =SUM(G14:R14) -> 19945609.82 | T14: 0 | W14: GS-1 CARE Surcharge | X14: =X11*X12/X13 -> 80873.30655 | Y14: =Y11*Y12/Y13 -> 92554.05503
B15: PUCRF | C15: =INDEX('Incremental Rev Req'!$S$9:$X$22,MATCH(B15,'Incremental Rev Req'!$S$9:$S$22,0),MATCH(Summary!$D$3,'Incremental Rev Req'!$S$9:$X$9,0)) -> 63307.71418 | D15: =INDEX('Incremental Rev Req'!$S$62:$X$75,MATCH(B15,'Incremental Rev Req'!$S$62:$S$75,0),MATCH(Summary!$D$3,'Incremental Rev Req'!$S$62:$X$62,0)) -> 63307.71418 | W15: RES CARE Discount Specific Split | X15: ='SAR and RAR'!X15 -> 0.7685554765 | Y15: ='SAR and RAR'!Y15 -> 0.7685554765
B16: SECURITIZATION | C16: =INDEX('Incremental Rev Req'!$S$9:$X$22,MATCH(B16,'Incremental Rev Req'!$S$9:$S$22,0),MATCH(Summary!$D$3,'Incremental Rev Req'!$S$9:$X$9,0)) -> 106244.28 | D16: =INDEX('Incremental Rev Req'!$S$62:$X$75,MATCH(B16,'Incremental Rev Req'!$S$62:$S$75,0),MATCH(Summary!$D$3,'Incremental Rev Req'!$S$62:$X$62,0)) -> 106244.28 | S16: Authorized | T16: w/Pending | W16: CARE Surcharge Allocator | X16: ='SAR and RAR'!X16 -> 0.6093537365 | Y16: ='SAR and RAR'!Y16 -> 0.6093537365
B17: Total | C17: =SUM(C4:C16) -> 17307420.32 | D17: =SUM(D4:D16) -> 19950319.01 | G17: Revenue Split - Bundled | S17: Bundled Revenue | W17: System CARE Discount | X17: =SUM(-X11*X15)+SUM(X11*X16) -> -162344.8392 | Y17: =SUM(-Y11*Y15)+SUM(Y11*Y16) -> -185792.7395
G18: Generation | H18: Distribution | I18: NDC | J18: PPPC | K18: DCPP | L18: NSGC | M18: Transmission | N18: TOTCA | O18: GHG Rev | P18: DWRBC | Q18: PUCRF | R18: SECURITIZATION | S18: Total | T18: Total
F19: GS-1 | G19: =VLOOKUP(Summary!$D$3,'SAR and AR (GS1)'!$F$44:$R$49,'SAR and AR (GS1)'!G$35,FALSE) -> 1.036507134 | H19: =VLOOKUP(Summary!$D$3,'SAR and AR (GS1)'!$F$44:$R$49,'SAR and AR (GS1)'!H$35,FALSE) -> 0.7004082608 | I19: =VLOOKUP(Summary!$D$3,'SAR and AR (GS1)'!$F$44:$R$49,'SAR and AR (GS1)'!I$35,FALSE) -> 0.7021955024 | J19: =VLOOKUP(Summary!$D$3,'SAR and AR (GS1)'!$F$44:$R$49,'SAR and AR (GS1)'!J$35,FALSE) -> 0.7021955159 | K19: =VLOOKUP(Summary!$D$3,'SAR and AR (GS1)'!$F$44:$R$49,'SAR and AR (GS1)'!K$35,FALSE) -> 0.7021955158 | L19: =VLOOKUP(Summary!$D$3,'SAR and AR (GS1)'!$F$44:$R$49,'SAR and AR (GS1)'!L$35,FALSE) -> 0.7021955158 | M19: =VLOOKUP(Summary!$D$3,'SAR and AR (GS1)'!$F$44:$R$49,'SAR and AR (GS1)'!M$35,FALSE) -> 0.7021955158 | N19: =VLOOKUP(Summary!$D$3,'SAR and AR (GS1)'!$F$44:$R$49,'SAR and AR (GS1)'!N$35,FALSE) -> 0.7021955164 | O19: =VLOOKUP(Summary!$D$3,'SAR and AR (GS1)'!$F$44:$R$49,'SAR and AR (GS1)'!O$35,FALSE) -> 0.69314594 | P19: =VLOOKUP(Summary!$D$3,'SAR and AR (GS1)'!$F$44:$R$49,'SAR and AR (GS1)'!P$35,FALSE) -> 0.7021955159 | Q19: =VLOOKUP(Summary!$D$3,'SAR and AR (GS1)'!$F$44:$R$49,'SAR and AR (GS1)'!Q$35,FALSE) -> 0.7021955151 | R19: =VLOOKUP(Summary!$D$3,'SAR and AR (GS1)'!$F$44:$R$49,'SAR and AR (GS1)'!R$35,FALSE) -> 0.7021955155 | S19: =SUMPRODUCT(G10:R10,G19:R19)+T10*H19 -> 1102830.809 | T19: =SUMPRODUCT(G13:R13,G19:R19)+T13*H19 -> 1247805.658
F20: Total System | G20: =VLOOKUP(Summary!$D$3,'SAR and AR (GS1)'!$F$50:$R$55,'SAR and AR (GS1)'!G$35,FALSE) -> 1.048411802 | H20: =VLOOKUP(Summary!$D$3,'SAR and AR (GS1)'!$F$50:$R$55,'SAR and AR (GS1)'!H$35,FALSE) -> 0.6483669672 | I20: =VLOOKUP(Summary!$D$3,'SAR and AR (GS1)'!$F$50:$R$55,'SAR and AR (GS1)'!I$35,FALSE) -> 0.6283028798 | J20: =VLOOKUP(Summary!$D$3,'SAR and AR (GS1)'!$F$50:$R$55,'SAR and AR (GS1)'!J$35,FALSE) -> 0.6429155899 | K20: =VLOOKUP(Summary!$D$3,'SAR and AR (GS1)'!$F$50:$R$55,'SAR and AR (GS1)'!K$35,FALSE) -> 0.6409526177 | L20: =VLOOKUP(Summary!$D$3,'SAR and AR (GS1)'!$F$50:$R$55,'SAR and AR (GS1)'!L$35,FALSE) -> 0.6386900347 | M20: =VLOOKUP(Summary!$D$3,'SAR and AR (GS1)'!$F$50:$R$55,'SAR and AR (GS1)'!M$35,FALSE) -> 0.6641776383 | N20: =VLOOKUP(Summary!$D$3,'SAR and AR (GS1)'!$F$50:$R$55,'SAR and AR (GS1)'!N$35,FALSE) -> 0.6299346499 | O20: =VLOOKUP(Summary!$D$3,'SAR and AR (GS1)'!$F$50:$R$55,'SAR and AR (GS1)'!O$35,FALSE) -> 0.6913063527 | P20: =VLOOKUP(Summary!$D$3,'SAR and AR (GS1)'!$F$50:$R$55,'SAR and AR (GS1)'!P$35,FALSE) -> 0.6102142723 | Q20: =VLOOKUP(Summary!$D$3,'SAR and AR (GS1)'!$F$50:$R$55,'SAR and AR (GS1)'!Q$35,FALSE) -> 0.628302884 | R20: =VLOOKUP(Summary!$D$3,'SAR and AR (GS1)'!$F$50:$R$55,'SAR and AR (GS1)'!R$35,FALSE) -> 0.6204799325 | S20: =SUMPRODUCT(G11:R11,G20:R20)+X17 -> 13152335.84 | T20: =SUMPRODUCT(G14:R14,G20:R20)+Y17 -> 14952522.38
R22: GS-1 GHG | S22: =O10*O19 -> -35835.77275 | T22: =O13*O19 -> -35835.77275
R23: GS-1 GHG System | S23: =O11*O20 -> -443558.7084 | T23: =O14*O20 -> -443558.7084
F26: Bundled | N26: System (Bundled and Unbundled)
F27: =Summary!N4&" Sales" -> 2025 Sales | G27: =MONTH(Summary!$N$3)&"/"&DAY(Summary!$N$3)&"/"&YEAR(Summary!$N$3)&" Avg Rates" -> 3/1/2025 Avg Rates | H27: Proposed Avg Rates (Authorized) | I27: Proposed Avg Rates (w/Pending) | J27: % Change (Authorized) | K27: % Change (w/Pending) | N27: =Summary!N4&" Sales" -> 2025 Sales | O27: =G27 -> 3/1/2025 Avg Rates | P27: Proposed Avg Rates (Authorized) | Q27: Proposed Avg Rates (w/Pending) | R27: % Change (Authorized) | S27: % Change (w/Pending) | W27: 1/1/25 Bundled w/Credit | X27: 1/1/25 Bundled w/out Credit | Z27: 1/1/25 System w/Credit | AA27: 1/1/25 System w/out Credit
E28: GS-1 | F28: =VLOOKUP(Summary!$D$3,'SAR and AR (GS1)'!$J$58:$K$63,2,FALSE) -> 3877109.903 | G28: =IF(Summary!$J$3="Y",W31,X31) -> 28.97896301 | H28: =IF(Summary!$J$3="Y",S19/$F$28*100,SUM(S19-S22)/$F$28*100) -> 29.36895291 | I28: =IF(Summary!$J$3="Y",T19/$F$28*100,SUM(T19-T22)/$F$28*100) -> 33.10820336 | J28: =H28/G28-1 -> 0.01345768983 | K28: =I28/G28-1 -> 0.1424909631 | M28: GS-1 | N28: =VLOOKUP(Summary!$D$3,'SAR and AR (GS1)'!$N$58:$O$63,2,FALSE) -> 5521410.798 | O28: =IF(Summary!$J$3="Y",Z31,AA31) -> 25.58432245 | P28: =IF(Summary!$J$3="Y",SUM(S10:T10)/N28*100,SUM(S10:T10,-O10)/N28*100) -> 25.45534706 | Q28: =IF(Summary!$J$3="Y",SUM(S13:T13)/N28*100,SUM(S13:T13,-O13)/N28*100) -> 28.999104 | R28: =P28/O28-1 -> -0.005041188268 | S28: =Q28/O28-1 -> 0.1334716429 | V28: GS-1 Bundled | W28: 28.24977561 | X28: 29.17406766 | Y28: GS-1 System | Z28: 24.84314154 | AA28: 25.77950096
E29: Total Bundled | F29: =VLOOKUP(Summary!$D$3,'SAR and AR (GS1)'!$J$64:$K$69,2,FALSE) -> 49720524.25 | G29: ='SAR and RAR'!G29 -> 27.09446696 | H29: =IF(Summary!$J$3="Y",S20/$F$29*100,SUM(S20-S23)/$F$29*100) -> 27.34463232 | I29: =IF(Summary!$J$3="Y",T20/$F$29*100,SUM(T20-T23)/$F$29*100) -> 30.96524288 | J29: =H29/G29-1 -> 0.009233079495 | K29: =I29/G29-1 -> 0.1428622281 | M29: Total System | N29: =VLOOKUP(Summary!$D$3,'SAR and AR (GS1)'!$N$64:$O$69,2,FALSE) -> 79134642.73 | O29: ='SAR and RAR'!O29 -> 22.71448393 | P29: =IF(Summary!$J$3="Y",SUM(S11:T11)/N29*100,SUM(S11:T11,-O11)/N29*100) -> 22.67570112 | Q29: =IF(Summary!$J$3="Y",SUM(S14:T14)/N29*100,SUM(S14:T14,-O14)/N29*100) -> 26.01545044 | R29: =P29/O29-1 -> -0.001707404487 | S29: =Q29/O29-1 -> 0.1453243013
E30: =M29 -> Total System | F30: =N29 -> 79134642.73 | W30: 3/1/25 Bundled w/Credit | X30: 3/1/25 Bundled w/out Credit | Z30: 3/1/25 System w/Credit | AA30: 3/1/25 System w/out Credit
V31: GS-1 Bundled | W31: 28.05467096 | X31: 28.97896301 | Y31: GS-1 System | Z31: 24.64796302 | AA31: 25.58432245
G35: 2 | H35: =G35+1 -> 3 | I35: =H35+1 -> 4 | J35: 5 | K35: 6 | L35: 7 | M35: 8 | N35: 9 | O35: 10 | P35: 11 | Q35: 12 | R35: 13
F36: GS-1 Allocator | G36: Generation | H36: Distribution | I36: NDC | J36: PPPC | K36: DCPP | L36: NSGC | M36: Transmission | N36: TOTCA | O36: GHG Rev | P36: DWRBC | Q36: PUCRF | R36: SECURITIZATION
F37: 2025 | G37: 0.08563472365 | H37: 0.06773079218 | I37: 0.06977236108 | J37: 0.07080918219 | K37: 0.07045250454 | L37: 0.07024021054 | M37: 0.06906624045 | N37: 0.06980629846 | O37: 0.08057708049 | P37: 0.07882003163 | Q37: 0.06977236029 | R37: 0.0826858972
F38: 2026 | G38: 0.08563472365 | H38: 0.06773079218 | I38: 0.06977236108 | J38: 0.07080918219 | K38: 0.07045250454 | L38: 0.07024021054 | M38: 0.06906624045 | N38: 0.06980629846 | O38: 0.08057708049 | P38: 0.07882003163 | Q38: 0.06977236029 | R38: 0.0826858972
F39: 2027 | G39: 0.08563472365 | H39: 0.06773079218 | I39: 0.06977236108 | J39: 0.07080918219 | K39: 0.07045250454 | L39: 0.07024021054 | M39: 0.06906624045 | N39: 0.06980629846 | O39: 0.08057708049 | P39: 0.07882003163 | Q39: 0.06977236029 | R39: 0.0826858972
F40: 2028 | G40: 0.1057519756 | H40: 0.07973814341 | I40: 0.08181209419 | J40: 0.07748337385 | K40: =K37 -> 0.07045250454 | L40: 0.08277358073 | M40: 0.08173795576 | N40: 0.08126005924 | O40: 0.09652020273 | P40: 0.08836727155 | Q40: 0.08181209401 | R40: 0.09798098961
F41: 2029 | G41: 0.1057519756 | H41: 0.07973814341 | I41: 0.08181209419 | J41: 0.07748337385 | K41: =K38 -> 0.07045250454 | L41: 0.08277358073 | M41: 0.08173795576 | N41: 0.08126005924 | O41: 0.09652020273 | P41: 0.08836727155 | Q41: 0.08181209401 | R41: 0.09798098961
F43: Revenue Split - Bundled
E44: GS-1 | F44: 2025 | G44: 1.036507134 | H44: 0.7004082608 | I44: 0.7021955024 | J44: 0.7021955159 | K44: 0.7021955158 | L44: 0.7021955158 | M44: 0.7021955158 | N44: 0.7021955164 | O44: 0.69314594 | P44: 0.7021955159 | Q44: 0.7021955151 | R44: 0.7021955155 | U44: =G44 -> 1.036507134
E45: GS-1 | F45: 2026 | G45: 1.036507134 | H45: 0.7004082608 | I45: 0.7021955024 | J45: 0.7021955159 | K45: 0.7021955158 | L45: 0.7021955158 | M45: 0.7021955158 | N45: 0.7021955164 | O45: 0.69314594 | P45: 0.7021955159 | Q45: 0.7021955151 | R45: 0.7021955155 | T45: =K59/K58-1 -> 0.185227743 | U45: =G45 -> 1.036507134
E46: GS-1 | F46: 2027 | G46: 1.036507134 | H46: 0.7004082608 | I46: 0.7021955024 | J46: 0.7021955159 | K46: 0.7021955158 | L46: 0.7021955158 | M46: 0.7021955158 | N46: 0.7021955164 | O46: 0.69314594 | P46: 0.7021955159 | Q46: 0.7021955151 | R46: 0.7021955155 | T46: =K60/K59-1 -> 0.03058982452 | U46: 1.036507134
E47: GS-1 | F47: 2028 | G47: 1.026916816 | H47: 0.7420059443 | I47: 0.7484824465 | J47: 0.7484824473 | K47: =K44 -> 0.7021955158 | L47: 0.7484824474 | M47: 0.7484824473 | N47: 0.7484824465 | O47: 0.6528623984 | P47: 0.7484824473 | Q47: 0.7484824472 | R47: 0.7484824477 | T47: =K61/K60-1 -> 0.1045702715 | U47: 1.026916816
E48: GS-1 | F48: 2029 | G48: 1.026916816 | H48: 0.7420059443 | I48: 0.7484824465 | J48: 0.7484824473 | K48: =K45 -> 0.7021955158 | L48: 0.7484824474 | M48: 0.7484824473 | N48: 0.7484824465 | O48: 0.6528623984 | P48: 0.7484824473 | Q48: 0.7484824472 | R48: 0.7484824477 | T48: =K62/K61-1 -> 0 | U48: 1.026916816
E49: GS-1 | T49: =K63/K62-1 -> -1 | U49: 0
E50: Total System | F50: 2025 | G50: 1.048411802 | H50: 0.6483669672 | I50: 0.6283028798 | J50: 0.6429155899 | K50: 0.6409526177 | L50: 0.6386900347 | M50: 0.6641776383 | N50: 0.6299346499 | O50: 0.6913063527 | P50: 0.6102142723 | Q50: 0.628302884 | R50: 0.6204799325 | U50: 1.048411802
E51: Total System | F51: 2026 | G51: 1.048411802 | H51: 0.6483669672 | I51: 0.6283028798 | J51: 0.6429155899 | K51: 0.6409526177 | L51: 0.6386900347 | M51: 0.6641776383 | N51: 0.6299346499 | O51: 0.6913063527 | P51: 0.6102142723 | Q51: 0.628302884 | R51: 0.6204799325 | T51: =K65/K64-1 -> 0.07290058435 | U51: 1.048411802
E52: Total System | F52: 2027 | G52: 1.048411802 | H52: 0.6483669672 | I52: 0.6283028798 | J52: 0.6429155899 | K52: 0.6409526177 | L52: 0.6386900347 | M52: 0.6641776383 | N52: 0.6299346499 | O52: 0.6913063527 | P52: 0.6102142723 | Q52: 0.628302884 | R52: 0.6204799325 | T52: =K66/K65-1 -> 0.007878342139 | U52: 1.048411802
E53: Total System | F53: 2028 | G53: 1.039114345 | H53: 0.6566285776 | I53: 0.6433912532 | J53: 0.6516624162 | K53: =K50 -> 0.6409526177 | L53: 0.6464372626 | M53: 0.6616471703 | N53: 0.6359044244 | O53: 0.6540688138 | P53: 0.6380707339 | Q53: 0.6433912524 | R53: 0.6431049177 | T53: 0.02226113612 | U53: 1.039114345
E54: Total System | F54: 2029 | G54: 1.039114345 | H54: 0.6566285776 | I54: 0.6433912532 | J54: 0.6516624162 | K54: =K51 -> 0.6409526177 | L54: 0.6464372626 | M54: 0.6616471703 | N54: 0.6359044244 | O54: 0.6540688138 | P54: 0.6380707339 | Q54: 0.6433912524 | R54: 0.6431049177 | T54: 0 | U54: 1.039114345
E55: Total System | T55: -1 | U55: 0
F57: System Sales | J57: Bundled Sales | L57: % of Bdl | N57: System Sales
E58: GS-1 | F58: =$F$37 -> 2025 | I58: GS-1 | J58: =$F$37 -> 2025 | K58: 3877109.903 | L58: =K58/O58 -> 0.7021955159 | M58: GS-1 | N58: =$F$37 -> 2025 | O58: 5521410.798
E59: GS-1 | F59: =$F$38 -> 2026 | I59: GS-1 | J59: =$F$38 -> 2026 | K59: =O59*L58 -> 4595258.22 | L59: 0.7021955159 | M59: GS-1 | N59: =$F$38 -> 2026 | O59: 6544129.258
E60: GS-1 | F60: =$F$39 -> 2027 | I60: GS-1 | J60: =$F$39 -> 2027 | K60: =O60*L59 -> 4735826.362 | L60: 0.7021955159 | M60: GS-1 | N60: =$F$39 -> 2027 | O60: 6744313.023
E61: GS-1 | F61: =$F$40 -> 2028 | I61: GS-1 | J61: =$F$40 -> 2028 | K61: 5231053.011 | L61: 0.7484824474 | M61: GS-1 | N61: =$F$40 -> 2028 | O61: 6988878.669
E62: GS-1 | F62: =$F$41 -> 2029 | I62: GS-1 | J62: =$F$41 -> 2029 | K62: 5231053.011 | L62: 0.7484824474 | M62: GS-1 | N62: =$F$41 -> 2029 | O62: 6988878.669
E63: GS-1 | I63: GS-1 | M63: GS-1
E64: Non-Exempt Sales | F64: =$F$37 -> 2025 | G64: ='SAR and RAR'!G64 -> 69620243.43 | I64: Total System | J64: =$F$37 -> 2025 | K64: ='SAR and RAR'!K64 -> 49720524.25 | L64: 0.628302884 | M64: Total System | N64: =$F$37 -> 2025 | O64: ='SAR and RAR'!O64 -> 79134642.73
E65: Non-Exempt Sales | F65: =$F$38 -> 2026 | G65: ='SAR and RAR'!G65 -> 72160227 | I65: Total System | J65: =$F$38 -> 2026 | K65: ='SAR and RAR'!K65 -> 53345179.52 | L65: 0.6503784983 | M65: Total System | N65: =$F$38 -> 2026 | O65: ='SAR and RAR'!O65 -> 82021745.28
E66: Non-Exempt Sales | F66: =$F$39 -> 2027 | G66: ='SAR and RAR'!G66 -> 73628007 | I66: Total System | J66: =$F$39 -> 2027 | K66: ='SAR and RAR'!K66 -> 53765451.1 | L66: 0.6424349163 | M66: Total System | N66: =$F$39 -> 2027 | O66: ='SAR and RAR'!O66 -> 83690113.56
E67: Non-Exempt Sales | F67: =$F$40 -> 2028 | G67: ='SAR and RAR'!G67 -> 78714196.58 | I67: Total System | J67: =$F$40 -> 2028 | K67: ='SAR and RAR'!K67 -> 54962331.12 | L67: 0.6433912525 | M67: Total System | N67: =$F$40 -> 2028 | O67: ='SAR and RAR'!O67 -> 85425984.44
E68: Non-Exempt Sales | F68: =$F$41 -> 2029 | G68: ='SAR and RAR'!G68 -> 78714196.58 | I68: Total System | J68: =$F$41 -> 2029 | K68: ='SAR and RAR'!K68 -> 54962331.12 | L68: 0.6433912525 | M68: Total System | N68: =$F$41 -> 2029 | O68: ='SAR and RAR'!O68 -> 85425984.44
E69: Non-Exempt Sales | I69: Total System | M69: Total System
J71: =Summary!D3 -> 2025 | K71: =VLOOKUP(Summary!D3,'SAR and AR (GS1)'!J58:K63,2,FALSE) -> 3877109.903 | N71: =Summary!D3 -> 2025 | O71: =VLOOKUP(Summary!D3,'SAR and AR (GS1)'!N58:O63,2,FALSE) -> 5521410.798
J72: % of GS-1 Sales (Bdl) | N72: % of GS-1 Sales (Sys)
J73: =$F$37 -> 2025 | K73: =K58/K64 -> 0.07797805759 | N73: =$F$37 -> 2025 | O73: =O58/O64 -> 0.06977236021
J74: =$F$38 -> 2026 | K74: 0.08614195811 | N74: =$F$38 -> 2026 | O74: 0.07978529639
J75: =$F$39 -> 2027 | K75: 0.08808307688 | N75: =$F$39 -> 2027 | O75: 0.08058673524
J76: =$F$40 -> 2028 | K76: 0.09517523918 | N76: =$F$40 -> 2028 | O76: 0.08181209401
J77: =$F$41 -> 2029 | K77: 0.09517523918 | N77: =$F$41 -> 2029 | O77: 0.08181209401

Sheet Bill Impact (GS1) (hidden)
B1: CONFIDENTIAL This Excel Sheet Is Marked Confidential In Accordance With Applicable Law and Regulation. Basis for Confidentiality In Accompanying Confidentiality Declaration. Public Disclosure Restricted.
E3: Schedule TOU-GS-1-E
E4: =Summary!N4 -> 2025 | F4: =Summary!N3 -> 2025-03-01 | G4: Proposed | H4: Proposed | I4: Proposed | J4: Proposed
E5: Sales Forecast | F5: Rates | G5: Authorized Rates | H5: Authorized Revenue | I5: w/Pending Rates | J5: w/Pending Revenue
D7: On Peak | E7: =HLOOKUP(E$4,$F$42:$K$52,$A44,FALSE) -> 242.7589229 | F7: 0.61132 | G7: =F7/$F$12*$G$12 -> 0.6202037066 | H7: =E7*G7 -> 150.5599838 | I7: =F7/$F$12*$I$12 -> 0.703628007 | J7: =E7*I7 -> 170.8119771 | N7: Bundled GS-1 Rev Req
D8: Mid Peak | E8: 86.27099511 | F8: 0.31647 | G8: =F8/$F$12*$G$12 -> 0.3210689443 | H8: 27.69893732 | I8: =F8/$F$12*$I$12 -> 0.3642562903 | J8: 31.42475264 | N8: Proposed (Authorized) | O8: ='SAR and AR (GS1)'!S19/1000-'SAR and AR (GS1)'!S22/1000 -> 1138.666582
D9: Off Peak | E9: 1077.846035 | F9: 0.23865 | G9: 0.2421180635 | H9: 260.9659948 | I9: 0.2746856374 | J9: 296.0688253 | N9: Proposed (w/Pending) | O9: ='SAR and AR (GS1)'!T19/1000-'SAR and AR (GS1)'!T22/1000 -> 1283.641431
D10: Mid Peak | E10: 566.1260181 | F10: 0.37185 | G10: 0.3772537268 | H10: 213.5731502 | I10: 0.4279985514 | J10: 242.3011156
D11: Off Peak | E11: 955.884942 | F11: 0.25236 | G11: =F11/$F$12*$G$12 -> 0.2560272973 | H11: 244.7326382 | I11: 0.290465818 | J11: 277.6519016
D12: SuperOff Peak | E12: 948.2229897 | F12: 0.18738 | G12: =(O8-G14*E14*365/12/10^6)/SUM(E12,F11/F12*E11,F10/F12*E10,F9/F12*E9,F8/F12*E8,F7/F12*E7) -> 0.1901030075 | H12: 180.2600421 | I12: =(O9-I14*E14*365/12/10^6)/SUM(E12,F11/F12*E11,F10/F12*E10,F9/F12*E9,F8/F12*E8,F7/F12*E7) -> 0.2156739776 | J12: 204.5070238
D14: Customers | E14: =HLOOKUP(E$4,$F$42:$K$53,$A51,FALSE) -> 4276490 | F14: 0.468 | G14: =F14 -> 0.468 | H14: =G14*E14*365/12/10^6 -> 60.87583515 | I14: =G14 -> 0.468 | J14: =I14*E14*365/12/10^6 -> 60.87583515
N19: 2024 Recorded Data
B20: SCHEDULE TOU-GS-1-E ($/kWh) | E20: Proposed | F20: Proposed | N20: NAICS | O20: Summer | R20: Winter
B21: Rates | C21: Jan 2025 | D21: =Summary!N3 -> 2025-03-01 | E21: Authorized | F21: w/Pending | O21: On Peak kWh | P21: Mid Peak kWh | Q21: Off Peak kWh | R21: Mid Peak kWh | S21: Off Peak kWh | T21: Super Off Peak kWh | U21: Total kWh
B22: On Peak | C22: 0.61368 | D22: =F7 -> 0.61132 | E22: =G7 -> 0.6202037066 | F22: =I7 -> 0.703628007 | N22: NAICS 531 | O22: 424.4000556 | P22: 171.0418541 | Q22: 2142.043749 | R22: 1242.293732 | S22: 2623.098488 | T22: 1422.305185 | U22: =SUM(O22:T22) -> 8025.183064
B23: Mid Peak | C23: 0.31883 | D23: =F8 -> 0.31647 | E23: 0.3210689443 | F23: =I8 -> 0.3642562903 | N23: NAICS 621 | O23: 797.5715959 | P23: 197.8653305 | Q23: 3613.515045 | R23: 1413.274642 | S23: 2031.583162 | T23: 3587.690722 | U23: =SUM(O23:T23) -> 11641.5005
B24: Off Peak | C24: 0.24032 | D24: 0.23865 | E24: 0.2421180635 | F24: 0.2746856374 | N24: NAICS 722 | O24: 2427.208974 | P24: 1047.857092 | Q24: 9631.294795 | R24: 5240.828945 | S24: 6947.090523 | T24: 8200.931162 | U24: 33495.21149
B25: Mid Peak | C25: 0.37421 | D25: 0.37185 | E25: 0.3772537268 | F25: 0.4279985514
B26: Off Peak | C26: 0.25403 | D26: 0.25236 | E26: 0.2560272973 | F26: 0.290465818
B27: Super Off Peak | C27: 0.18873 | D27: 0.18738 | E27: 0.1901030075 | F27: 0.2156739776
C32: Daily to Monthly Conversion Factor | D32: 30.417
C34: TOU-GS-1-E
C35: =C21 -> Jan 2025 | E35: =D21 -> 2025-03-01 | G35: =E21 -> Authorized | I35: =F21 -> w/Pending
C36: Summer | D36: Winter | E36: Summer | F36: Winter | G36: Summer | H36: Winter | I36: Summer | J36: Winter
B37: NAICS 531 | C37: =SUM(SUM($O$22*$C$22,$P$22*$C$23,$Q$22*$C$24)+SUM($F$14*365/12*4))/4 -> 221.6737636 | D37: =SUM(SUM($R$22*$C$25,$S$22*$C$26,$T$22*$C$27)+SUM($F$14*365/12*8))/8 -> 189.192013 | E37: =SUM(SUM($O$22*$D$22,$P$22*$D$23,$Q$22*$D$24)+SUM($F$14*365/12*4))/4 -> 220.4281496 | F37: =SUM(SUM($R$22*$D$25,$S$22*$D$26,$T$22*$D$27)+SUM($F$14*365/12*8))/8 -> 188.0379505 | G37: =SUM(SUM($O$22*$E$22,$P$22*$E$23,$Q$22*$E$24)+SUM($G$14*365/12*4))/4 -> 223.4245499 | H37: =SUM(SUM($R$22*$E$25,$S$22*$E$26,$T$22*$E$27)+SUM($G$14*365/12*8))/8 -> 190.5636562 | I37: =SUM(SUM($O$22*$F$22,$P$22*$F$23,$Q$22*$F$24)+SUM($I$14*365/12*4))/4 -> 251.5628723 | J37: =SUM(SUM($R$22*$F$25,$S$22*$F$26,$T$22*$F$27)+SUM($G$14*365/12*8))/8 -> 214.2818228
B38: NAICS 621 | C38: =SUM(SUM($O$23*$C$22,$P$23*$C$23,$Q$23*$C$24)+SUM($F$14*365/12*4))/4 -> 369.469769 | D38: =SUM(SUM($R$23*$C$25,$S$23*$C$26,$T$23*$C$27)+SUM($F$14*365/12*8))/8 -> 229.4911805 | E38: =SUM(SUM($O$23*$D$22,$P$23*$D$23,$Q$23*$D$24)+SUM($F$14*365/12*4))/4 -> 367.3738187 | F38: =SUM(SUM($R$23*$D$25,$S$23*$D$26,$T$23*$D$27)+SUM($F$14*365/12*8))/8 -> 228.0447487 | G38: =SUM(SUM($O$23*$E$22,$P$23*$E$23,$Q$23*$E$24)+SUM($F$14*365/12*4))/4 -> 372.5056345 | H38: =SUM(SUM($R$23*$E$25,$S$23*$E$26,$T$23*$E$27)+SUM($F$14*365/12*8))/8 -> 231.1518335 | I38: =SUM(SUM($O$23*$F$22,$P$23*$F$23,$Q$23*$F$24)+SUM($I$14*365/12*4))/4 -> 420.6970218 | J38: =SUM(SUM($R$23*$F$25,$S$23*$F$26,$T$23*$F$27)+SUM($G$14*365/12*8))/8 -> 260.3295615
B39: NAICS 722 | C39: =SUM(SUM($O$24*$C$22,$P$24*$C$23,$Q$24*$C$24)+SUM($F$14*365/12*4))/4 -> 1048.787661 | D39: =SUM(SUM($R$24*$C$25,$S$24*$C$26,$T$24*$C$27)+SUM($F$14*365/12*8))/8 -> 673.4477179 | E39: =SUM(SUM($O$24*$D$22,$P$24*$D$23,$Q$24*$D$24)+SUM($F$14*365/12*4))/4 -> 1042.716307 | F39: =SUM(SUM($R$24*$D$25,$S$24*$D$26,$T$24*$D$27)+SUM($F$14*365/12*8))/8 -> 669.0675611 | G39: =SUM(SUM($O$24*$E$22,$P$24*$E$23,$Q$24*$E$24)+SUM($F$14*365/12*4))/4 -> 1057.662204 | H39: =SUM(SUM($R$24*$E$25,$S$24*$E$26,$T$24*$E$27)+SUM($F$14*365/12*8))/8 -> 678.5835925 | I39: =SUM(SUM($O$24*$F$22,$P$24*$F$23,$Q$24*$F$24)+SUM($I$14*365/12*4))/4 -> 1198.014775 | J39: =SUM(SUM($R$24*$F$25,$S$24*$F$26,$T$24*$F$27)+SUM($G$14*365/12*8))/8 -> 767.9458714
F42: 2025 | G42: =F42+1 -> 2026 | H42: =G42+1 -> 2027 | I42: 2028 | J42: 2029
F43: Non-CARE | G43: Non-CARE | H43: Non-CARE | I43: Non-CARE | J43: Non-CARE
A44: 3 | D44: On Peak | F44: 242.7589229 | G44: =G$54*($F44/$F$54) -> 287.7246103 | H44: =H$54*($F44/$F$54) -> 296.5260556 | I44: 322.4 | J44: =I44 -> 322.4
A45: =A44+1 -> 4 | D45: Mid Peak | F45: 86.27099511 | G45: =G$54*($F45/$F$54) -> 102.2507768 | H45: 105.3786101 | I45: 117.6 | J45: =I45 -> 117.6
A46: =A45+1 -> 5 | D46: Off Peak | F46: 1077.846035 | G46: 1277.493024 | H46: 1316.571311 | I46: 1424.3 | J46: 1424.3
A47: 6 | D47: Mid Peak | F47: 566.1260181 | G47: 670.9882626 | H47: 691.5136758 | I47: 784.9 | J47: 784.9
A48: 7 | D48: Off Peak | F48: 955.884942 | G48: 1132.941352 | H48: 1167.59783 | I48: 1290.1 | J48: 1290.1
A49: 8 | D49: SuperOff Peak | F49: 948.2229897 | G49: 1123.860194 | H49: 1158.23888 | I49: 1291.7 | J49: 1291.7
A50: 9
A51: 10 | D51: Customers | F51: 4276490 | G51: =G55 -> 4469435 | H51: =H55 -> 4530907 | I51: 4490904.009 | J51: 4490904.009
A52: 11
D54: Total Sales | F54: =SUM(F44:F49) -> 3877.109903 | G54: ='SAR and AR (GS1)'!K59/1000 -> 4595.25822 | H54: ='SAR and AR (GS1)'!K60/1000 -> 4735.826362 | I54: 5231 | J54: 5231
E55: Customers | F55: =F51/SUM(F$51:F$52) -> 1 | G55: 4469435 | H55: 4530907 | I55: 4490904.009 | J55: 4490904.009

Sheet SAR and RAR (hidden)
B1: CONFIDENTIAL This Excel Sheet Is Marked Confidential In Accordance With Applicable Law and Regulation. Basis for Confidentiality In Accompanying Confidentiality Declaration. Public Disclosure Restricted.
C2: Total Revenue ($000)
C3: Authorized | D3: w/ Pending
B4: Generation | C4: =INDEX('Incremental Rev Req'!$S$9:$X$22,MATCH(B4,'Incremental Rev Req'!$S$9:$S$22,0),MATCH(Summary!$D$3,'Incremental Rev Req'!$S$9:$X$9,0)) -> 5342079.691 | D4: =INDEX('Incremental Rev Req'!$S$62:$X$75,MATCH(B4,'Incremental Rev Req'!$S$62:$S$75,0),MATCH(Summary!$D$3,'Incremental Rev Req'!$S$62:$X$62,0)) -> 5617501.115 | G4: Allocation
B5: Distribution | C5: =INDEX('Incremental Rev Req'!$S$9:$X$22,MATCH(B5,'Incremental Rev Req'!$S$9:$S$22,0),MATCH(Summary!$D$3,'Incremental Rev Req'!$S$9:$X$9,0)) -> 8734787.216 | D5: =INDEX('Incremental Rev Req'!$S$62:$X$75,MATCH(B5,'Incremental Rev Req'!$S$62:$S$75,0),MATCH(Summary!$D$3,'Incremental Rev Req'!$S$62:$X$62,0)) -> 11085654.83 | G5: Generation | H5: Distribution | I5: NDC | J5: PPPC | K5: DCPP | L5: NSGC | M5: Transmission | N5: TOTCA | O5: GHG Rev | P5: DWRBC | Q5: PUCRF | R5: SECURITIZATION
B6: Nuclear | C6: =INDEX('Incremental Rev Req'!$S$9:$X$22,MATCH(B6,'Incremental Rev Req'!$S$9:$S$22,0),MATCH(Summary!$D$3,'Incremental Rev Req'!$S$9:$X$9,0)) -> -915.4516419 | D6: =INDEX('Incremental Rev Req'!$S$62:$X$75,MATCH(B6,'Incremental Rev Req'!$S$62:$S$75,0),MATCH(Summary!$D$3,'Incremental Rev Req'!$S$62:$X$62,0)) -> -915.4516419 | F6: Residential | G6: =VLOOKUP(Summary!$D$3,'SAR and RAR'!$F$37:$R$42,'SAR and RAR'!G$35,FALSE) -> 0.4334283004 | H6: =VLOOKUP(Summary!$D$3,'SAR and RAR'!$F$37:$R$42,'SAR and RAR'!H$35,FALSE) -> 0.4876562775 | I6: =VLOOKUP(Summary!$D$3,'SAR and RAR'!$F$37:$R$42,'SAR and RAR'!I$35,FALSE) -> 0.3376537252 | J6: =VLOOKUP(Summary!$D$3,'SAR and RAR'!$F$37:$R$42,'SAR and RAR'!J$35,FALSE) -> 0.4376932486 | K6: =VLOOKUP(Summary!$D$3,'SAR and RAR'!$F$37:$R$42,'SAR and RAR'!K$35,FALSE) -> 0.4505009853 | L6: =VLOOKUP(Summary!$D$3,'SAR and RAR'!$F$37:$R$42,'SAR and RAR'!L$35,FALSE) -> 0.438315087 | M6: =VLOOKUP(Summary!$D$3,'SAR and RAR'!$F$37:$R$42,'SAR and RAR'!M$35,FALSE) -> 0.4638101825 | N6: =VLOOKUP(Summary!$D$3,'SAR and RAR'!$F$37:$R$42,'SAR and RAR'!N$35,FALSE) -> 0.3526671064 | O6: =VLOOKUP(Summary!$D$3,'SAR and RAR'!$F$37:$R$42,'SAR and RAR'!O$35,FALSE) -> 0.8258989463 | P6: =VLOOKUP(Summary!$D$3,'SAR and RAR'!$F$37:$R$42,'SAR and RAR'!P$35,FALSE) -> 0.251764536 | Q6: =VLOOKUP(Summary!$D$3,'SAR and RAR'!$F$37:$R$42,'SAR and RAR'!Q$35,FALSE) -> 0.3376537253 | R6: =VLOOKUP(Summary!$D$3,'SAR and RAR'!$F$37:$R$42,'SAR and RAR'!R$35,FALSE) -> 0.3581803258
B7: Public Purpose | C7: =INDEX('Incremental Rev Req'!$S$9:$X$22,MATCH(B7,'Incremental Rev Req'!$S$9:$S$22,0),MATCH(Summary!$D$3,'Incremental Rev Req'!$S$9:$X$9,0)) -> 992554.8866 | D7: =INDEX('Incremental Rev Req'!$S$62:$X$75,MATCH(B7,'Incremental Rev Req'!$S$62:$S$75,0),MATCH(Summary!$D$3,'Incremental Rev Req'!$S$62:$X$62,0)) -> 1003452.887
B8: DCPP | C8: =INDEX('Incremental Rev Req'!$S$9:$X$22,MATCH(B8,'Incremental Rev Req'!$S$9:$S$22,0),MATCH(Summary!$D$3,'Incremental Rev Req'!$S$9:$X$9,0)) -> 282858.6909 | D8: =INDEX('Incremental Rev Req'!$S$62:$X$75,MATCH(B8,'Incremental Rev Req'!$S$62:$S$75,0),MATCH(Summary!$D$3,'Incremental Rev Req'!$S$62:$X$62,0)) -> 282858.6909 | G8: Revenue ($000) - System | X8: Authorized | Y8: w/Pending
B9: New System Gen | C9: =INDEX('Incremental Rev Req'!$S$9:$X$22,MATCH(B9,'Incremental Rev Req'!$S$9:$S$22,0),MATCH(Summary!$D$3,'Incremental Rev Req'!$S$9:$X$9,0)) -> 597443.0405 | D9: =INDEX('Incremental Rev Req'!$S$62:$X$75,MATCH(B9,'Incremental Rev Req'!$S$62:$S$75,0),MATCH(Summary!$D$3,'Incremental Rev Req'!$S$62:$X$62,0)) -> 603154.6967 | F9: Authorized | G9: Generation | H9: Distribution | I9: NDC | J9: PPPC | K9: DCPP | L9: NSGC | M9: Transmission | N9: TOTCA | O9: GHG Rev | P9: DWRBC | Q9: PUCRF | R9: SECURITIZATION | S9: Total | T9: CARE Adj. | W9: % of CARE Sales | X9: =VLOOKUP(Summary!$D$3,$F$58:$Q$63,$Q$35,FALSE) -> 0.3399606647 | Y9: =X9 -> 0.3399606647
B10: FERC | C10: =INDEX('Incremental Rev Req'!$S$9:$X$22,MATCH(B10,'Incremental Rev Req'!$S$9:$S$22,0),MATCH(Summary!$D$3,'Incremental Rev Req'!$S$9:$X$9,0)) -> 1344347 | D10: =INDEX('Incremental Rev Req'!$S$62:$X$75,MATCH(B10,'Incremental Rev Req'!$S$62:$S$75,0),MATCH(Summary!$D$3,'Incremental Rev Req'!$S$62:$X$62,0)) -> 1344347 | F10: Residential | G10: =G6*G11 -> 2315408.521 | H10: =H6*H11 -> 4259573.818 | I10: =I6*I11 -> -309.1056571 | J10: =J6*J11 -> 434434.5727 | K10: =K6*K11 -> 127428.119 | L10: 261868.2983 | M10: 623521.8274 | N10: 22861.64517 | O10: -529916.5392 | P10: 104936.2139 | Q10: 21376.08553 | R10: =R6*R11 -> 38054.61083 | S10: =SUM(G10:R10) -> 7679238.067 | T10: =-X11+X14 -> -761419.8253 | W10: CARE Line Item Discount % | X10: 0.325 | Y10: =X10 -> 0.325
B11: TOTCA | C11: =INDEX('Incremental Rev Req'!$S$9:$X$22,MATCH(B11,'Incremental Rev Req'!$S$9:$S$22,0),MATCH(Summary!$D$3,'Incremental Rev Req'!$S$9:$X$9,0)) -> 64825 | D11: =INDEX('Incremental Rev Req'!$S$62:$X$75,MATCH(B11,'Incremental Rev Req'!$S$62:$S$75,0),MATCH(Summary!$D$3,'Incremental Rev Req'!$S$62:$X$62,0)) -> 64825 | F11: Total System | G11: =C4 -> 5342079.691 | H11: =C5 -> 8734787.216 | I11: =C6 -> -915.4516419 | J11: =C7 -> 992554.8866 | K11: =C8 -> 282858.6909 | L11: =C9 -> 597443.0405 | M11: =C10 -> 1344347 | N11: =C11 -> 64825 | O11: =C12 -> -641623.9439 | P11: =C14 -> 416803 | Q11: =C15 -> 63307.71418 | R11: =C16 -> 106244.28 | S11: =SUM(G11:R11) -> 17302711.12 | T11: 0 | W11: CARE Discounst | X11: =SUM(G10*G19/K71*O71,H10:N10,Q10)*X9*X10 -> 1019742.869 | Y11: =SUM(G13*G19/K71*O71,H13:N13,Q13)*Y9*Y10 -> 1167027.066
B12: GHG Revenue | C12: =INDEX('Incremental Rev Req'!$S$9:$X$22,MATCH(B12,'Incremental Rev Req'!$S$9:$S$22,0),MATCH(Summary!$D$3,'Incremental Rev Req'!$S$9:$X$9,0)) -> -641623.9439 | D12: =INDEX('Incremental Rev Req'!$S$62:$X$75,MATCH(B12,'Incremental Rev Req'!$S$62:$S$75,0),MATCH(Summary!$D$3,'Incremental Rev Req'!$S$62:$X$62,0)) -> -641623.9439 | F12: w/Pending | W12: non-CARE Residential Sales | X12: =VLOOKUP(Summary!$D$3,'SAR and RAR'!$F$58:$G$63,2,FALSE) -> 17636321.61 | Y12: =X12 -> 17636321.61
B13: MCAM | C13: =INDEX('Incremental Rev Req'!$S$9:$X$22,MATCH(B13,'Incremental Rev Req'!$S$9:$S$22,0),MATCH(Summary!$D$3,'Incremental Rev Req'!$S$9:$X$9,0)) -> 4709.193664 | D13: =INDEX('Incremental Rev Req'!$S$62:$X$75,MATCH(B13,'Incremental Rev Req'!$S$62:$S$75,0),MATCH(Summary!$D$3,'Incremental Rev Req'!$S$62:$X$62,0)) -> 4709.193664 | F13: Residential | G13: =G6*G14 -> 2434783.961 | H13: =H6*H14 -> 5405989.166 | I13: =I6*I14 -> -309.1056571 | J13: =J6*J14 -> 439204.5537 | K13: =K6*K14 -> 127428.119 | L13: 264371.8034 | M13: 623521.8274 | N13: 22861.64517 | O13: -529916.5392 | P13: 104936.2139 | Q13: =Q6*Q14 -> 21376.08553 | R13: =R6*R14 -> 38054.61083 | S13: =SUM(G13:R13) -> 8952302.341 | T13: =-Y11+Y14 -> -871393.7319 | W13: Total Sales (excl. CARE&SL) | X13: =VLOOKUP(Summary!$D$3,'SAR and RAR'!$F$64:$G$69,2,FALSE) -> 69620243.43 | Y13: =X13 -> 69620243.43
B14: DWR | C14: =INDEX('Incremental Rev Req'!$S$9:$X$22,MATCH(B14,'Incremental Rev Req'!$S$9:$S$22,0),MATCH(Summary!$D$3,'Incremental Rev Req'!$S$9:$X$9,0)) -> 416803 | D14: =INDEX('Incremental Rev Req'!$S$62:$X$75,MATCH(B14,'Incremental Rev Req'!$S$62:$S$75,0),MATCH(Summary!$D$3,'Incremental Rev Req'!$S$62:$X$62,0)) -> 416803 | F14: Total System | G14: =D4 -> 5617501.115 | H14: =D5 -> 11085654.83 | I14: =D6 -> -915.4516419 | J14: =D7 -> 1003452.887 | K14: =D8 -> 282858.6909 | L14: =D9 -> 603154.6967 | M14: =D10 -> 1344347 | N14: =D11 -> 64825 | O14: =D12 -> -641623.9439 | P14: =D14 -> 416803 | Q14: =D15 -> 63307.71418 | R14: =D16 -> 106244.28 | S14: =SUM(G14:R14) -> 19945609.82 | T14: 0 | W14: Res CARE Surcharge | X14: =X11*X12/X13 -> 258323.044 | Y14: =Y11*Y12/Y13 -> 295633.3337
B15: PUCRF | C15: =INDEX('Incremental Rev Req'!$S$9:$X$22,MATCH(B15,'Incremental Rev Req'!$S$9:$S$22,0),MATCH(Summary!$D$3,'Incremental Rev Req'!$S$9:$X$9,0)) -> 63307.71418 | D15: =INDEX('Incremental Rev Req'!$S$62:$X$75,MATCH(B15,'Incremental Rev Req'!$S$62:$S$75,0),MATCH(Summary!$D$3,'Incremental Rev Req'!$S$62:$X$62,0)) -> 63307.71418 | W15: RES CARE Discount Specific Split | X15: 0.7685554765 | Y15: =X15 -> 0.7685554765
B16: SECURITIZATION | C16: =INDEX('Incremental Rev Req'!$S$9:$X$22,MATCH(B16,'Incremental Rev Req'!$S$9:$S$22,0),MATCH(Summary!$D$3,'Incremental Rev Req'!$S$9:$X$9,0)) -> 106244.28 | D16: =INDEX('Incremental Rev Req'!$S$62:$X$75,MATCH(B16,'Incremental Rev Req'!$S$62:$S$75,0),MATCH(Summary!$D$3,'Incremental Rev Req'!$S$62:$X$62,0)) -> 106244.28 | S16: Authorized | T16: w/Pending | W16: CARE Surcharge Allocator | X16: 0.6093537365 | Y16: =X16 -> 0.6093537365
B17: Total | C17: =SUM(C4:C16) -> 17307420.32 | D17: =SUM(D4:D16) -> 19950319.01 | G17: Revenue Split - Bundled | S17: Bundled Revenue | W17: System CARE Discount | X17: =SUM(-X11*X15)+SUM(X11*X16) -> -162344.8392 | Y17: =SUM(-Y11*Y15)+SUM(Y11*Y16) -> -185792.7395
G18: Generation | H18: Distribution | I18: NDC | J18: PPPC | K18: DCPP | L18: NSGC | M18: Transmission | N18: TOTCA | O18: GHG Rev | P18: DWRBC | Q18: PUCRF | R18: SECURITIZATION | S18: Total | T18: Total
F19: Residential | G19: =VLOOKUP(Summary!$D$3,'SAR and RAR'!$F$44:$R$49,'SAR and RAR'!G$35,FALSE) -> 1.053497105 | H19: =VLOOKUP(Summary!$D$3,'SAR and RAR'!$F$44:$R$49,'SAR and RAR'!H$35,FALSE) -> 0.6807047654 | I19: =VLOOKUP(Summary!$D$3,'SAR and RAR'!$F$44:$R$49,'SAR and RAR'!I$35,FALSE) -> 0.7011923278 | J19: =VLOOKUP(Summary!$D$3,'SAR and RAR'!$F$44:$R$49,'SAR and RAR'!J$35,FALSE) -> 0.7011923321 | K19: =VLOOKUP(Summary!$D$3,'SAR and RAR'!$F$44:$R$49,'SAR and RAR'!K$35,FALSE) -> 0.7011923321 | L19: =VLOOKUP(Summary!$D$3,'SAR and RAR'!$F$44:$R$49,'SAR and RAR'!L$35,FALSE) -> 0.7011923321 | M19: =VLOOKUP(Summary!$D$3,'SAR and RAR'!$F$44:$R$49,'SAR and RAR'!M$35,FALSE) -> 0.7011923321 | N19: =VLOOKUP(Summary!$D$3,'SAR and RAR'!$F$44:$R$49,'SAR and RAR'!N$35,FALSE) -> 0.7011923322 | O19: =VLOOKUP(Summary!$D$3,'SAR and RAR'!$F$44:$R$49,'SAR and RAR'!O$35,FALSE) -> 0.7062685803 | P19: =VLOOKUP(Summary!$D$3,'SAR and RAR'!$F$44:$R$49,'SAR and RAR'!P$35,FALSE) -> 0.6668875222 | Q19: =VLOOKUP(Summary!$D$3,'SAR and RAR'!$F$44:$R$49,'SAR and RAR'!Q$35,FALSE) -> 0.7011923324 | R19: =VLOOKUP(Summary!$D$3,'SAR and RAR'!$F$44:$R$49,'SAR and RAR'!R$35,FALSE) -> 0.6668875222 | S19: =SUMPRODUCT(G10:R10,G19:R19)+T10*X15 -> 5520295.382 | T19: =SUMPRODUCT(G13:R13,G19:R19)+T13*Y15 -> 6347006.517
F20: Total System | G20: =VLOOKUP(Summary!$D$3,'SAR and RAR'!$F$50:$R$55,'SAR and RAR'!G$35,FALSE) -> 1.048411802 | H20: =VLOOKUP(Summary!$D$3,'SAR and RAR'!$F$50:$R$55,'SAR and RAR'!H$35,FALSE) -> 0.6483669672 | I20: =VLOOKUP(Summary!$D$3,'SAR and RAR'!$F$50:$R$55,'SAR and RAR'!I$35,FALSE) -> 0.6283028798 | J20: =VLOOKUP(Summary!$D$3,'SAR and RAR'!$F$50:$R$55,'SAR and RAR'!J$35,FALSE) -> 0.6429155899 | K20: =VLOOKUP(Summary!$D$3,'SAR and RAR'!$F$50:$R$55,'SAR and RAR'!K$35,FALSE) -> 0.6409526177 | L20: =VLOOKUP(Summary!$D$3,'SAR and RAR'!$F$50:$R$55,'SAR and RAR'!L$35,FALSE) -> 0.6386900347 | M20: =VLOOKUP(Summary!$D$3,'SAR and RAR'!$F$50:$R$55,'SAR and RAR'!M$35,FALSE) -> 0.6641776383 | N20: =VLOOKUP(Summary!$D$3,'SAR and RAR'!$F$50:$R$55,'SAR and RAR'!N$35,FALSE) -> 0.6299346499 | O20: =VLOOKUP(Summary!$D$3,'SAR and RAR'!$F$50:$R$55,'SAR and RAR'!O$35,FALSE) -> 0.6913063527 | P20: =VLOOKUP(Summary!$D$3,'SAR and RAR'!$F$50:$R$55,'SAR and RAR'!P$35,FALSE) -> 0.6102142723 | Q20: =VLOOKUP(Summary!$D$3,'SAR and RAR'!$F$50:$R$55,'SAR and RAR'!Q$35,FALSE) -> 0.628302884 | R20: =VLOOKUP(Summary!$D$3,'SAR and RAR'!$F$50:$R$55,'SAR and RAR'!R$35,FALSE) -> 0.6204799325 | S20: =SUMPRODUCT(G11:R11,G20:R20)+X17 -> 13152335.84 | T20: =SUMPRODUCT(G14:R14,G20:R20)+Y17 -> 14952522.38
Q22: Res GHG | S22: =O10*O19 -> -374263.4018 | T22: =O13*O19 -> -374263.4018
Q23: Res GHG System | S23: =O11*O20 -> -443558.7084 | T23: =O14*O20 -> -443558.7084
F26: Bundled | N26: System (Bundled and Unbundled)
F27: =Summary!N4&" Sales" -> 2025 Sales | G27: ='SAR and AR (GS1)'!$G$27 -> 3/1/2025 Avg Rates | H27: Proposed Avg Rates (Authorized) | I27: Proposed Avg Rates (w/Pending) | J27: % Change (Authorized) | K27: % Change (w/Pending) | N27: =Summary!N4&" Sales" -> 2025 Sales | O27: =G27 -> 3/1/2025 Avg Rates | P27: Proposed Avg Rates (Authorized) | Q27: Proposed Avg Rates (w/Pending) | R27: % Change (Authorized) | S27: % Change (w/Pending) | W27: 1/1/25 Bundled w/Credit | X27: 1/1/25 Bundled w/out Credit | Z27: 1/1/25 System w/Credit | AA27: 1/1/25 System w/out Credit
E28: Residential | F28: =VLOOKUP(Summary!$D$3,'SAR and RAR'!$J$58:$K$63,2,FALSE) -> 18735934.09 | G28: =IF(Summary!$J$3="Y",W32,X32) -> 31.3824852 | H28: =IF(Summary!$J$3="Y",S19/$F$28*100,SUM(S19-'SAR and RAR'!S22)/$F$28*100) -> 31.46124851 | I28: =IF(Summary!$J$3="Y",T19/$F$28*100,SUM(T19-'SAR and RAR'!T22)/$F$28*100) -> 35.87368469 | J28: =H28/G28-1 -> 0.00250978549 | K28: =I28/G28-1 -> 0.1431116581 | M28: Residential | N28: =VLOOKUP(Summary!$D$3,'SAR and RAR'!$N$58:$O$63,2,FALSE) -> 26720106.92 | O28: =IF(Summary!$J$3="Y",Z32,AA32) -> 28.11056783 | P28: =IF(Summary!$J$3="Y",SUM(S10:T10)/N28*100,SUM(S10,T10,-O10)/N28*100) -> 27.87314737 | Q28: =IF(Summary!$J$3="Y",SUM(S13:T13)/N28*100,SUM(S13,T13,-O13)/N28*100) -> 32.22601306 | R28: =P28/O28-1 -> -0.008445950262 | S28: =Q28/O28-1 -> 0.146402067 | V28: Residential | W28: 29.63216556 | X28: 31.62973815 | Y28: Residential System | Z28: 26.37809199 | AA28: 28.36130718
E29: Total Bundled | F29: =VLOOKUP(Summary!$D$3,'SAR and RAR'!$J$64:$K$69,2,FALSE) -> 49720524.25 | G29: =IF(Summary!$J$3="Y",W33,X33) -> 27.09446696 | H29: =IF(Summary!$J$3="Y",S20/$F$29*100,SUM(S20-S23)/$F$29*100) -> 27.34463232 | I29: =IF(Summary!$J$3="Y",T20/$F$29*100,SUM(T20-T23)/$F$29*100) -> 30.96524288 | J29: =H29/G29-1 -> 0.009233079495 | K29: =I29/G29-1 -> 0.1428622281 | M29: Total System | N29: =VLOOKUP(Summary!$D$3,'SAR and RAR'!$N$64:$O$69,2,FALSE) -> 79134642.73 | O29: =IF(Summary!$J$3="Y",Z33,AA33) -> 22.71448393 | P29: =IF(Summary!$J$3="Y",SUM(S11:T11)/N29*100,SUM(S11,T11,-O11)/N29*100) -> 22.67570112 | Q29: =IF(Summary!$J$3="Y",SUM(S14:T14)/N29*100,SUM(S14,T14,-O14)/N29*100) -> 26.01545044 | R29: =P29/O29-1 -> -0.001707404487 | S29: =Q29/O29-1 -> 0.1453243013 | V29: Bundled | W29: 26.41450186 | X29: 27.30660685 | Y29: Total System | Z29: 22.10831567 | AA29: 22.91911704
E30: =M29 -> Total System | F30: =N29 -> 79134642.73
W31: 3/1/25 Bundled w/Credit | X31: 3/1/25 Bundled w/out Credit | Z31: 3/1/25 System w/Credit | AA31: 3/1/25 System w/out Credit
V32: Residential | W32: 29.38491262 | X32: 31.3824852 | Y32: Residential System | Z32: 26.12735264 | AA32: 28.11056783
V33: Bundled | W33: 26.20236197 | X33: 27.09446696 | Y33: Total System | Z33: 21.90368256 | AA33: 22.71448393
G35: 2 | H35: =G35+1 -> 3 | I35: =H35+1 -> 4 | J35: 5 | K35: 6 | L35: 7 | M35: 8 | N35: 9 | O35: 10 | P35: 11 | Q35: 12 | R35: 13
F36: Residential Allocator | G36: Generation | H36: Distribution | I36: NDC | J36: PPPC | K36: DCPP | L36: NSGC | M36: Transmission | N36: TOTCA | O36: GHG Rev | P36: DWRBC | Q36: PUCRF | R36: SECURITIZATION
F37: 2025 | G37: 0.4334283004 | H37: 0.4876562775 | I37: 0.3376537252 | J37: 0.4376932486 | K37: 0.4505009853 | L37: 0.438315087 | M37: 0.4638101825 | N37: 0.3526671064 | O37: 0.8258989463 | P37: 0.251764536 | Q37: 0.3376537253 | R37: 0.3581803258
F38: 2026 | G38: 0.4334283004 | H38: 0.4876562775 | I38: 0.3376537252 | J38: 0.4376932486 | K38: 0.4505009853 | L38: 0.438315087 | M38: 0.4638101825 | N38: 0.3526671064 | O38: 0.8258989463 | P38: 0.251764536 | Q38: 0.3376537253 | R38: 0.3581803258
F39: 2027 | G39: 0.4334283004 | H39: 0.4876562775 | I39: 0.3376537252 | J39: 0.4376932486 | K39: 0.4505009853 | L39: 0.438315087 | M39: 0.4638101825 | N39: 0.3526671064 | O39: 0.8258989463 | P39: 0.251764536 | Q39: 0.3376537253 | R39: 0.3581803258
F40: 2028 | G40: 0.4054913817 | H40: 0.4972400794 | I40: 0.3341510144 | J40: 0.4340283714 | K40: =K39 -> 0.4505009853 | L40: 0.4357277943 | M40: 0.4515374098 | N40: 0.1106321004 | O40: 0.8448398131 | P40: 0.2807999981 | Q40: 0.3341510139 | R40: 0.3954973796
F41: 2029 | G41: 0.4054913817 | H41: 0.4972400794 | I41: 0.3341510144 | J41: 0.4340283714 | K41: =K40 -> 0.4505009853 | L41: 0.4357277943 | M41: 0.4515374098 | N41: 0.1106321004 | O41: 0.8448398131 | P41: 0.2807999981 | Q41: 0.3341510139 | R41: 0.3954973796
F43: Revenue Split - Bundled
E44: Residential | F44: 2025 | G44: 1.053497105 | H44: 0.6807047654 | I44: 0.7011923278 | J44: 0.7011923321 | K44: 0.7011923321 | L44: 0.7011923321 | M44: 0.7011923321 | N44: 0.7011923322 | O44: 0.7062685803 | P44: 0.6668875222 | Q44: 0.7011923324 | R44: 0.6668875222 | U44: =G44 -> 1.053497105
E45: Residential | F45: 2026 | G45: 1.053497105 | H45: 0.6807047654 | I45: 0.7011923278 | J45: 0.7011923321 | K45: 0.7011923321 | L45: 0.7011923321 | M45: 0.7011923321 | N45: 0.7011923322 | O45: 0.7062685803 | P45: 0.6668875222 | Q45: 0.7011923324 | R45: 0.6668875222 | T45: =K59/K58-1 -> -0.004732140687 | U45: =G45 -> 1.053497105
E46: Residential | F46: 2027 | G46: 1.053497105 | H46: 0.6807047654 | I46: 0.7011923278 | J46: 0.7011923321 | K46: 0.7011923321 | L46: 0.7011923321 | M46: 0.7011923321 | N46: 0.7011923322 | O46: 0.7062685803 | P46: 0.6668875222 | Q46: 0.7011923324 | R46: 0.6668875222 | T46: =K60/K59-1 -> 0.03962271163 | U46: 1.053497105
E47: Residential | F47: 2028 | G47: 1.045475877 | H47: 0.6648513206 | I47: 0.6720905597 | J47: 0.6720905599 | K47: =K44 -> 0.7011923321 | L47: 0.6720905599 | M47: 0.6720905599 | N47: 0.6720905545 | O47: 0.6622541459 | P47: 0.6613320402 | Q47: 0.6720905598 | R47: 0.6613320402 | T47: -0.01037767716 | U47: 1.045475877
E48: Residential | F48: 2029 | G48: 1.045475877 | H48: 0.6648513206 | I48: 0.6720905597 | J48: 0.6720905599 | K48: =K45 -> 0.7011923321 | L48: 0.6720905599 | M48: 0.6720905599 | N48: 0.6720905545 | O48: 0.6622541459 | P48: 0.6613320402 | Q48: 0.6720905598 | R48: 0.6613320402 | T48: 0 | U48: 1.045475877
E49: Residential | T49: -1 | U49: 0
E50: Total System | F50: 2025 | G50: 1.048411802 | H50: 0.6483669672 | I50: 0.6283028798 | J50: 0.6429155899 | K50: 0.6409526177 | L50: 0.6386900347 | M50: 0.6641776383 | N50: 0.6299346499 | O50: 0.6913063527 | P50: 0.6102142723 | Q50: 0.628302884 | R50: 0.6204799325 | U50: 1.048411802
E51: Total System | F51: 2026 | G51: 1.048411802 | H51: 0.6483669672 | I51: 0.6283028798 | J51: 0.6429155899 | K51: 0.6409526177 | L51: 0.6386900347 | M51: 0.6641776383 | N51: 0.6299346499 | O51: 0.6913063527 | P51: 0.6102142723 | Q51: 0.628302884 | R51: 0.6204799325 | T51: =K65/K64-1 -> 0.07290058435 | U51: 1.048411802
E52: Total System | F52: 2027 | G52: 1.048411802 | H52: 0.6483669672 | I52: 0.6283028798 | J52: 0.6429155899 | K52: 0.6409526177 | L52: 0.6386900347 | M52: 0.6641776383 | N52: 0.6299346499 | O52: 0.6913063527 | P52: 0.6102142723 | Q52: 0.628302884 | R52: 0.6204799325 | T52: =K66/K65-1 -> 0.007878342139 | U52: 1.048411802
E53: Total System | F53: 2028 | G53: 1.039114345 | H53: 0.6566285776 | I53: 0.6433912532 | J53: 0.6516624162 | K53: =K50 -> 0.6409526177 | L53: 0.6464372626 | M53: 0.6616471703 | N53: 0.6359044244 | O53: 0.6540688138 | P53: 0.6380707339 | Q53: 0.6433912524 | R53: 0.6431049177 | T53: 0.02226113612 | U53: 1.039114345
E54: Total System | F54: 2029 | G54: 1.039114345 | H54: 0.6566285776 | I54: 0.6433912532 | J54: 0.6516624162 | K54: =K51 -> 0.6409526177 | L54: 0.6464372626 | M54: 0.6616471703 | N54: 0.6359044244 | O54: 0.6540688138 | P54: 0.6380707339 | Q54: 0.6433912524 | R54: 0.6431049177 | T54: 0 | U54: 1.039114345
E55: Total System | T55: -1 | U55: 0
F57: System Sales | J57: Bundled Sales | L57: % of Bdl | N57: System Sales | Q57: CARE%
E58: Non-CARE Residential | F58: =$F$37 -> 2025 | G58: 17636321.61 | I58: Residential | J58: =$F$37 -> 2025 | K58: 18735934.09 | L58: =K58/O58 -> 0.7011923321 | M58: Residential | N58: =$F$37 -> 2025 | O58: 26720106.92 | Q58: =1-G58/O58 -> 0.3399606647
E59: Non-CARE Residential | F59: =$F$38 -> 2026 | G59: 19396319.29 | I59: Residential | J59: =$F$38 -> 2026 | K59: =O59*L58 -> 18647273.01 | L59: 0.7011923321 | M59: Residential | N59: =$F$38 -> 2026 | O59: 26593663.62 | Q59: 0.270641324
E60: Non-CARE Residential | F60: =$F$39 -> 2027 | G60: 21245754.3 | I60: Residential | J60: =$F$39 -> 2027 | K60: =O60*L59 -> 19386128.53 | L60: 0.7011923321 | M60: Residential | N60: =$F$39 -> 2027 | O60: 27647376.68 | Q60: 0.2315453817
E61: Non-CARE Residential | F61: =$F$40 -> 2028 | G61: 22208189.56 | I61: Residential | J61: =$F$40 -> 2028 | K61: 19184945.55 | L61: 0.6720905599 | M61: Residential | N61: =$F$40 -> 2028 | O61: 28545179.32 | Q61: =1-G61/O61 -> 0.2219985969
E62: Non-CARE Residential | F62: =$F$41 -> 2029 | G62: 22208189.56 | I62: Residential | J62: =$F$41 -> 2029 | K62: 19184945.55 | L62: =K62/O62 -> 0.6720905599 | M62: Residential | N62: =$F$41 -> 2029 | O62: 28545179.32 | Q62: =1-G62/O62 -> 0.2219985969
E63: Non-CARE Residential
E64: Non-Exempt Sales | F64: =$F$37 -> 2025 | G64: 69620243.43 | I64: Total System | J64: 2025 | K64: 49720524.25 | L64: 0.628302884 | M64: Total System | N64: 2025 | O64: 79134642.73
E65: Non-Exempt Sales | F65: =$F$38 -> 2026 | G65: 72160227 | I65: Total System | J65: =$F$38 -> 2026 | K65: 53345179.52 | L65: 0.6503784983 | M65: Total System | N65: =$F$38 -> 2026 | O65: 82021745.28 | P65: =O65/O64-1 -> 0.03648342177
E66: Non-Exempt Sales | F66: =$F$39 -> 2027 | G66: 73628007 | I66: Total System | J66: =$F$39 -> 2027 | K66: 53765451.1 | L66: 0.6424349163 | M66: Total System | N66: =$F$39 -> 2027 | O66: 83690113.56 | P66: 0.0203405606
E67: Non-Exempt Sales | F67: =$F$40 -> 2028 | G67: 78714196.58 | I67: Total System | J67: =$F$40 -> 2028 | K67: 54962331.12 | L67: 0.6433912525 | M67: Total System | N67: =$F$40 -> 2028 | O67: 85425984.44 | P67: 0.02074164806
E68: Non-Exempt Sales | F68: =$F$41 -> 2029 | G68: 78714196.58 | I68: Total System | J68: =$F$41 -> 2029 | K68: 54962331.12 | L68: =K68/O68 -> 0.6433912525 | M68: Total System | N68: =$F$41 -> 2029 | O68: 85425984.44 | P68: =O68/O67-1 -> 0
J71: =Summary!D3 -> 2025 | K71: =VLOOKUP(Summary!D3,'SAR and RAR'!J58:K63,2,FALSE) -> 18735934.09 | N71: =Summary!D3 -> 2025 | O71: =VLOOKUP(Summary!D3,'SAR and RAR'!N58:O63,2,FALSE) -> 26720106.92
J72: % of Resl Sales (Bdl) | N72: % of Resl Sales (Sys)
J73: =$F$37 -> 2025 | K73: =K58/K64 -> 0.3768249505 | N73: =$F$37 -> 2025 | O73: =O58/O64 -> 0.3376537254
J74: =$F$38 -> 2026 | K74: 0.3495587264 | N74: =$F$38 -> 2026 | O74: 0.3242269904
J75: =$F$39 -> 2027 | K75: 0.3605685089 | N75: =$F$39 -> 2027 | O75: 0.3303541543
J76: =$F$40 -> 2028 | K76: 0.3490562565 | N76: =$F$40 -> 2028 | O76: 0.3341510139
J77: =$F$41 -> 2029 | K77: 0.3490562565 | N77: =$F$41 -> 2029 | O77: 0.3341510139

Sheet Res Bill Impact (hidden)
A1: CONFIDENTIAL The Attachment(s) Are Marked Confidential In Accordance With D. 16-08-024 and D. 17-09-023. Basis for Confidentiality In Accompanying Confidentiality Declaration.
E3: Schedule D | O3: Schedule D-CARE
E4: =Summary!N4 -> 2025 | F4: =Summary!N3 -> 2025-03-01 | G4: Proposed | H4: Proposed | I4: Proposed | J4: Proposed | O4: =Summary!N4 -> 2025 | P4: =Summary!N3 -> 2025-03-01 | Q4: Proposed | R4: Proposed | S4: Proposed | T4: Proposed
E5: Sales Forecast | F5: Rates | G5: Authorized Rates | H5: Authorized Revenue | I5: w/Pending Rates | J5: w/Pending Revenue | O5: Sales Forecast | P5: Rates | Q5: Authorized Rates | R5: Authorized Revenue | S5: w/Pending Rates | T5: w/Pending Revenue
D7: Baseline - Summer | E7: =HLOOKUP(E$4,$F$95:$K$105,$A97,FALSE) -> 2943.673477 | F7: 0.33067 | G7: =(W8-SUM(R14:R15,H14:H15))/SUM(SUM(E7:E8),F9/F7*SUM(E9:E10),F11/F7*SUM(E11:E12),SUM(O7:O8)*(1+(P7/F7-1)),SUM(O9:O10)*(1+(P9/F9-1))*F9/F7,SUM(O11:O12)*(1+(P11/F11-1))*F11/F7) -> 0.3281003949 | H7: =E7*G7 -> 965.8204301 | I7: =(W9-SUM(T14:T15,J14:J15))/SUM(SUM(E7:E8),F9/F7*SUM(E9:E10),F11/F7*SUM(E11:E12),SUM(O7:O8)*(1+(P7/F7-1)),SUM(O9:O10)*(1+(P9/F9-1))*F9/F7,SUM(O11:O12)*(1+(P11/F11-1))*F11/F7) -> 0.3743557645 | J7: =E7*I7 -> 1101.981135 | N7: Baseline - Summer | O7: =HLOOKUP(O$4,$M$95:$R$105,$A97,FALSE) -> 1949.570369 | P7: 0.20708 | Q7: =G7*(1+(P7/F7-1)) -> 0.205470801 | R7: =O7*Q7 -> 400.5797853 | S7: =I7*(1+(P7/F7-1)) -> 0.2344379342 | T7: =O7*S7 -> 457.05325 | V7: Bundled Residential Rev Req
D8: - Winter | E8: 4098.822658 | F8: 0.33067 | G8: =G7 -> 0.3281003949 | H8: 1344.825333 | I8: =I7 -> 0.3743557645 | J8: 1534.41789 | N8: - Winter | O8: 2973.477977 | P8: 0.20708 | Q8: =G8*(1+(P8/F8-1)) -> 0.205470801 | R8: 610.9629017 | S8: 0.2344379342 | T8: 697.0960344 | V8: Proposed (Authorized) | W8: ='SAR and RAR'!S19/1000-'SAR and RAR'!S22/1000+$W$6 -> 5894.558784
D9: 101% - 400% of Baseline - Summer | E9: 1823.616652 | F9: 0.42513 | G9: =F9/F$7*G$7 -> 0.4218263552 | H9: 769.2495655 | I9: =F9/F$7*I$7 -> 0.4812951467 | J9: 877.6978441 | N9: 101% - 400% of Baseline - Summer | O9: 815.8001306 | P9: 0.27084 | Q9: 0.2687353281 | R9: 219.2343158 | S9: 0.3066214512 | T9: 250.1418199 | V9: Proposed (w/Pending) | W9: ='SAR and RAR'!T19/1000-'SAR and RAR'!T22/1000+$W$6 -> 6721.269919
D10: - Winter | E10: 2499.610106 | F10: 0.42513 | G10: =G9 -> 0.4218263552 | H10: 1054.40142 | I10: =I9 -> 0.4812951467 | J10: 1203.050213 | N10: - Winter | O10: 1203.524218 | P10: 0.27084 | Q10: 0.2687353281 | R10: 323.4294756 | S10: 0.3066214512 | T10: 369.0263423
D11: 401% of Baseline - Summer | E11: 144.6195472 | F11: 0.42513 | G11: =F11/F$7*G$7 -> 0.4218263552 | H11: 61.00433648 | I11: =F11/F$7*I$7 -> 0.4812951467 | J11: 69.60468619 | N11: 401% of Baseline - Summer | O11: 9.280030494 | P11: 0.27084 | Q11: 0.2687353281 | R11: 2.49387204 | S11: 0.3066214512 | T11: 2.845456417
D12: - Winter | E12: 251.1003806 | F12: 0.42513 | G12: =G11 -> 0.4218263552 | H12: 105.9207583 | I12: =I11 -> 0.4812951467 | J12: 120.8533945 | N12: - Winter | O12: 22.83854275 | P12: 0.27084 | Q12: 0.2687353281 | R12: 6.137523279 | S12: 0.3066214512 | T12: 7.002787121
D14: Basic Charge - Single-Family Residence | E14: =HLOOKUP(E$4,$F$95:$K$106,$A104,FALSE) -> 18183162 | F14: 0.031 | G14: =F14 -> 0.031 | H14: =G14*E14*365/12/10^6 -> 17.1452065 | I14: =G14 -> 0.031 | J14: =I14*E14*365/12/10^6 -> 17.1452065 | N14: Basic Charge - Single-Family Residence | O14: =HLOOKUP(O$4,$M$95:$R$105,$A104,FALSE) -> 6984771 | P14: 0.021 | Q14: =P14 -> 0.021 | R14: =Q14*O14*365/12/10^6 -> 4.461522476 | S14: =Q14 -> 0.021 | T14: =S14*O14*365/12/10^6 -> 4.461522476
D15: Basic Charge - Multi-Family Residence | E15: =HLOOKUP(E$4,$F$95:$K$106,$A105,FALSE) -> 8271562 | F15: 0.024 | G15: =F15 -> 0.024 | H15: =G15*E15*365/12/10^6 -> 6.03824026 | I15: =G15 -> 0.024 | J15: =I15*E15*365/12/10^6 -> 6.03824026 | N15: Basic Charge - Multi-Family Residence | O15: =HLOOKUP(O$4,$M$95:$R$105,$A105,FALSE) -> 5864584 | P15: 0.016 | Q15: =P15 -> 0.016 | R15: =Q15*O15*365/12/10^6 -> 2.854097547 | S15: =Q15 -> 0.016 | T15: =S15*O15*365/12/10^6 -> 2.854097547
O19: 2024 Recorded Data - Average Monthly Usage - kWh (Bundled / Basic Service Only) | W19: 2024 Recorded Data - Average Monthly Usage - kWh (Bundled / All Electric Only)
B20: SCHEDULE D RATES ($/kWh) | E20: Proposed | F20: Proposed | H20: MONTHLY BASELINE QUANTITIES | I20: BASIC | K20: ALL-ELECTRIC | O20: Climate Zone | P20: Summer | Q20: Winter | R20: Summer | S20: Winter | T20: Sample Population Weight | W20: Climate Zone | X20: Summer | Y20: Winter | Z20: Summer | AA20: Winter | AB20: Sample Population Weight
B21: Rates | C21: Jan 2025 | D21: =Summary!N3 -> 2025-03-01 | E21: Authorized | F21: w/Pending | H21: Climate Zone | I21: Summer | J21: Winter | K21: Summer | L21: Winter | P21: Non-CARE | R21: CARE | T21: Non-CARE | U21: CARE | X21: Non-CARE | Z21: CARE | AB21: Non-CARE | AC21: CARE
B22: Tier 1 | C22: 0.33308 | D22: =F7 -> 0.33067 | E22: =G7 -> 0.3281003949 | F22: =I7 -> 0.3743557645 | H22: 5 warm | I22: =17*$O$32 -> 517.089 | J22: =18.4*$O$32 -> 559.6728 | K22: =16.8*$O$32 -> 511.0056 | L22: =27*$O$32 -> 821.259 | O22: 5 warm | P22: 395.5552996 | Q22: 410.4255495 | R22: 370.5382517 | S22: 352.8129705 | T22: 0.000391559287 | U22: 5.780756421e-05 | W22: 5 warm | X22: 395.0513658 | Y22: 472.3532524 | Z22: 354.0301735 | AA22: 430.0455986 | AB22: 0.0003215327132 | AC22: 0.0001643349365
B23: Tier 2 | C23: 0.42821 | D23: =F9 -> 0.42513 | E23: =G9 -> 0.4218263552 | F23: =I9 -> 0.4812951467 | H23: 6 cool | I23: =11.4*$O$32 -> 346.7538 | J23: =11*$O$32 -> 334.587 | K23: =8.7*$O$32 -> 264.6279 | L23: =12.6*$O$32 -> 383.2542 | O23: 6 cool | P23: 441.3631683 | Q23: 378.5967426 | R23: 403.4336933 | S23: 346.7408462 | T23: 0.175728545 | U23: 0.06241911603 | W23: 6 cool | X23: 333.6664732 | Y23: 330.2803509 | Z23: 364.4793275 | AA23: 373.6317841 | AB23: 0.2756588649 | AC23: 0.1336590817
B24: Tier 2 | C24: 0.42821 | D24: =F11 -> 0.42513 | E24: =G11 -> 0.4218263552 | F24: =I11 -> 0.4812951467 | H24: 8 cool | I24: =12.8*$O$32 -> 389.3376 | J24: =10.3*$O$32 -> 313.2951 | K24: =9.9*$O$32 -> 301.1283 | L24: =12.3*$O$32 -> 374.1291 | O24: 8 cool | P24: 568.4975767 | Q24: 397.6071315 | R24: 503.0842528 | S24: 372.8283632 | T24: 0.2213136597 | U24: 0.1553419784 | W24: 8 cool | X24: 395.5847708 | Y24: 347.0862508 | Z24: 414.4144944 | AA24: 370.2534605 | AB24: 0.2319803089 | AC24: 0.1999079724
H25: 9 warm | I25: =16.9*$O$32 -> 514.0473 | J25: =12*$O$32 -> 365.004 | K25: =12.5*$O$32 -> 380.2125 | L25: =13.9*$O$32 -> 422.7963 | O25: 9 warm | P25: 736.1896342 | Q25: 454.0542708 | R25: 685.496621 | S25: 424.2446352 | T25: 0.1275808923 | U25: 0.0946365769 | W25: 9 warm | X25: 530.8275233 | Y25: 380.1763947 | Z25: 510.0101939 | AA25: 375.6663006 | AB25: 0.08053285732 | AC25: 0.08292340896
B26: SCHEDULE D-CARE RATES ($/kWh) | E26: Proposed | F26: Proposed | H26: 10 hot (Sec 745) | I26: =19.3*$O$32 -> 587.0481 | J26: =12.1*$O$32 -> 368.0457 | K26: =15.9*$O$32 -> 483.6303 | L26: =16.4*$O$32 -> 498.8388 | O26: 10 hot (Sec 745) | P26: 857.9526651 | Q26: 482.0306437 | R26: 918.4083871 | S26: 499.6563415 | T26: 0.3013940598 | U26: 0.4075638401 | W26: 10 hot (Sec 745) | X26: 627.4953074 | Y26: 427.1016506 | Z26: 660.3259927 | AA26: 426.1138274 | AB26: 0.2614116395 | AC26: 0.3672447605
B27: Rates | C27: =C21 -> Jan 2025 | D27: =D21 -> 2025-03-01 | E27: Authorized | F27: w/Pending | H27: 13 hot | I27: =22.2*$O$32 -> 675.2574 | J27: =12.2*$O$32 -> 371.0874 | K27: =24.2*$O$32 -> 736.0914 | L27: =23*$O$32 -> 699.591 | O27: 13 hot | P27: 995.7412826 | Q27: 488.3574385 | R27: 1027.53491 | S27: 485.942318 | T27: 0.04959424669 | U27: 0.1129503862 | W27: 13 hot | X27: 965.9846505 | Y27: 574.7150255 | Z27: 962.9031858 | AA27: 549.7168372 | AB27: 0.03106116883 | AC27: 0.06378386669
B28: Tier 1 | C28: 0.20878 | D28: =P7 -> 0.20708 | E28: =Q7 -> 0.205470801 | F28: =S7 -> 0.2344379342 | H28: 14 hot | I28: =19.2*$O$32 -> 584.0064 | J28: =11.9*$O$32 -> 361.9623 | K28: =18.5*$O$32 -> 562.7145 | L28: =21.1*$O$32 -> 641.7987 | O28: 14 hot | P28: 835.9220396 | Q28: 473.45593 | R28: 933.1504328 | S28: 527.5764602 | T28: 0.06232862483 | U28: 0.1067631121 | W28: 14 hot | X28: 756.0211147 | Y28: 556.7004427 | Z28: 880.8399974 | AA28: 657.7029793 | AB28: 0.04437151442 | AC28: 0.07098173691
B29: Tier 2 | C29: 0.27299 | D29: =P9 -> 0.27084 | E29: =Q9 -> 0.2687353281 | F29: =S9 -> 0.3066214512 | H29: 15 hot | I29: =45*$O$32 -> 1368.765 | J29: =9.7*$O$32 -> 295.0449 | K29: =24*$O$32 -> 730.008 | L29: =17.4*$O$32 -> 529.2558 | O29: 15 hot | P29: 1219.397003 | Q29: 540.766029 | R29: 1360.59217 | S29: 535.5743293 | T29: 0.03219052405 | U29: 0.03515632284 | W29: 15 hot | X29: 924.9686507 | Y29: 451.6365116 | Z29: 1114.196822 | AA29: 520.3020094 | AB29: 0.03508032774 | AC29: 0.05084522936
B30: Tier 2 | C30: 0.27299 | D30: =P11 -> 0.27084 | E30: =Q12 -> 0.2687353281 | F30: =S12 -> 0.3066214512 | H30: 16 cool | I30: =14.7*$O$32 -> 447.1299 | J30: =12.4*$O$32 -> 377.1708 | K30: =13.5*$O$32 -> 410.6295 | L30: =23.2*$O$32 -> 705.6744 | O30: 16 cool | P30: 565.1396542 | Q30: 416.659723 | R30: 776.7883471 | S30: 493.603768 | T30: 0.02947788832 | U30: 0.02511085999 | W30: 16 cool | X30: 449.8471198 | Y30: 538.6630052 | Z30: 698.918731 | AA30: 570.1108274 | AB30: 0.03958178573 | AC30: 0.03048960855
N32: Daily to Monthly Conversion Factor | O32: 30.417
C34: NON-CARE | M34: Essential Use (Basic) - Non-CARE | W34: Essential Use (Basic) - CARE
C35: =C27 -> Jan 2025 | E35: =D27 -> 2025-03-01 | G35: =E21 -> Authorized | I35: =F21 -> w/Pending | M35: =C35 -> Jan 2025 | O35: =E35 -> 2025-03-01 | Q35: =G35 -> Authorized | S35: =I35 -> w/Pending | W35: =M35 -> Jan 2025 | Y35: =O35 -> 2025-03-01 | AA35: =Q35 -> Authorized | AC35: =S35 -> w/Pending
C36: Summer | D36: Winter | E36: Summer | F36: Winter | G36: Summer | H36: Winter | I36: Summer | J36: Winter | M36: Summer | N36: Winter | O36: Summer | P36: Winter | Q36: Summer | R36: Winter | S36: Summer | T36: Winter | W36: Summer | X36: Winter | Y36: Summer | Z36: Winter | AA36: Summer | AB36: Winter | AC36: Summer | AD36: Winter
B37: 5 warm | C37: =C$22*MIN(I22,P22)+IF(P22-I22>0,C$23*(P22-I22))+ROUND($F$14*365/12,2)+(Summary!N17/12)*2 -> 123.3582259 | D37: =C$22*MIN(J22,Q22)+IF(Q22-J22>0,C$23*(Q22-J22))+ROUND($F$14*365/12,2)+(Summary!N17/12)*2 -> 128.3112087 | E37: =D$22*MIN(I22,P22)+IF(P22-I22>0,D$23*(P22-I22))+ROUND($F$14*365/12,2)+(Summary!N17/12)*2 -> 122.4049376 | F37: =D$22*MIN(J22,Q22)+IF(Q22-J22>0,D$23*(Q22-J22))+ROUND($F$14*365/12,2)+(Summary!N17/12)*2 -> 127.3220831 | G37: =E$22*MIN(I22,P22)+IF(P22-I22>0,E$23*(P22-I22))+ROUND($F$14*365/12,2)+(Summary!N17/12)*2 -> 121.3885166 | H37: =E$22*MIN(J22,Q22)+IF(Q22-J22>0,E$23*(Q22-J22))+ROUND($F$14*365/12,2)+(Summary!N17/12)*2 -> 126.2674515 | I37: =F$22*MIN(I22,P22)+IF(P22-I22>0,F$23*(P22-I22))+ROUND($F$14*365/12,2)+(Summary!N17/12)*2 -> 139.6850733 | J37: =F$22*MIN(J22,Q22)+IF(Q22-J22>0,F$23*(Q22-J22))+ROUND($F$14*365/12,2)+(Summary!N17/12)*2 -> 145.251837 | L37: 5 warm | M37: =C$22*I22+ROUND($F$14*365/12,2)+(Summary!N17/12)*2 -> 163.8386708 | N37: =C$22*J22+ROUND($F$14*365/12,2)+(Summary!N17/12)*2 -> 178.0224829 | O37: =D$22*I22+ROUND($F$14*365/12,2)+(Summary!N17/12)*2 -> 162.5924863 | P37: =D$22*J22+ROUND($F$14*365/12,2)+(Summary!N17/12)*2 -> 176.6736714 | Q37: =E$22*I22+ROUND($F$14*365/12,2)+(Summary!N17/12)*2 -> 161.2637717 | R37: =E$22*J22+ROUND($F$14*365/12,2)+(Summary!N17/12)*2 -> 175.2355333 | S37: =F$22*I22+ROUND($F$14*365/12,2)+(Summary!N17/12)*2 -> 185.1819146 | T37: =F$22*J22+ROUND($F$14*365/12,2)+(Summary!N17/12)*2 -> 201.1234056 | V37: 5 warm | W37: =C$28*I22+ROUND($P$14*365/12,2)+(Summary!N17/12)*2 -> 99.26450809 | X37: =C$28*J22+ROUND($P$14*365/12,2)+(Summary!N17/12)*2 -> 108.1551539 | Y37: =D$28*I22+ROUND($P$14*365/12,2)+(Summary!N17/12)*2 -> 98.38545679 | Z37: =D$28*J22+ROUND($P$14*365/12,2)+(Summary!N17/12)*2 -> 107.2037101 | AA37: =E$28*I22+ROUND($P$14*365/12,2)+(Summary!N17/12)*2 -> 97.55335768 | AB37: =E$28*J22+ROUND($P$14*365/12,2)+(Summary!N17/12)*2 -> 106.3030852 | AC37: =F$28*I22+ROUND($P$14*365/12,2)+(Summary!N17/12)*2 -> 112.5319436 | AD37: =F$28*J22+ROUND($P$14*365/12,2)+(Summary!N17/12)*2 -> 122.5152018
B38: 6 cool | C38: =C$22*MIN(I23,P23)+IF(P23-I23>0,C$23*(P23-I23))+ROUND($F$14*365/12,2)+(Summary!N17/12)*2 -> 147.6161 | D38: =C$22*MIN(J23,Q23)+IF(Q23-J23>0,C$23*(Q23-J23))+ROUND($F$14*365/12,2)+(Summary!N17/12)*2 -> 121.8963165 | E38: =D$22*MIN(I23,P23)+IF(P23-I23>0,D$23*(P23-I23))+ROUND($F$14*365/12,2)+(Summary!N17/12)*2 -> 146.4890265 | F38: =D$22*MIN(J23,Q23)+IF(Q23-J23>0,D$23*(Q23-J23))+ROUND($F$14*365/12,2)+(Summary!N17/12)*2 -> 120.9544118 | G38: =E$22*MIN(I23,P23)+IF(P23-I23>0,E$23*(P23-I23))+ROUND($F$14*365/12,2)+(Summary!N17/12)*2 -> 145.2854504 | H38: =E$22*MIN(J23,Q23)+IF(Q23-J23>0,E$23*(Q23-J23))+ROUND($F$14*365/12,2)+(Summary!N17/12)*2 -> 119.9492628 | I38: =F$22*MIN(I23,P23)+IF(P23-I23>0,F$23*(P23-I23))+ROUND($F$14*365/12,2)+(Summary!N17/12)*2 -> 166.9509804 | J38: =F$22*MIN(J23,Q23)+IF(Q23-J23>0,F$23*(Q23-J23))+ROUND($F$14*365/12,2)+(Summary!N17/12)*2 -> 138.0429144 | L38: 6 cool | M38: =C$22*I23+ROUND($F$14*365/12,2)+(Summary!N17/12)*2 -> 107.1034224 | N38: =C$22*J23+ROUND($F$14*365/12,2)+(Summary!N17/12)*2 -> 103.0509046 | O38: =D$22*I23+ROUND($F$14*365/12,2)+(Summary!N17/12)*2 -> 106.2677457 | P38: =D$22*J23+ROUND($F$14*365/12,2)+(Summary!N17/12)*2 -> 102.24455 | Q38: =E$22*I23+ROUND($F$14*365/12,2)+(Summary!N17/12)*2 -> 105.3767254 | R38: =E$22*J23+ROUND($F$14*365/12,2)+(Summary!N17/12)*2 -> 101.3847935 | S38: =F$22*I23+ROUND($F$14*365/12,2)+(Summary!N17/12)*2 -> 121.4159506 | T38: =F$22*J23+ROUND($F$14*365/12,2)+(Summary!N17/12)*2 -> 116.8612388 | V38: 6 cool | W38: =C$28*I23+ROUND($P$14*365/12,2)+(Summary!N17/12)*2 -> 63.70192503 | X38: =C$28*J23+ROUND($P$14*365/12,2)+(Summary!N17/12)*2 -> 61.16174053 | Y38: =D$28*I23+ROUND($P$14*365/12,2)+(Summary!N17/12)*2 -> 63.11244357 | Z38: =D$28*J23+ROUND($P$14*365/12,2)+(Summary!N17/12)*2 -> 60.59294263 | AA38: =E$28*I23+ROUND($P$14*365/12,2)+(Summary!N17/12)*2 -> 62.5544477 | AB38: =E$28*J23+ROUND($P$14*365/12,2)+(Summary!N17/12)*2 -> 60.05452556 | AC38: =F$28*I23+ROUND($P$14*365/12,2)+(Summary!N17/12)*2 -> 72.59891123 | AD38: =F$28*J23+ROUND($P$14*365/12,2)+(Summary!N17/12)*2 -> 69.74655177
B39: 8 cool | C39: =C$22*MIN(I24,P24)+IF(P24-I24>0,C$23*(P24-I24))+ROUND($F$14*365/12,2)+(Summary!N17/12)*2 -> 198.0053281 | D39: =C$22*MIN(J24,Q24)+IF(Q24-J24>0,C$23*(Q24-J24))+ROUND($F$14*365/12,2)+(Summary!N17/12)*2 -> 132.0622536 | E39: =D$22*MIN(I24,P24)+IF(P24-I24>0,D$23*(P24-I24))+ROUND($F$14*365/12,2)+(Summary!N17/12)*2 -> 196.5152117 | F39: =D$22*MIN(J24,Q24)+IF(Q24-J24>0,D$23*(Q24-J24))+ROUND($F$14*365/12,2)+(Summary!N17/12)*2 -> 131.0475313 | G39: =E$22*MIN(I24,P24)+IF(P24-I24>0,E$23*(P24-I24))+ROUND($F$14*365/12,2)+(Summary!N17/12)*2 -> 194.9228869 | H39: =E$22*MIN(J24,Q24)+IF(Q24-J24>0,E$23*(Q24-J24))+ROUND($F$14*365/12,2)+(Summary!N17/12)*2 -> 129.9639496 | I39: =F$22*MIN(I24,P24)+IF(P24-I24>0,F$23*(P24-I24))+ROUND($F$14*365/12,2)+(Summary!N17/12)*2 -> 223.5862688 | J39: =F$22*MIN(J24,Q24)+IF(Q24-J24>0,F$23*(Q24-J24))+ROUND($F$14*365/12,2)+(Summary!N17/12)*2 -> 149.4694649 | L39: 8 cool | M39: =C$22*I24+ROUND($F$14*365/12,2)+(Summary!N17/12)*2 -> 121.2872345 | N39: =C$22*J24+ROUND($F$14*365/12,2)+(Summary!N17/12)*2 -> 95.95899857 | O39: =D$22*I24+ROUND($F$14*365/12,2)+(Summary!N17/12)*2 -> 120.3489309 | P39: =D$22*J24+ROUND($F$14*365/12,2)+(Summary!N17/12)*2 -> 95.20395738 | Q39: =E$22*I24+ROUND($F$14*365/12,2)+(Summary!N17/12)*2 -> 119.348487 | R39: =E$22*J24+ROUND($F$14*365/12,2)+(Summary!N17/12)*2 -> 94.39891268 | S39: =F$22*I24+ROUND($F$14*365/12,2)+(Summary!N17/12)*2 -> 137.3574416 | T39: =F$22*J24+ROUND($F$14*365/12,2)+(Summary!N17/12)*2 -> 108.8904933 | V39: 8 cool | W39: =C$28*I24+ROUND($P$14*365/12,2)+(Summary!N17/12)*2 -> 72.59257079 | X39: =C$28*J24+ROUND($P$14*365/12,2)+(Summary!N17/12)*2 -> 56.71641764 | Y39: =D$28*I24+ROUND($P$14*365/12,2)+(Summary!N17/12)*2 -> 71.93069687 | Z39: =D$28*J24+ROUND($P$14*365/12,2)+(Summary!N17/12)*2 -> 56.18381597 | AA39: =E$28*I24+ROUND($P$14*365/12,2)+(Summary!N17/12)*2 -> 71.3041752 | AB39: =E$28*J24+ROUND($P$14*365/12,2)+(Summary!N17/12)*2 -> 55.67966181 | AC39: =F$28*I24+ROUND($P$14*365/12,2)+(Summary!N17/12)*2 -> 82.58216933 | AD39: =F$28*J24+ROUND($P$14*365/12,2)+(Summary!N17/12)*2 -> 64.75492272
B40: 9 warm | C40: =C$22*MIN(I25,P25)+IF(P25-I25>0,C$23*(P25-I25))+ROUND($F$14*365/12,2)+(Summary!N17/12)*2 -> 257.9491103 | D40: =C$22*MIN(J25,Q25)+IF(Q25-J25>0,C$23*(Q25-J25))+ROUND($F$14*365/12,2)+(Summary!N17/12)*2 -> 151.3144154 | E40: =D$22*MIN(I25,P25)+IF(P25-I25>0,D$23*(P25-I25))+ROUND($F$14*365/12,2)+(Summary!N17/12)*2 -> 256.0260579 | F40: =D$22*MIN(J25,Q25)+IF(Q25-J25>0,D$23*(Q25-J25))+ROUND($F$14*365/12,2)+(Summary!N17/12)*2 -> 150.160481 | G40: =E$22*MIN(I25,P25)+IF(P25-I25>0,E$23*(P25-I25))+ROUND($F$14*365/12,2)+(Summary!N17/12)*2 -> 253.9712799 | H40: =E$22*MIN(J25,Q25)+IF(Q25-J25>0,E$23*(Q25-J25))+ROUND($F$14*365/12,2)+(Summary!N17/12)*2 -> 148.9283743 | I40: =F$22*MIN(I25,P25)+IF(P25-I25>0,F$23*(P25-I25))+ROUND($F$14*365/12,2)+(Summary!N17/12)*2 -> 290.959264 | J40: =F$22*MIN(J25,Q25)+IF(Q25-J25>0,F$23*(Q25-J25))+ROUND($F$14*365/12,2)+(Summary!N17/12)*2 -> 171.1074813 | L40: 9 warm | M40: =C$22*I25+ROUND($F$14*365/12,2)+(Summary!N17/12)*2 -> 162.8255414 | N40: =C$22*J25+ROUND($F$14*365/12,2)+(Summary!N17/12)*2 -> 113.182199 | O40: =D$22*I25+ROUND($F$14*365/12,2)+(Summary!N17/12)*2 -> 161.5866874 | P40: =D$22*J25+ROUND($F$14*365/12,2)+(Summary!N17/12)*2 -> 112.3025393 | Q40: =E$22*I25+ROUND($F$14*365/12,2)+(Summary!N17/12)*2 -> 160.2657888 | R40: =E$22*J25+ROUND($F$14*365/12,2)+(Summary!N17/12)*2 -> 111.3646232 | S40: =F$22*I25+ROUND($F$14*365/12,2)+(Summary!N17/12)*2 -> 184.0432367 | T40: =F$22*J25+ROUND($F$14*365/12,2)+(Summary!N17/12)*2 -> 128.2480181 | V40: 9 warm | W40: =C$28*I25+ROUND($P$14*365/12,2)+(Summary!N17/12)*2 -> 98.62946196 | X40: =C$28*J25+ROUND($P$14*365/12,2)+(Summary!N17/12)*2 -> 67.51220179 | Y40: =D$28*I25+ROUND($P$14*365/12,2)+(Summary!N17/12)*2 -> 97.75558155 | Z40: =D$28*J25+ROUND($P$14*365/12,2)+(Summary!N17/12)*2 -> 66.89169499 | AA40: =E$28*I25+ROUND($P$14*365/12,2)+(Summary!N17/12)*2 -> 96.92837715 | AB40: =E$28*J25+ROUND($P$14*365/12,2)+(Summary!N17/12)*2 -> 66.30433091 | AC40: =F$28*I25+ROUND($P$14*365/12,2)+(Summary!N17/12)*2 -> 111.8188538 | AD40: =F$28*J25+ROUND($P$14*365/12,2)+(Summary!N17/12)*2 -> 76.87745042
B41: 10 hot (Sec 745) | C41: =C$22*MIN(I26,P26)+IF(P26-I26>0,C$23*(P26-I26))+ROUND($F$14*365/12,2)+(Summary!N17/12)*2 -> 303.1446916 | D41: =C$22*MIN(J26,Q26)+IF(Q26-J26>0,C$23*(Q26-J26))+ROUND($F$14*365/12,2)+(Summary!N17/12)*2 -> 163.0048212 | E41: =D$22*MIN(I26,P26)+IF(P26-I26>0,D$23*(P26-I26))+ROUND($F$14*365/12,2)+(Summary!N17/12)*2 -> 300.8955196 | F41: =D$22*MIN(J26,Q26)+IF(Q26-J26>0,D$23*(Q26-J26))+ROUND($F$14*365/12,2)+(Summary!N17/12)*2 -> 161.7667574 | G41: =E$22*MIN(I26,P26)+IF(P26-I26>0,E$23*(P26-I26))+ROUND($F$14*365/12,2)+(Summary!N17/12)*2 -> 298.4920654 | H41: =E$22*MIN(J26,Q26)+IF(Q26-J26>0,E$23*(Q26-J26))+ROUND($F$14*365/12,2)+(Summary!N17/12)*2 -> 160.4444595 | I41: =F$22*MIN(I26,P26)+IF(P26-I26>0,F$23*(P26-I26))+ROUND($F$14*365/12,2)+(Summary!N17/12)*2 -> 341.7565594 | J41: =F$22*MIN(J26,Q26)+IF(Q26-J26>0,F$23*(Q26-J26))+ROUND($F$14*365/12,2)+(Summary!N17/12)*2 -> 184.2470963 | L41: 10 hot (Sec 745) | M41: =C$22*I26+ROUND($F$14*365/12,2)+(Summary!N17/12)*2 -> 187.1406478 | N41: =C$22*J26+ROUND($F$14*365/12,2)+(Summary!N17/12)*2 -> 114.1953284 | O41: =D$22*I26+ROUND($F$14*365/12,2)+(Summary!N17/12)*2 -> 185.7258619 | P41: =D$22*J26+ROUND($F$14*365/12,2)+(Summary!N17/12)*2 -> 113.3083383 | Q41: =E$22*I26+ROUND($F$14*365/12,2)+(Summary!N17/12)*2 -> 184.2173801 | R41: =E$22*J26+ROUND($F$14*365/12,2)+(Summary!N17/12)*2 -> 112.3626062 | S41: =F$22*I26+ROUND($F$14*365/12,2)+(Summary!N17/12)*2 -> 211.371507 | T41: =F$22*J26+ROUND($F$14*365/12,2)+(Summary!N17/12)*2 -> 129.3866961 | V41: 10 hot (Sec 745) | W41: =C$28*I26+ROUND($P$14*365/12,2)+(Summary!N17/12)*2 -> 113.870569 | X41: =C$28*J26+ROUND($P$14*365/12,2)+(Summary!N17/12)*2 -> 68.14724791 | Y41: =D$28*I26+ROUND($P$14*365/12,2)+(Summary!N17/12)*2 -> 112.8725872 | Z41: =D$28*J26+ROUND($P$14*365/12,2)+(Summary!N17/12)*2 -> 67.52157022 | AA41: =E$28*I26+ROUND($P$14*365/12,2)+(Summary!N17/12)*2 -> 111.92791 | AB41: =E$28*J26+ROUND($P$14*365/12,2)+(Summary!N17/12)*2 -> 66.92931145 | AC41: =F$28*I26+ROUND($P$14*365/12,2)+(Summary!N17/12)*2 -> 128.9330105 | AD41: =F$28*J26+ROUND($P$14*365/12,2)+(Summary!N17/12)*2 -> 77.59054028
B42: 13 hot | C42: =C$22*MIN(I27,P27)+IF(P27-I27>0,C$23*(P27-I27))+ROUND($F$14*365/12,2)+(Summary!N17/12)*2 -> 353.7558048 | D42: =C$22*MIN(J27,Q27)+IF(Q27-J27>0,C$23*(Q27-J27))+ROUND($F$14*365/12,2)+(Summary!N17/12)*2 -> 165.4246611 | E42: =D$22*MIN(I27,P27)+IF(P27-I27>0,D$23*(P27-I27))+ROUND($F$14*365/12,2)+(Summary!N17/12)*2 -> 351.1413442 | F42: =D$22*MIN(J27,Q27)+IF(Q27-J27>0,D$23*(Q27-J27))+ROUND($F$14*365/12,2)+(Summary!N17/12)*2 -> 164.1691487 | G42: =E$22*MIN(I27,P27)+IF(P27-I27>0,E$23*(P27-I27))+ROUND($F$14*365/12,2)+(Summary!N17/12)*2 -> 348.3474343 | H42: =E$22*MIN(J27,Q27)+IF(Q27-J27>0,E$23*(Q27-J27))+ROUND($F$14*365/12,2)+(Summary!N17/12)*2 -> 162.8281821 | I42: =F$22*MIN(I27,P27)+IF(P27-I27>0,F$23*(P27-I27))+ROUND($F$14*365/12,2)+(Summary!N17/12)*2 -> 398.6405042 | J42: =F$22*MIN(J27,Q27)+IF(Q27-J27>0,F$23*(Q27-J27))+ROUND($F$14*365/12,2)+(Summary!N17/12)*2 -> 186.9668744 | L42: 13 hot | M42: =C$22*I27+ROUND($F$14*365/12,2)+(Summary!N17/12)*2 -> 216.5214015 | N42: =C$22*J27+ROUND($F$14*365/12,2)+(Summary!N17/12)*2 -> 115.2084579 | O42: =D$22*I27+ROUND($F$14*365/12,2)+(Summary!N17/12)*2 -> 214.8940311 | P42: =D$22*J27+ROUND($F$14*365/12,2)+(Summary!N17/12)*2 -> 114.3141372 | Q42: =E$22*I27+ROUND($F$14*365/12,2)+(Summary!N17/12)*2 -> 213.1588862 | R42: =E$22*J27+ROUND($F$14*365/12,2)+(Summary!N17/12)*2 -> 113.3605891 | S42: =F$22*I27+ROUND($F$14*365/12,2)+(Summary!N17/12)*2 -> 244.3931669 | T42: =F$22*J27+ROUND($F$14*365/12,2)+(Summary!N17/12)*2 -> 130.525374 | V42: 13 hot | W42: =C$28*I27+ROUND($P$14*365/12,2)+(Summary!N17/12)*2 -> 132.2869066 | X42: =C$28*J27+ROUND($P$14*365/12,2)+(Summary!N17/12)*2 -> 68.78229404 | Y42: =D$28*I27+ROUND($P$14*365/12,2)+(Summary!N17/12)*2 -> 131.1389691 | Z42: =D$28*J27+ROUND($P$14*365/12,2)+(Summary!N17/12)*2 -> 68.15144546 | AA42: =E$28*I27+ROUND($P$14*365/12,2)+(Summary!N17/12)*2 -> 130.0523455 | AB42: =E$28*J27+ROUND($P$14*365/12,2)+(Summary!N17/12)*2 -> 67.55429199 | AC42: =F$28*I27+ROUND($P$14*365/12,2)+(Summary!N17/12)*2 -> 149.6126166 | AD42: =F$28*J27+ROUND($P$14*365/12,2)+(Summary!N17/12)*2 -> 78.30363015
B43: 14 hot | C43: =C$22*MIN(I28,P28)+IF(P28-I28>0,C$23*(P28-I28))+ROUND($F$14*365/12,2)+(Summary!N17/12)*2 -> 294.0003144 | D43: =C$22*MIN(J28,Q28)+IF(Q28-J28>0,C$23*(Q28-J28))+ROUND($F$14*365/12,2)+(Summary!N17/12)*2 -> 159.9117568 | E43: =D$22*MIN(I28,P28)+IF(P28-I28>0,D$23*(P28-I28))+ROUND($F$14*365/12,2)+(Summary!N17/12)*2 -> 291.8169588 | F43: =D$22*MIN(J28,Q28)+IF(Q28-J28>0,D$23*(Q28-J28))+ROUND($F$14*365/12,2)+(Summary!N17/12)*2 -> 158.6960273 | G43: =E$22*MIN(I28,P28)+IF(P28-I28>0,E$23*(P28-I28))+ROUND($F$14*365/12,2)+(Summary!N17/12)*2 -> 289.4840532 | H43: =E$22*MIN(J28,Q28)+IF(Q28-J28>0,E$23*(Q28-J28))+ROUND($F$14*365/12,2)+(Summary!N17/12)*2 -> 157.3975918 | I43: =F$22*MIN(I28,P28)+IF(P28-I28>0,F$23*(P28-I28))+ROUND($F$14*365/12,2)+(Summary!N17/12)*2 -> 331.4786037 | J43: =F$22*MIN(J28,Q28)+IF(Q28-J28>0,F$23*(Q28-J28))+ROUND($F$14*365/12,2)+(Summary!N17/12)*2 -> 180.7706832 | L43: 14 hot | M43: =C$22*I28+ROUND($F$14*365/12,2)+(Summary!N17/12)*2 -> 186.1275184 | N43: =C$22*J28+ROUND($F$14*365/12,2)+(Summary!N17/12)*2 -> 112.1690696 | O43: =D$22*I28+ROUND($F$14*365/12,2)+(Summary!N17/12)*2 -> 184.720063 | P43: =D$22*J28+ROUND($F$14*365/12,2)+(Summary!N17/12)*2 -> 111.2967404 | Q43: =E$22*I28+ROUND($F$14*365/12,2)+(Summary!N17/12)*2 -> 183.2193971 | R43: =E$22*J28+ROUND($F$14*365/12,2)+(Summary!N17/12)*2 -> 110.3666402 | S43: =F$22*I28+ROUND($F$14*365/12,2)+(Summary!N17/12)*2 -> 210.232829 | T43: =F$22*J28+ROUND($F$14*365/12,2)+(Summary!N17/12)*2 -> 127.1093402 | V43: 14 hot | W43: =C$28*I28+ROUND($P$14*365/12,2)+(Summary!N17/12)*2 -> 113.2355229 | X43: =C$28*J28+ROUND($P$14*365/12,2)+(Summary!N17/12)*2 -> 66.87715566 | Y43: =D$28*I28+ROUND($P$14*365/12,2)+(Summary!N17/12)*2 -> 112.242712 | Z43: =D$28*J28+ROUND($P$14*365/12,2)+(Summary!N17/12)*2 -> 66.26181975 | AA43: =E$28*I28+ROUND($P$14*365/12,2)+(Summary!N17/12)*2 -> 111.3029295 | AB43: =E$28*J28+ROUND($P$14*365/12,2)+(Summary!N17/12)*2 -> 65.67935038 | AC43: =F$28*I28+ROUND($P$14*365/12,2)+(Summary!N17/12)*2 -> 128.2199207 | AD43: =F$28*J28+ROUND($P$14*365/12,2)+(Summary!N17/12)*2 -> 76.16436055
B44: 15 hot | C44: =C$22*MIN(I29,P29)+IF(P29-I29>0,C$23*(P29-I29))+ROUND($F$14*365/12,2)+(Summary!N17/12)*2 -> 397.7634205 | D44: =C$22*MIN(J29,Q29)+IF(Q29-J29>0,C$23*(Q29-J29))+ROUND($F$14*365/12,2)+(Summary!N17/12)*2 -> 195.1004666 | E44: =D$22*MIN(I29,P29)+IF(P29-I29>0,D$23*(P29-I29))+ROUND($F$14*365/12,2)+(Summary!N17/12)*2 -> 394.8246737 | F44: =D$22*MIN(J29,Q29)+IF(Q29-J29>0,D$23*(Q29-J29))+ROUND($F$14*365/12,2)+(Summary!N17/12)*2 -> 193.6325873 | G44: =E$22*MIN(I29,P29)+IF(P29-I29>0,E$23*(P29-I29))+ROUND($F$14*365/12,2)+(Summary!N17/12)*2 -> 391.6913049 | H44: =E$22*MIN(J29,Q29)+IF(Q29-J29>0,E$23*(Q29-J29))+ROUND($F$14*365/12,2)+(Summary!N17/12)*2 -> 192.0626631 | I44: =F$22*MIN(I29,P29)+IF(P29-I29>0,F$23*(P29-I29))+ROUND($F$14*365/12,2)+(Summary!N17/12)*2 -> 448.0949641 | J44: =F$22*MIN(J29,Q29)+IF(Q29-J29>0,F$23*(Q29-J29))+ROUND($F$14*365/12,2)+(Summary!N17/12)*2 -> 220.3228126 | L44: 15 hot | M44: =C$22*I29+ROUND($F$14*365/12,2)+(Summary!N17/12)*2 -> 447.5149129 | N44: =C$22*J29+ROUND($F$14*365/12,2)+(Summary!N17/12)*2 -> 89.88022196 | O44: =D$22*I29+ROUND($F$14*365/12,2)+(Summary!N17/12)*2 -> 444.2161892 | P44: =D$22*J29+ROUND($F$14*365/12,2)+(Summary!N17/12)*2 -> 89.16916375 | Q44: =E$22*I29+ROUND($F$14*365/12,2)+(Summary!N17/12)*2 -> 440.6990036 | R44: =E$22*J29+ROUND($F$14*365/12,2)+(Summary!N17/12)*2 -> 88.41101486 | S44: =F$22*I29+ROUND($F$14*365/12,2)+(Summary!N17/12)*2 -> 504.0117347 | T44: =F$22*J29+ROUND($F$14*365/12,2)+(Summary!N17/12)*2 -> 102.0584258 | V44: 15 hot | W44: =C$28*I29+ROUND($P$14*365/12,2)+(Summary!N17/12)*2 -> 277.0774234 | X44: =C$28*J29+ROUND($P$14*365/12,2)+(Summary!N17/12)*2 -> 52.90614089 | Y44: =D$28*I29+ROUND($P$14*365/12,2)+(Summary!N17/12)*2 -> 274.7505229 | Z44: =D$28*J29+ROUND($P$14*365/12,2)+(Summary!N17/12)*2 -> 52.40456456 | AA44: =E$28*I29+ROUND($P$14*365/12,2)+(Summary!N17/12)*2 -> 272.5479076 | AB44: =E$28*J29+ROUND($P$14*365/12,2)+(Summary!N17/12)*2 -> 51.9297786 | AC44: =F$28*I29+ROUND($P$14*365/12,2)+(Summary!N17/12)*2 -> 312.1971057 | AD44: =F$28*J29+ROUND($P$14*365/12,2)+(Summary!N17/12)*2 -> 60.47638353
B45: 16 cool | C45: =C$22*MIN(I30,P30)+IF(P30-I30>0,C$23*(P30-I30))+ROUND($F$14*365/12,2)+(Summary!N17/12)*2 -> 191.0696506 | D45: =C$22*MIN(J30,Q30)+IF(Q30-J30>0,C$23*(Q30-J30))+ROUND($F$14*365/12,2)+(Summary!N17/12)*2 -> 134.1442685 | E45: =D$22*MIN(I30,P30)+IF(P30-I30>0,D$23*(P30-I30))+ROUND($F$14*365/12,2)+(Summary!N17/12)*2 -> 189.6285975 | F45: =D$22*MIN(J30,Q30)+IF(Q30-J30>0,D$23*(Q30-J30))+ROUND($F$14*365/12,2)+(Summary!N17/12)*2 -> 133.113661 | G45: =E$22*MIN(I30,P30)+IF(P30-I30>0,E$23*(P30-I30))+ROUND($F$14*365/12,2)+(Summary!N17/12)*2 -> 188.0897879 | H45: =E$22*MIN(J30,Q30)+IF(Q30-J30>0,E$23*(Q30-J30))+ROUND($F$14*365/12,2)+(Summary!N17/12)*2 -> 132.0140236 | I45: =F$22*MIN(I30,P30)+IF(P30-I30>0,F$23*(P30-I30))+ROUND($F$14*365/12,2)+(Summary!N17/12)*2 -> 215.7898442 | J45: =F$22*MIN(J30,Q30)+IF(Q30-J30>0,F$23*(Q30-J30))+ROUND($F$14*365/12,2)+(Summary!N17/12)*2 -> 151.8085569 | L45: 16 cool | M45: =C$22*I30+ROUND($F$14*365/12,2)+(Summary!N17/12)*2 -> 140.5366938 | N45: =C$22*J30+ROUND($F$14*365/12,2)+(Summary!N17/12)*2 -> 117.2347167 | O45: =D$22*I30+ROUND($F$14*365/12,2)+(Summary!N17/12)*2 -> 139.4591107 | P45: =D$22*J30+ROUND($F$14*365/12,2)+(Summary!N17/12)*2 -> 116.3257351 | Q45: =E$22*I30+ROUND($F$14*365/12,2)+(Summary!N17/12)*2 -> 138.3101634 | R45: =E$22*J30+ROUND($F$14*365/12,2)+(Summary!N17/12)*2 -> 115.3565551 | S45: =F$22*I30+ROUND($F$14*365/12,2)+(Summary!N17/12)*2 -> 158.9923222 | T45: =F$22*J30+ROUND($F$14*365/12,2)+(Summary!N17/12)*2 -> 132.8027299 | V45: 16 cool | W45: =C$28*I30+ROUND($P$14*365/12,2)+(Summary!N17/12)*2 -> 84.65844719 | X45: =C$28*J30+ROUND($P$14*365/12,2)+(Summary!N17/12)*2 -> 70.05238629 | Y45: =D$28*I30+ROUND($P$14*365/12,2)+(Summary!N17/12)*2 -> 83.89832636 | Z45: =D$28*J30+ROUND($P$14*365/12,2)+(Summary!N17/12)*2 -> 69.41119593 | AA45: =E$28*I30+ROUND($P$14*365/12,2)+(Summary!N17/12)*2 -> 83.17880537 | AB45: =E$28*J30+ROUND($P$14*365/12,2)+(Summary!N17/12)*2 -> 68.80425306 | AC45: =F$28*I30+ROUND($P$14*365/12,2)+(Summary!N17/12)*2 -> 96.13087676 | AD45: =F$28*J30+ROUND($P$14*365/12,2)+(Summary!N17/12)*2 -> 79.72980988
B46: ALL | C46: =SUMPRODUCT(C37:C45,$T$22:$T$30) -> 248.390766 | D46: 147.5374648 | E46: 246.5364921 | F46: 146.4109481 | G46: 244.5554567 | H46: 145.2079787 | I46: 280.2160044 | J46: 166.8625868 | L46: ALL | M46: =SUMPRODUCT(M37:M45,$T$22:$T$30) -> 163.7920629 | N46: 107.3275525 | O46: 162.5462157 | P46: 106.4902541 | Q46: 161.2178607 | R46: 105.5975047 | S46: 185.129531 | T46: 121.6678552 | V46: ALL | W46: =SUMPRODUCT(W37:W45,$U$22:$U$30) -> 109.9002144 | X46: =SUMPRODUCT(X37:X45,$U$22:$U$30) -> 65.32589318 | Y46: 108.9345615 | Z46: 64.72318849 | AA46: 108.0204863 | AB46: 64.15267568 | AC46: 124.4747209 | AD46: 74.4224563
C49: CARE | M49: Essential Use (All-Electric) - Non-CARE | W49: Essential Use (All-Electric) - CARE
C50: =C27 -> Jan 2025 | E50: =D27 -> 2025-03-01 | G50: =E27 -> Authorized | I50: =F27 -> w/Pending | M50: =C50 -> Jan 2025 | O50: =E50 -> 2025-03-01 | Q50: =G50 -> Authorized | S50: =I50 -> w/Pending | W50: =M50 -> Jan 2025 | Y50: =O50 -> 2025-03-01 | AA50: =Q50 -> Authorized | AC50: =S50 -> w/Pending
C51: Summer | D51: Winter | E51: Summer | F51: Winter | G51: Summer | H51: Winter | I51: Summer | J51: Winter | M51: Summer | N51: Winter | O51: Summer | P51: Winter | Q51: Summer | R51: Winter | S51: Summer | T51: Winter | W51: Summer | X51: Winter | Y51: Summer | Z51: Winter | AA51: Summer | AB51: Winter | AC51: Summer | AD51: Winter
B52: 5 warm | C52: =C$28*MIN(I22,R22)+IF(R22-I22>0,C$29*(R22-I22))+ROUND($P$14*365/12,2)+(Summary!N17/12)*2 -> 68.66764285 | D52: =C$28*MIN(J22,S22)+IF(S22-J22>0,C$29*(S22-J22))+ROUND($P$14*365/12,2)+(Summary!N17/12)*2 -> 64.96695865 | E52: =D$28*MIN(I22,R22)+IF(R22-I22>0,D$29*(R22-I22))+ROUND($P$14*365/12,2)+(Summary!N17/12)*2 -> 68.03772783 | F52: =D$28*MIN(J22,S22)+IF(S22-J22>0,D$29*(S22-J22))+ROUND($P$14*365/12,2)+(Summary!N17/12)*2 -> 64.3671766 | G52: =E$28*MIN(I22,R22)+IF(R22-I22>0,E$29*(R22-I22))+ROUND($P$14*365/12,2)+(Summary!N17/12)*2 -> 67.44145804 | H52: =E$28*MIN(J22,S22)+IF(S22-J22>0,E$29*(S22-J22))+ROUND($P$14*365/12,2)+(Summary!N17/12)*2 -> 63.79943032 | I52: =F$28*MIN(I22,R22)+IF(R22-I22>0,F$29*(R22-I22))+ROUND($P$14*365/12,2)+(Summary!N17/12)*2 -> 78.17488895 | J52: =F$28*MIN(J22,S22)+IF(S22-J22>0,F$29*(S22-J22))+ROUND($P$14*365/12,2)+(Summary!N17/12)*2 -> 74.01941064 | L52: 5 warm | M52: =C$22*K22+ROUND($F$14*365/12,2)+(Summary!N17/12)*2 -> 161.8124119 | N52: =C$22*L22+ROUND($F$14*365/12,2)+(Summary!N17/12)*2 -> 265.1516144 | O52: =D$22*K22+ROUND($F$14*365/12,2)+(Summary!N17/12)*2 -> 160.5808884 | P52: =D$22*L22+ROUND($F$14*365/12,2)+(Summary!N17/12)*2 -> 263.1723802 | Q52: =E$22*K22+ROUND($F$14*365/12,2)+(Summary!N17/12)*2 -> 159.2678058 | R52: =E$22*L22+ROUND($F$14*365/12,2)+(Summary!N17/12)*2 -> 261.0620688 | S52: =F$22*K22+ROUND($F$14*365/12,2)+(Summary!N17/12)*2 -> 182.9045587 | T52: =F$22*L22+ROUND($F$14*365/12,2)+(Summary!N17/12)*2 -> 299.0497075 | V52: 5 warm | W52: =C$28*K22+ROUND($P$14*365/12,2)+(Summary!N17/12)*2 -> 97.99441583 | X52: =C$28*L22+ROUND($P$14*365/12,2)+(Summary!N17/12)*2 -> 162.7691207 | Y52: =D$28*K22+ROUND($P$14*365/12,2)+(Summary!N17/12)*2 -> 97.12570631 | Z52: =D$28*L22+ROUND($P$14*365/12,2)+(Summary!N17/12)*2 -> 161.3729804 | AA52: =E$28*K22+ROUND($P$14*365/12,2)+(Summary!N17/12)*2 -> 96.30339661 | AB52: =E$28*L22+ROUND($P$14*365/12,2)+(Summary!N17/12)*2 -> 160.0514112 | AC52: =F$28*K22+ROUND($P$14*365/12,2)+(Summary!N17/12)*2 -> 111.1057639 | AD52: =F$28*L22+ROUND($P$14*365/12,2)+(Summary!N17/12)*2 -> 183.8409301
B53: 6 cool | C53: =C$28*MIN(I23,R23)+IF(R23-I23>0,C$29*(R23-I23))+ROUND($P$14*365/12,2)+(Summary!N17/12)*2 -> 79.17496909 | D53: =C$28*MIN(J23,S23)+IF(S23-J23>0,C$29*(S23-J23))+ROUND($P$14*365/12,2)+(Summary!N17/12)*2 -> 64.47961901 | E53: =D$28*MIN(I23,R23)+IF(R23-I23>0,D$29*(R23-I23))+ROUND($P$14*365/12,2)+(Summary!N17/12)*2 -> 78.46362586 | F53: =D$28*MIN(J23,S23)+IF(S23-J23>0,D$29*(S23-J23))+ROUND($P$14*365/12,2)+(Summary!N17/12)*2 -> 63.88469034 | G53: =E$28*MIN(I23,R23)+IF(R23-I23>0,E$29*(R23-I23))+ROUND($P$14*365/12,2)+(Summary!N17/12)*2 -> 77.78633741 | H53: =E$28*MIN(J23,S23)+IF(S23-J23>0,E$29*(S23-J23))+ROUND($P$14*365/12,2)+(Summary!N17/12)*2 -> 63.32069342 | I53: =F$28*MIN(I23,R23)+IF(R23-I23>0,F$29*(R23-I23))+ROUND($P$14*365/12,2)+(Summary!N17/12)*2 -> 89.97818235 | J53: =F$28*MIN(J23,S23)+IF(S23-J23>0,F$29*(S23-J23))+ROUND($P$14*365/12,2)+(Summary!N17/12)*2 -> 73.47318174 | L53: 6 cool | M53: =C$22*K23+ROUND($F$14*365/12,2)+(Summary!N17/12)*2 -> 79.7489276 | N53: =C$22*L23+ROUND($F$14*365/12,2)+(Summary!N17/12)*2 -> 119.2609756 | O53: =D$22*K23+ROUND($F$14*365/12,2)+(Summary!N17/12)*2 -> 79.11117436 | P53: =D$22*L23+ROUND($F$14*365/12,2)+(Summary!N17/12)*2 -> 118.337333 | Q53: =E$22*K23+ROUND($F$14*365/12,2)+(Summary!N17/12)*2 -> 78.43118515 | R53: =E$22*L23+ROUND($F$14*365/12,2)+(Summary!N17/12)*2 -> 117.352521 | S53: =F$22*K23+ROUND($F$14*365/12,2)+(Summary!N17/12)*2 -> 90.67164648 | T53: =F$22*L23+ROUND($F$14*365/12,2)+(Summary!N17/12)*2 -> 135.0800857 | V53: 6 cool | W53: =C$28*K23+ROUND($P$14*365/12,2)+(Summary!N17/12)*2 -> 46.55567963 | X53: =C$28*L23+ROUND($P$14*365/12,2)+(Summary!N17/12)*2 -> 71.32247854 | Y53: =D$28*K23+ROUND($P$14*365/12,2)+(Summary!N17/12)*2 -> 46.1058122 | Z53: =D$28*L23+ROUND($P$14*365/12,2)+(Summary!N17/12)*2 -> 70.6709464 | AA53: =E$28*K23+ROUND($P$14*365/12,2)+(Summary!N17/12)*2 -> 45.67997325 | AB53: =E$28*L23+ROUND($P$14*365/12,2)+(Summary!N17/12)*2 -> 70.05421413 | AC53: =F$28*K23+ROUND($P$14*365/12,2)+(Summary!N17/12)*2 -> 53.34548489 | AD53: =F$28*L23+ROUND($P$14*365/12,2)+(Summary!N17/12)*2 -> 81.15598961
B54: 8 cool | C54: =C$28*MIN(I24,R24)+IF(R24-I24>0,C$29*(R24-I24))+ROUND($P$14*365/12,2)+(Summary!N17/12)*2 -> 103.6442695 | D54: =C$28*MIN(J24,S24)+IF(S24-J24>0,C$29*(S24-J24))+ROUND($P$14*365/12,2)+(Summary!N17/12)*2 -> 72.96840317 | E54: =D$28*MIN(I24,R24)+IF(R24-I24>0,D$29*(R24-I24))+ROUND($P$14*365/12,2)+(Summary!N17/12)*2 -> 102.7378403 | F54: =D$28*MIN(J24,S24)+IF(S24-J24>0,D$29*(S24-J24))+ROUND($P$14*365/12,2)+(Summary!N17/12)*2 -> 72.30780499 | G54: =E$28*MIN(I24,R24)+IF(R24-I24>0,E$29*(R24-I24))+ROUND($P$14*365/12,2)+(Summary!N17/12)*2 -> 101.8719192 | H54: =E$28*MIN(J24,S24)+IF(S24-J24>0,E$29*(S24-J24))+ROUND($P$14*365/12,2)+(Summary!N17/12)*2 -> 71.67835284 | I54: =F$28*MIN(I24,R24)+IF(R24-I24>0,F$29*(R24-I24))+ROUND($P$14*365/12,2)+(Summary!N17/12)*2 -> 117.4593331 | J54: =F$28*MIN(J24,S24)+IF(S24-J24>0,F$29*(S24-J24))+ROUND($P$14*365/12,2)+(Summary!N17/12)*2 -> 83.00909829 | L54: 8 cool | M54: =C$22*K24+ROUND($F$14*365/12,2)+(Summary!N17/12)*2 -> 91.90648083 | N54: =C$22*L24+ROUND($F$14*365/12,2)+(Summary!N17/12)*2 -> 116.2215873 | O54: =D$22*K24+ROUND($F$14*365/12,2)+(Summary!N17/12)*2 -> 91.18076163 | P54: =D$22*L24+ROUND($F$14*365/12,2)+(Summary!N17/12)*2 -> 115.3199362 | Q54: =E$22*K24+ROUND($F$14*365/12,2)+(Summary!N17/12)*2 -> 90.4069808 | R54: =E$22*L24+ROUND($F$14*365/12,2)+(Summary!N17/12)*2 -> 114.3585721 | S54: =F$22*K24+ROUND($F$14*365/12,2)+(Summary!N17/12)*2 -> 104.3357816 | T54: =F$22*L24+ROUND($F$14*365/12,2)+(Summary!N17/12)*2 -> 131.6640519 | V54: 8 cool | W54: =C$28*K24+ROUND($P$14*365/12,2)+(Summary!N17/12)*2 -> 54.17623314 | X54: =C$28*L24+ROUND($P$14*365/12,2)+(Summary!N17/12)*2 -> 69.41734016 | Y54: =D$28*K24+ROUND($P$14*365/12,2)+(Summary!N17/12)*2 -> 53.66431503 | Z54: =D$28*L24+ROUND($P$14*365/12,2)+(Summary!N17/12)*2 -> 68.78132069 | AA54: =E$28*K24+ROUND($P$14*365/12,2)+(Summary!N17/12)*2 -> 53.17973967 | AB54: =E$28*L24+ROUND($P$14*365/12,2)+(Summary!N17/12)*2 -> 68.17927252 | AC54: =F$28*K24+ROUND($P$14*365/12,2)+(Summary!N17/12)*2 -> 61.90256326 | AD54: =F$28*L24+ROUND($P$14*365/12,2)+(Summary!N17/12)*2 -> 79.01672001
B55: 9 warm | C55: =C$28*MIN(I25,R25)+IF(R25-I25>0,C$29*(R25-I25))+ROUND($P$14*365/12,2)+(Summary!N17/12)*2 -> 145.4334121 | D55: =C$28*MIN(J25,S25)+IF(S25-J25>0,C$29*(S25-J25))+ROUND($P$14*365/12,2)+(Summary!N17/12)*2 -> 83.68430279 | E55: =D$28*MIN(I25,R25)+IF(R25-I25>0,D$29*(R25-I25))+ROUND($P$14*365/12,2)+(Summary!N17/12)*2 -> 144.1909156 | F55: =D$28*MIN(J25,S25)+IF(S25-J25>0,D$29*(S25-J25))+ROUND($P$14*365/12,2)+(Summary!N17/12)*2 -> 82.93642863 | G55: =E$28*MIN(I25,R25)+IF(R25-I25>0,E$29*(R25-I25))+ROUND($P$14*365/12,2)+(Summary!N17/12)*2 -> 143.0028667 | H55: =E$28*MIN(J25,S25)+IF(S25-J25>0,E$29*(S25-J25))+ROUND($P$14*365/12,2)+(Summary!N17/12)*2 -> 82.22438246 | I55: =F$28*MIN(I25,R25)+IF(R25-I25>0,F$29*(R25-I25))+ROUND($P$14*365/12,2)+(Summary!N17/12)*2 -> 164.3888934 | J55: =F$28*MIN(J25,S25)+IF(S25-J25>0,F$29*(S25-J25))+ROUND($P$14*365/12,2)+(Summary!N17/12)*2 -> 95.04189996 | L55: 9 warm | M55: =C$22*K25+ROUND($F$14*365/12,2)+(Summary!N17/12)*2 -> 118.2478462 | N55: =C$22*L25+ROUND($F$14*365/12,2)+(Summary!N17/12)*2 -> 132.4316583 | O55: =D$22*K25+ROUND($F$14*365/12,2)+(Summary!N17/12)*2 -> 117.331534 | P55: =D$22*L25+ROUND($F$14*365/12,2)+(Summary!N17/12)*2 -> 131.4127192 | Q55: =E$22*K25+ROUND($F$14*365/12,2)+(Summary!N17/12)*2 -> 116.354538 | R55: =E$22*L25+ROUND($F$14*365/12,2)+(Summary!N17/12)*2 -> 130.3262996 | S55: =F$22*K25+ROUND($F$14*365/12,2)+(Summary!N17/12)*2 -> 133.9414078 | T55: =F$22*L25+ROUND($F$14*365/12,2)+(Summary!N17/12)*2 -> 149.8828988 | V55: 9 warm | W55: =C$28*K25+ROUND($P$14*365/12,2)+(Summary!N17/12)*2 -> 70.68743242 | X55: =C$28*L25+ROUND($P$14*365/12,2)+(Summary!N17/12)*2 -> 79.57807818 | Y55: =D$28*K25+ROUND($P$14*365/12,2)+(Summary!N17/12)*2 -> 70.04107117 | Z55: =D$28*L25+ROUND($P$14*365/12,2)+(Summary!N17/12)*2 -> 78.85932447 | AA55: =E$28*K25+ROUND($P$14*365/12,2)+(Summary!N17/12)*2 -> 69.42923359 | AB55: =E$28*L25+ROUND($P$14*365/12,2)+(Summary!N17/12)*2 -> 78.17896109 | AC55: =F$28*K25+ROUND($P$14*365/12,2)+(Summary!N17/12)*2 -> 80.44289974 | AD55: =F$28*L25+ROUND($P$14*365/12,2)+(Summary!N17/12)*2 -> 90.42615784
B56: 10 hot (Sec 745) | C56: =C$28*MIN(I26,R26)+IF(R26-I26>0,C$29*(R26-I26))+ROUND($P$14*365/12,2)+(Summary!N17/12)*2 -> 204.3286138 | D56: =C$28*MIN(J26,S26)+IF(S26-J26>0,C$29*(S26-J26))+ROUND($P$14*365/12,2)+(Summary!N17/12)*2 -> 104.0756369 | E56: =D$28*MIN(I26,R26)+IF(R26-I26>0,D$29*(R26-I26))+ROUND($P$14*365/12,2)+(Summary!N17/12)*2 -> 202.6182074 | F56: =D$28*MIN(J26,S26)+IF(S26-J26>0,D$29*(S26-J26))+ROUND($P$14*365/12,2)+(Summary!N17/12)*2 -> 103.1669964 | G56: =E$28*MIN(I26,R26)+IF(R26-I26>0,E$29*(R26-I26))+ROUND($P$14*365/12,2)+(Summary!N17/12)*2 -> 200.9761255 | H56: =E$28*MIN(J26,S26)+IF(S26-J26>0,E$29*(S26-J26))+ROUND($P$14*365/12,2)+(Summary!N17/12)*2 -> 102.2977404 | I56: =F$28*MIN(I26,R26)+IF(R26-I26>0,F$29*(R26-I26))+ROUND($P$14*365/12,2)+(Summary!N17/12)*2 -> 230.5351826 | J56: =F$28*MIN(J26,S26)+IF(S26-J26>0,F$29*(S26-J26))+ROUND($P$14*365/12,2)+(Summary!N17/12)*2 -> 117.9451862 | L56: 10 hot (Sec 745) | M56: =C$22*K26+ROUND($F$14*365/12,2)+(Summary!N17/12)*2 -> 152.694247 | N56: =C$22*L26+ROUND($F$14*365/12,2)+(Summary!N17/12)*2 -> 157.7598942 | O56: =D$22*K26+ROUND($F$14*365/12,2)+(Summary!N17/12)*2 -> 151.528698 | P56: =D$22*L26+ROUND($F$14*365/12,2)+(Summary!N17/12)*2 -> 156.5576927 | Q56: =E$22*K26+ROUND($F$14*365/12,2)+(Summary!N17/12)*2 -> 150.2859591 | R56: =E$22*L26+ROUND($F$14*365/12,2)+(Summary!N17/12)*2 -> 155.2758739 | S56: =F$22*K26+ROUND($F$14*365/12,2)+(Summary!N17/12)*2 -> 172.6564574 | T56: =F$22*L26+ROUND($F$14*365/12,2)+(Summary!N17/12)*2 -> 178.349847 | V56: 10 hot (Sec 745) | W56: =C$28*K26+ROUND($P$14*365/12,2)+(Summary!N17/12)*2 -> 92.2790007 | X56: =C$28*L26+ROUND($P$14*365/12,2)+(Summary!N17/12)*2 -> 95.45423133 | Y56: =D$28*K26+ROUND($P$14*365/12,2)+(Summary!N17/12)*2 -> 91.45682919 | Z56: =D$28*L26+ROUND($P$14*365/12,2)+(Summary!N17/12)*2 -> 94.60620537 | AA56: =E$28*K26+ROUND($P$14*365/12,2)+(Summary!N17/12)*2 -> 90.6785718 | AB56: =E$28*L26+ROUND($P$14*365/12,2)+(Summary!N17/12)*2 -> 93.80347447 | AC56: =F$28*K26+ROUND($P$14*365/12,2)+(Summary!N17/12)*2 -> 104.6879551 | AD56: =F$28*L26+ROUND($P$14*365/12,2)+(Summary!N17/12)*2 -> 108.2534045
B57: 13 hot | C57: =C$28*MIN(I27,R27)+IF(R27-I27>0,C$29*(R27-I27))+ROUND($P$14*365/12,2)+(Summary!N17/12)*2 -> 228.4551441 | D57: =C$28*MIN(J27,S27)+IF(S27-J27>0,C$29*(S27-J27))+ROUND($P$14*365/12,2)+(Summary!N17/12)*2 -> 100.1365381 | E57: =D$28*MIN(I27,R27)+IF(R27-I27>0,D$29*(R27-I27))+ROUND($P$14*365/12,2)+(Summary!N17/12)*2 -> 226.5498099 | F57: =D$28*MIN(J27,S27)+IF(S27-J27>0,D$29*(S27-J27))+ROUND($P$14*365/12,2)+(Summary!N17/12)*2 -> 99.25875144 | G57: =E$28*MIN(I27,R27)+IF(R27-I27>0,E$29*(R27-I27))+ROUND($P$14*365/12,2)+(Summary!N17/12)*2 -> 224.7217577 | H57: =E$28*MIN(J27,S27)+IF(S27-J27>0,E$29*(S27-J27))+ROUND($P$14*365/12,2)+(Summary!N17/12)*2 -> 98.41986605 | I57: =F$28*MIN(I27,R27)+IF(R27-I27>0,F$29*(R27-I27))+ROUND($P$14*365/12,2)+(Summary!N17/12)*2 -> 257.6284579 | J57: =F$28*MIN(J27,S27)+IF(S27-J27>0,F$29*(S27-J27))+ROUND($P$14*365/12,2)+(Summary!N17/12)*2 -> 113.5206118 | L57: 13 hot | M57: =C$22*K27+ROUND($F$14*365/12,2)+(Summary!N17/12)*2 -> 236.7839902 | N57: =C$22*L27+ROUND($F$14*365/12,2)+(Summary!N17/12)*2 -> 224.6264369 | O57: =D$22*K27+ROUND($F$14*365/12,2)+(Summary!N17/12)*2 -> 235.0100099 | P57: =D$22*L27+ROUND($F$14*365/12,2)+(Summary!N17/12)*2 -> 222.9404226 | Q57: =E$22*K27+ROUND($F$14*365/12,2)+(Summary!N17/12)*2 -> 233.1185457 | R57: =E$22*L27+ROUND($F$14*365/12,2)+(Summary!N17/12)*2 -> 221.14275 | S57: =F$22*K27+ROUND($F$14*365/12,2)+(Summary!N17/12)*2 -> 267.1667255 | T57: =F$22*L27+ROUND($F$14*365/12,2)+(Summary!N17/12)*2 -> 253.5025903 | V57: 13 hot | W57: =C$28*K27+ROUND($P$14*365/12,2)+(Summary!N17/12)*2 -> 144.9878292 | X57: =C$28*L27+ROUND($P$14*365/12,2)+(Summary!N17/12)*2 -> 137.3672756 | Y57: =D$28*K27+ROUND($P$14*365/12,2)+(Summary!N17/12)*2 -> 143.7364738 | Z57: =D$28*L27+ROUND($P$14*365/12,2)+(Summary!N17/12)*2 -> 136.1779709 | AA57: =E$28*K27+ROUND($P$14*365/12,2)+(Summary!N17/12)*2 -> 142.5519562 | AB57: =E$28*L27+ROUND($P$14*365/12,2)+(Summary!N17/12)*2 -> 135.0521898 | AC57: =F$28*K27+ROUND($P$14*365/12,2)+(Summary!N17/12)*2 -> 163.8744139 | AD57: =F$28*L27+ROUND($P$14*365/12,2)+(Summary!N17/12)*2 -> 155.3173355
B58: 14 hot | C58: =C$28*MIN(I28,R28)+IF(R28-I28>0,C$29*(R28-I28))+ROUND($P$14*365/12,2)+(Summary!N17/12)*2 -> 208.5483524 | D58: =C$28*MIN(J28,S28)+IF(S28-J28>0,C$29*(S28-J28))+ROUND($P$14*365/12,2)+(Summary!N17/12)*2 -> 112.0881652 | E58: =D$28*MIN(I28,R28)+IF(R28-I28>0,D$29*(R28-I28))+ROUND($P$14*365/12,2)+(Summary!N17/12)*2 -> 206.8048818 | F58: =D$28*MIN(J28,S28)+IF(S28-J28>0,D$29*(S28-J28))+ROUND($P$14*365/12,2)+(Summary!N17/12)*2 -> 111.1167589 | G58: =E$28*MIN(I28,R28)+IF(R28-I28>0,E$29*(R28-I28))+ROUND($P$14*365/12,2)+(Summary!N17/12)*2 -> 205.1302657 | H58: =E$28*MIN(J28,S28)+IF(S28-J28>0,E$29*(S28-J28))+ROUND($P$14*365/12,2)+(Summary!N17/12)*2 -> 110.1857261 | I58: =F$28*MIN(I28,R28)+IF(R28-I28>0,F$29*(R28-I28))+ROUND($P$14*365/12,2)+(Summary!N17/12)*2 -> 235.2749707 | J58: =F$28*MIN(J28,S28)+IF(S28-J28>0,F$29*(S28-J28))+ROUND($P$14*365/12,2)+(Summary!N17/12)*2 -> 126.9452147 | L58: 14 hot | M58: =C$22*K28+ROUND($F$14*365/12,2)+(Summary!N17/12)*2 -> 179.0356123 | N58: =C$22*L28+ROUND($F$14*365/12,2)+(Summary!N17/12)*2 -> 205.3769777 | O58: =D$22*K28+ROUND($F$14*365/12,2)+(Summary!N17/12)*2 -> 177.6794704 | P58: =D$22*L28+ROUND($F$14*365/12,2)+(Summary!N17/12)*2 -> 203.8302428 | Q58: =E$22*K28+ROUND($F$14*365/12,2)+(Summary!N17/12)*2 -> 176.2335163 | R58: =E$22*L28+ROUND($F$14*365/12,2)+(Summary!N17/12)*2 -> 202.1810736 | S58: =F$22*K28+ROUND($F$14*365/12,2)+(Summary!N17/12)*2 -> 202.2620835 | T58: =F$22*L28+ROUND($F$14*365/12,2)+(Summary!N17/12)*2 -> 231.8677097 | V58: 14 hot | W58: =C$28*K28+ROUND($P$14*365/12,2)+(Summary!N17/12)*2 -> 108.7902 | X58: =C$28*L28+ROUND($P$14*365/12,2)+(Summary!N17/12)*2 -> 125.3013993 | Y58: =D$28*K28+ROUND($P$14*365/12,2)+(Summary!N17/12)*2 -> 107.8335853 | Z58: =D$28*L28+ROUND($P$14*365/12,2)+(Summary!N17/12)*2 -> 124.2103415 | AA58: =E$28*K28+ROUND($P$14*365/12,2)+(Summary!N17/12)*2 -> 106.9280657 | AB58: =E$28*L28+ROUND($P$14*365/12,2)+(Summary!N17/12)*2 -> 123.1775596 | AC58: =F$28*K28+ROUND($P$14*365/12,2)+(Summary!N17/12)*2 -> 123.2282916 | AD58: =F$28*L28+ROUND($P$14*365/12,2)+(Summary!N17/12)*2 -> 141.7686281
B59: 15 hot | C59: =C$28*MIN(I29,R29)+IF(R29-I29>0,C$29*(R29-I29))+ROUND($P$14*365/12,2)+(Summary!N17/12)*2 -> 275.3710999 | D59: =C$28*MIN(J29,S29)+IF(S29-J29>0,C$29*(S29-J29))+ROUND($P$14*365/12,2)+(Summary!N17/12)*2 -> 118.5682698 | E59: =D$28*MIN(I29,R29)+IF(R29-I29>0,D$29*(R29-I29))+ROUND($P$14*365/12,2)+(Summary!N17/12)*2 -> 273.0580932 | F59: =D$28*MIN(J29,S29)+IF(S29-J29>0,D$29*(S29-J29))+ROUND($P$14*365/12,2)+(Summary!N17/12)*2 -> 117.5495552 | G59: =E$28*MIN(I29,R29)+IF(R29-I29>0,E$29*(R29-I29))+ROUND($P$14*365/12,2)+(Summary!N17/12)*2 -> 270.8686297 | H59: =E$28*MIN(J29,S29)+IF(S29-J29>0,E$29*(S29-J29))+ROUND($P$14*365/12,2)+(Summary!N17/12)*2 -> 116.5685337 | I59: =F$28*MIN(I29,R29)+IF(R29-I29>0,F$29*(R29-I29))+ROUND($P$14*365/12,2)+(Summary!N17/12)*2 -> 310.2810844 | J59: =F$28*MIN(J29,S29)+IF(S29-J29>0,F$29*(S29-J29))+ROUND($P$14*365/12,2)+(Summary!N17/12)*2 -> 134.2278662 | L59: 15 hot | M59: =C$22*K29+ROUND($F$14*365/12,2)+(Summary!N17/12)*2 -> 234.7577313 | N59: =C$22*L29+ROUND($F$14*365/12,2)+(Summary!N17/12)*2 -> 167.8911885 | O59: =D$22*K29+ROUND($F$14*365/12,2)+(Summary!N17/12)*2 -> 232.998412 | P59: =D$22*L29+ROUND($F$14*365/12,2)+(Summary!N17/12)*2 -> 166.6156821 | Q59: =E$22*K29+ROUND($F$14*365/12,2)+(Summary!N17/12)*2 -> 231.1225797 | R59: =E$22*L29+ROUND($F$14*365/12,2)+(Summary!N17/12)*2 -> 165.2557036 | S59: =F$22*K29+ROUND($F$14*365/12,2)+(Summary!N17/12)*2 -> 264.8893696 | T59: =F$22*L29+ROUND($F$14*365/12,2)+(Summary!N17/12)*2 -> 189.7366263 | V59: 15 hot | W59: =C$28*K29+ROUND($P$14*365/12,2)+(Summary!N17/12)*2 -> 143.7177369 | X59: =C$28*L29+ROUND($P$14*365/12,2)+(Summary!N17/12)*2 -> 101.8046926 | Y59: =D$28*K29+ROUND($P$14*365/12,2)+(Summary!N17/12)*2 -> 142.4767233 | Z59: =D$28*L29+ROUND($P$14*365/12,2)+(Summary!N17/12)*2 -> 100.9049577 | AA59: =E$28*K29+ROUND($P$14*365/12,2)+(Summary!N17/12)*2 -> 141.3019952 | AB59: =E$28*L29+ROUND($P$14*365/12,2)+(Summary!N17/12)*2 -> 100.0532798 | AC59: =F$28*K29+ROUND($P$14*365/12,2)+(Summary!N17/12)*2 -> 162.4482342 | AD59: =F$28*L29+ROUND($P$14*365/12,2)+(Summary!N17/12)*2 -> 115.3843031
B60: 16 cool | C60: =C$28*MIN(I30,R30)+IF(R30-I30>0,C$29*(R30-I30))+ROUND($P$14*365/12,2)+(Summary!N17/12)*2 -> 174.6519067 | D60: =C$28*MIN(J30,S30)+IF(S30-J30>0,C$29*(S30-J30))+ROUND($P$14*365/12,2)+(Summary!N17/12)*2 -> 101.8374222 | E60: =D$28*MIN(I30,R30)+IF(R30-I30>0,D$29*(R30-I30))+ROUND($P$14*365/12,2)+(Summary!N17/12)*2 -> 173.1830202 | F60: =D$28*MIN(J30,S30)+IF(S30-J30>0,D$29*(S30-J30))+ROUND($P$14*365/12,2)+(Summary!N17/12)*2 -> 100.945901 | G60: =E$28*MIN(I30,R30)+IF(R30-I30>0,E$29*(R30-I30))+ROUND($P$14*365/12,2)+(Summary!N17/12)*2 -> 171.7696763 | H60: =E$28*MIN(J30,S30)+IF(S30-J30>0,E$29*(S30-J30))+ROUND($P$14*365/12,2)+(Summary!N17/12)*2 -> 100.0939049 | I60: =F$28*MIN(I30,R30)+IF(R30-I30>0,F$29*(R30-I30))+ROUND($P$14*365/12,2)+(Summary!N17/12)*2 -> 197.2112282 | J60: =F$28*MIN(J30,S30)+IF(S30-J30>0,F$29*(S30-J30))+ROUND($P$14*365/12,2)+(Summary!N17/12)*2 -> 115.4306555 | L60: 16 cool | M60: =C$22*K30+ROUND($F$14*365/12,2)+(Summary!N17/12)*2 -> 128.3791405 | N60: =C$22*L30+ROUND($F$14*365/12,2)+(Summary!N17/12)*2 -> 226.6526958 | O60: =D$22*K30+ROUND($F$14*365/12,2)+(Summary!N17/12)*2 -> 127.3895234 | P60: =D$22*L30+ROUND($F$14*365/12,2)+(Summary!N17/12)*2 -> 224.9520205 | Q60: =E$22*K30+ROUND($F$14*365/12,2)+(Summary!N17/12)*2 -> 126.3343678 | R60: =E$22*L30+ROUND($F$14*365/12,2)+(Summary!N17/12)*2 -> 223.1387159 | S60: =F$22*K30+ROUND($F$14*365/12,2)+(Summary!N17/12)*2 -> 145.3281871 | T60: =F$22*L30+ROUND($F$14*365/12,2)+(Summary!N17/12)*2 -> 255.7799462 | V60: 16 cool | W60: =C$28*K30+ROUND($P$14*365/12,2)+(Summary!N17/12)*2 -> 77.03789368 | X60: =C$28*L30+ROUND($P$14*365/12,2)+(Summary!N17/12)*2 -> 138.6373679 | Y60: =D$28*K30+ROUND($P$14*365/12,2)+(Summary!N17/12)*2 -> 76.33982353 | Z60: =D$28*L30+ROUND($P$14*365/12,2)+(Summary!N17/12)*2 -> 137.4377214 | AA60: =E$28*K30+ROUND($P$14*365/12,2)+(Summary!N17/12)*2 -> 75.67903895 | AB60: =E$28*L30+ROUND($P$14*365/12,2)+(Summary!N17/12)*2 -> 136.3021509 | AC60: =F$28*K30+ROUND($P$14*365/12,2)+(Summary!N17/12)*2 -> 87.57379839 | AD60: =F$28*L30+ROUND($P$14*365/12,2)+(Summary!N17/12)*2 -> 156.7435153
B61: ALL | C61: =SUMPRODUCT(C52:C60,$U$22:$U$30) -> 180.2226444 | D61: 95.70362633 | E61: 178.7031663 | F61: 94.86167498 | G61: 177.2469259 | H61: 94.05695886 | I61: 203.4606567 | J61: 108.5426249 | L61: ALL | M61: =SUMPRODUCT(M52:M60,$T$22:$T$30) -> 129.768474 | N61: =SUMPRODUCT(N52:N60,$T$22:$T$30) -> 147.2532409 | O61: 128.7688044 | P61: 146.1270603 | Q61: 127.7029305 | R61: 144.926297 | S61: 146.8896888 | T61: 166.5411938 | V61: ALL | W61: =SUMPRODUCT(W52:W60,$U$22:$U$30) -> 90.60495947 | X61: =SUMPRODUCT(X52:X60,$U$22:$U$30) -> 97.63304863 | Y61: 89.79641891 | Z61: 96.76728156 | AA61: 89.0310644 | AB61: 95.94775714 | AC61: 102.8081833 | AD61: 110.6999866
C64: All-Electric - Non-CARE | L64: =Summary!J4 -> 500 | M64: =L64&" kWh Monthly - Non-CARE" -> 500 kWh Monthly - Non-CARE | W64: =L64&" kWh Monthly - CARE" -> 500 kWh Monthly - CARE
C65: =C35 -> Jan 2025 | E65: 2025-03-01 | G65: Authorized | I65: w/Pending | M65: =M50 -> Jan 2025 | O65: =O50 -> 2025-03-01 | Q65: =Q50 -> Authorized | S65: =S50 -> w/Pending | W65: =M65 -> Jan 2025 | Y65: =O65 -> 2025-03-01 | AA65: =Q65 -> Authorized | AC65: =S65 -> w/Pending
C66: Summer | D66: Winter | E66: Summer | F66: Winter | G66: Summer | H66: Winter | I66: Summer | J66: Winter | M66: Summer | N66: Winter | O66: Summer | P66: Winter | Q66: Summer | R66: Winter | S66: Summer | T66: Winter | W66: Summer | X66: Winter | Y66: Summer | Z66: Winter | AA66: Summer | AB66: Winter | AC66: Summer | AD66: Winter
B67: =B37 -> 5 warm | C67: =C$22*MIN(K22,X22)+IF(X22-K22>0,C$23*(X22-K22))+ROUND($F$14*365/12,2)+(Summary!N17/12)*2 -> 123.1903756 | D67: =C$22*MIN(L22,Y22)+IF(Y22-L22>0,C$23*(Y22-L22))+ROUND($F$14*365/12,2)+(Summary!N17/12)*2 -> 148.938088 | E67: =D$22*MIN(K22,X22)+IF(X22-K22>0,D$23*(X22-K22))+ROUND($F$14*365/12,2)+(Summary!N17/12)*2 -> 122.2383018 | F67: =D$22*MIN(L22,Y22)+IF(Y22-L22>0,D$23*(Y22-L22))+ROUND($F$14*365/12,2)+(Summary!N17/12)*2 -> 147.7997166 | G67: =E$22*MIN(K22,X22)+IF(X22-K22>0,E$23*(X22-K22))+ROUND($F$14*365/12,2)+(Summary!N17/12)*2 -> 121.2231758 | H67: =E$22*MIN(L22,Y22)+IF(Y22-L22>0,E$23*(Y22-L22))+ROUND($F$14*365/12,2)+(Summary!N17/12)*2 -> 146.5859553 | I67: =F$22*MIN(K22,X22)+IF(X22-K22>0,F$23*(X22-K22))+ROUND($F$14*365/12,2)+(Summary!N17/12)*2 -> 139.4964228 | J67: =F$22*MIN(L22,Y22)+IF(Y22-L22>0,F$23*(Y22-L22))+ROUND($F$14*365/12,2)+(Summary!N17/12)*2 -> 168.4348296 | L67: 5 warm | M67: =C$22*MIN(I22,$L$64)+IF($L$64-I22>0,C$23*($L$64-I22))+ROUND($F$14*365/12,2)+(Summary!N17/12)*2 -> 158.1466667 | N67: =C$22*MIN(J22,$L$64)+IF($L$64-J22>0,C$23*($L$64-J22))+ROUND($F$14*365/12,2)+(Summary!N17/12)*2 -> 158.1466667 | O67: =D$22*MIN(I22,$L$64)+IF($L$64-I22>0,D$23*($L$64-I22))+ROUND($F$14*365/12,2)+(Summary!N17/12)*2 -> 156.9416667 | P67: =D$22*MIN(J22,$L$64)+IF($L$64-J22>0,D$23*($L$64-J22))+ROUND($F$14*365/12,2)+(Summary!N17/12)*2 -> 156.9416667 | Q67: =E$22*MIN(I22,$L$64)+IF($L$64-I22>0,E$23*($L$64-I22))+ROUND($F$14*365/12,2)+(Summary!N17/12)*2 -> 155.6568641 | R67: =E$22*MIN(J22,$L$64)+IF($L$64-J22>0,E$23*($L$64-J22))+ROUND($F$14*365/12,2)+(Summary!N17/12)*2 -> 155.6568641 | S67: =F$22*MIN(I22,$L$64)+IF($L$64-I22>0,F$23*($L$64-I22))+ROUND($F$14*365/12,2)+(Summary!N17/12)*2 -> 178.7845489 | T67: =F$22*MIN(J22,$L$64)+IF($L$64-J22>0,F$23*($L$64-J22))+ROUND($F$14*365/12,2)+(Summary!N17/12)*2 -> 178.7845489 | V67: 5 warm | W67: =C$28*MIN(I22,$L$64)+IF($L$64-I22>0,C$29*($L$64-I22))+ROUND($P$14*365/12,2)+(Summary!N17/12)*2 -> 95.69666667 | X67: =C$28*MIN(J22,$L$64)+IF($L$64-J22>0,C$29*($L$64-J22))+ROUND($P$14*365/12,2)+(Summary!N17/12)*2 -> 95.69666667 | Y67: =D$28*MIN(I22,$L$64)+IF($L$64-I22>0,D$29*($L$64-I22))+ROUND($P$14*365/12,2)+(Summary!N17/12)*2 -> 94.84666667 | Z67: =D$28*MIN(J22,$L$64)+IF($L$64-J22>0,D$29*($L$64-J22))+ROUND($P$14*365/12,2)+(Summary!N17/12)*2 -> 94.84666667 | AA67: =E$28*MIN(I22,$L$64)+IF($L$64-I22>0,E$29*($L$64-I22))+ROUND($P$14*365/12,2)+(Summary!N17/12)*2 -> 94.04206717 | AB67: =E$28*MIN(J22,$L$64)+IF($L$64-J22>0,E$29*($L$64-J22))+ROUND($P$14*365/12,2)+(Summary!N17/12)*2 -> 94.04206717 | AC67: =F$28*MIN(I22,$L$64)+IF($L$64-I22>0,F$29*($L$64-I22))+ROUND($P$14*365/12,2)+(Summary!N17/12)*2 -> 108.5256338 | AD67: =F$28*MIN(J22,$L$64)+IF($L$64-J22>0,F$29*($L$64-J22))+ROUND($P$14*365/12,2)+(Summary!N17/12)*2 -> 108.5256338
B68: 6 cool | C68: =C$22*MIN(K23,X23)+IF(X23-K23>0,C$23*(X23-K23))+ROUND($F$14*365/12,2)+(Summary!N17/12)*2 -> 109.311935 | D68: =C$22*MIN(L23,Y23)+IF(Y23-L23>0,C$23*(Y23-L23))+ROUND($F$14*365/12,2)+(Summary!N17/12)*2 -> 101.616446 | E68: =D$22*MIN(K23,X23)+IF(X23-K23>0,D$23*(X23-K23))+ROUND($F$14*365/12,2)+(Summary!N17/12)*2 -> 108.461543 | F68: =D$22*MIN(L23,Y23)+IF(Y23-L23>0,D$23*(Y23-L23))+ROUND($F$14*365/12,2)+(Summary!N17/12)*2 -> 100.8204703 | G68: =E$22*MIN(K23,X23)+IF(X23-K23>0,E$23*(X23-K23))+ROUND($F$14*365/12,2)+(Summary!N17/12)*2 -> 107.5534749 | H68: =E$22*MIN(L23,Y23)+IF(Y23-L23>0,E$23*(Y23-L23))+ROUND($F$14*365/12,2)+(Summary!N17/12)*2 -> 99.97178022 | I68: =F$22*MIN(K23,X23)+IF(X23-K23>0,F$23*(X23-K23))+ROUND($F$14*365/12,2)+(Summary!N17/12)*2 -> 123.8995767 | J68: =F$22*MIN(L23,Y23)+IF(Y23-L23>0,F$23*(Y23-L23))+ROUND($F$14*365/12,2)+(Summary!N17/12)*2 -> 115.2490199 | L68: 6 cool | M68: =C$22*MIN(I23,$L$64)+IF($L$64-I23>0,C$23*($L$64-I23))+ROUND($F$14*365/12,2)+(Summary!N17/12)*2 -> 172.7249777 | N68: =C$22*MIN(J23,$L$64)+IF($L$64-J23>0,C$23*($L$64-J23))+ROUND($F$14*365/12,2)+(Summary!N17/12)*2 -> 173.8824054 | O68: =D$22*MIN(I23,$L$64)+IF($L$64-I23>0,D$23*($L$64-I23))+ROUND($F$14*365/12,2)+(Summary!N17/12)*2 -> 171.4173027 | P68: =D$22*MIN(J23,$L$64)+IF($L$64-J23>0,D$23*($L$64-J23))+ROUND($F$14*365/12,2)+(Summary!N17/12)*2 -> 172.5665786 | Q68: =E$22*MIN(I23,$L$64)+IF($L$64-I23>0,E$23*($L$64-I23))+ROUND($F$14*365/12,2)+(Summary!N17/12)*2 -> 170.0200114 | R68: =E$22*MIN(J23,$L$64)+IF($L$64-J23>0,E$23*($L$64-J23))+ROUND($F$14*365/12,2)+(Summary!N17/12)*2 -> 171.1603564 | S68: =F$22*MIN(I23,$L$64)+IF($L$64-I23>0,F$23*($L$64-I23))+ROUND($F$14*365/12,2)+(Summary!N17/12)*2 -> 195.1726029 | T68: =F$22*MIN(J23,$L$64)+IF($L$64-J23>0,F$23*($L$64-J23))+ROUND($F$14*365/12,2)+(Summary!N17/12)*2 -> 196.473713 | V68: 6 cool | W68: =C$28*MIN(I23,$L$64)+IF($L$64-I23>0,C$29*($L$64-I23))+ROUND($P$14*365/12,2)+(Summary!N17/12)*2 -> 105.5366052 | X68: =C$28*MIN(J23,$L$64)+IF($L$64-J23>0,C$29*($L$64-J23))+ROUND($P$14*365/12,2)+(Summary!N17/12)*2 -> 106.3178354 | Y68: =D$28*MIN(I23,$L$64)+IF($L$64-I23>0,D$29*($L$64-I23))+ROUND($P$14*365/12,2)+(Summary!N17/12)*2 -> 104.6176444 | Z68: =D$28*MIN(J23,$L$64)+IF($L$64-J23>0,D$29*($L$64-J23))+ROUND($P$14*365/12,2)+(Summary!N17/12)*2 -> 105.3933995 | AA68: =E$28*MIN(I23,$L$64)+IF($L$64-I23>0,E$29*($L$64-I23))+ROUND($P$14*365/12,2)+(Summary!N17/12)*2 -> 103.7371155 | AB68: =E$28*MIN(J23,$L$64)+IF($L$64-J23>0,E$29*($L$64-J23))+ROUND($P$14*365/12,2)+(Summary!N17/12)*2 -> 104.5068424 | AC68: =F$28*MIN(I23,$L$64)+IF($L$64-I23>0,F$29*($L$64-I23))+ROUND($P$14*365/12,2)+(Summary!N17/12)*2 -> 119.5874835 | AD68: =F$28*MIN(J23,$L$64)+IF($L$64-J23>0,F$29*($L$64-J23))+ROUND($P$14*365/12,2)+(Summary!N17/12)*2 -> 120.4657259
B69: 8 cool | C69: =C$22*MIN(K24,X24)+IF(X24-K24>0,C$23*(X24-K24))+ROUND($F$14*365/12,2)+(Summary!N17/12)*2 -> 132.3536862 | D69: =C$22*MIN(L24,Y24)+IF(Y24-L24>0,C$23*(Y24-L24))+ROUND($F$14*365/12,2)+(Summary!N17/12)*2 -> 107.2141551 | E69: =D$22*MIN(K24,X24)+IF(X24-K24>0,D$23*(X24-K24))+ROUND($F$14*365/12,2)+(Summary!N17/12)*2 -> 131.3370411 | F69: =D$22*MIN(L24,Y24)+IF(Y24-L24>0,D$23*(Y24-L24))+ROUND($F$14*365/12,2)+(Summary!N17/12)*2 -> 106.3776772 | G69: =E$22*MIN(K24,X24)+IF(X24-K24>0,E$23*(X24-K24))+ROUND($F$14*365/12,2)+(Summary!N17/12)*2 -> 130.2512096 | H69: =E$22*MIN(L24,Y24)+IF(Y24-L24>0,E$23*(Y24-L24))+ROUND($F$14*365/12,2)+(Summary!N17/12)*2 -> 105.4858026 | I69: =F$22*MIN(K24,X24)+IF(X24-K24>0,F$23*(X24-K24))+ROUND($F$14*365/12,2)+(Summary!N17/12)*2 -> 149.7972226 | J69: =F$22*MIN(L24,Y24)+IF(Y24-L24>0,F$23*(Y24-L24))+ROUND($F$14*365/12,2)+(Summary!N17/12)*2 -> 121.5404055 | L69: 8 cool | M69: =C$22*MIN(I24,$L$64)+IF($L$64-I24>0,C$23*($L$64-I24))+ROUND($F$14*365/12,2)+(Summary!N17/12)*2 -> 168.6739808 | N69: =C$22*MIN(J24,$L$64)+IF($L$64-J24>0,C$23*($L$64-J24))+ROUND($F$14*365/12,2)+(Summary!N17/12)*2 -> 175.9079038 | O69: =D$22*MIN(I24,$L$64)+IF($L$64-I24>0,D$23*($L$64-I24))+ROUND($F$14*365/12,2)+(Summary!N17/12)*2 -> 167.394837 | P69: =D$22*MIN(J24,$L$64)+IF($L$64-J24>0,D$23*($L$64-J24))+ROUND($F$14*365/12,2)+(Summary!N17/12)*2 -> 174.5778115 | Q69: =E$22*MIN(I24,$L$64)+IF($L$64-I24>0,E$23*($L$64-I24))+ROUND($F$14*365/12,2)+(Summary!N17/12)*2 -> 166.0288038 | R69: =E$22*MIN(J24,$L$64)+IF($L$64-J24>0,E$23*($L$64-J24))+ROUND($F$14*365/12,2)+(Summary!N17/12)*2 -> 173.1559601 | S69: =F$22*MIN(I24,$L$64)+IF($L$64-I24>0,F$23*($L$64-I24))+ROUND($F$14*365/12,2)+(Summary!N17/12)*2 -> 190.6187176 | T69: =F$22*MIN(J24,$L$64)+IF($L$64-J24>0,F$23*($L$64-J24))+ROUND($F$14*365/12,2)+(Summary!N17/12)*2 -> 198.7506556 | V69: 8 cool | W69: =C$28*MIN(I24,$L$64)+IF($L$64-I24>0,C$29*($L$64-I24))+ROUND($P$14*365/12,2)+(Summary!N17/12)*2 -> 102.8022994 | X69: =C$28*MIN(J24,$L$64)+IF($L$64-J24>0,C$29*($L$64-J24))+ROUND($P$14*365/12,2)+(Summary!N17/12)*2 -> 107.6849883 | Y69: =D$28*MIN(I24,$L$64)+IF($L$64-I24>0,D$29*($L$64-I24))+ROUND($P$14*365/12,2)+(Summary!N17/12)*2 -> 101.9025013 | Z69: =D$28*MIN(J24,$L$64)+IF($L$64-J24>0,D$29*($L$64-J24))+ROUND($P$14*365/12,2)+(Summary!N17/12)*2 -> 106.7509711 | AA69: =E$28*MIN(I24,$L$64)+IF($L$64-I24>0,E$29*($L$64-I24))+ROUND($P$14*365/12,2)+(Summary!N17/12)*2 -> 101.0430716 | AB69: =E$28*MIN(J24,$L$64)+IF($L$64-J24>0,E$29*($L$64-J24))+ROUND($P$14*365/12,2)+(Summary!N17/12)*2 -> 105.8538644 | AC69: =F$28*MIN(I24,$L$64)+IF($L$64-I24>0,F$29*($L$64-I24))+ROUND($P$14*365/12,2)+(Summary!N17/12)*2 -> 116.513635 | AD69: =F$28*MIN(J24,$L$64)+IF($L$64-J24>0,F$29*($L$64-J24))+ROUND($P$14*365/12,2)+(Summary!N17/12)*2 -> 122.0026501
B70: 9 warm | C70: =C$22*MIN(K25,X25)+IF(X25-K25>0,C$23*(X25-K25))+ROUND($F$14*365/12,2)+(Summary!N17/12)*2 -> 182.7427053 | D70: =C$22*MIN(L25,Y25)+IF(Y25-L25>0,C$23*(Y25-L25))+ROUND($F$14*365/12,2)+(Summary!N17/12)*2 -> 118.2358202 | E70: =D$22*MIN(K25,X25)+IF(X25-K25>0,D$23*(X25-K25))+ROUND($F$14*365/12,2)+(Summary!N17/12)*2 -> 181.3624989 | F70: =D$22*MIN(L25,Y25)+IF(Y25-L25>0,D$23*(Y25-L25))+ROUND($F$14*365/12,2)+(Summary!N17/12)*2 -> 117.3195951 | G70: =E$22*MIN(K25,X25)+IF(X25-K25>0,E$23*(X25-K25))+ROUND($F$14*365/12,2)+(Summary!N17/12)*2 -> 179.8879243 | H70: =E$22*MIN(L25,Y25)+IF(Y25-L25>0,E$23*(Y25-L25))+ROUND($F$14*365/12,2)+(Summary!N17/12)*2 -> 116.3426919 | I70: =F$22*MIN(K25,X25)+IF(X25-K25>0,F$23*(X25-K25))+ROUND($F$14*365/12,2)+(Summary!N17/12)*2 -> 206.4316875 | J70: =F$22*MIN(L25,Y25)+IF(Y25-L25>0,F$23*(Y25-L25))+ROUND($F$14*365/12,2)+(Summary!N17/12)*2 -> 133.9278916 | L70: 9 warm | M70: =C$22*MIN(I25,$L$64)+IF($L$64-I25>0,C$23*($L$64-I25))+ROUND($F$14*365/12,2)+(Summary!N17/12)*2 -> 158.1466667 | N70: =C$22*MIN(J25,$L$64)+IF($L$64-J25>0,C$23*($L$64-J25))+ROUND($F$14*365/12,2)+(Summary!N17/12)*2 -> 170.9888361 | O70: =D$22*MIN(I25,$L$64)+IF($L$64-I25>0,D$23*($L$64-I25))+ROUND($F$14*365/12,2)+(Summary!N17/12)*2 -> 156.9416667 | P70: =D$22*MIN(J25,$L$64)+IF($L$64-J25>0,D$23*($L$64-J25))+ROUND($F$14*365/12,2)+(Summary!N17/12)*2 -> 169.6933888 | Q70: =E$22*MIN(I25,$L$64)+IF($L$64-I25>0,E$23*($L$64-I25))+ROUND($F$14*365/12,2)+(Summary!N17/12)*2 -> 155.6568641 | R70: =E$22*MIN(J25,$L$64)+IF($L$64-J25>0,E$23*($L$64-J25))+ROUND($F$14*365/12,2)+(Summary!N17/12)*2 -> 168.3094938 | S70: =F$22*MIN(I25,$L$64)+IF($L$64-I25>0,F$23*($L$64-I25))+ROUND($F$14*365/12,2)+(Summary!N17/12)*2 -> 178.7845489 | T70: =F$22*MIN(J25,$L$64)+IF($L$64-J25>0,F$23*($L$64-J25))+ROUND($F$14*365/12,2)+(Summary!N17/12)*2 -> 193.2209378 | V70: 9 warm | W70: =C$28*MIN(I25,$L$64)+IF($L$64-I25>0,C$29*($L$64-I25))+ROUND($P$14*365/12,2)+(Summary!N17/12)*2 -> 95.69666667 | X70: =C$28*MIN(J25,$L$64)+IF($L$64-J25>0,C$29*($L$64-J25))+ROUND($P$14*365/12,2)+(Summary!N17/12)*2 -> 104.3647598 | Y70: =D$28*MIN(I25,$L$64)+IF($L$64-I25>0,D$29*($L$64-I25))+ROUND($P$14*365/12,2)+(Summary!N17/12)*2 -> 94.84666667 | Z70: =D$28*MIN(J25,$L$64)+IF($L$64-J25>0,D$29*($L$64-J25))+ROUND($P$14*365/12,2)+(Summary!N17/12)*2 -> 103.4540116 | AA70: =E$28*MIN(I25,$L$64)+IF($L$64-I25>0,E$29*($L$64-I25))+ROUND($P$14*365/12,2)+(Summary!N17/12)*2 -> 94.04206717 | AB70: =E$28*MIN(J25,$L$64)+IF($L$64-J25>0,E$29*($L$64-J25))+ROUND($P$14*365/12,2)+(Summary!N17/12)*2 -> 102.5825253 | AC70: =F$28*MIN(I25,$L$64)+IF($L$64-I25>0,F$29*($L$64-I25))+ROUND($P$14*365/12,2)+(Summary!N17/12)*2 -> 108.5256338 | AD70: =F$28*MIN(J25,$L$64)+IF($L$64-J25>0,F$29*($L$64-J25))+ROUND($P$14*365/12,2)+(Summary!N17/12)*2 -> 118.2701198
B71: 10 hot (Sec 745) | C71: =C$22*MIN(K26,X26)+IF(X26-K26>0,C$23*(X26-K26))+ROUND($F$14*365/12,2)+(Summary!N17/12)*2 -> 214.2986818 | D71: =C$22*MIN(L26,Y26)+IF(Y26-L26>0,C$23*(Y26-L26))+ROUND($F$14*365/12,2)+(Summary!N17/12)*2 -> 133.8656844 | E71: =D$22*MIN(K26,X26)+IF(X26-K26>0,D$23*(X26-K26))+ROUND($F$14*365/12,2)+(Summary!N17/12)*2 -> 212.6900286 | F71: =D$22*MIN(L26,Y26)+IF(Y26-L26>0,D$23*(Y26-L26))+ROUND($F$14*365/12,2)+(Summary!N17/12)*2 -> 132.8363695 | G71: =E$22*MIN(K26,X26)+IF(X26-K26>0,E$23*(X26-K26))+ROUND($F$14*365/12,2)+(Summary!N17/12)*2 -> 210.9720108 | H71: =E$22*MIN(L26,Y26)+IF(Y26-L26>0,E$23*(Y26-L26))+ROUND($F$14*365/12,2)+(Summary!N17/12)*2 -> 131.7388869 | I71: =F$22*MIN(K26,X26)+IF(X26-K26>0,F$23*(X26-K26))+ROUND($F$14*365/12,2)+(Summary!N17/12)*2 -> 241.8979872 | J71: =F$22*MIN(L26,Y26)+IF(Y26-L26>0,F$23*(Y26-L26))+ROUND($F$14*365/12,2)+(Summary!N17/12)*2 -> 151.4946316 | L71: 10 hot (Sec 745) | M71: =C$22*MIN(I26,$L$64)+IF($L$64-I26>0,C$23*($L$64-I26))+ROUND($F$14*365/12,2)+(Summary!N17/12)*2 -> 158.1466667 | N71: =C$22*MIN(J26,$L$64)+IF($L$64-J26>0,C$23*($L$64-J26))+ROUND($F$14*365/12,2)+(Summary!N17/12)*2 -> 170.6994792 | O71: =D$22*MIN(I26,$L$64)+IF($L$64-I26>0,D$23*($L$64-I26))+ROUND($F$14*365/12,2)+(Summary!N17/12)*2 -> 156.9416667 | P71: =D$22*MIN(J26,$L$64)+IF($L$64-J26>0,D$23*($L$64-J26))+ROUND($F$14*365/12,2)+(Summary!N17/12)*2 -> 169.4060698 | Q71: =E$22*MIN(I26,$L$64)+IF($L$64-I26>0,E$23*($L$64-I26))+ROUND($F$14*365/12,2)+(Summary!N17/12)*2 -> 155.6568641 | R71: =E$22*MIN(J26,$L$64)+IF($L$64-J26>0,E$23*($L$64-J26))+ROUND($F$14*365/12,2)+(Summary!N17/12)*2 -> 168.0244076 | S71: =F$22*MIN(I26,$L$64)+IF($L$64-I26>0,F$23*($L$64-I26))+ROUND($F$14*365/12,2)+(Summary!N17/12)*2 -> 178.7845489 | T71: =F$22*MIN(J26,$L$64)+IF($L$64-J26>0,F$23*($L$64-J26))+ROUND($F$14*365/12,2)+(Summary!N17/12)*2 -> 192.8956602 | V71: 10 hot (Sec 745) | W71: =C$28*MIN(I26,$L$64)+IF($L$64-I26>0,C$29*($L$64-I26))+ROUND($P$14*365/12,2)+(Summary!N17/12)*2 -> 95.69666667 | X71: =C$28*MIN(J26,$L$64)+IF($L$64-J26>0,C$29*($L$64-J26))+ROUND($P$14*365/12,2)+(Summary!N17/12)*2 -> 104.1694523 | Y71: =D$28*MIN(I26,$L$64)+IF($L$64-I26>0,D$29*($L$64-I26))+ROUND($P$14*365/12,2)+(Summary!N17/12)*2 -> 94.84666667 | Z71: =D$28*MIN(J26,$L$64)+IF($L$64-J26>0,D$29*($L$64-J26))+ROUND($P$14*365/12,2)+(Summary!N17/12)*2 -> 103.2600728 | AA71: =E$28*MIN(I26,$L$64)+IF($L$64-I26>0,E$29*($L$64-I26))+ROUND($P$14*365/12,2)+(Summary!N17/12)*2 -> 94.04206717 | AB71: =E$28*MIN(J26,$L$64)+IF($L$64-J26>0,E$29*($L$64-J26))+ROUND($P$14*365/12,2)+(Summary!N17/12)*2 -> 102.3900936 | AC71: =F$28*MIN(I26,$L$64)+IF($L$64-I26>0,F$29*($L$64-I26))+ROUND($P$14*365/12,2)+(Summary!N17/12)*2 -> 108.5256338 | AD71: =F$28*MIN(J26,$L$64)+IF($L$64-J26>0,F$29*($L$64-J26))+ROUND($P$14*365/12,2)+(Summary!N17/12)*2 -> 118.0505592
B72: 13 hot | C72: =C$22*MIN(K27,X27)+IF(X27-K27>0,C$23*(X27-K27))+ROUND($F$14*365/12,2)+(Summary!N17/12)*2 -> 335.226579 | D72: =C$22*MIN(L27,Y27)+IF(Y27-L27>0,C$23*(Y27-L27))+ROUND($F$14*365/12,2)+(Summary!N17/12)*2 -> 183.0327474 | E72: =D$22*MIN(K27,X27)+IF(X27-K27>0,D$23*(X27-K27))+ROUND($F$14*365/12,2)+(Summary!N17/12)*2 -> 332.7445275 | F72: =D$22*MIN(L27,Y27)+IF(Y27-L27>0,D$23*(Y27-L27))+ROUND($F$14*365/12,2)+(Summary!N17/12)*2 -> 181.6476842 | G72: =E$22*MIN(K27,X27)+IF(X27-K27>0,E$23*(X27-K27))+ROUND($F$14*365/12,2)+(Summary!N17/12)*2 -> 330.0935776 | H72: =E$22*MIN(L27,Y27)+IF(Y27-L27>0,E$23*(Y27-L27))+ROUND($F$14*365/12,2)+(Summary!N17/12)*2 -> 180.1708935 | I72: =F$22*MIN(K27,X27)+IF(X27-K27>0,F$23*(X27-K27))+ROUND($F$14*365/12,2)+(Summary!N17/12)*2 -> 377.8132312 | J72: =F$22*MIN(L27,Y27)+IF(Y27-L27>0,F$23*(Y27-L27))+ROUND($F$14*365/12,2)+(Summary!N17/12)*2 -> 206.7545494 | L72: 13 hot | M72: =C$22*MIN(I27,$L$64)+IF($L$64-I27>0,C$23*($L$64-I27))+ROUND($F$14*365/12,2)+(Summary!N17/12)*2 -> 158.1466667 | N72: =C$22*MIN(J27,$L$64)+IF($L$64-J27>0,C$23*($L$64-J27))+ROUND($F$14*365/12,2)+(Summary!N17/12)*2 -> 170.4101223 | O72: =D$22*MIN(I27,$L$64)+IF($L$64-I27>0,D$23*($L$64-I27))+ROUND($F$14*365/12,2)+(Summary!N17/12)*2 -> 156.9416667 | P72: =D$22*MIN(J27,$L$64)+IF($L$64-J27>0,D$23*($L$64-J27))+ROUND($F$14*365/12,2)+(Summary!N17/12)*2 -> 169.1187509 | Q72: =E$22*MIN(I27,$L$64)+IF($L$64-I27>0,E$23*($L$64-I27))+ROUND($F$14*365/12,2)+(Summary!N17/12)*2 -> 155.6568641 | R72: =E$22*MIN(J27,$L$64)+IF($L$64-J27>0,E$23*($L$64-J27))+ROUND($F$14*365/12,2)+(Summary!N17/12)*2 -> 167.7393213 | S72: =F$22*MIN(I27,$L$64)+IF($L$64-I27>0,F$23*($L$64-I27))+ROUND($F$14*365/12,2)+(Summary!N17/12)*2 -> 178.7845489 | T72: =F$22*MIN(J27,$L$64)+IF($L$64-J27>0,F$23*($L$64-J27))+ROUND($F$14*365/12,2)+(Summary!N17/12)*2 -> 192.5703827 | V72: 13 hot | W72: =C$28*MIN(I27,$L$64)+IF($L$64-I27>0,C$29*($L$64-I27))+ROUND($P$14*365/12,2)+(Summary!N17/12)*2 -> 95.69666667 | X72: =C$28*MIN(J27,$L$64)+IF($L$64-J27>0,C$29*($L$64-J27))+ROUND($P$14*365/12,2)+(Summary!N17/12)*2 -> 103.9741447 | Y72: =D$28*MIN(I27,$L$64)+IF($L$64-I27>0,D$29*($L$64-I27))+ROUND($P$14*365/12,2)+(Summary!N17/12)*2 -> 94.84666667 | Z72: =D$28*MIN(J27,$L$64)+IF($L$64-J27>0,D$29*($L$64-J27))+ROUND($P$14*365/12,2)+(Summary!N17/12)*2 -> 103.066134 | AA72: =E$28*MIN(I27,$L$64)+IF($L$64-I27>0,E$29*($L$64-I27))+ROUND($P$14*365/12,2)+(Summary!N17/12)*2 -> 94.04206717 | AB72: =E$28*MIN(J27,$L$64)+IF($L$64-J27>0,E$29*($L$64-J27))+ROUND($P$14*365/12,2)+(Summary!N17/12)*2 -> 102.1976618 | AC72: =F$28*MIN(I27,$L$64)+IF($L$64-I27>0,F$29*($L$64-I27))+ROUND($P$14*365/12,2)+(Summary!N17/12)*2 -> 108.5256338 | AD72: =F$28*MIN(J27,$L$64)+IF($L$64-J27>0,F$29*($L$64-J27))+ROUND($P$14*365/12,2)+(Summary!N17/12)*2 -> 117.8309986
B73: 14 hot | C73: =C$22*MIN(K28,X28)+IF(X28-K28>0,C$23*(X28-K28))+ROUND($F$14*365/12,2)+(Summary!N17/12)*2 -> 261.8114378 | D73: =C$22*MIN(L28,Y28)+IF(Y28-L28>0,C$23*(Y28-L28))+ROUND($F$14*365/12,2)+(Summary!N17/12)*2 -> 177.0324501 | E73: =D$22*MIN(K28,X28)+IF(X28-K28>0,D$23*(X28-K28))+ROUND($F$14*365/12,2)+(Summary!N17/12)*2 -> 259.8599115 | F73: =D$22*MIN(L28,Y28)+IF(Y28-L28>0,D$23*(Y28-L28))+ROUND($F$14*365/12,2)+(Summary!N17/12)*2 -> 175.6908021 | G73: =E$22*MIN(K28,X28)+IF(X28-K28>0,E$23*(X28-K28))+ROUND($F$14*365/12,2)+(Summary!N17/12)*2 -> 257.775341 | H73: =E$22*MIN(L28,Y28)+IF(Y28-L28>0,E$23*(Y28-L28))+ROUND($F$14*365/12,2)+(Summary!N17/12)*2 -> 174.2603017 | I73: =F$22*MIN(K28,X28)+IF(X28-K28>0,F$23*(X28-K28))+ROUND($F$14*365/12,2)+(Summary!N17/12)*2 -> 295.299619 | J73: =F$22*MIN(L28,Y28)+IF(Y28-L28>0,F$23*(Y28-L28))+ROUND($F$14*365/12,2)+(Summary!N17/12)*2 -> 200.0106865 | L73: 14 hot | M73: =C$22*MIN(I28,$L$64)+IF($L$64-I28>0,C$23*($L$64-I28))+ROUND($F$14*365/12,2)+(Summary!N17/12)*2 -> 158.1466667 | N73: =C$22*MIN(J28,$L$64)+IF($L$64-J28>0,C$23*($L$64-J28))+ROUND($F$14*365/12,2)+(Summary!N17/12)*2 -> 171.2781931 | O73: =D$22*MIN(I28,$L$64)+IF($L$64-I28>0,D$23*($L$64-I28))+ROUND($F$14*365/12,2)+(Summary!N17/12)*2 -> 156.9416667 | P73: =D$22*MIN(J28,$L$64)+IF($L$64-J28>0,D$23*($L$64-J28))+ROUND($F$14*365/12,2)+(Summary!N17/12)*2 -> 169.9807078 | Q73: =E$22*MIN(I28,$L$64)+IF($L$64-I28>0,E$23*($L$64-I28))+ROUND($F$14*365/12,2)+(Summary!N17/12)*2 -> 155.6568641 | R73: =E$22*MIN(J28,$L$64)+IF($L$64-J28>0,E$23*($L$64-J28))+ROUND($F$14*365/12,2)+(Summary!N17/12)*2 -> 168.5945801 | S73: =F$22*MIN(I28,$L$64)+IF($L$64-I28>0,F$23*($L$64-I28))+ROUND($F$14*365/12,2)+(Summary!N17/12)*2 -> 178.7845489 | T73: =F$22*MIN(J28,$L$64)+IF($L$64-J28>0,F$23*($L$64-J28))+ROUND($F$14*365/12,2)+(Summary!N17/12)*2 -> 193.5462153 | V73: 14 hot | W73: =C$28*MIN(I28,$L$64)+IF($L$64-I28>0,C$29*($L$64-I28))+ROUND($P$14*365/12,2)+(Summary!N17/12)*2 -> 95.69666667 | X73: =C$28*MIN(J28,$L$64)+IF($L$64-J28>0,C$29*($L$64-J28))+ROUND($P$14*365/12,2)+(Summary!N17/12)*2 -> 104.5600674 | Y73: =D$28*MIN(I28,$L$64)+IF($L$64-I28>0,D$29*($L$64-I28))+ROUND($P$14*365/12,2)+(Summary!N17/12)*2 -> 94.84666667 | Z73: =D$28*MIN(J28,$L$64)+IF($L$64-J28>0,D$29*($L$64-J28))+ROUND($P$14*365/12,2)+(Summary!N17/12)*2 -> 103.6479504 | AA73: =E$28*MIN(I28,$L$64)+IF($L$64-I28>0,E$29*($L$64-I28))+ROUND($P$14*365/12,2)+(Summary!N17/12)*2 -> 94.04206717 | AB73: =E$28*MIN(J28,$L$64)+IF($L$64-J28>0,E$29*($L$64-J28))+ROUND($P$14*365/12,2)+(Summary!N17/12)*2 -> 102.774957 | AC73: =F$28*MIN(I28,$L$64)+IF($L$64-I28>0,F$29*($L$64-I28))+ROUND($P$14*365/12,2)+(Summary!N17/12)*2 -> 108.5256338 | AD73: =F$28*MIN(J28,$L$64)+IF($L$64-J28>0,F$29*($L$64-J28))+ROUND($P$14*365/12,2)+(Summary!N17/12)*2 -> 118.4896804
B74: 15 hot | C74: =C$22*MIN(K29,X29)+IF(X29-K29>0,C$23*(X29-K29))+ROUND($F$14*365/12,2)+(Summary!N17/12)*2 -> 318.2418316 | D74: =C$22*MIN(L29,Y29)+IF(Y29-L29>0,C$23*(Y29-L29))+ROUND($F$14*365/12,2)+(Summary!N17/12)*2 -> 142.037756 | E74: =D$22*MIN(K29,X29)+IF(X29-K29>0,D$23*(X29-K29))+ROUND($F$14*365/12,2)+(Summary!N17/12)*2 -> 315.8820335 | F74: =D$22*MIN(L29,Y29)+IF(Y29-L29>0,D$23*(Y29-L29))+ROUND($F$14*365/12,2)+(Summary!N17/12)*2 -> 140.949312 | G74: =E$22*MIN(K29,X29)+IF(X29-K29>0,E$23*(X29-K29))+ROUND($F$14*365/12,2)+(Summary!N17/12)*2 -> 313.3621204 | H74: =E$22*MIN(L29,Y29)+IF(Y29-L29>0,E$23*(Y29-L29))+ROUND($F$14*365/12,2)+(Summary!N17/12)*2 -> 139.7887845 | I74: =F$22*MIN(K29,X29)+IF(X29-K29>0,F$23*(X29-K29))+ROUND($F$14*365/12,2)+(Summary!N17/12)*2 -> 358.7229846 | J74: =F$22*MIN(L29,Y29)+IF(Y29-L29>0,F$23*(Y29-L29))+ROUND($F$14*365/12,2)+(Summary!N17/12)*2 -> 160.6793983 | L74: 15 hot | M74: =C$22*MIN(I29,$L$64)+IF($L$64-I29>0,C$23*($L$64-I29))+ROUND($F$14*365/12,2)+(Summary!N17/12)*2 -> 158.1466667 | N74: =C$22*MIN(J29,$L$64)+IF($L$64-J29>0,C$23*($L$64-J29))+ROUND($F$14*365/12,2)+(Summary!N17/12)*2 -> 177.6440453 | O74: =D$22*MIN(I29,$L$64)+IF($L$64-I29>0,D$23*($L$64-I29))+ROUND($F$14*365/12,2)+(Summary!N17/12)*2 -> 156.9416667 | P74: =D$22*MIN(J29,$L$64)+IF($L$64-J29>0,D$23*($L$64-J29))+ROUND($F$14*365/12,2)+(Summary!N17/12)*2 -> 176.3017254 | Q74: =E$22*MIN(I29,$L$64)+IF($L$64-I29>0,E$23*($L$64-I29))+ROUND($F$14*365/12,2)+(Summary!N17/12)*2 -> 155.6568641 | R74: =E$22*MIN(J29,$L$64)+IF($L$64-J29>0,E$23*($L$64-J29))+ROUND($F$14*365/12,2)+(Summary!N17/12)*2 -> 174.8664777 | S74: =F$22*MIN(I29,$L$64)+IF($L$64-I29>0,F$23*($L$64-I29))+ROUND($F$14*365/12,2)+(Summary!N17/12)*2 -> 178.7845489 | T74: =F$22*MIN(J29,$L$64)+IF($L$64-J29>0,F$23*($L$64-J29))+ROUND($F$14*365/12,2)+(Summary!N17/12)*2 -> 200.7023207 | V74: 15 hot | W74: =C$28*MIN(I29,$L$64)+IF($L$64-I29>0,C$29*($L$64-I29))+ROUND($P$14*365/12,2)+(Summary!N17/12)*2 -> 95.69666667 | X74: =C$28*MIN(J29,$L$64)+IF($L$64-J29>0,C$29*($L$64-J29))+ROUND($P$14*365/12,2)+(Summary!N17/12)*2 -> 108.8568336 | Y74: =D$28*MIN(I29,$L$64)+IF($L$64-I29>0,D$29*($L$64-I29))+ROUND($P$14*365/12,2)+(Summary!N17/12)*2 -> 94.84666667 | Z74: =D$28*MIN(J29,$L$64)+IF($L$64-J29>0,D$29*($L$64-J29))+ROUND($P$14*365/12,2)+(Summary!N17/12)*2 -> 107.9146038 | AA74: =E$28*MIN(I29,$L$64)+IF($L$64-I29>0,E$29*($L$64-I29))+ROUND($P$14*365/12,2)+(Summary!N17/12)*2 -> 94.04206717 | AB74: =E$28*MIN(J29,$L$64)+IF($L$64-J29>0,E$29*($L$64-J29))+ROUND($P$14*365/12,2)+(Summary!N17/12)*2 -> 107.0084546 | AC74: =F$28*MIN(I29,$L$64)+IF($L$64-I29>0,F$29*($L$64-I29))+ROUND($P$14*365/12,2)+(Summary!N17/12)*2 -> 108.5256338 | AD74: =F$28*MIN(J29,$L$64)+IF($L$64-J29>0,F$29*($L$64-J29))+ROUND($P$14*365/12,2)+(Summary!N17/12)*2 -> 123.3200137
B75: 16 cool | C75: =C$22*MIN(K30,X30)+IF(X30-K30>0,C$23*(X30-K30))+ROUND($F$14*365/12,2)+(Summary!N17/12)*2 -> 145.1725175 | D75: =C$22*MIN(L30,Y30)+IF(Y30-L30>0,C$23*(Y30-L30))+ROUND($F$14*365/12,2)+(Summary!N17/12)*2 -> 171.0245404 | E75: =D$22*MIN(K30,X30)+IF(X30-K30>0,D$23*(X30-K30))+ROUND($F$14*365/12,2)+(Summary!N17/12)*2 -> 144.0621101 | F75: =D$22*MIN(L30,Y30)+IF(Y30-L30>0,D$23*(Y30-L30))+ROUND($F$14*365/12,2)+(Summary!N17/12)*2 -> 169.7263626 | G75: =E$22*MIN(K30,X30)+IF(X30-K30>0,E$23*(X30-K30))+ROUND($F$14*365/12,2)+(Summary!N17/12)*2 -> 142.8773934 | H75: =E$22*MIN(L30,Y30)+IF(Y30-L30>0,E$23*(Y30-L30))+ROUND($F$14*365/12,2)+(Summary!N17/12)*2 -> 168.3422114 | I75: =F$22*MIN(K30,X30)+IF(X30-K30>0,F$23*(X30-K30))+ROUND($F$14*365/12,2)+(Summary!N17/12)*2 -> 164.2034371 | J75: =F$22*MIN(L30,Y30)+IF(Y30-L30>0,F$23*(Y30-L30))+ROUND($F$14*365/12,2)+(Summary!N17/12)*2 -> 193.2582678 | L75: 16 cool | M75: =C$22*MIN(I30,$L$64)+IF($L$64-I30>0,C$23*($L$64-I30))+ROUND($F$14*365/12,2)+(Summary!N17/12)*2 -> 163.1761993 | N75: =C$22*MIN(J30,$L$64)+IF($L$64-J30>0,C$23*($L$64-J30))+ROUND($F$14*365/12,2)+(Summary!N17/12)*2 -> 169.8314085 | O75: =D$22*MIN(I30,$L$64)+IF($L$64-I30>0,D$23*($L$64-I30))+ROUND($F$14*365/12,2)+(Summary!N17/12)*2 -> 161.9357763 | P75: =D$22*MIN(J30,$L$64)+IF($L$64-J30>0,D$23*($L$64-J30))+ROUND($F$14*365/12,2)+(Summary!N17/12)*2 -> 168.5441129 | Q75: =E$22*MIN(I30,$L$64)+IF($L$64-I30>0,E$23*($L$64-I30))+ROUND($F$14*365/12,2)+(Summary!N17/12)*2 -> 160.612165 | R75: =E$22*MIN(J30,$L$64)+IF($L$64-J30>0,E$23*($L$64-J30))+ROUND($F$14*365/12,2)+(Summary!N17/12)*2 -> 167.1691488 | S75: =F$22*MIN(I30,$L$64)+IF($L$64-I30>0,F$23*($L$64-I30))+ROUND($F$14*365/12,2)+(Summary!N17/12)*2 -> 184.4384448 | T75: =F$22*MIN(J30,$L$64)+IF($L$64-J30>0,F$23*($L$64-J30))+ROUND($F$14*365/12,2)+(Summary!N17/12)*2 -> 191.9198277 | V75: 16 cool | W75: =C$28*MIN(I30,$L$64)+IF($L$64-I30>0,C$29*($L$64-I30))+ROUND($P$14*365/12,2)+(Summary!N17/12)*2 -> 99.09145579 | X75: =C$28*MIN(J30,$L$64)+IF($L$64-J30>0,C$29*($L$64-J30))+ROUND($P$14*365/12,2)+(Summary!N17/12)*2 -> 103.5835296 | Y75: =D$28*MIN(I30,$L$64)+IF($L$64-I30>0,D$29*($L$64-I30))+ROUND($P$14*365/12,2)+(Summary!N17/12)*2 -> 98.21766424 | Z75: =D$28*MIN(J30,$L$64)+IF($L$64-J30>0,D$29*($L$64-J30))+ROUND($P$14*365/12,2)+(Summary!N17/12)*2 -> 102.6782565 | AA75: =E$28*MIN(I30,$L$64)+IF($L$64-I30>0,E$29*($L$64-I30))+ROUND($P$14*365/12,2)+(Summary!N17/12)*2 -> 97.38686904 | AB75: =E$28*MIN(J30,$L$64)+IF($L$64-J30>0,E$29*($L$64-J30))+ROUND($P$14*365/12,2)+(Summary!N17/12)*2 -> 101.8127984 | AC75: =F$28*MIN(I30,$L$64)+IF($L$64-I30>0,F$29*($L$64-I30))+ROUND($P$14*365/12,2)+(Summary!N17/12)*2 -> 112.3419835 | AD75: =F$28*MIN(J30,$L$64)+IF($L$64-J30>0,F$29*($L$64-J30))+ROUND($P$14*365/12,2)+(Summary!N17/12)*2 -> 117.3918774
B76: ALL | C76: =SUMPRODUCT(C67:C75,$AB$22:$AB$30) -> 170.5525392 | D76: =SUMPRODUCT(D67:D75,$AB$22:$AB$30) -> 122.7394486 | E76: =SUMPRODUCT(E67:E75,$AB$22:$AB$30) -> 169.2598787 | F76: 121.7906375 | G76: =SUMPRODUCT(G67:G75,$AB$22:$AB$30) -> 167.8793525 | H76: 120.7789903 | I76: =SUMPRODUCT(I67:I75,$AB$22:$AB$30) -> 192.7301554 | J76: 138.9896163 | L76: ALL | M76: =SUMPRODUCT(M67:M75,$T$22:$T$30) -> 163.1865905 | N76: 172.6631873 | O76: 161.9460943 | P76: 171.3559475 | Q76: 160.6224028 | R76: 169.9591329 | S76: 184.4501259 | T76: 195.1031419 | V76: ALL | W76: =SUMPRODUCT(W67:W75,$U$22:$U$30) -> 97.49991605 | X76: =SUMPRODUCT(X67:X75,$U$22:$U$30) -> 105.0373775 | Y76: 96.63727842 | Z76: 104.1219154 | AA76: 95.81876424 | AB76: 103.2452389 | AC76: 110.5528084 | AD76: 119.0262623
C79: All-Electric - CARE
C80: =C50 -> Jan 2025 | E80: 2025-03-01 | G80: Authorized | I80: w/Pending
C81: Summer | D81: Winter | E81: Summer | F81: Winter | G81: Summer | H81: Winter | I81: Summer | J81: Winter
B82: =B52 -> 5 warm | C82: =C$28*MIN(K22,Z22)+IF(Z22-K22>0,C$29*(Z22-K22))+ROUND($P$14*365/12,2)+(Summary!N17/12)*2 -> 65.22108628 | D82: =C$28*MIN(L22,AA22)+IF(AA22-L22>0,C$29*(AA22-L22))+ROUND($P$14*365/12,2)+(Summary!N17/12)*2 -> 81.09158675 | E82: =D$28*MIN(K22,Z22)+IF(Z22-K22>0,D$29*(Z22-K22))+ROUND($P$14*365/12,2)+(Summary!N17/12)*2 -> 64.61923499 | F82: =D$28*MIN(L22,AA22)+IF(AA22-L22>0,D$29*(AA22-L22))+ROUND($P$14*365/12,2)+(Summary!N17/12)*2 -> 80.36050923 | G82: =E$28*MIN(K22,Z22)+IF(Z22-K22>0,E$29*(Z22-K22))+ROUND($P$14*365/12,2)+(Summary!N17/12)*2 -> 64.04952999 | H82: =E$28*MIN(L22,AA22)+IF(AA22-L22>0,E$29*(AA22-L22))+ROUND($P$14*365/12,2)+(Summary!N17/12)*2 -> 79.66848028 | I82: =F$28*MIN(K22,Z22)+IF(Z22-K22>0,F$29*(Z22-K22))+ROUND($P$14*365/12,2)+(Summary!N17/12)*2 -> 74.3047692 | J82: =F$28*MIN(L22,AA22)+IF(AA22-L22>0,F$29*(AA22-L22))+ROUND($P$14*365/12,2)+(Summary!N17/12)*2 -> 92.12566844
B83: 6 cool | C83: =C$28*MIN(K23,Z23)+IF(Z23-K23>0,C$29*(Z23-K23))+ROUND($P$14*365/12,2)+(Summary!N17/12)*2 -> 73.81412083 | D83: =C$28*MIN(L23,AA23)+IF(AA23-L23>0,C$29*(AA23-L23))+ROUND($P$14*365/12,2)+(Summary!N17/12)*2 -> 69.31351055 | E83: =D$28*MIN(K23,Z23)+IF(Z23-K23>0,D$29*(Z23-K23))+ROUND($P$14*365/12,2)+(Summary!N17/12)*2 -> 73.14957283 | F83: =D$28*MIN(L23,AA23)+IF(AA23-L23>0,D$29*(AA23-L23))+ROUND($P$14*365/12,2)+(Summary!N17/12)*2 -> 68.67833652 | G83: =E$28*MIN(K23,Z23)+IF(Z23-K23>0,E$29*(Z23-K23))+ROUND($P$14*365/12,2)+(Summary!N17/12)*2 -> 72.51357938 | H83: =E$28*MIN(L23,AA23)+IF(AA23-L23>0,E$29*(AA23-L23))+ROUND($P$14*365/12,2)+(Summary!N17/12)*2 -> 68.07708863 | I83: =F$28*MIN(K23,Z23)+IF(Z23-K23>0,F$29*(Z23-K23))+ROUND($P$14*365/12,2)+(Summary!N17/12)*2 -> 83.9620745 | J83: =F$28*MIN(L23,AA23)+IF(AA23-L23>0,F$29*(AA23-L23))+ROUND($P$14*365/12,2)+(Summary!N17/12)*2 -> 78.9001303
B84: 8 cool | C84: =C$28*MIN(K24,Z24)+IF(Z24-K24>0,C$29*(Z24-K24))+ROUND($P$14*365/12,2)+(Summary!N17/12)*2 -> 85.10223134 | D84: =C$28*MIN(L24,AA24)+IF(AA24-L24>0,C$29*(AA24-L24))+ROUND($P$14*365/12,2)+(Summary!N17/12)*2 -> 68.60818415 | E84: =D$28*MIN(K24,Z24)+IF(Z24-K24>0,D$29*(Z24-K24))+ROUND($P$14*365/12,2)+(Summary!N17/12)*2 -> 84.34674791 | F84: =D$28*MIN(L24,AA24)+IF(AA24-L24>0,D$29*(AA24-L24))+ROUND($P$14*365/12,2)+(Summary!N17/12)*2 -> 67.97875327 | G84: =E$28*MIN(K24,Z24)+IF(Z24-K24>0,E$29*(Z24-K24))+ROUND($P$14*365/12,2)+(Summary!N17/12)*2 -> 83.62374228 | H84: =E$28*MIN(L24,AA24)+IF(AA24-L24>0,E$29*(AA24-L24))+ROUND($P$14*365/12,2)+(Summary!N17/12)*2 -> 67.38294177 | I84: =F$28*MIN(K24,Z24)+IF(Z24-K24>0,F$29*(Z24-K24))+ROUND($P$14*365/12,2)+(Summary!N17/12)*2 -> 96.63854057 | J84: =F$28*MIN(L24,AA24)+IF(AA24-L24>0,F$29*(AA24-L24))+ROUND($P$14*365/12,2)+(Summary!N17/12)*2 -> 78.10812309
B85: 9 warm | C85: =C$28*MIN(K25,Z25)+IF(Z25-K25>0,C$29*(Z25-K25))+ROUND($P$14*365/12,2)+(Summary!N17/12)*2 -> 106.1209049 | D85: =C$28*MIN(L25,AA25)+IF(AA25-L25>0,C$29*(AA25-L25))+ROUND($P$14*365/12,2)+(Summary!N17/12)*2 -> 69.73827691 | E85: =D$28*MIN(K25,Z25)+IF(Z25-K25>0,D$29*(Z25-K25))+ROUND($P$14*365/12,2)+(Summary!N17/12)*2 -> 105.1954786 | F85: =D$28*MIN(L25,AA25)+IF(AA25-L25>0,D$29*(AA25-L25))+ROUND($P$14*365/12,2)+(Summary!N17/12)*2 -> 69.0996442 | G85: =E$28*MIN(K25,Z25)+IF(Z25-K25>0,E$29*(Z25-K25))+ROUND($P$14*365/12,2)+(Summary!N17/12)*2 -> 104.3104595 | H85: =E$28*MIN(L25,AA25)+IF(AA25-L25>0,E$29*(AA25-L25))+ROUND($P$14*365/12,2)+(Summary!N17/12)*2 -> 68.49512236 | I85: =F$28*MIN(K25,Z25)+IF(Z25-K25>0,F$29*(Z25-K25))+ROUND($P$14*365/12,2)+(Summary!N17/12)*2 -> 120.241657 | J85: =F$28*MIN(L25,AA25)+IF(AA25-L25>0,F$29*(AA25-L25))+ROUND($P$14*365/12,2)+(Summary!N17/12)*2 -> 79.37709815
B86: 10 hot (Sec 745) | C86: =C$28*MIN(K26,Z26)+IF(Z26-K26>0,C$29*(Z26-K26))+ROUND($P$14*365/12,2)+(Summary!N17/12)*2 -> 140.5151579 | D86: =C$28*MIN(L26,AA26)+IF(AA26-L26>0,C$29*(AA26-L26))+ROUND($P$14*365/12,2)+(Summary!N17/12)*2 -> 80.27071156 | E86: =D$28*MIN(K26,Z26)+IF(Z26-K26>0,D$29*(Z26-K26))+ROUND($P$14*365/12,2)+(Summary!N17/12)*2 -> 139.3130906 | F86: =D$28*MIN(L26,AA26)+IF(AA26-L26>0,D$29*(AA26-L26))+ROUND($P$14*365/12,2)+(Summary!N17/12)*2 -> 79.54631805 | G86: =E$28*MIN(K26,Z26)+IF(Z26-K26>0,E$29*(Z26-K26))+ROUND($P$14*365/12,2)+(Summary!N17/12)*2 -> 138.1629467 | H86: =E$28*MIN(L26,AA26)+IF(AA26-L26>0,E$29*(AA26-L26))+ROUND($P$14*365/12,2)+(Summary!N17/12)*2 -> 78.8606161 | I86: =F$28*MIN(K26,Z26)+IF(Z26-K26>0,F$29*(Z26-K26))+ROUND($P$14*365/12,2)+(Summary!N17/12)*2 -> 158.8666449 | J86: =F$28*MIN(L26,AA26)+IF(AA26-L26>0,F$29*(AA26-L26))+ROUND($P$14*365/12,2)+(Summary!N17/12)*2 -> 91.20391212
B87: 13 hot | C87: =C$28*MIN(K27,Z27)+IF(Z27-K27>0,C$29*(Z27-K27))+ROUND($P$14*365/12,2)+(Summary!N17/12)*2 -> 206.9051786 | D87: =C$28*MIN(L27,AA27)+IF(AA27-L27>0,C$29*(AA27-L27))+ROUND($P$14*365/12,2)+(Summary!N17/12)*2 -> 106.0765479 | E87: =D$28*MIN(K27,Z27)+IF(Z27-K27>0,D$29*(Z27-K27))+ROUND($P$14*365/12,2)+(Summary!N17/12)*2 -> 205.1661779 | F87: =D$28*MIN(L27,AA27)+IF(AA27-L27>0,D$29*(AA27-L27))+ROUND($P$14*365/12,2)+(Summary!N17/12)*2 -> 105.1420293 | G87: =E$28*MIN(K27,Z27)+IF(Z27-K27>0,E$29*(Z27-K27))+ROUND($P$14*365/12,2)+(Summary!N17/12)*2 -> 203.5042959 | H87: =E$28*MIN(L27,AA27)+IF(AA27-L27>0,E$29*(AA27-L27))+ROUND($P$14*365/12,2)+(Summary!N17/12)*2 -> 104.2574255 | I87: =F$28*MIN(K27,Z27)+IF(Z27-K27>0,F$29*(Z27-K27))+ROUND($P$14*365/12,2)+(Summary!N17/12)*2 -> 233.4197728 | J87: =F$28*MIN(L27,AA27)+IF(AA27-L27>0,F$29*(AA27-L27))+ROUND($P$14*365/12,2)+(Summary!N17/12)*2 -> 120.1811464
B88: 14 hot | C88: =C$28*MIN(K28,Z28)+IF(Z28-K28>0,C$29*(Z28-K28))+ROUND($P$14*365/12,2)+(Summary!N17/12)*2 -> 195.6352795 | D88: =C$28*MIN(L28,AA28)+IF(AA28-L28>0,C$29*(AA28-L28))+ROUND($P$14*365/12,2)+(Summary!N17/12)*2 -> 129.6431085 | E88: =D$28*MIN(K28,Z28)+IF(Z28-K28>0,D$29*(Z28-K28))+ROUND($P$14*365/12,2)+(Summary!N17/12)*2 -> 193.9946951 | F88: =D$28*MIN(L28,AA28)+IF(AA28-L28>0,D$29*(AA28-L28))+ROUND($P$14*365/12,2)+(Summary!N17/12)*2 -> 128.5178565 | G88: =E$28*MIN(K28,Z28)+IF(Z28-K28>0,E$29*(Z28-K28))+ROUND($P$14*365/12,2)+(Summary!N17/12)*2 -> 192.4196256 | H88: =E$28*MIN(L28,AA28)+IF(AA28-L28>0,E$29*(AA28-L28))+ROUND($P$14*365/12,2)+(Summary!N17/12)*2 -> 127.4516014 | I88: =F$28*MIN(K28,Z28)+IF(Z28-K28>0,F$29*(Z28-K28))+ROUND($P$14*365/12,2)+(Summary!N17/12)*2 -> 220.7723933 | J88: =F$28*MIN(L28,AA28)+IF(AA28-L28>0,F$29*(AA28-L28))+ROUND($P$14*365/12,2)+(Summary!N17/12)*2 -> 146.6452213
B89: 15 hot | C89: =C$28*MIN(K29,Z29)+IF(Z29-K29>0,C$29*(Z29-K29))+ROUND($P$14*365/12,2)+(Summary!N17/12)*2 -> 248.5974433 | D89: =C$28*MIN(L29,AA29)+IF(AA29-L29>0,C$29*(AA29-L29))+ROUND($P$14*365/12,2)+(Summary!N17/12)*2 -> 99.9353202 | E89: =D$28*MIN(K29,Z29)+IF(Z29-K29>0,D$29*(Z29-K29))+ROUND($P$14*365/12,2)+(Summary!N17/12)*2 -> 246.5304238 | F89: =D$28*MIN(L29,AA29)+IF(AA29-L29>0,D$29*(AA29-L29))+ROUND($P$14*365/12,2)+(Summary!N17/12)*2 -> 99.05080678 | G89: =E$28*MIN(K29,Z29)+IF(Z29-K29>0,E$29*(Z29-K29))+ROUND($P$14*365/12,2)+(Summary!N17/12)*2 -> 244.5471042 | H89: =E$28*MIN(L29,AA29)+IF(AA29-L29>0,E$29*(AA29-L29))+ROUND($P$14*365/12,2)+(Summary!N17/12)*2 -> 98.21353731 | I89: =F$28*MIN(K29,Z29)+IF(Z29-K29>0,F$29*(Z29-K29))+ROUND($P$14*365/12,2)+(Summary!N17/12)*2 -> 280.2487682 | J89: =F$28*MIN(L29,AA29)+IF(AA29-L29>0,F$29*(AA29-L29))+ROUND($P$14*365/12,2)+(Summary!N17/12)*2 -> 113.2851949
B90: 16 cool | C90: =C$28*MIN(K30,Z30)+IF(Z30-K30>0,C$29*(Z30-K30))+ROUND($P$14*365/12,2)+(Summary!N17/12)*2 -> 155.7379709 | D90: =C$28*MIN(L30,AA30)+IF(AA30-L30>0,C$29*(AA30-L30))+ROUND($P$14*365/12,2)+(Summary!N17/12)*2 -> 110.3344052 | E90: =D$28*MIN(K30,Z30)+IF(Z30-K30>0,D$29*(Z30-K30))+ROUND($P$14*365/12,2)+(Summary!N17/12)*2 -> 154.4200789 | F90: =D$28*MIN(L30,AA30)+IF(AA30-L30>0,D$29*(AA30-L30))+ROUND($P$14*365/12,2)+(Summary!N17/12)*2 -> 109.3652168 | G90: =E$28*MIN(K30,Z30)+IF(Z30-K30>0,E$29*(Z30-K30))+ROUND($P$14*365/12,2)+(Summary!N17/12)*2 -> 153.15254 | H90: =E$28*MIN(L30,AA30)+IF(AA30-L30>0,E$29*(AA30-L30))+ROUND($P$14*365/12,2)+(Summary!N17/12)*2 -> 108.447795 | I90: =F$28*MIN(K30,Z30)+IF(Z30-K30>0,F$29*(Z30-K30))+ROUND($P$14*365/12,2)+(Summary!N17/12)*2 -> 175.9694608 | J90: =F$28*MIN(L30,AA30)+IF(AA30-L30>0,F$29*(AA30-L30))+ROUND($P$14*365/12,2)+(Summary!N17/12)*2 -> 124.9622713
B91: ALL | C91: =SUMPRODUCT(C82:C90,$AC$22:$AC$30) -> 131.764751 | D91: =SUMPRODUCT(D82:D90,$AC$22:$AC$30) -> 82.66851574 | E91: 130.6339578 | F91: 81.92468023 | G91: 129.5512587 | H91: 81.22049626 | I91: 149.0408869 | J91: =SUMPRODUCT(J82:J90,$AC$22:$AC$30) -> 93.89648657
F95: 2025 | G95: 2026 | H95: 2027 | I95: 2028 | J95: 2029 | M95: =F95 -> 2025 | N95: =G95 -> 2026 | O95: 2027 | P95: 2028 | Q95: 2029
F96: Non-CARE | G96: Non-CARE | H96: Non-CARE | I96: Non-CARE | J96: Non-CARE | M96: CARE | N96: CARE | O96: CARE | P96: CARE | Q96: CARE
A97: 3 | D97: Baseline - Summer | F97: 2943.673477 | G97: =G$107*(F97/SUM(F$97:F$102)) -> 2929.7436 | H97: =H$107*(F97/SUM(F$97:F$102)) -> 3045.827986 | I97: 3378 | J97: 3378 | M97: 1949.570369 | N97: =N$107*(M97/SUM(M$97:M$102)) -> 1940.344728 | O97: =O$107*(M97/SUM(M$97:M$102)) -> 2017.226447 | P97: 1222 | Q97: 1222
A98: =A97+1 -> 4 | D98: - Winter | F98: 4098.822658 | G98: =G$107*(F98/SUM(F$97:F$102)) -> 4079.426452 | H98: =H$107*(F98/SUM(F$97:F$102)) -> 4241.06439 | I98: 5479 | J98: 5479 | M98: 2973.477977 | N98: =N$107*(M98/SUM(M$97:M$102)) -> 2959.407061 | O98: =O$107*(M98/SUM(M$97:M$102)) -> 3076.666793 | P98: 1962 | Q98: 1962
A99: =A98+1 -> 5 | D99: 101% - 400% of Baseline - Summer | F99: 1823.616652 | G99: 1814.987041 | H99: 1886.90175 | I99: 2045 | J99: 2045 | M99: 815.8001306 | N99: =N$107*(M99/SUM(M$97:M$102)) -> 811.9396496 | O99: 844.1109002 | P99: 508 | Q99: 508
A100: 6 | D100: - Winter | F100: 2499.610106 | G100: 2487.781599 | H100: 2586.354252 | I100: 3295 | J100: 3295 | M100: 1203.524218 | N100: =N$107*(M100/SUM(M$97:M$102)) -> 1197.828972 | O100: 1245.290204 | P100: 786 | Q100: 786
A101: 7 | D101: 401% of Baseline - Summer | F101: 144.6195472 | G101: 143.9351872 | H101: 149.6382896 | I101: 162 | J101: 162 | M101: 9.280030494 | N101: =N$107*(M101/SUM(M$97:M$102)) -> 9.236116084 | O101: 9.602076048 | P101: 6 | Q101: 6
A102: 8 | D102: - Winter | F102: 251.1003806 | G102: 249.9121383 | H102: 259.8143349 | I102: 328 | J102: 328 | M102: 22.83854275 | N102: =N$107*(M102/SUM(M$97:M$102)) -> 22.73046755 | O102: 23.63111031 | P102: 15 | Q102: 15
A103: 9
A104: 10 | D104: Basic Charge - Single-Family Residence | F104: 18183162 | G104: =$F107/SUM($F$107:$F$108)*G$108 -> 18907439.12 | H104: 19184179.35 | I104: =$F107/SUM($F$107:$F$108)*I$108 -> 19113717.58 | J104: 19113717.58 | M104: 6984771 | N104: =$M107/SUM($M$107:$M$108)*N$108 -> 6475221.031 | O104: 5359268.268 | P104: 5281828.55 | Q104: 5281828.55
A105: 11 | D105: Basic Charge - Multi-Family Residence | F105: 8271562 | G105: =$F108/SUM($F$107:$F$108)*G$108 -> 8601037.876 | H105: 8726927.647 | I105: 8694874.423 | J105: 8694874.423 | M105: 5864584 | N105: 5436753.969 | O105: 4499772.732 | P105: 4434752.45 | Q105: 4434752.45
F107: 0.6873313679 | G107: 11705.78602 | H107: 12169.601 | I107: =SUM(I97:I102) -> 14687 | J107: =SUM(J97:J102) -> 14687 | M107: 0.5435892059 | N107: 6941.486994 | O107: 7216.527531 | P107: =SUM(P97:P102) -> 4499 | Q107: =SUM(Q97:Q102) -> 4499
E108: Customers | F108: 0.3126686321 | G108: 27508477 | H108: 27911107 | I108: 27808592 | J108: 27808592 | M108: 0.4564107941 | N108: 11911975 | O108: 9859041 | P108: 9716581 | Q108: 9716581

Sheet Simple Bill Insert Calc (2)
B2: Inputs: | K2: Assumptions:
K3: Current Effective Rates | M3: =Summary!N3 -> 2025-03-01
C4: Baseline Region - (Residential bill) | D4: 9 warm | K4: Sales Forecast | M4: 2025
C5: Typical residential average usage kWh/month | D5: 500 | K5: Residential bill calculated using | M5: Schedule D, Basic, Single Family
C6: Include CA Climate Credit in Rates | D6: N | K6: Non-CARE bill impact calculated with average summer usage of | O6: =IF($D$4="All",SUMPRODUCT('Res Bill Impact (2)'!P$22:P$30,'Res Bill Impact (2)'!$T$22:$T$30),VLOOKUP(D$4,'Res Bill Impact (2)'!$O$22:$S$30,2,FALSE)) -> 736.1896342 | P6: kWh per month
D7: Revenue Change | K7: Non-CARE bill impact calculated with average winter usage of | O7: =IF($D$4="All",SUMPRODUCT('Res Bill Impact (2)'!Q$22:Q$30,'Res Bill Impact (2)'!$T$22:$T$30),VLOOKUP(D$4,'Res Bill Impact (2)'!$O$22:$S$30,3,FALSE)) -> 454.0542708 | P7: kWh per month
C8: Generation | K8: CARE bill impact calculated with average summer usage of | O8: =IF($D$4="All",SUMPRODUCT('Res Bill Impact (2)'!R$22:R$30,'Res Bill Impact (2)'!$U$22:$U$30),VLOOKUP(D$4,'Res Bill Impact (2)'!$O$22:$S$30,4,FALSE)) -> 685.496621 | P8: kWh per month
C9: Distribution | K9: CARE bill impact calculated with average winter usage of | O9: =IF($D$4="All",SUMPRODUCT('Res Bill Impact (2)'!S$22:S$30,'Res Bill Impact (2)'!$U$22:$U$30),VLOOKUP(D$4,'Res Bill Impact (2)'!$O$22:$S$30,5,FALSE)) -> 424.2446352 | P9: kWh per month
C10: Nuclear | K10: Essential Use (Basic) bill impact calculated with average summer usage of | O10: =IF($D$4="All",SUMPRODUCT('Res Bill Impact (2)'!I$22:I$30,'Res Bill Impact (2)'!$T$22:$T$30),VLOOKUP($D$4,'Res Bill Impact (2)'!$H$22:$L$30,2,FALSE)) -> 514.0473 | P10: kWh per month
C11: Public Purpose | K11: Essential Use (Basic) bill impact calculated with average winter usage of | O11: =IF($D$4="All",SUMPRODUCT('Res Bill Impact (2)'!J$22:J$30,'Res Bill Impact (2)'!$T$22:$T$30),VLOOKUP($D$4,'Res Bill Impact (2)'!$H$22:$L$30,3,FALSE)) -> 365.004 | P11: kWh per month
C12: DCPP | K12: Essential Use (All-Electric) bill impact calculated with average summer usage of | O12: =IF($D$4="All",SUMPRODUCT('Res Bill Impact (2)'!K$22:K$30,'Res Bill Impact (2)'!$T$22:$T$30),VLOOKUP($D$4,'Res Bill Impact (2)'!$H$22:$L$30,4,FALSE)) -> 380.2125 | P12: kWh per month
C13: New System Gen | K13: Essential Use (All-Electric) bill impact calculated with average winter usage of | O13: =IF($D$4="All",SUMPRODUCT('Res Bill Impact (2)'!L$22:L$30,'Res Bill Impact (2)'!$T$22:$T$30),VLOOKUP($D$4,'Res Bill Impact (2)'!$H$22:$L$30,5,FALSE)) -> 422.7963 | P13: kWh per month
C14: FERC | K14: Average monthly usage is for all customers (Non-CARE and CARE) based on seasonal usage in | Q14: 2024
C15: TOTCA | K15: Summer season | M15: 4 | N15: months
C16: GHG Revenue | K16: Winter Season | M16: 8 | N16: months
C17: DWR | K17: Residential Bi-Annual Climate Credit | M17: =Summary!N17 -> -56
C18: PUCRF
C19: SECURITIZATION
C20: Total | D20: =SUM(D8:D19) -> 0
B21: Outputs:
D22: (A) | E22: (B) | F22: (C) | G22: (C)/(A) | H22: (C)/(B) | L22: (A) | M22: (B) | N22: (C) | O22: (C)/(A) | P22: (C)/(B)
B23: Bundled Average Rates - ¢/kWh | J23: Total System (Bundled and Unbundled) Average Rates - ¢/kWh
B24: Customer Group | D24: =Summary!D30 -> 2025-01-01 | E24: =M3 -> 2025-03-01 | F24: Proposed | G24: % Change over 1/1/2025 | H24: % Change over Current | J24: Customer Group | L24: =$D$24 -> 2025-01-01 | M24: =$E$24 -> 2025-03-01 | N24: Proposed | O24: =$G$24 -> % Change over 1/1/2025 | P24: % Change over Current
B25: Residential | D25: =IF(D6="Y",'SAR and RAR'!W28,'SAR and RAR'!X28) -> 31.62973815 | E25: ='SAR and RAR (2)'!F24 -> 31.3824852 | F25: ='SAR and RAR (2)'!G24 -> 31.3824852 | G25: =$F25/D25-1 -> -0.00781710376 | H25: 0 | J25: Total Residential (RAR) | L25: =IF(D6="Y",'SAR and RAR'!Z28,'SAR and RAR'!AA28) -> 28.36130718 | M25: ='SAR and RAR (2)'!N24 -> 28.11056783 | N25: ='SAR and RAR (2)'!O24 -> 28.11056783 | O25: =$N25/L25-1 -> -0.008840895356 | P25: 0
C26: Small Commercial | D26: =IF(D6="Y",'SAR and AR (GS1)'!W28,'SAR and AR (GS1)'!X28) -> 29.17406766 | E26: ='SAR and AR (GS1) (2)'!G24 -> 28.97896301 | F26: ='SAR and AR (GS1) (2)'!H24 -> 28.97896301 | G26: -0.006687605367 | H26: 0 | K26: Small Commercial (AR) | L26: =IF(D6="Y",'SAR and AR (GS1)'!Z28,'SAR and AR (GS1)'!AA28) -> 25.77950096 | M26: ='SAR and AR (GS1) (2)'!O24 -> 25.58432245 | N26: ='SAR and AR (GS1) (2)'!P24 -> 25.58432245 | O26: -0.007571074188 | P26: 0
B27: System | D27: =IF(D6="Y",'SAR and RAR'!W29,'SAR and RAR'!X29) -> 27.30660685 | E27: ='SAR and RAR (2)'!F25 -> 27.09446696 | F27: ='SAR and RAR (2)'!G25 -> 27.09446696 | G27: -0.007768811887 | H27: 0 | J27: Total System (SAR) | L27: =IF(D6="Y",'SAR and RAR'!Z29,'SAR and RAR'!AA29) -> 22.91911704 | M27: ='SAR and RAR (2)'!N25 -> 22.71448393 | N27: ='SAR and RAR (2)'!O25 -> 22.71448393 | O27: -0.00892849019 | P27: 0
B30: Bundled Residential Monthly Average Bills
D31: =$D$24 -> 2025-01-01 | E31: =$E$24 -> 2025-03-01 | F31: Proposed | G31: =$G$24 -> % Change over 1/1/2025 | H31: % Change over Current
B32: Non-CARE | D32: =((D39*4)+(D45*8))/12 -> 186.8593137 | E32: 185.4490066 | F32: 185.4490066 | G32: =$F32/D32-1 -> -0.007547427431 | H32: 0
B33: CARE | D33: 104.2673392 | E33: 103.354591 | F33: 103.354591 | G33: -0.008753923014 | H33: 0
B34: Total | D34: 157.9521226 | E34: 156.7159611 | F34: 156.7159611 | G34: -0.007826178541 | H34: 0
B36: Seasonality:
B37: Bundled Residential Monthly Average Bills - Summer
D38: =$D$24 -> 2025-01-01 | E38: =$E$24 -> 2025-03-01 | F38: Proposed | G38: =$G$24 -> % Change over 1/1/2025 | H38: % Change over Current
B39: Non-CARE | D39: =VLOOKUP($D$4,'Res Bill Impact (2)'!$B$37:$H$46,2,FALSE) -> 257.9491103 | E39: =VLOOKUP($D$4,'Res Bill Impact (2)'!$B$37:$H$46,4,FALSE) -> 256.0260579 | F39: =VLOOKUP($D$4,'Res Bill Impact (2)'!$B$37:$H$46,6,FALSE) -> 256.0260579 | G39: =$F39/D39-1 -> -0.007455161913 | H39: 0
B40: CARE | D40: =VLOOKUP($D$4,'Res Bill Impact (2)'!$B$52:$H$61,2,FALSE) -> 145.4334121 | E40: =VLOOKUP($D$4,'Res Bill Impact (2)'!$B$52:$H$61,4,FALSE) -> 144.1909156 | F40: =VLOOKUP($D$4,'Res Bill Impact (2)'!$B$52:$H$61,6,FALSE) -> 144.1909156 | G40: -0.008543404382 | H40: 0
B41: Total | D41: =D39*0.65+D40*0.35 -> 218.5686159 | E41: =E39*0.65+E40*0.35 -> 216.8837581 | F41: =F39*0.65+F40*0.35 -> 216.8837581 | G41: -0.007708598963 | H41: 0
B43: Bundled Residential Monthly Average Bills - Winter
D44: =$D$24 -> 2025-01-01 | E44: =$E$24 -> 2025-03-01 | F44: Proposed | G44: =$G$24 -> % Change over 1/1/2025 | H44: % Change over Current
B45: Non-CARE | D45: =VLOOKUP($D$4,'Res Bill Impact (2)'!$B$37:$H$46,3,FALSE) -> 151.3144154 | E45: =VLOOKUP($D$4,'Res Bill Impact (2)'!$B$37:$H$46,5,FALSE) -> 150.160481 | F45: =VLOOKUP($D$4,'Res Bill Impact (2)'!$B$37:$H$46,7,FALSE) -> 150.160481 | G45: =$F45/D45-1 -> -0.00762607099 | H45: 0
B46: CARE | D46: =VLOOKUP($D$4,'Res Bill Impact (2)'!$B$52:$H$61,3,FALSE) -> 83.68430279 | E46: =VLOOKUP($D$4,'Res Bill Impact (2)'!$B$52:$H$61,5,FALSE) -> 82.93642863 | F46: =VLOOKUP($D$4,'Res Bill Impact (2)'!$B$52:$H$61,7,FALSE) -> 82.93642863 | G46: -0.008936851246 | H46: 0
B47: Total | D47: =D45*0.65+D46*0.35 -> 127.643876 | E47: =E45*0.65+E46*0.35 -> 126.6320626 | F47: =F45*0.65+F46*0.35 -> 126.6320626 | G47: -0.007926846142 | H47: 0
B50: Bundled Residential Monthly Average Bills
D51: =$D$24 -> 2025-01-01 | E51: =$E$24 -> 2025-03-01 | F51: =$F$24 -> Proposed | G51: =$G$24 -> % Change over 1/1/2025 | H51: % Change over Current
B52: Essential Use (Basic) - Non-CARE | D52: =((D59*4)+(D66*8))/12 -> 129.7299798 | E52: 128.7305887 | F52: 128.7305887 | G52: =$F52/D52-1 -> -0.007703624812 | H52: 0
B53: Essential Use (Basic) - CARE | D53: 77.88462184 | E53: 77.17965717 | F53: 77.17965717 | G53: -0.009051397481 | H53: 0
B54: Essential Use (All-Electric) - Non-CARE | D54: 127.7037209 | E54: 126.7189908 | F54: 126.7189908 | G54: -0.007711052505 | H54: 0
B55: Essential Use (All-Electric) - CARE | D55: =((D62*4)+(D69*8))/12 -> 76.61452959 | E55: =((E62*4)+(E69*8))/12 -> 75.9199067 | F55: =((F62*4)+(F69*8))/12 -> 75.9199067 | G55: -0.009066464203 | H55: 0
B57: Bundled Residential Monthly Average Bills - Summer
D58: =$D$24 -> 2025-01-01 | E58: =$E$24 -> 2025-03-01 | F58: =$F$24 -> Proposed | G58: =$G$24 -> % Change over 1/1/2025 | H58: % Change over Current
B59: Essential Use (Basic) - Non-CARE | D59: =VLOOKUP($D$4,'Res Bill Impact (2)'!$J$37:$P$46,2,FALSE) -> 162.8255414 | E59: =VLOOKUP($D$4,'Res Bill Impact (2)'!$J$37:$P$46,4,FALSE) -> 161.5866874 | F59: =VLOOKUP($D$4,'Res Bill Impact (2)'!$J$37:$P$46,6,FALSE) -> 161.5866874 | G59: =$F59/D59-1 -> -0.007608474584 | H59: 0
B60: Essential Use (Basic) - CARE | D60: =VLOOKUP($D$4,'Res Bill Impact (2)'!$R$37:$X$46,2,FALSE) -> 98.62946196 | E60: =VLOOKUP($D$4,'Res Bill Impact (2)'!$R$37:$X$46,4,FALSE) -> 97.75558155 | F60: =VLOOKUP($D$4,'Res Bill Impact (2)'!$R$37:$X$46,6,FALSE) -> 97.75558155 | G60: -0.008860237019 | H60: 0
B61: Essential Use (All-Electric) - Non-CARE | D61: =VLOOKUP($D$4,'Res Bill Impact (2)'!$J$52:$P$61,2,FALSE) -> 118.2478462 | E61: =VLOOKUP($D$4,'Res Bill Impact (2)'!$J$52:$P$61,4,FALSE) -> 117.331534 | F61: =VLOOKUP($D$4,'Res Bill Impact (2)'!$J$52:$P$61,6,FALSE) -> 117.331534 | G61: -0.00774908089 | H61: 0
B62: Essential Use (All-Electric) - CARE | D62: =VLOOKUP($D$4,'Res Bill Impact (2)'!$R$52:$X$61,2,FALSE) -> 70.68743242 | E62: =VLOOKUP($D$4,'Res Bill Impact (2)'!$R$52:$X$61,4,FALSE) -> 70.04107117 | F62: =VLOOKUP($D$4,'Res Bill Impact (2)'!$R$52:$X$61,6,FALSE) -> 70.04107117 | G62: -0.009143934472 | H62: 0
B64: Bundled Residential Monthly Average Bills - Winter
D65: =$D$24 -> 2025-01-01 | E65: =$E$24 -> 2025-03-01 | F65: =$F$24 -> Proposed | G65: =$G$24 -> % Change over 1/1/2025 | H65: % Change over Current
B66: Essential Use (Basic) - Non-CARE | D66: =VLOOKUP($D$4,'Res Bill Impact (2)'!$J$37:$P$46,3,FALSE) -> 113.182199 | E66: =VLOOKUP($D$4,'Res Bill Impact (2)'!$J$37:$P$46,5,FALSE) -> 112.3025393 | F66: =VLOOKUP($D$4,'Res Bill Impact (2)'!$J$37:$P$46,7,FALSE) -> 112.3025393 | G66: =$F66/D66-1 -> -0.007772067055 | H66: 0
B67: Essential Use (Basic) - CARE | D67: =VLOOKUP($D$4,'Res Bill Impact (2)'!$R$37:$X$46,3,FALSE) -> 67.51220179 | E67: =VLOOKUP($D$4,'Res Bill Impact (2)'!$R$37:$X$46,5,FALSE) -> 66.89169499 | F67: =VLOOKUP($D$4,'Res Bill Impact (2)'!$R$37:$X$46,7,FALSE) -> 66.89169499 | G67: -0.009191031896 | H67: 0
B68: Essential Use (All-Electric) - Non-CARE | D68: =VLOOKUP($D$4,'Res Bill Impact (2)'!$J$52:$P$61,3,FALSE) -> 132.4316583 | E68: =VLOOKUP($D$4,'Res Bill Impact (2)'!$J$52:$P$61,5,FALSE) -> 131.4127192 | F68: =VLOOKUP($D$4,'Res Bill Impact (2)'!$J$52:$P$61,7,FALSE) -> 131.4127192 | G68: -0.007694074788 | H68: 0
B69: Essential Use (All-Electric) - CARE | D69: =VLOOKUP($D$4,'Res Bill Impact (2)'!$R$52:$X$61,3,FALSE) -> 79.57807818 | E69: =VLOOKUP($D$4,'Res Bill Impact (2)'!$R$52:$X$61,5,FALSE) -> 78.85932447 | F69: =VLOOKUP($D$4,'Res Bill Impact (2)'!$R$52:$X$61,7,FALSE) -> 78.85932447 | G69: -0.009032056647 | H69: 0
B72: Bundled Residential Monthly Average Bills
D73: =$D$24 -> 2025-01-01 | E73: =$E$24 -> 2025-03-01 | F73: =$F$24 -> Proposed | G73: =$G$24 -> % Change over 1/1/2025 | H73: % Change over Current
B74: =D5&"kWh Monthly Usage - Non-CARE" -> 500kWh Monthly Usage - Non-CARE | D74: =((D79*4)+(D84*8))/12 -> 166.708113 | E74: 165.4428148 | F74: 165.4428148 | G74: =$F74/D74-1 -> -0.007589901839 | H74: 0
B75: =D5&"kWh Monthly Usage - CARE" -> 500kWh Monthly Usage - CARE | D75: 101.4753954 | E75: 100.5848966 | F75: 100.5848966 | G75: -0.00877551446 | H75: 0
B77: Bundled Residential Monthly Average Bills - Summer
D78: =$D$24 -> 2025-01-01 | E78: =$E$24 -> 2025-03-01 | F78: =$F$24 -> Proposed | G78: =$G$24 -> % Change over 1/1/2025 | H78: % Change over Current
B79: =D5&"kWh Monthly Usage - Non-CARE" -> 500kWh Monthly Usage - Non-CARE | D79: =VLOOKUP($D$4,'Res Bill Impact (2)'!$J$67:$P$76,2,FALSE) -> 158.1466667 | E79: =VLOOKUP($D$4,'Res Bill Impact (2)'!$J$67:$P$76,4,FALSE) -> 156.9416667 | F79: =VLOOKUP($D$4,'Res Bill Impact (2)'!$J$67:$P$76,6,FALSE) -> 156.9416667 | G79: =$F79/D79-1 -> -0.007619509316 | H79: 0
B80: =D5&"kWh Monthly Usage - CARE" -> 500kWh Monthly Usage - CARE | D80: =VLOOKUP($D$4,'Res Bill Impact (2)'!$R$67:$X$76,2,FALSE) -> 95.69666667 | E80: =VLOOKUP($D$4,'Res Bill Impact (2)'!$R$67:$X$76,4,FALSE) -> 94.84666667 | F80: =VLOOKUP($D$4,'Res Bill Impact (2)'!$R$67:$X$76,6,FALSE) -> 94.84666667 | G80: -0.008882232053 | H80: 0
B82: Bundled Residential Monthly Average Bills - Winter
D83: =$D$24 -> 2025-01-01 | E83: =$E$24 -> 2025-03-01 | F83: =$F$24 -> Proposed | G83: =$G$24 -> % Change over 1/1/2025 | H83: % Change over Current
B84: =D5&"kWh Monthly Usage - Non-CARE" -> 500kWh Monthly Usage - Non-CARE | D84: =VLOOKUP($D$4,'Res Bill Impact (2)'!$J$67:$P$76,3,FALSE) -> 170.9888361 | E84: =VLOOKUP($D$4,'Res Bill Impact (2)'!$J$67:$P$76,5,FALSE) -> 169.6933888 | F84: =VLOOKUP($D$4,'Res Bill Impact (2)'!$J$67:$P$76,7,FALSE) -> 169.6933888 | G84: =$F84/D84-1 -> -0.00757620994 | H84: 0
B85: =D5&"kWh Monthly Usage - CARE" -> 500kWh Monthly Usage - CARE | D85: =VLOOKUP($D$4,'Res Bill Impact (2)'!$R$67:$X$76,3,FALSE) -> 104.3647598 | E85: =VLOOKUP($D$4,'Res Bill Impact (2)'!$R$67:$X$76,5,FALSE) -> 103.4540116 | F85: =VLOOKUP($D$4,'Res Bill Impact (2)'!$R$67:$X$76,7,FALSE) -> 103.4540116 | G85: -0.008726587418 | H85: 0
B88: Bundled Residential Monthly Average Bills
D89: =$D$24 -> 2025-01-01 | E89: =$E$24 -> 2025-03-01 | F89: Proposed | G89: =$G$24 -> % Change over 1/1/2025 | H89: % Change over Current
B90: All-Electric - Non-CARE | D90: =((D96*4)+(D102*8))/12 -> 139.7381152 | E90: 138.6672297 | F90: 138.6672297 | G90: =$F90/D90-1 -> -0.007663517845 | H90: 0
B91: All-Electric - CARE | D91: 81.86581957 | E91: 81.131589 | F91: 81.131589 | G91: -0.008968707273 | H91: 0
B92: All-Electric - Total | D92: 119.4828118 | E92: 118.5297555 | F92: 118.5297555 | G92: -0.007976513833 | H92: 0
B94: Bundled Residential Monthly Average Bills - Summer
D95: =$D$24 -> 2025-01-01 | E95: =$E$24 -> 2025-03-01 | F95: Proposed | G95: =$G$24 -> % Change over 1/1/2025 | H95: % Change over Current
B96: All-Electric - Non-CARE | D96: =VLOOKUP($D$4,'Res Bill Impact (2)'!$B$67:$H$76,2,FALSE) -> 182.7427053 | E96: =VLOOKUP($D$4,'Res Bill Impact (2)'!$B$67:$H$76,4,FALSE) -> 181.3624989 | F96: =VLOOKUP($D$4,'Res Bill Impact (2)'!$B$67:$H$76,6,FALSE) -> 181.3624989 | G96: =$F96/D96-1 -> -0.007552730461 | H96: 0
B97: All-Electric - CARE | D97: =VLOOKUP($D$4,'Res Bill Impact (2)'!$B$82:$H$91,2,FALSE) -> 106.1209049 | E97: =VLOOKUP($D$4,'Res Bill Impact (2)'!$B$82:$H$91,4,FALSE) -> 105.1954786 | F97: =VLOOKUP($D$4,'Res Bill Impact (2)'!$B$82:$H$91,6,FALSE) -> 105.1954786 | G97: -0.00872049002 | H97: 0
B98: All-Electric - Total | D98: =D96*0.65+D97*0.35 -> 155.9250751 | E98: =E96*0.65+E97*0.35 -> 154.7040418 | F98: =F96*0.65+F97*0.35 -> 154.7040418 | G98: -0.007830898006 | H98: 0
B100: Bundled Residential Monthly Average Bills - Winter
D101: =$D$24 -> 2025-01-01 | E101: =$E$24 -> 2025-03-01 | F101: Proposed | G101: =$G$24 -> % Change over 1/1/2025 | H101: % Change over Current
B102: All-Electric - Non-CARE | D102: =VLOOKUP($D$4,'Res Bill Impact (2)'!$B$67:$H$76,3,FALSE) -> 118.2358202 | E102: =VLOOKUP($D$4,'Res Bill Impact (2)'!$B$67:$H$76,5,FALSE) -> 117.3195951 | F102: =VLOOKUP($D$4,'Res Bill Impact (2)'!$B$67:$H$76,7,FALSE) -> 117.3195951 | G102: =$F102/D102-1 -> -0.007749133127 | H102: 0
B103: All-Electric - CARE | D103: =VLOOKUP($D$4,'Res Bill Impact (2)'!$B$82:$H$91,3,FALSE) -> 69.73827691 | E103: =VLOOKUP($D$4,'Res Bill Impact (2)'!$B$82:$H$91,5,FALSE) -> 69.0996442 | F103: =VLOOKUP($D$4,'Res Bill Impact (2)'!$B$82:$H$91,7,FALSE) -> 69.0996442 | G103: -0.00915756367 | H103: 0
B104: All-Electric - Total | D104: =D102*0.65+D103*0.35 -> 101.2616801 | E104: =E102*0.65+E103*0.35 -> 100.4426123 | F104: =F102*0.65+F103*0.35 -> 100.4426123 | G104: -0.008088625141 | H104: 0
B106: Small Commercial Monthly Average Bills
D107: =$D$24 -> 2025-01-01 | E107: =$E$24 -> 2025-03-01 | F107: Proposed | G107: =$G$24 -> % Change over 1/1/2025 | H107: % Change over Current
B108: NAICS 531 | D108: =((D114*4)+(D120*8))/12 -> 200.0192632 | E108: 198.8346835 | F108: 198.8346835 | G108: =$F108/D108-1 -> -0.005922327773 | H108: =$F108/E108-1 -> 0
B109: NAICS 621 | D109: 276.15071 | E109: 274.487772 | F109: 274.487772 | G109: -0.00602184938 | H109: 0
B110: NAICS 722 | D110: 798.5610323 | E110: 793.6171429 | F110: 793.6171429 | G110: -0.006190997554 | H110: 0
B112: Small Commercial Monthly Average Bills - Summer
D113: =$D$24 -> 2025-01-01 | E113: =$E$24 -> 2025-03-01 | F113: Proposed | G113: =$G$24 -> % Change over 1/1/2025 | H113: % Change over Current
B114: NAICS 531 | D114: ='Bill Impact (GS1) (2)'!C37 -> 221.6737636 | E114: ='Bill Impact (GS1) (2)'!E37 -> 220.4281496 | F114: ='Bill Impact (GS1) (2)'!G37 -> 220.4281496 | G114: =$F114/D114-1 -> -0.00561913134 | H114: =$F114/E114-1 -> 0
B115: NAICS 621 | D115: ='Bill Impact (GS1) (2)'!C38 -> 369.469769 | E115: ='Bill Impact (GS1) (2)'!E38 -> 367.3738187 | F115: ='Bill Impact (GS1) (2)'!G38 -> 367.3738187 | G115: -0.00567286012 | H115: 0
B116: NAICS 722 | D116: ='Bill Impact (GS1) (2)'!C39 -> 1048.787661 | E116: ='Bill Impact (GS1) (2)'!E39 -> 1042.716307 | F116: ='Bill Impact (GS1) (2)'!G39 -> 1042.716307 | G116: -0.005788926377 | H116: 0
B118: Small Commercial Monthly Average Bills - Winter
D119: =$D$24 -> 2025-01-01 | E119: =$E$24 -> 2025-03-01 | F119: Proposed | G119: =$G$24 -> % Change over 1/1/2025 | H119: % Change over Current
B120: NAICS 531 | D120: ='Bill Impact (GS1) (2)'!D37 -> 189.192013 | E120: ='Bill Impact (GS1) (2)'!F37 -> 188.0379505 | F120: ='Bill Impact (GS1) (2)'!H37 -> 188.0379505 | G120: =$F120/D120-1 -> -0.006099953386 | H120: =$F120/E120-1 -> 0
B121: NAICS 621 | D121: ='Bill Impact (GS1) (2)'!D38 -> 229.4911805 | E121: ='Bill Impact (GS1) (2)'!F38 -> 228.0447487 | F121: ='Bill Impact (GS1) (2)'!H38 -> 228.0447487 | G121: -0.006302777346 | H121: 0
B122: NAICS 722 | D122: ='Bill Impact (GS1) (2)'!D39 -> 673.4477179 | E122: ='Bill Impact (GS1) (2)'!F39 -> 669.0675611 | F122: ='Bill Impact (GS1) (2)'!H39 -> 669.0675611 | G122: -0.006504078494 | H122: 0

Sheet SAR and RAR (2) (hidden)
B1: CONFIDENTIAL This Excel Sheet Is Marked Confidential In Accordance With Applicable Law and Regulation. Basis for Confidentiality In Accompanying Confidentiality Declaration. Public Disclosure Restricted.
C2: Revenue Change ($000)
B4: Generation | C4: ='Simple Bill Insert Calc (2)'!D8 -> 0 | F4: Allocation
B5: Distribution | C5: ='Simple Bill Insert Calc (2)'!D9 -> 0 | F5: Generation | G5: Distribution | H5: NDC | I5: PPPC | J5: DCPP | K5: NSGC | L5: Transmission | M5: TOTCA | N5: GHG Rev | O5: DWRBC | P5: PUCRF | Q5: SECURITIZATION
B6: Nuclear | C6: ='Simple Bill Insert Calc (2)'!D10 -> 0 | E6: Residential | F6: ='SAR and RAR'!G37 -> 0.4334283004 | G6: 0.4914526662 | H6: ='SAR and RAR'!I37 -> 0.3376537252 | I6: 0.4503833738 | J6: ='SAR and RAR'!K37 -> 0.4505009853 | K6: ='SAR and RAR'!L37 -> 0.438315087 | L6: ='SAR and RAR'!M37 -> 0.4638101825 | M6: ='SAR and RAR'!N37 -> 0.3526671064 | N6: ='SAR and RAR'!O37 -> 0.8258989463 | O6: ='SAR and RAR'!P37 -> 0.251764536 | P6: ='SAR and RAR'!Q37 -> 0.3376537253 | Q6: ='SAR and RAR'!R37 -> 0.3581803258
B7: Public Purpose | C7: ='Simple Bill Insert Calc (2)'!D11 -> 0
B8: DCPP | C8: ='Simple Bill Insert Calc (2)'!D12 -> 0 | F8: Revenue Change ($000) - System
B9: New System Gen | C9: ='Simple Bill Insert Calc (2)'!D13 -> 0 | F9: Generation | G9: Distribution | H9: NDC | I9: PPPC | J9: DCPP | K9: NSGC | L9: Transmission | M9: TOTCA | N9: GHG Rev | O9: DWRBC | P9: PUCRF | Q9: SECURITIZATION | R9: Total | S9: CARE Adj. | V9: % of CARE Sales (Bundled) | W9: ='SAR and RAR'!Q58 -> 0.3399606647
B10: FERC | C10: ='Simple Bill Insert Calc (2)'!D14 -> 0 | E10: Residential | F10: =F6*F11 -> 0 | G10: 0 | H10: 0 | I10: 0 | J10: 0 | K10: 0 | L10: 0 | M10: 0 | N10: 0 | O10: 0 | P10: 0 | Q10: =Q6*Q11 -> 0 | R10: =SUM(F10:Q10) -> 0 | S10: =(-W11+W14) -> 0 | V10: CARE Effective Discount | W10: ='SAR and RAR'!X10 -> 0.325
B11: TOTCA | C11: ='Simple Bill Insert Calc (2)'!D15 -> 0 | E11: Total System | F11: =C4 -> 0 | G11: =C5 -> 0 | H11: =C6 -> 0 | I11: =C7 -> 0 | J11: =C8 -> 0 | K11: =C9 -> 0 | L11: =C10 -> 0 | M11: =C11 -> 0 | N11: =C12 -> 0 | O11: =C13 -> 0 | P11: =C14 -> 0 | Q11: =C15 -> 0 | R11: =SUM(F11:Q11) -> 0 | S11: 0 | V11: CARE Discounst | W11: =SUM(F10*F16/'SAR and RAR'!K58*'SAR and RAR'!O58,G10:M10,P10)*W9*W10 -> 0
B12: GHG Revenue | C12: ='Simple Bill Insert Calc (2)'!D16 -> 0 | V12: non-CARE Sales | W12: ='SAR and RAR'!G58 -> 17636321.61
B13: DWR | C13: ='Simple Bill Insert Calc (2)'!D17 -> 0 | V13: Total Sales (excl. CARE&SL) | W13: ='SAR and RAR'!G64 -> 69620243.43
B14: PUCRF | C14: ='Simple Bill Insert Calc (2)'!D18 -> 0 | F14: Revenue Split - Bundled | R14: Bundled Revenue Change | V14: Res CARE Surcharge | W14: =W11*W12/W13 -> 0
B15: SECURITIZATION | C15: ='Simple Bill Insert Calc (2)'!D19 -> 0 | F15: Generation | G15: Distribution | H15: NDC | I15: PPPC | J15: DCPP | K15: NSGC | L15: Transmission | M15: TOTCA | N15: GHG Rev | O15: DWRBC | P15: PUCRF | Q15: SECURITIZATION | R15: Total
B16: Total | C16: =SUM(C4:C15) -> 0 | E16: Residential | F16: ='SAR and RAR'!G44 -> 1.053497105 | G16: ='SAR and RAR'!H44 -> 0.6807047654 | H16: ='SAR and RAR'!I44 -> 0.7011923278 | I16: ='SAR and RAR'!J44 -> 0.7011923321 | J16: ='SAR and RAR'!K44 -> 0.7011923321 | K16: ='SAR and RAR'!L44 -> 0.7011923321 | L16: ='SAR and RAR'!M44 -> 0.7011923321 | M16: ='SAR and RAR'!N44 -> 0.7011923322 | N16: ='SAR and RAR'!O44 -> 0.7062685803 | O16: ='SAR and RAR'!P44 -> 0.6668875222 | P16: ='SAR and RAR'!Q44 -> 0.7011923324 | Q16: ='SAR and RAR'!R44 -> 0.6668875222 | R16: =SUMPRODUCT(F10:Q10,F16:Q16)+S10*'SAR and RAR'!X15 -> 0
E17: Total System | F17: ='SAR and RAR'!G50 -> 1.048411802 | G17: ='SAR and RAR'!H50 -> 0.6483669672 | H17: ='SAR and RAR'!I50 -> 0.6283028798 | I17: ='SAR and RAR'!J50 -> 0.6429155899 | J17: ='SAR and RAR'!K50 -> 0.6409526177 | K17: ='SAR and RAR'!L50 -> 0.6386900347 | L17: ='SAR and RAR'!M50 -> 0.6641776383 | M17: ='SAR and RAR'!N50 -> 0.6299346499 | N17: ='SAR and RAR'!O50 -> 0.6913063527 | O17: ='SAR and RAR'!P50 -> 0.6102142723 | P17: ='SAR and RAR'!Q50 -> 0.628302884 | Q17: ='SAR and RAR'!R50 -> 0.6204799325 | R17: =SUMPRODUCT(F11:Q11,F17:Q17) -> 0
R19: =N10*N16 -> 0
E22: Bundled | M22: System (Bundled and Unbundled)
E23: ='Simple Bill Insert Calc (2)'!M4&" Sales" -> 2025 Sales | F23: ='SAR and RAR'!G27 -> 3/1/2025 Avg Rates | G23: Proposed Avg Rates | H23: % Change | M23: ='Simple Bill Insert Calc (2)'!M4&" Sales" -> 2025 Sales | N23: ='SAR and RAR'!O27 -> 3/1/2025 Avg Rates | O23: Proposed Avg Rates | P23: % Change
D24: Residential | E24: ='SAR and RAR'!K58 -> 18735934.09 | F24: =IF('Simple Bill Insert Calc (2)'!$D$6="Y",'SAR and RAR'!W32,'SAR and RAR'!X32) -> 31.3824852 | G24: =R16/E24*100+F24 -> 31.3824852 | H24: =G24/F24-1 -> 0 | L24: Residential | M24: ='SAR and RAR'!O58 -> 26720106.92 | N24: =IF('Simple Bill Insert Calc (2)'!$D$6="Y",'SAR and RAR'!Z32,'SAR and RAR'!AA32) -> 28.11056783 | O24: =SUM(R10:S10)/M24*100+N24 -> 28.11056783 | P24: =O24/N24-1 -> 0
D25: Total System | E25: ='SAR and RAR'!K64 -> 49720524.25 | F25: =IF('Simple Bill Insert Calc (2)'!$D$6="Y",'SAR and RAR'!W33,'SAR and RAR'!X33) -> 27.09446696 | G25: =R17/E25*100+F25 -> 27.09446696 | H25: =G25/F25-1 -> 0 | L25: Total System | M25: ='SAR and RAR'!O64 -> 79134642.73 | N25: =IF('Simple Bill Insert Calc (2)'!$D$6="Y",'SAR and RAR'!Z33,'SAR and RAR'!AA33) -> 22.71448393 | O25: =SUM(R11:S11)/M25*100+N25 -> 22.71448393 | P25: =O25/N25-1 -> 0

Sheet Res Bill Impact (2) (hidden)
B1: CONFIDENTIAL This Excel Sheet Is Marked Confidential In Accordance With Applicable Law and Regulation. Basis for Confidentiality In Accompanying Confidentiality Declaration. Public Disclosure Restricted.
E3: Schedule D | O3: Schedule D-CARE
E4: ='Simple Bill Insert Calc (2)'!M4 -> 2025 | F4: ='Simple Bill Insert Calc (2)'!M3 -> 2025-03-01 | G4: Proposed | H4: Proposed | O4: ='Simple Bill Insert Calc (2)'!M4 -> 2025 | P4: ='Simple Bill Insert Calc (2)'!M3 -> 2025-03-01 | Q4: Proposed | R4: Proposed
E5: Sales Forecast | F5: Rates | G5: Rates | H5: Revenue | O5: Sales Forecast | P5: Rates | Q5: Rates | R5: Revenue
D7: Baseline - Summer | E7: ='Res Bill Impact'!F97 -> 2943.673477 | F7: ='Res Bill Impact'!F7 -> 0.33067 | G7: =(V10-SUM(R14:R15,H14:H15))/SUM(SUM(E7:E8),F9/F7*SUM(E9:E10),F11/F7*SUM(E11:E12),SUM(O7:O8)*(1+(P7/F7-1)),SUM(O9:O10)*(1+(P9/F9-1))*F9/F7,SUM(O11:O12)*(1+(P11/F11-1))*F11/F7) -> 0.33067 | H7: =E7*G7 -> 973.3845086 | N7: Baseline - Summer | O7: ='Res Bill Impact'!M97 -> 1949.570369 | P7: ='Res Bill Impact'!P7 -> 0.20708 | Q7: =G7*(1+(P7/F7-1)) -> 0.20708 | R7: =O7*Q7 -> 403.717032 | U7: Bundled Residential Rev Req
D8: - Winter | E8: ='Res Bill Impact'!F98 -> 4098.822658 | F8: ='Res Bill Impact'!F8 -> 0.33067 | G8: =G7 -> 0.33067 | H8: 1355.357688 | N8: - Winter | O8: ='Res Bill Impact'!M98 -> 2973.477977 | P8: ='Res Bill Impact'!P8 -> 0.20708 | Q8: 0.20708 | R8: 615.7478195 | U8: Current | V8: =SUMPRODUCT(E7:E12,F7:F12)+SUMPRODUCT(O7:O12,P7:P12)+(E14*F14*365/12/10^6)+(E15*F15*365/12/10^6)+(O14*P14*365/12/10^6)+(O15*P15*365/12/10^6) -> 5940.484721
D9: 101% - 400% of Baseline - Summer | E9: ='Res Bill Impact'!F99 -> 1823.616652 | F9: ='Res Bill Impact'!F9 -> 0.42513 | G9: =F9/F$7*G$7 -> 0.42513 | H9: 775.2741473 | N9: 101% - 400% of Baseline - Summer | O9: ='Res Bill Impact'!M99 -> 815.8001306 | P9: ='Res Bill Impact'!P9 -> 0.27084 | Q9: 0.27084 | R9: 220.9513074 | U9: Change | V9: ='SAR and RAR (2)'!R16/1000-'SAR and RAR (2)'!R19/1000 -> 0
D10: - Winter | E10: ='Res Bill Impact'!F100 -> 2499.610106 | F10: ='Res Bill Impact'!F10 -> 0.42513 | G10: =G9 -> 0.42513 | H10: 1062.659244 | N10: - Winter | O10: ='Res Bill Impact'!M100 -> 1203.524218 | P10: ='Res Bill Impact'!P10 -> 0.27084 | Q10: 0.27084 | R10: 325.9624992 | U10: Proposed Change | V10: =SUM(V8:V9) -> 5940.484721
D11: 401% of Baseline - Summer | E11: ='Res Bill Impact'!F101 -> 144.6195472 | F11: ='Res Bill Impact'!F11 -> 0.42513 | G11: =F11/F$7*G$7 -> 0.42513 | H11: 61.4821081 | N11: 401% of Baseline - Summer | O11: ='Res Bill Impact'!M101 -> 9.280030494 | P11: ='Res Bill Impact'!P11 -> 0.27084 | Q11: 0.27084 | R11: 2.513403459 | V11: =V10-SUM(H7:H15,R7:R15) -> 0
D12: - Winter | E12: ='Res Bill Impact'!F102 -> 251.1003806 | F12: ='Res Bill Impact'!F12 -> 0.42513 | G12: =G11 -> 0.42513 | H12: 106.7503048 | N12: - Winter | O12: ='Res Bill Impact'!M102 -> 22.83854275 | P12: ='Res Bill Impact'!P12 -> 0.27084 | Q12: 0.27084 | R12: 6.185590918
D14: Basic Charge - Single-Family Residence | E14: ='Res Bill Impact'!F104 -> 18183162 | F14: ='Res Bill Impact'!F14 -> 0.031 | G14: =F14 -> 0.031 | H14: =G14*E14*365/12/10^6 -> 17.1452065 | N14: Basic Charge - Single-Family Residence | O14: ='Res Bill Impact'!M104 -> 6984771 | P14: ='Res Bill Impact'!P14 -> 0.021 | Q14: =P14 -> 0.021 | R14: =Q14*O14*365/12/10^6 -> 4.461522476
D15: Basic Charge - Multi-Family Residence | E15: ='Res Bill Impact'!F105 -> 8271562 | F15: ='Res Bill Impact'!F15 -> 0.024 | G15: =F15 -> 0.024 | H15: =G15*E15*365/12/10^6 -> 6.03824026 | N15: Basic Charge - Multi-Family Residence | O15: ='Res Bill Impact'!M105 -> 5864584 | P15: ='Res Bill Impact'!P15 -> 0.016 | Q15: =P15 -> 0.016 | R15: =Q15*O15*365/12/10^6 -> 2.854097547
O19: ='Res Bill Impact'!O19 -> 2024 Recorded Data - Average Monthly Usage - kWh (Bundled / Basic Service Only) | W19: ='Res Bill Impact'!W19 -> 2024 Recorded Data - Average Monthly Usage - kWh (Bundled / All Electric Only)
B20: SCHEDULE D RATES ($/kWh) | H20: MONTHLY BASELINE QUANTITIES | I20: BASIC | K20: ALL-ELECTRIC | O20: Climate Zone | P20: Summer | Q20: Winter | R20: Summer | S20: Winter | T20: Sample Population Weight | W20: Climate Zone | X20: Summer | Y20: Winter | Z20: Summer | AA20: Winter | AB20: Sample Population Weight
B21: Rates | C21: ='Res Bill Impact'!C21 -> Jan 2025 | D21: ='Simple Bill Insert Calc (2)'!M3 -> 2025-03-01 | E21: Proposed | H21: Climate Zone | I21: Summer | J21: Winter | K21: Summer | L21: Winter | P21: Non-CARE | R21: CARE | T21: Non-CARE | U21: CARE | X21: Non-CARE | Z21: CARE | AB21: Non-CARE | AC21: CARE
B22: Tier 1 | C22: ='Res Bill Impact'!C22 -> 0.33308 | D22: =F7 -> 0.33067 | E22: =G7 -> 0.33067 | H22: 5 warm | I22: 517.089 | J22: 559.6728 | K22: 511.0056 | L22: 821.259 | O22: 5 warm | P22: ='Res Bill Impact'!P22 -> 395.5552996 | Q22: ='Res Bill Impact'!Q22 -> 410.4255495 | R22: ='Res Bill Impact'!R22 -> 370.5382517 | S22: ='Res Bill Impact'!S22 -> 352.8129705 | T22: ='Res Bill Impact'!T22 -> 0.000391559287 | U22: ='Res Bill Impact'!U22 -> 5.780756421e-05 | W22: 5 warm | X22: ='Res Bill Impact'!X22 -> 395.0513658 | Y22: ='Res Bill Impact'!Y22 -> 472.3532524 | Z22: ='Res Bill Impact'!Z22 -> 354.0301735 | AA22: ='Res Bill Impact'!AA22 -> 430.0455986 | AB22: ='Res Bill Impact'!AB22 -> 0.0003215327132 | AC22: ='Res Bill Impact'!AC22 -> 0.0001643349365
B23: Tier 2 | C23: ='Res Bill Impact'!C23 -> 0.42821 | D23: =F9 -> 0.42513 | E23: =G9 -> 0.42513 | H23: 6 cool | I23: 346.7538 | J23: 334.587 | K23: 264.6279 | L23: 383.2542 | O23: 6 cool | P23: ='Res Bill Impact'!P23 -> 441.3631683 | Q23: ='Res Bill Impact'!Q23 -> 378.5967426 | R23: ='Res Bill Impact'!R23 -> 403.4336933 | S23: ='Res Bill Impact'!S23 -> 346.7408462 | T23: ='Res Bill Impact'!T23 -> 0.175728545 | U23: ='Res Bill Impact'!U23 -> 0.06241911603 | W23: 6 cool | X23: ='Res Bill Impact'!X23 -> 333.6664732 | Y23: ='Res Bill Impact'!Y23 -> 330.2803509 | Z23: ='Res Bill Impact'!Z23 -> 364.4793275 | AA23: ='Res Bill Impact'!AA23 -> 373.6317841 | AB23: ='Res Bill Impact'!AB23 -> 0.2756588649 | AC23: ='Res Bill Impact'!AC23 -> 0.1336590817
B24: HUC | C24: ='Res Bill Impact'!C24 -> 0.42821 | D24: =F11 -> 0.42513 | E24: =G11 -> 0.42513 | H24: 8 cool | I24: 389.3376 | J24: 313.2951 | K24: 301.1283 | L24: 374.1291 | O24: 8 cool | P24: ='Res Bill Impact'!P24 -> 568.4975767 | Q24: ='Res Bill Impact'!Q24 -> 397.6071315 | R24: ='Res Bill Impact'!R24 -> 503.0842528 | S24: ='Res Bill Impact'!S24 -> 372.8283632 | T24: ='Res Bill Impact'!T24 -> 0.2213136597 | U24: ='Res Bill Impact'!U24 -> 0.1553419784 | W24: 8 cool | X24: ='Res Bill Impact'!X24 -> 395.5847708 | Y24: ='Res Bill Impact'!Y24 -> 347.0862508 | Z24: ='Res Bill Impact'!Z24 -> 414.4144944 | AA24: ='Res Bill Impact'!AA24 -> 370.2534605 | AB24: ='Res Bill Impact'!AB24 -> 0.2319803089 | AC24: ='Res Bill Impact'!AC24 -> 0.1999079724
H25: 9 warm | I25: 514.0473 | J25: 365.004 | K25: 380.2125 | L25: 422.7963 | O25: 9 warm | P25: ='Res Bill Impact'!P25 -> 736.1896342 | Q25: ='Res Bill Impact'!Q25 -> 454.0542708 | R25: ='Res Bill Impact'!R25 -> 685.496621 | S25: ='Res Bill Impact'!S25 -> 424.2446352 | T25: ='Res Bill Impact'!T25 -> 0.1275808923 | U25: ='Res Bill Impact'!U25 -> 0.0946365769 | W25: 9 warm | X25: ='Res Bill Impact'!X25 -> 530.8275233 | Y25: ='Res Bill Impact'!Y25 -> 380.1763947 | Z25: ='Res Bill Impact'!Z25 -> 510.0101939 | AA25: ='Res Bill Impact'!AA25 -> 375.6663006 | AB25: ='Res Bill Impact'!AB25 -> 0.08053285732 | AC25: ='Res Bill Impact'!AC25 -> 0.08292340896
B26: SCHEDULE D-CARE RATES ($/kWh) | H26: 10 hot (Sec 745) | I26: 587.0481 | J26: 368.0457 | K26: 483.6303 | L26: 498.8388 | O26: 10 hot (Sec 745) | P26: ='Res Bill Impact'!P26 -> 857.9526651 | Q26: ='Res Bill Impact'!Q26 -> 482.0306437 | R26: ='Res Bill Impact'!R26 -> 918.4083871 | S26: ='Res Bill Impact'!S26 -> 499.6563415 | T26: ='Res Bill Impact'!T26 -> 0.3013940598 | U26: ='Res Bill Impact'!U26 -> 0.4075638401 | W26: 10 hot (Sec 745) | X26: ='Res Bill Impact'!X26 -> 627.4953074 | Y26: ='Res Bill Impact'!Y26 -> 427.1016506 | Z26: ='Res Bill Impact'!Z26 -> 660.3259927 | AA26: ='Res Bill Impact'!AA26 -> 426.1138274 | AB26: ='Res Bill Impact'!AB26 -> 0.2614116395 | AC26: ='Res Bill Impact'!AC26 -> 0.3672447605
B27: Rates | C27: =C21 -> Jan 2025 | D27: =D21 -> 2025-03-01 | E27: Proposed | H27: 13 hot | I27: 675.2574 | J27: 371.0874 | K27: 736.0914 | L27: 699.591 | O27: 13 hot | P27: ='Res Bill Impact'!P27 -> 995.7412826 | Q27: ='Res Bill Impact'!Q27 -> 488.3574385 | R27: ='Res Bill Impact'!R27 -> 1027.53491 | S27: ='Res Bill Impact'!S27 -> 485.942318 | T27: ='Res Bill Impact'!T27 -> 0.04959424669 | U27: ='Res Bill Impact'!U27 -> 0.1129503862 | W27: 13 hot | X27: ='Res Bill Impact'!X27 -> 965.9846505 | Y27: ='Res Bill Impact'!Y27 -> 574.7150255 | Z27: ='Res Bill Impact'!Z27 -> 962.9031858 | AA27: ='Res Bill Impact'!AA27 -> 549.7168372 | AB27: ='Res Bill Impact'!AB27 -> 0.03106116883 | AC27: ='Res Bill Impact'!AC27 -> 0.06378386669
B28: Tier 1 | C28: ='Res Bill Impact'!C28 -> 0.20878 | D28: =P7 -> 0.20708 | E28: =Q7 -> 0.20708 | H28: 14 hot | I28: 584.0064 | J28: 361.9623 | K28: 562.7145 | L28: 641.7987 | O28: 14 hot | P28: ='Res Bill Impact'!P28 -> 835.9220396 | Q28: ='Res Bill Impact'!Q28 -> 473.45593 | R28: ='Res Bill Impact'!R28 -> 933.1504328 | S28: ='Res Bill Impact'!S28 -> 527.5764602 | T28: ='Res Bill Impact'!T28 -> 0.06232862483 | U28: ='Res Bill Impact'!U28 -> 0.1067631121 | W28: 14 hot | X28: ='Res Bill Impact'!X28 -> 756.0211147 | Y28: ='Res Bill Impact'!Y28 -> 556.7004427 | Z28: ='Res Bill Impact'!Z28 -> 880.8399974 | AA28: ='Res Bill Impact'!AA28 -> 657.7029793 | AB28: ='Res Bill Impact'!AB28 -> 0.04437151442 | AC28: ='Res Bill Impact'!AC28 -> 0.07098173691
B29: Tier 2 | C29: ='Res Bill Impact'!C29 -> 0.27299 | D29: =P9 -> 0.27084 | E29: =Q9 -> 0.27084 | H29: 15 hot | I29: 1368.765 | J29: 295.0449 | K29: 730.008 | L29: 529.2558 | O29: 15 hot | P29: ='Res Bill Impact'!P29 -> 1219.397003 | Q29: ='Res Bill Impact'!Q29 -> 540.766029 | R29: ='Res Bill Impact'!R29 -> 1360.59217 | S29: ='Res Bill Impact'!S29 -> 535.5743293 | T29: ='Res Bill Impact'!T29 -> 0.03219052405 | U29: ='Res Bill Impact'!U29 -> 0.03515632284 | W29: 15 hot | X29: ='Res Bill Impact'!X29 -> 924.9686507 | Y29: ='Res Bill Impact'!Y29 -> 451.6365116 | Z29: ='Res Bill Impact'!Z29 -> 1114.196822 | AA29: ='Res Bill Impact'!AA29 -> 520.3020094 | AB29: ='Res Bill Impact'!AB29 -> 0.03508032774 | AC29: ='Res Bill Impact'!AC29 -> 0.05084522936
B30: HUC | C30: ='Res Bill Impact'!C30 -> 0.27299 | D30: =P11 -> 0.27084 | E30: =Q12 -> 0.27084 | H30: 16 cool | I30: 447.1299 | J30: 377.1708 | K30: 410.6295 | L30: 705.6744 | O30: 16 cool | P30: ='Res Bill Impact'!P30 -> 565.1396542 | Q30: ='Res Bill Impact'!Q30 -> 416.659723 | R30: ='Res Bill Impact'!R30 -> 776.7883471 | S30: ='Res Bill Impact'!S30 -> 493.603768 | T30: ='Res Bill Impact'!T30 -> 0.02947788832 | U30: ='Res Bill Impact'!U30 -> 0.02511085999 | W30: 16 cool | X30: ='Res Bill Impact'!X30 -> 449.8471198 | Y30: ='Res Bill Impact'!Y30 -> 538.6630052 | Z30: ='Res Bill Impact'!Z30 -> 698.918731 | AA30: ='Res Bill Impact'!AA30 -> 570.1108274 | AB30: ='Res Bill Impact'!AB30 -> 0.03958178573 | AC30: ='Res Bill Impact'!AC30 -> 0.03048960855
N32: Daily to Monthly Conversion Factor | O32: 30.417
C34: NON-CARE | K34: Essential Use (Basic) - Non-CARE | S34: Essential Use (Basic) - CARE
C35: =C27 -> Jan 2025 | E35: =D27 -> 2025-03-01 | G35: =E21 -> Proposed | K35: =C35 -> Jan 2025 | M35: =E35 -> 2025-03-01 | O35: =G35 -> Proposed | S35: =K35 -> Jan 2025 | U35: =M35 -> 2025-03-01 | W35: =O35 -> Proposed
C36: Summer | D36: Winter | E36: Summer | F36: Winter | G36: Summer | H36: Winter | K36: Summer | L36: Winter | M36: Summer | N36: Winter | O36: Summer | P36: Winter | S36: Summer | T36: Winter | U36: Summer | V36: Winter | W36: Summer | X36: Winter
B37: 5 warm | C37: =C$22*MIN(I22,P22)+IF(P22-I22>0,C$23*(P22-I22))+ROUND($F$14*365/12,2)+('Simple Bill Insert Calc (2)'!M17*2)/12 -> 123.3582259 | D37: =C$22*MIN(J22,Q22)+IF(Q22-J22>0,C$23*(Q22-J22))+ROUND($F$14*365/12,2)+('Simple Bill Insert Calc (2)'!M17*2)/12 -> 128.3112087 | E37: =D$22*MIN(I22,P22)+IF(P22-I22>0,D$23*(P22-I22))+ROUND($F$14*365/12,2)+('Simple Bill Insert Calc (2)'!M17*2)/12 -> 122.4049376 | F37: =D$22*MIN(J22,Q22)+IF(Q22-J22>0,D$23*(Q22-J22))+ROUND($F$14*365/12,2)+('Simple Bill Insert Calc (2)'!M17*2)/12 -> 127.3220831 | G37: =E$22*MIN(I22,P22)+IF(P22-I22>0,E$23*(P22-I22))+ROUND($F$14*365/12,2)+('Simple Bill Insert Calc (2)'!M17*2)/12 -> 122.4049376 | H37: =E$22*MIN(J22,Q22)+IF(Q22-J22>0,E$23*(Q22-J22))+ROUND($F$14*365/12,2)+('Simple Bill Insert Calc (2)'!M17*2)/12 -> 127.3220831 | J37: 5 warm | K37: =C$22*I22+ROUND($F$14*365/12,2)+('Simple Bill Insert Calc (2)'!M17*2)/12 -> 163.8386708 | L37: =C$22*J22+ROUND($F$14*365/12,2)+('Simple Bill Insert Calc (2)'!M17*2)/12 -> 178.0224829 | M37: =D$22*I22+ROUND($F$14*365/12,2)+('Simple Bill Insert Calc (2)'!M17*2)/12 -> 162.5924863 | N37: =D$22*J22+ROUND($F$14*365/12,2)+('Simple Bill Insert Calc (2)'!M17*2)/12 -> 176.6736714 | O37: =E$22*I22+ROUND($F$14*365/12,2)+('Simple Bill Insert Calc (2)'!M17*2)/12 -> 162.5924863 | P37: =E$22*J22+ROUND($F$14*365/12,2)+('Simple Bill Insert Calc (2)'!M17*2)/12 -> 176.6736714 | R37: 5 warm | S37: =C$28*I22+ROUND($P$14*365/12,2)+('Simple Bill Insert Calc (2)'!M17*2)/12 -> 99.26450809 | T37: =C$28*J22+ROUND($P$14*365/12,2)+('Simple Bill Insert Calc (2)'!M17*2)/12 -> 108.1551539 | U37: =D$28*I22+ROUND($P$14*365/12,2)+('Simple Bill Insert Calc (2)'!M17*2)/12 -> 98.38545679 | V37: =D$28*J22+ROUND($P$14*365/12,2)+('Simple Bill Insert Calc (2)'!M17*2)/12 -> 107.2037101 | W37: =E$28*I22+ROUND($P$14*365/12,2)+('Simple Bill Insert Calc (2)'!M17*2)/12 -> 98.38545679 | X37: =E$28*J22+ROUND($P$14*365/12,2)+('Simple Bill Insert Calc (2)'!M17*2)/12 -> 107.2037101
B38: 6 cool | C38: =C$22*MIN(I23,P23)+IF(P23-I23>0,C$23*(P23-I23))+ROUND($F$14*365/12,2)+('Simple Bill Insert Calc (2)'!M17*2)/12 -> 147.6161 | D38: =C$22*MIN(J23,Q23)+IF(Q23-J23>0,C$23*(Q23-J23))+ROUND($F$14*365/12,2)+('Simple Bill Insert Calc (2)'!M17*2)/12 -> 121.8963165 | E38: =D$22*MIN(I23,P23)+IF(P23-I23>0,D$23*(P23-I23))+ROUND($F$14*365/12,2)+('Simple Bill Insert Calc (2)'!M17*2)/12 -> 146.4890265 | F38: =D$22*MIN(J23,Q23)+IF(Q23-J23>0,D$23*(Q23-J23))+ROUND($F$14*365/12,2)+('Simple Bill Insert Calc (2)'!M17*2)/12 -> 120.9544118 | G38: =E$22*MIN(I23,P23)+IF(P23-I23>0,E$23*(P23-I23))+ROUND($F$14*365/12,2)+('Simple Bill Insert Calc (2)'!M17*2)/12 -> 146.4890265 | H38: =E$22*MIN(J23,Q23)+IF(Q23-J23>0,E$23*(Q23-J23))+ROUND($F$14*365/12,2)+('Simple Bill Insert Calc (2)'!M17*2)/12 -> 120.9544118 | J38: 6 cool | K38: =C$22*I23+ROUND($F$14*365/12,2)+('Simple Bill Insert Calc (2)'!M17*2)/12 -> 107.1034224 | L38: =C$22*J23+ROUND($F$14*365/12,2)+('Simple Bill Insert Calc (2)'!M17*2)/12 -> 103.0509046 | M38: =D$22*I23+ROUND($F$14*365/12,2)+('Simple Bill Insert Calc (2)'!M17*2)/12 -> 106.2677457 | N38: =D$22*J23+ROUND($F$14*365/12,2)+('Simple Bill Insert Calc (2)'!M17*2)/12 -> 102.24455 | O38: =E$22*I23+ROUND($F$14*365/12,2)+('Simple Bill Insert Calc (2)'!M17*2)/12 -> 106.2677457 | P38: =E$22*J23+ROUND($F$14*365/12,2)+('Simple Bill Insert Calc (2)'!M17*2)/12 -> 102.24455 | R38: 6 cool | S38: =C$28*I23+ROUND($P$14*365/12,2)+('Simple Bill Insert Calc (2)'!M17*2)/12 -> 63.70192503 | T38: =C$28*J23+ROUND($P$14*365/12,2)+('Simple Bill Insert Calc (2)'!M17*2)/12 -> 61.16174053 | U38: =D$28*I23+ROUND($P$14*365/12,2)+('Simple Bill Insert Calc (2)'!M17*2)/12 -> 63.11244357 | V38: =D$28*J23+ROUND($P$14*365/12,2)+('Simple Bill Insert Calc (2)'!M17*2)/12 -> 60.59294263 | W38: =E$28*I23+ROUND($P$14*365/12,2)+('Simple Bill Insert Calc (2)'!M17*2)/12 -> 63.11244357 | X38: =E$28*J23+ROUND($P$14*365/12,2)+('Simple Bill Insert Calc (2)'!M17*2)/12 -> 60.59294263
B39: 8 cool | C39: =C$22*MIN(I24,P24)+IF(P24-I24>0,C$23*(P24-I24))+ROUND($F$14*365/12,2)+('Simple Bill Insert Calc (2)'!M17*2)/12 -> 198.0053281 | D39: =C$22*MIN(J24,Q24)+IF(Q24-J24>0,C$23*(Q24-J24))+ROUND($F$14*365/12,2)+('Simple Bill Insert Calc (2)'!M17*2)/12 -> 132.0622536 | E39: =D$22*MIN(I24,P24)+IF(P24-I24>0,D$23*(P24-I24))+ROUND($F$14*365/12,2)+('Simple Bill Insert Calc (2)'!M17*2)/12 -> 196.5152117 | F39: =D$22*MIN(J24,Q24)+IF(Q24-J24>0,D$23*(Q24-J24))+ROUND($F$14*365/12,2)+('Simple Bill Insert Calc (2)'!M17*2)/12 -> 131.0475313 | G39: =E$22*MIN(I24,P24)+IF(P24-I24>0,E$23*(P24-I24))+ROUND($F$14*365/12,2)+('Simple Bill Insert Calc (2)'!M17*2)/12 -> 196.5152117 | H39: =E$22*MIN(J24,Q24)+IF(Q24-J24>0,E$23*(Q24-J24))+ROUND($F$14*365/12,2)+('Simple Bill Insert Calc (2)'!M17*2)/12 -> 131.0475313 | J39: 8 cool | K39: =C$22*I24+ROUND($F$14*365/12,2)+('Simple Bill Insert Calc (2)'!M17*2)/12 -> 121.2872345 | L39: =C$22*J24+ROUND($F$14*365/12,2)+('Simple Bill Insert Calc (2)'!M17*2)/12 -> 95.95899857 | M39: =D$22*I24+ROUND($F$14*365/12,2)+('Simple Bill Insert Calc (2)'!M17*2)/12 -> 120.3489309 | N39: =D$22*J24+ROUND($F$14*365/12,2)+('Simple Bill Insert Calc (2)'!M17*2)/12 -> 95.20395738 | O39: =E$22*I24+ROUND($F$14*365/12,2)+('Simple Bill Insert Calc (2)'!M17*2)/12 -> 120.3489309 | P39: =E$22*J24+ROUND($F$14*365/12,2)+('Simple Bill Insert Calc (2)'!M17*2)/12 -> 95.20395738 | R39: 8 cool | S39: =C$28*I24+ROUND($P$14*365/12,2)+('Simple Bill Insert Calc (2)'!M17*2)/12 -> 72.59257079 | T39: =C$28*J24+ROUND($P$14*365/12,2)+('Simple Bill Insert Calc (2)'!M17*2)/12 -> 56.71641764 | U39: =D$28*I24+ROUND($P$14*365/12,2)+('Simple Bill Insert Calc (2)'!M17*2)/12 -> 71.93069687 | V39: =D$28*J24+ROUND($P$14*365/12,2)+('Simple Bill Insert Calc (2)'!M17*2)/12 -> 56.18381597 | W39: =E$28*I24+ROUND($P$14*365/12,2)+('Simple Bill Insert Calc (2)'!M17*2)/12 -> 71.93069687 | X39: =E$28*J24+ROUND($P$14*365/12,2)+('Simple Bill Insert Calc (2)'!M17*2)/12 -> 56.18381597
B40: 9 warm | C40: =C$22*MIN(I25,P25)+IF(P25-I25>0,C$23*(P25-I25))+ROUND($F$14*365/12,2)+('Simple Bill Insert Calc (2)'!M17*2)/12 -> 257.9491103 | D40: =C$22*MIN(J25,Q25)+IF(Q25-J25>0,C$23*(Q25-J25))+ROUND($F$14*365/12,2)+('Simple Bill Insert Calc (2)'!M17*2)/12 -> 151.3144154 | E40: =D$22*MIN(I25,P25)+IF(P25-I25>0,D$23*(P25-I25))+ROUND($F$14*365/12,2)+('Simple Bill Insert Calc (2)'!M17*2)/12 -> 256.0260579 | F40: =D$22*MIN(J25,Q25)+IF(Q25-J25>0,D$23*(Q25-J25))+ROUND($F$14*365/12,2)+('Simple Bill Insert Calc (2)'!M17*2)/12 -> 150.160481 | G40: =E$22*MIN(I25,P25)+IF(P25-I25>0,E$23*(P25-I25))+ROUND($F$14*365/12,2)+('Simple Bill Insert Calc (2)'!M17*2)/12 -> 256.0260579 | H40: =E$22*MIN(J25,Q25)+IF(Q25-J25>0,E$23*(Q25-J25))+ROUND($F$14*365/12,2)+('Simple Bill Insert Calc (2)'!M17*2)/12 -> 150.160481 | J40: 9 warm | K40: =C$22*I25+ROUND($F$14*365/12,2)+('Simple Bill Insert Calc (2)'!M17*2)/12 -> 162.8255414 | L40: =C$22*J25+ROUND($F$14*365/12,2)+('Simple Bill Insert Calc (2)'!M17*2)/12 -> 113.182199 | M40: =D$22*I25+ROUND($F$14*365/12,2)+('Simple Bill Insert Calc (2)'!M17*2)/12 -> 161.5866874 | N40: =D$22*J25+ROUND($F$14*365/12,2)+('Simple Bill Insert Calc (2)'!M17*2)/12 -> 112.3025393 | O40: =E$22*I25+ROUND($F$14*365/12,2)+('Simple Bill Insert Calc (2)'!M17*2)/12 -> 161.5866874 | P40: =E$22*J25+ROUND($F$14*365/12,2)+('Simple Bill Insert Calc (2)'!M17*2)/12 -> 112.3025393 | R40: 9 warm | S40: =C$28*I25+ROUND($P$14*365/12,2)+('Simple Bill Insert Calc (2)'!M17*2)/12 -> 98.62946196 | T40: =C$28*J25+ROUND($P$14*365/12,2)+('Simple Bill Insert Calc (2)'!M17*2)/12 -> 67.51220179 | U40: =D$28*I25+ROUND($P$14*365/12,2)+('Simple Bill Insert Calc (2)'!M17*2)/12 -> 97.75558155 | V40: =D$28*J25+ROUND($P$14*365/12,2)+('Simple Bill Insert Calc (2)'!M17*2)/12 -> 66.89169499 | W40: =E$28*I25+ROUND($P$14*365/12,2)+('Simple Bill Insert Calc (2)'!M17*2)/12 -> 97.75558155 | X40: =E$28*J25+ROUND($P$14*365/12,2)+('Simple Bill Insert Calc (2)'!M17*2)/12 -> 66.89169499
B41: 10 hot (Sec 745) | C41: =C$22*MIN(I26,P26)+IF(P26-I26>0,C$23*(P26-I26))+ROUND($F$14*365/12,2)+('Simple Bill Insert Calc (2)'!M17*2)/12 -> 303.1446916 | D41: =C$22*MIN(J26,Q26)+IF(Q26-J26>0,C$23*(Q26-J26))+ROUND($F$14*365/12,2)+('Simple Bill Insert Calc (2)'!M17*2)/12 -> 163.0048212 | E41: =D$22*MIN(I26,P26)+IF(P26-I26>0,D$23*(P26-I26))+ROUND($F$14*365/12,2)+('Simple Bill Insert Calc (2)'!M17*2)/12 -> 300.8955196 | F41: =D$22*MIN(J26,Q26)+IF(Q26-J26>0,D$23*(Q26-J26))+ROUND($F$14*365/12,2)+('Simple Bill Insert Calc (2)'!M17*2)/12 -> 161.7667574 | G41: =E$22*MIN(I26,P26)+IF(P26-I26>0,E$23*(P26-I26))+ROUND($F$14*365/12,2)+('Simple Bill Insert Calc (2)'!M17*2)/12 -> 300.8955196 | H41: =E$22*MIN(J26,Q26)+IF(Q26-J26>0,E$23*(Q26-J26))+ROUND($F$14*365/12,2)+('Simple Bill Insert Calc (2)'!M17*2)/12 -> 161.7667574 | J41: 10 hot (Sec 745) | K41: =C$22*I26+ROUND($F$14*365/12,2)+('Simple Bill Insert Calc (2)'!M17*2)/12 -> 187.1406478 | L41: =C$22*J26+ROUND($F$14*365/12,2)+('Simple Bill Insert Calc (2)'!M17*2)/12 -> 114.1953284 | M41: =D$22*I26+ROUND($F$14*365/12,2)+('Simple Bill Insert Calc (2)'!M17*2)/12 -> 185.7258619 | N41: =D$22*J26+ROUND($F$14*365/12,2)+('Simple Bill Insert Calc (2)'!M17*2)/12 -> 113.3083383 | O41: =E$22*I26+ROUND($F$14*365/12,2)+('Simple Bill Insert Calc (2)'!M17*2)/12 -> 185.7258619 | P41: =E$22*J26+ROUND($F$14*365/12,2)+('Simple Bill Insert Calc (2)'!M17*2)/12 -> 113.3083383 | R41: 10 hot (Sec 745) | S41: =C$28*I26+ROUND($P$14*365/12,2)+('Simple Bill Insert Calc (2)'!M17*2)/12 -> 113.870569 | T41: =C$28*J26+ROUND($P$14*365/12,2)+('Simple Bill Insert Calc (2)'!M17*2)/12 -> 68.14724791 | U41: =D$28*I26+ROUND($P$14*365/12,2)+('Simple Bill Insert Calc (2)'!M17*2)/12 -> 112.8725872 | V41: =D$28*J26+ROUND($P$14*365/12,2)+('Simple Bill Insert Calc (2)'!M17*2)/12 -> 67.52157022 | W41: =E$28*I26+ROUND($P$14*365/12,2)+('Simple Bill Insert Calc (2)'!M17*2)/12 -> 112.8725872 | X41: =E$28*J26+ROUND($P$14*365/12,2)+('Simple Bill Insert Calc (2)'!M17*2)/12 -> 67.52157022
B42: 13 hot | C42: =C$22*MIN(I27,P27)+IF(P27-I27>0,C$23*(P27-I27))+ROUND($F$14*365/12,2)+('Simple Bill Insert Calc (2)'!M17*2)/12 -> 353.7558048 | D42: =C$22*MIN(J27,Q27)+IF(Q27-J27>0,C$23*(Q27-J27))+ROUND($F$14*365/12,2)+('Simple Bill Insert Calc (2)'!M17*2)/12 -> 165.4246611 | E42: =D$22*MIN(I27,P27)+IF(P27-I27>0,D$23*(P27-I27))+ROUND($F$14*365/12,2)+('Simple Bill Insert Calc (2)'!M17*2)/12 -> 351.1413442 | F42: =D$22*MIN(J27,Q27)+IF(Q27-J27>0,D$23*(Q27-J27))+ROUND($F$14*365/12,2)+('Simple Bill Insert Calc (2)'!M17*2)/12 -> 164.1691487 | G42: =E$22*MIN(I27,P27)+IF(P27-I27>0,E$23*(P27-I27))+ROUND($F$14*365/12,2)+('Simple Bill Insert Calc (2)'!M17*2)/12 -> 351.1413442 | H42: =E$22*MIN(J27,Q27)+IF(Q27-J27>0,E$23*(Q27-J27))+ROUND($F$14*365/12,2)+('Simple Bill Insert Calc (2)'!M17*2)/12 -> 164.1691487 | J42: 13 hot | K42: =C$22*I27+ROUND($F$14*365/12,2)+('Simple Bill Insert Calc (2)'!M17*2)/12 -> 216.5214015 | L42: =C$22*J27+ROUND($F$14*365/12,2)+('Simple Bill Insert Calc (2)'!M17*2)/12 -> 115.2084579 | M42: =D$22*I27+ROUND($F$14*365/12,2)+('Simple Bill Insert Calc (2)'!M17*2)/12 -> 214.8940311 | N42: =D$22*J27+ROUND($F$14*365/12,2)+('Simple Bill Insert Calc (2)'!M17*2)/12 -> 114.3141372 | O42: =E$22*I27+ROUND($F$14*365/12,2)+('Simple Bill Insert Calc (2)'!M17*2)/12 -> 214.8940311 | P42: =E$22*J27+ROUND($F$14*365/12,2)+('Simple Bill Insert Calc (2)'!M17*2)/12 -> 114.3141372 | R42: 13 hot | S42: =C$28*I27+ROUND($P$14*365/12,2)+('Simple Bill Insert Calc (2)'!M17*2)/12 -> 132.2869066 | T42: =C$28*J27+ROUND($P$14*365/12,2)+('Simple Bill Insert Calc (2)'!M17*2)/12 -> 68.78229404 | U42: =D$28*I27+ROUND($P$14*365/12,2)+('Simple Bill Insert Calc (2)'!M17*2)/12 -> 131.1389691 | V42: =D$28*J27+ROUND($P$14*365/12,2)+('Simple Bill Insert Calc (2)'!M17*2)/12 -> 68.15144546 | W42: =E$28*I27+ROUND($P$14*365/12,2)+('Simple Bill Insert Calc (2)'!M17*2)/12 -> 131.1389691 | X42: =E$28*J27+ROUND($P$14*365/12,2)+('Simple Bill Insert Calc (2)'!M17*2)/12 -> 68.15144546
B43: 14 hot | C43: =C$22*MIN(I28,P28)+IF(P28-I28>0,C$23*(P28-I28))+ROUND($F$14*365/12,2)+('Simple Bill Insert Calc (2)'!M17*2)/12 -> 294.0003144 | D43: =C$22*MIN(J28,Q28)+IF(Q28-J28>0,C$23*(Q28-J28))+ROUND($F$14*365/12,2)+('Simple Bill Insert Calc (2)'!M17*2)/12 -> 159.9117568 | E43: =D$22*MIN(I28,P28)+IF(P28-I28>0,D$23*(P28-I28))+ROUND($F$14*365/12,2)+('Simple Bill Insert Calc (2)'!M17*2)/12 -> 291.8169588 | F43: =D$22*MIN(J28,Q28)+IF(Q28-J28>0,D$23*(Q28-J28))+ROUND($F$14*365/12,2)+('Simple Bill Insert Calc (2)'!M17*2)/12 -> 158.6960273 | G43: =E$22*MIN(I28,P28)+IF(P28-I28>0,E$23*(P28-I28))+ROUND($F$14*365/12,2)+('Simple Bill Insert Calc (2)'!M17*2)/12 -> 291.8169588 | H43: =E$22*MIN(J28,Q28)+IF(Q28-J28>0,E$23*(Q28-J28))+ROUND($F$14*365/12,2)+('Simple Bill Insert Calc (2)'!M17*2)/12 -> 158.6960273 | J43: 14 hot | K43: =C$22*I28+ROUND($F$14*365/12,2)+('Simple Bill Insert Calc (2)'!M17*2)/12 -> 186.1275184 | L43: =C$22*J28+ROUND($F$14*365/12,2)+('Simple Bill Insert Calc (2)'!M17*2)/12 -> 112.1690696 | M43: =D$22*I28+ROUND($F$14*365/12,2)+('Simple Bill Insert Calc (2)'!M17*2)/12 -> 184.720063 | N43: =D$22*J28+ROUND($F$14*365/12,2)+('Simple Bill Insert Calc (2)'!M17*2)/12 -> 111.2967404 | O43: =E$22*I28+ROUND($F$14*365/12,2)+('Simple Bill Insert Calc (2)'!M17*2)/12 -> 184.720063 | P43: =E$22*J28+ROUND($F$14*365/12,2)+('Simple Bill Insert Calc (2)'!M17*2)/12 -> 111.2967404 | R43: 14 hot | S43: =C$28*I28+ROUND($P$14*365/12,2)+('Simple Bill Insert Calc (2)'!M17*2)/12 -> 113.2355229 | T43: =C$28*J28+ROUND($P$14*365/12,2)+('Simple Bill Insert Calc (2)'!M17*2)/12 -> 66.87715566 | U43: =D$28*I28+ROUND($P$14*365/12,2)+('Simple Bill Insert Calc (2)'!M17*2)/12 -> 112.242712 | V43: =D$28*J28+ROUND($P$14*365/12,2)+('Simple Bill Insert Calc (2)'!M17*2)/12 -> 66.26181975 | W43: =E$28*I28+ROUND($P$14*365/12,2)+('Simple Bill Insert Calc (2)'!M17*2)/12 -> 112.242712 | X43: =E$28*J28+ROUND($P$14*365/12,2)+('Simple Bill Insert Calc (2)'!M17*2)/12 -> 66.26181975
B44: 15 hot | C44: =C$22*MIN(I29,P29)+IF(P29-I29>0,C$23*(P29-I29))+ROUND($F$14*365/12,2)+('Simple Bill Insert Calc (2)'!M17*2)/12 -> 397.7634205 | D44: =C$22*MIN(J29,Q29)+IF(Q29-J29>0,C$23*(Q29-J29))+ROUND($F$14*365/12,2)+('Simple Bill Insert Calc (2)'!M17*2)/12 -> 195.1004666 | E44: =D$22*MIN(I29,P29)+IF(P29-I29>0,D$23*(P29-I29))+ROUND($F$14*365/12,2)+('Simple Bill Insert Calc (2)'!M17*2)/12 -> 394.8246737 | F44: =D$22*MIN(J29,Q29)+IF(Q29-J29>0,D$23*(Q29-J29))+ROUND($F$14*365/12,2)+('Simple Bill Insert Calc (2)'!M17*2)/12 -> 193.6325873 | G44: =E$22*MIN(I29,P29)+IF(P29-I29>0,E$23*(P29-I29))+ROUND($F$14*365/12,2)+('Simple Bill Insert Calc (2)'!M17*2)/12 -> 394.8246737 | H44: =E$22*MIN(J29,Q29)+IF(Q29-J29>0,E$23*(Q29-J29))+ROUND($F$14*365/12,2)+('Simple Bill Insert Calc (2)'!M17*2)/12 -> 193.6325873 | J44: 15 hot | K44: =C$22*I29+ROUND($F$14*365/12,2)+('Simple Bill Insert Calc (2)'!M17*2)/12 -> 447.5149129 | L44: =C$22*J29+ROUND($F$14*365/12,2)+('Simple Bill Insert Calc (2)'!M17*2)/12 -> 89.88022196 | M44: =D$22*I29+ROUND($F$14*365/12,2)+('Simple Bill Insert Calc (2)'!M17*2)/12 -> 444.2161892 | N44: =D$22*J29+ROUND($F$14*365/12,2)+('Simple Bill Insert Calc (2)'!M17*2)/12 -> 89.16916375 | O44: =E$22*I29+ROUND($F$14*365/12,2)+('Simple Bill Insert Calc (2)'!M17*2)/12 -> 444.2161892 | P44: =E$22*J29+ROUND($F$14*365/12,2)+('Simple Bill Insert Calc (2)'!M17*2)/12 -> 89.16916375 | R44: 15 hot | S44: =C$28*I29+ROUND($P$14*365/12,2)+('Simple Bill Insert Calc (2)'!M17*2)/12 -> 277.0774234 | T44: =C$28*J29+ROUND($P$14*365/12,2)+('Simple Bill Insert Calc (2)'!M17*2)/12 -> 52.90614089 | U44: =D$28*I29+ROUND($P$14*365/12,2)+('Simple Bill Insert Calc (2)'!M17*2)/12 -> 274.7505229 | V44: =D$28*J29+ROUND($P$14*365/12,2)+('Simple Bill Insert Calc (2)'!M17*2)/12 -> 52.40456456 | W44: =E$28*I29+ROUND($P$14*365/12,2)+('Simple Bill Insert Calc (2)'!M17*2)/12 -> 274.7505229 | X44: =E$28*J29+ROUND($P$14*365/12,2)+('Simple Bill Insert Calc (2)'!M17*2)/12 -> 52.40456456
B45: 16 cool | C45: =C$22*MIN(I30,P30)+IF(P30-I30>0,C$23*(P30-I30))+ROUND($F$14*365/12,2)+('Simple Bill Insert Calc (2)'!M17*2)/12 -> 191.0696506 | D45: =C$22*MIN(J30,Q30)+IF(Q30-J30>0,C$23*(Q30-J30))+ROUND($F$14*365/12,2)+('Simple Bill Insert Calc (2)'!M17*2)/12 -> 134.1442685 | E45: =D$22*MIN(I30,P30)+IF(P30-I30>0,D$23*(P30-I30))+ROUND($F$14*365/12,2)+('Simple Bill Insert Calc (2)'!M17*2)/12 -> 189.6285975 | F45: =D$22*MIN(J30,Q30)+IF(Q30-J30>0,D$23*(Q30-J30))+ROUND($F$14*365/12,2)+('Simple Bill Insert Calc (2)'!M17*2)/12 -> 133.113661 | G45: =E$22*MIN(I30,P30)+IF(P30-I30>0,E$23*(P30-I30))+ROUND($F$14*365/12,2)+('Simple Bill Insert Calc (2)'!M17*2)/12 -> 189.6285975 | H45: =E$22*MIN(J30,Q30)+IF(Q30-J30>0,E$23*(Q30-J30))+ROUND($F$14*365/12,2)+('Simple Bill Insert Calc (2)'!M17*2)/12 -> 133.113661 | J45: 16 cool | K45: =C$22*I30+ROUND($F$14*365/12,2)+('Simple Bill Insert Calc (2)'!M17*2)/12 -> 140.5366938 | L45: =C$22*J30+ROUND($F$14*365/12,2)+('Simple Bill Insert Calc (2)'!M17*2)/12 -> 117.2347167 | M45: =D$22*I30+ROUND($F$14*365/12,2)+('Simple Bill Insert Calc (2)'!M17*2)/12 -> 139.4591107 | N45: =D$22*J30+ROUND($F$14*365/12,2)+('Simple Bill Insert Calc (2)'!M17*2)/12 -> 116.3257351 | O45: =E$22*I30+ROUND($F$14*365/12,2)+('Simple Bill Insert Calc (2)'!M17*2)/12 -> 139.4591107 | P45: =E$22*J30+ROUND($F$14*365/12,2)+('Simple Bill Insert Calc (2)'!M17*2)/12 -> 116.3257351 | R45: 16 cool | S45: =C$28*I30+ROUND($P$14*365/12,2)+('Simple Bill Insert Calc (2)'!M17*2)/12 -> 84.65844719 | T45: =C$28*J30+ROUND($P$14*365/12,2)+('Simple Bill Insert Calc (2)'!M17*2)/12 -> 70.05238629 | U45: =D$28*I30+ROUND($P$14*365/12,2)+('Simple Bill Insert Calc (2)'!M17*2)/12 -> 83.89832636 | V45: =D$28*J30+ROUND($P$14*365/12,2)+('Simple Bill Insert Calc (2)'!M17*2)/12 -> 69.41119593 | W45: =E$28*I30+ROUND($P$14*365/12,2)+('Simple Bill Insert Calc (2)'!M17*2)/12 -> 83.89832636 | X45: =E$28*J30+ROUND($P$14*365/12,2)+('Simple Bill Insert Calc (2)'!M17*2)/12 -> 69.41119593
B46: ALL | C46: =SUMPRODUCT(C37:C45,$T$22:$T$30) -> 248.390766 | D46: 147.5374648 | E46: 246.5364921 | F46: 146.4109481 | G46: 246.5364921 | H46: 146.4109481 | J46: ALL | K46: =SUMPRODUCT(K37:K45,$T$22:$T$30) -> 163.7920629 | L46: 107.3275525 | M46: 162.5462157 | N46: 106.4902541 | O46: 162.5462157 | P46: 106.4902541 | R46: ALL | S46: =SUMPRODUCT(S37:S45,$U$22:$U$30) -> 109.9002144 | T46: =SUMPRODUCT(T37:T45,$U$22:$U$30) -> 65.32589318 | U46: 108.9345615 | V46: 64.72318849 | W46: 108.9345615 | X46: 64.72318849
C49: CARE | K49: Essential Use (All-Electric) - Non-CARE | S49: Essential Use (All-Electric) - CARE
C50: =C27 -> Jan 2025 | E50: =D27 -> 2025-03-01 | G50: =E27 -> Proposed | K50: =C50 -> Jan 2025 | M50: =E50 -> 2025-03-01 | O50: =G50 -> Proposed | S50: =K50 -> Jan 2025 | U50: =M50 -> 2025-03-01 | W50: =O50 -> Proposed
C51: Summer | D51: Winter | E51: Summer | F51: Winter | G51: Summer | H51: Winter | K51: Summer | L51: Winter | M51: Summer | N51: Winter | O51: Summer | P51: Winter | S51: Summer | T51: Winter | U51: Summer | V51: Winter | W51: Summer | X51: Winter
B52: 5 warm | C52: =C$28*MIN(I22,R22)+IF(R22-I22>0,C$29*(R22-I22))+ROUND($P$14*365/12,2)+('Simple Bill Insert Calc (2)'!M17*2)/12 -> 68.66764285 | D52: =C$28*MIN(J22,S22)+IF(S22-J22>0,C$29*(S22-J22))+ROUND($P$14*365/12,2)+('Simple Bill Insert Calc (2)'!M17*2)/12 -> 64.96695865 | E52: =D$28*MIN(I22,R22)+IF(R22-I22>0,D$29*(R22-I22))+ROUND($P$14*365/12,2)+('Simple Bill Insert Calc (2)'!M17*2)/12 -> 68.03772783 | F52: =D$28*MIN(J22,S22)+IF(S22-J22>0,D$29*(S22-J22))+ROUND($P$14*365/12,2)+('Simple Bill Insert Calc (2)'!M17*2)/12 -> 64.3671766 | G52: =E$28*MIN(I22,R22)+IF(R22-I22>0,E$29*(R22-I22))+ROUND($P$14*365/12,2)+('Simple Bill Insert Calc (2)'!M17*2)/12 -> 68.03772783 | H52: =E$28*MIN(J22,S22)+IF(S22-J22>0,E$29*(S22-J22))+ROUND($P$14*365/12,2)+('Simple Bill Insert Calc (2)'!M17*2)/12 -> 64.3671766 | J52: 5 warm | K52: =C$22*K22+ROUND($F$14*365/12,2)+('Simple Bill Insert Calc (2)'!M17*2)/12 -> 161.8124119 | L52: =C$22*L22+ROUND($F$14*365/12,2)+('Simple Bill Insert Calc (2)'!M17*2)/12 -> 265.1516144 | M52: =D$22*K22+ROUND($F$14*365/12,2)+('Simple Bill Insert Calc (2)'!M17*2)/12 -> 160.5808884 | N52: =D$22*L22+ROUND($F$14*365/12,2)+('Simple Bill Insert Calc (2)'!M17*2)/12 -> 263.1723802 | O52: =E$22*K22+ROUND($F$14*365/12,2)+('Simple Bill Insert Calc (2)'!M17*2)/12 -> 160.5808884 | P52: =E$22*L22+ROUND($F$14*365/12,2)+('Simple Bill Insert Calc (2)'!M17*2)/12 -> 263.1723802 | R52: 5 warm | S52: =C$28*K22+ROUND($P$14*365/12,2)+('Simple Bill Insert Calc (2)'!M17*2)/12 -> 97.99441583 | T52: =C$28*L22+ROUND($P$14*365/12,2)+('Simple Bill Insert Calc (2)'!M17*2)/12 -> 162.7691207 | U52: =D$28*K22+ROUND($P$14*365/12,2)+('Simple Bill Insert Calc (2)'!M17*2)/12 -> 97.12570631 | V52: =D$28*L22+ROUND($P$14*365/12,2)+('Simple Bill Insert Calc (2)'!M17*2)/12 -> 161.3729804 | W52: =E$28*K22+ROUND($P$14*365/12,2)+('Simple Bill Insert Calc (2)'!M17*2)/12 -> 97.12570631 | X52: =E$28*L22+ROUND($P$14*365/12,2)+('Simple Bill Insert Calc (2)'!M17*2)/12 -> 161.3729804
B53: 6 cool | C53: =C$28*MIN(I23,R23)+IF(R23-I23>0,C$29*(R23-I23))+ROUND($P$14*365/12,2)+('Simple Bill Insert Calc (2)'!M17*2)/12 -> 79.17496909 | D53: =C$28*MIN(J23,S23)+IF(S23-J23>0,C$29*(S23-J23))+ROUND($P$14*365/12,2)+('Simple Bill Insert Calc (2)'!M17*2)/12 -> 64.47961901 | E53: =D$28*MIN(I23,R23)+IF(R23-I23>0,D$29*(R23-I23))+ROUND($P$14*365/12,2)+('Simple Bill Insert Calc (2)'!M17*2)/12 -> 78.46362586 | F53: =D$28*MIN(J23,S23)+IF(S23-J23>0,D$29*(S23-J23))+ROUND($P$14*365/12,2)+('Simple Bill Insert Calc (2)'!M17*2)/12 -> 63.88469034 | G53: =E$28*MIN(I23,R23)+IF(R23-I23>0,E$29*(R23-I23))+ROUND($P$14*365/12,2)+('Simple Bill Insert Calc (2)'!M17*2)/12 -> 78.46362586 | H53: =E$28*MIN(J23,S23)+IF(S23-J23>0,E$29*(S23-J23))+ROUND($P$14*365/12,2)+('Simple Bill Insert Calc (2)'!M17*2)/12 -> 63.88469034 | J53: 6 cool | K53: =C$22*K23+ROUND($F$14*365/12,2)+('Simple Bill Insert Calc (2)'!M17*2)/12 -> 79.7489276 | L53: =C$22*L23+ROUND($F$14*365/12,2)+('Simple Bill Insert Calc (2)'!M17*2)/12 -> 119.2609756 | M53: =D$22*K23+ROUND($F$14*365/12,2)+('Simple Bill Insert Calc (2)'!M17*2)/12 -> 79.11117436 | N53: =D$22*L23+ROUND($F$14*365/12,2)+('Simple Bill Insert Calc (2)'!M17*2)/12 -> 118.337333 | O53: =E$22*K23+ROUND($F$14*365/12,2)+('Simple Bill Insert Calc (2)'!M17*2)/12 -> 79.11117436 | P53: =E$22*L23+ROUND($F$14*365/12,2)+('Simple Bill Insert Calc (2)'!M17*2)/12 -> 118.337333 | R53: 6 cool | S53: =C$28*K23+ROUND($P$14*365/12,2)+('Simple Bill Insert Calc (2)'!M17*2)/12 -> 46.55567963 | T53: =C$28*L23+ROUND($P$14*365/12,2)+('Simple Bill Insert Calc (2)'!M17*2)/12 -> 71.32247854 | U53: =D$28*K23+ROUND($P$14*365/12,2)+('Simple Bill Insert Calc (2)'!M17*2)/12 -> 46.1058122 | V53: =D$28*L23+ROUND($P$14*365/12,2)+('Simple Bill Insert Calc (2)'!M17*2)/12 -> 70.6709464 | W53: =E$28*K23+ROUND($P$14*365/12,2)+('Simple Bill Insert Calc (2)'!M17*2)/12 -> 46.1058122 | X53: =E$28*L23+ROUND($P$14*365/12,2)+('Simple Bill Insert Calc (2)'!M17*2)/12 -> 70.6709464
B54: 8 cool | C54: =C$28*MIN(I24,R24)+IF(R24-I24>0,C$29*(R24-I24))+ROUND($P$14*365/12,2)+('Simple Bill Insert Calc (2)'!M17*2)/12 -> 103.6442695 | D54: =C$28*MIN(J24,S24)+IF(S24-J24>0,C$29*(S24-J24))+ROUND($P$14*365/12,2)+('Simple Bill Insert Calc (2)'!M17*2)/12 -> 72.96840317 | E54: =D$28*MIN(I24,R24)+IF(R24-I24>0,D$29*(R24-I24))+ROUND($P$14*365/12,2)+('Simple Bill Insert Calc (2)'!M17*2)/12 -> 102.7378403 | F54: =D$28*MIN(J24,S24)+IF(S24-J24>0,D$29*(S24-J24))+ROUND($P$14*365/12,2)+('Simple Bill Insert Calc (2)'!M17*2)/12 -> 72.30780499 | G54: =E$28*MIN(I24,R24)+IF(R24-I24>0,E$29*(R24-I24))+ROUND($P$14*365/12,2)+('Simple Bill Insert Calc (2)'!M17*2)/12 -> 102.7378403 | H54: =E$28*MIN(J24,S24)+IF(S24-J24>0,E$29*(S24-J24))+ROUND($P$14*365/12,2)+('Simple Bill Insert Calc (2)'!M17*2)/12 -> 72.30780499 | J54: 8 cool | K54: =C$22*K24+ROUND($F$14*365/12,2)+('Simple Bill Insert Calc (2)'!M17*2)/12 -> 91.90648083 | L54: =C$22*L24+ROUND($F$14*365/12,2)+('Simple Bill Insert Calc (2)'!M17*2)/12 -> 116.2215873 | M54: =D$22*K24+ROUND($F$14*365/12,2)+('Simple Bill Insert Calc (2)'!M17*2)/12 -> 91.18076163 | N54: =D$22*L24+ROUND($F$14*365/12,2)+('Simple Bill Insert Calc (2)'!M17*2)/12 -> 115.3199362 | O54: =E$22*K24+ROUND($F$14*365/12,2)+('Simple Bill Insert Calc (2)'!M17*2)/12 -> 91.18076163 | P54: =E$22*L24+ROUND($F$14*365/12,2)+('Simple Bill Insert Calc (2)'!M17*2)/12 -> 115.3199362 | R54: 8 cool | S54: =C$28*K24+ROUND($P$14*365/12,2)+('Simple Bill Insert Calc (2)'!M17*2)/12 -> 54.17623314 | T54: =C$28*L24+ROUND($P$14*365/12,2)+('Simple Bill Insert Calc (2)'!M17*2)/12 -> 69.41734016 | U54: =D$28*K24+ROUND($P$14*365/12,2)+('Simple Bill Insert Calc (2)'!M17*2)/12 -> 53.66431503 | V54: =D$28*L24+ROUND($P$14*365/12,2)+('Simple Bill Insert Calc (2)'!M17*2)/12 -> 68.78132069 | W54: =E$28*K24+ROUND($P$14*365/12,2)+('Simple Bill Insert Calc (2)'!M17*2)/12 -> 53.66431503 | X54: =E$28*L24+ROUND($P$14*365/12,2)+('Simple Bill Insert Calc (2)'!M17*2)/12 -> 68.78132069
B55: 9 warm | C55: =C$28*MIN(I25,R25)+IF(R25-I25>0,C$29*(R25-I25))+ROUND($P$14*365/12,2)+('Simple Bill Insert Calc (2)'!M17*2)/12 -> 145.4334121 | D55: =C$28*MIN(J25,S25)+IF(S25-J25>0,C$29*(S25-J25))+ROUND($P$14*365/12,2)+('Simple Bill Insert Calc (2)'!M17*2)/12 -> 83.68430279 | E55: =D$28*MIN(I25,R25)+IF(R25-I25>0,D$29*(R25-I25))+ROUND($P$14*365/12,2)+('Simple Bill Insert Calc (2)'!M17*2)/12 -> 144.1909156 | F55: =D$28*MIN(J25,S25)+IF(S25-J25>0,D$29*(S25-J25))+ROUND($P$14*365/12,2)+('Simple Bill Insert Calc (2)'!M17*2)/12 -> 82.93642863 | G55: =E$28*MIN(I25,R25)+IF(R25-I25>0,E$29*(R25-I25))+ROUND($P$14*365/12,2)+('Simple Bill Insert Calc (2)'!M17*2)/12 -> 144.1909156 | H55: =E$28*MIN(J25,S25)+IF(S25-J25>0,E$29*(S25-J25))+ROUND($P$14*365/12,2)+('Simple Bill Insert Calc (2)'!M17*2)/12 -> 82.93642863 | J55: 9 warm | K55: =C$22*K25+ROUND($F$14*365/12,2)+('Simple Bill Insert Calc (2)'!M17*2)/12 -> 118.2478462 | L55: =C$22*L25+ROUND($F$14*365/12,2)+('Simple Bill Insert Calc (2)'!M17*2)/12 -> 132.4316583 | M55: =D$22*K25+ROUND($F$14*365/12,2)+('Simple Bill Insert Calc (2)'!M17*2)/12 -> 117.331534 | N55: =D$22*L25+ROUND($F$14*365/12,2)+('Simple Bill Insert Calc (2)'!M17*2)/12 -> 131.4127192 | O55: =E$22*K25+ROUND($F$14*365/12,2)+('Simple Bill Insert Calc (2)'!M17*2)/12 -> 117.331534 | P55: =E$22*L25+ROUND($F$14*365/12,2)+('Simple Bill Insert Calc (2)'!M17*2)/12 -> 131.4127192 | R55: 9 warm | S55: =C$28*K25+ROUND($P$14*365/12,2)+('Simple Bill Insert Calc (2)'!M17*2)/12 -> 70.68743242 | T55: =C$28*L25+ROUND($P$14*365/12,2)+('Simple Bill Insert Calc (2)'!M17*2)/12 -> 79.57807818 | U55: =D$28*K25+ROUND($P$14*365/12,2)+('Simple Bill Insert Calc (2)'!M17*2)/12 -> 70.04107117 | V55: =D$28*L25+ROUND($P$14*365/12,2)+('Simple Bill Insert Calc (2)'!M17*2)/12 -> 78.85932447 | W55: =E$28*K25+ROUND($P$14*365/12,2)+('Simple Bill Insert Calc (2)'!M17*2)/12 -> 70.04107117 | X55: =E$28*L25+ROUND($P$14*365/12,2)+('Simple Bill Insert Calc (2)'!M17*2)/12 -> 78.85932447
B56: 10 hot (Sec 745) | C56: =C$28*MIN(I26,R26)+IF(R26-I26>0,C$29*(R26-I26))+ROUND($P$14*365/12,2)+('Simple Bill Insert Calc (2)'!M17*2)/12 -> 204.3286138 | D56: =C$28*MIN(J26,S26)+IF(S26-J26>0,C$29*(S26-J26))+ROUND($P$14*365/12,2)+('Simple Bill Insert Calc (2)'!M17*2)/12 -> 104.0756369 | E56: =D$28*MIN(I26,R26)+IF(R26-I26>0,D$29*(R26-I26))+ROUND($P$14*365/12,2)+('Simple Bill Insert Calc (2)'!M17*2)/12 -> 202.6182074 | F56: =D$28*MIN(J26,S26)+IF(S26-J26>0,D$29*(S26-J26))+ROUND($P$14*365/12,2)+('Simple Bill Insert Calc (2)'!M17*2)/12 -> 103.1669964 | G56: =E$28*MIN(I26,R26)+IF(R26-I26>0,E$29*(R26-I26))+ROUND($P$14*365/12,2)+('Simple Bill Insert Calc (2)'!M17*2)/12 -> 202.6182074 | H56: =E$28*MIN(J26,S26)+IF(S26-J26>0,E$29*(S26-J26))+ROUND($P$14*365/12,2)+('Simple Bill Insert Calc (2)'!M17*2)/12 -> 103.1669964 | J56: 10 hot (Sec 745) | K56: =C$22*K26+ROUND($F$14*365/12,2)+('Simple Bill Insert Calc (2)'!M17*2)/12 -> 152.694247 | L56: =C$22*L26+ROUND($F$14*365/12,2)+('Simple Bill Insert Calc (2)'!M17*2)/12 -> 157.7598942 | M56: =D$22*K26+ROUND($F$14*365/12,2)+('Simple Bill Insert Calc (2)'!M17*2)/12 -> 151.528698 | N56: =D$22*L26+ROUND($F$14*365/12,2)+('Simple Bill Insert Calc (2)'!M17*2)/12 -> 156.5576927 | O56: =E$22*K26+ROUND($F$14*365/12,2)+('Simple Bill Insert Calc (2)'!M17*2)/12 -> 151.528698 | P56: =E$22*L26+ROUND($F$14*365/12,2)+('Simple Bill Insert Calc (2)'!M17*2)/12 -> 156.5576927 | R56: 10 hot (Sec 745) | S56: =C$28*K26+ROUND($P$14*365/12,2)+('Simple Bill Insert Calc (2)'!M17*2)/12 -> 92.2790007 | T56: =C$28*L26+ROUND($P$14*365/12,2)+('Simple Bill Insert Calc (2)'!M17*2)/12 -> 95.45423133 | U56: =D$28*K26+ROUND($P$14*365/12,2)+('Simple Bill Insert Calc (2)'!M17*2)/12 -> 91.45682919 | V56: =D$28*L26+ROUND($P$14*365/12,2)+('Simple Bill Insert Calc (2)'!M17*2)/12 -> 94.60620537 | W56: =E$28*K26+ROUND($P$14*365/12,2)+('Simple Bill Insert Calc (2)'!M17*2)/12 -> 91.45682919 | X56: =E$28*L26+ROUND($P$14*365/12,2)+('Simple Bill Insert Calc (2)'!M17*2)/12 -> 94.60620537
B57: 13 hot | C57: =C$28*MIN(I27,R27)+IF(R27-I27>0,C$29*(R27-I27))+ROUND($P$14*365/12,2)+('Simple Bill Insert Calc (2)'!M17*2)/12 -> 228.4551441 | D57: =C$28*MIN(J27,S27)+IF(S27-J27>0,C$29*(S27-J27))+ROUND($P$14*365/12,2)+('Simple Bill Insert Calc (2)'!M17*2)/12 -> 100.1365381 | E57: =D$28*MIN(I27,R27)+IF(R27-I27>0,D$29*(R27-I27))+ROUND($P$14*365/12,2)+('Simple Bill Insert Calc (2)'!M17*2)/12 -> 226.5498099 | F57: =D$28*MIN(J27,S27)+IF(S27-J27>0,D$29*(S27-J27))+ROUND($P$14*365/12,2)+('Simple Bill Insert Calc (2)'!M17*2)/12 -> 99.25875144 | G57: =E$28*MIN(I27,R27)+IF(R27-I27>0,E$29*(R27-I27))+ROUND($P$14*365/12,2)+('Simple Bill Insert Calc (2)'!M17*2)/12 -> 226.5498099 | H57: =E$28*MIN(J27,S27)+IF(S27-J27>0,E$29*(S27-J27))+ROUND($P$14*365/12,2)+('Simple Bill Insert Calc (2)'!M17*2)/12 -> 99.25875144 | J57: 13 hot | K57: =C$22*K27+ROUND($F$14*365/12,2)+('Simple Bill Insert Calc (2)'!M17*2)/12 -> 236.7839902 | L57: =C$22*L27+ROUND($F$14*365/12,2)+('Simple Bill Insert Calc (2)'!M17*2)/12 -> 224.6264369 | M57: =D$22*K27+ROUND($F$14*365/12,2)+('Simple Bill Insert Calc (2)'!M17*2)/12 -> 235.0100099 | N57: =D$22*L27+ROUND($F$14*365/12,2)+('Simple Bill Insert Calc (2)'!M17*2)/12 -> 222.9404226 | O57: =E$22*K27+ROUND($F$14*365/12,2)+('Simple Bill Insert Calc (2)'!M17*2)/12 -> 235.0100099 | P57: =E$22*L27+ROUND($F$14*365/12,2)+('Simple Bill Insert Calc (2)'!M17*2)/12 -> 222.9404226 | R57: 13 hot | S57: =C$28*K27+ROUND($P$14*365/12,2)+('Simple Bill Insert Calc (2)'!M17*2)/12 -> 144.9878292 | T57: =C$28*L27+ROUND($P$14*365/12,2)+('Simple Bill Insert Calc (2)'!M17*2)/12 -> 137.3672756 | U57: =D$28*K27+ROUND($P$14*365/12,2)+('Simple Bill Insert Calc (2)'!M17*2)/12 -> 143.7364738 | V57: =D$28*L27+ROUND($P$14*365/12,2)+('Simple Bill Insert Calc (2)'!M17*2)/12 -> 136.1779709 | W57: =E$28*K27+ROUND($P$14*365/12,2)+('Simple Bill Insert Calc (2)'!M17*2)/12 -> 143.7364738 | X57: =E$28*L27+ROUND($P$14*365/12,2)+('Simple Bill Insert Calc (2)'!M17*2)/12 -> 136.1779709
B58: 14 hot | C58: =C$28*MIN(I28,R28)+IF(R28-I28>0,C$29*(R28-I28))+ROUND($P$14*365/12,2)+('Simple Bill Insert Calc (2)'!M17*2)/12 -> 208.5483524 | D58: =C$28*MIN(J28,S28)+IF(S28-J28>0,C$29*(S28-J28))+ROUND($P$14*365/12,2)+('Simple Bill Insert Calc (2)'!M17*2)/12 -> 112.0881652 | E58: =D$28*MIN(I28,R28)+IF(R28-I28>0,D$29*(R28-I28))+ROUND($P$14*365/12,2)+('Simple Bill Insert Calc (2)'!M17*2)/12 -> 206.8048818 | F58: =D$28*MIN(J28,S28)+IF(S28-J28>0,D$29*(S28-J28))+ROUND($P$14*365/12,2)+('Simple Bill Insert Calc (2)'!M17*2)/12 -> 111.1167589 | G58: =E$28*MIN(I28,R28)+IF(R28-I28>0,E$29*(R28-I28))+ROUND($P$14*365/12,2)+('Simple Bill Insert Calc (2)'!M17*2)/12 -> 206.8048818 | H58: =E$28*MIN(J28,S28)+IF(S28-J28>0,E$29*(S28-J28))+ROUND($P$14*365/12,2)+('Simple Bill Insert Calc (2)'!M17*2)/12 -> 111.1167589 | J58: 14 hot | K58: =C$22*K28+ROUND($F$14*365/12,2)+('Simple Bill Insert Calc (2)'!M17*2)/12 -> 179.0356123 | L58: =C$22*L28+ROUND($F$14*365/12,2)+('Simple Bill Insert Calc (2)'!M17*2)/12 -> 205.3769777 | M58: =D$22*K28+ROUND($F$14*365/12,2)+('Simple Bill Insert Calc (2)'!M17*2)/12 -> 177.6794704 | N58: =D$22*L28+ROUND($F$14*365/12,2)+('Simple Bill Insert Calc (2)'!M17*2)/12 -> 203.8302428 | O58: =E$22*K28+ROUND($F$14*365/12,2)+('Simple Bill Insert Calc (2)'!M17*2)/12 -> 177.6794704 | P58: =E$22*L28+ROUND($F$14*365/12,2)+('Simple Bill Insert Calc (2)'!M17*2)/12 -> 203.8302428 | R58: 14 hot | S58: =C$28*K28+ROUND($P$14*365/12,2)+('Simple Bill Insert Calc (2)'!M17*2)/12 -> 108.7902 | T58: =C$28*L28+ROUND($P$14*365/12,2)+('Simple Bill Insert Calc (2)'!M17*2)/12 -> 125.3013993 | U58: =D$28*K28+ROUND($P$14*365/12,2)+('Simple Bill Insert Calc (2)'!M17*2)/12 -> 107.8335853 | V58: =D$28*L28+ROUND($P$14*365/12,2)+('Simple Bill Insert Calc (2)'!M17*2)/12 -> 124.2103415 | W58: =E$28*K28+ROUND($P$14*365/12,2)+('Simple Bill Insert Calc (2)'!M17*2)/12 -> 107.8335853 | X58: =E$28*L28+ROUND($P$14*365/12,2)+('Simple Bill Insert Calc (2)'!M17*2)/12 -> 124.2103415
B59: 15 hot | C59: =C$28*MIN(I29,R29)+IF(R29-I29>0,C$29*(R29-I29))+ROUND($P$14*365/12,2)+('Simple Bill Insert Calc (2)'!M17*2)/12 -> 275.3710999 | D59: =C$28*MIN(J29,S29)+IF(S29-J29>0,C$29*(S29-J29))+ROUND($P$14*365/12,2)+('Simple Bill Insert Calc (2)'!M17*2)/12 -> 118.5682698 | E59: =D$28*MIN(I29,R29)+IF(R29-I29>0,D$29*(R29-I29))+ROUND($P$14*365/12,2)+('Simple Bill Insert Calc (2)'!M17*2)/12 -> 273.0580932 | F59: =D$28*MIN(J29,S29)+IF(S29-J29>0,D$29*(S29-J29))+ROUND($P$14*365/12,2)+('Simple Bill Insert Calc (2)'!M17*2)/12 -> 117.5495552 | G59: =E$28*MIN(I29,R29)+IF(R29-I29>0,E$29*(R29-I29))+ROUND($P$14*365/12,2)+('Simple Bill Insert Calc (2)'!M17*2)/12 -> 273.0580932 | H59: =E$28*MIN(J29,S29)+IF(S29-J29>0,E$29*(S29-J29))+ROUND($P$14*365/12,2)+('Simple Bill Insert Calc (2)'!M17*2)/12 -> 117.5495552 | J59: 15 hot | K59: =C$22*K29+ROUND($F$14*365/12,2)+('Simple Bill Insert Calc (2)'!M17*2)/12 -> 234.7577313 | L59: =C$22*L29+ROUND($F$14*365/12,2)+('Simple Bill Insert Calc (2)'!M17*2)/12 -> 167.8911885 | M59: =D$22*K29+ROUND($F$14*365/12,2)+('Simple Bill Insert Calc (2)'!M17*2)/12 -> 232.998412 | N59: =D$22*L29+ROUND($F$14*365/12,2)+('Simple Bill Insert Calc (2)'!M17*2)/12 -> 166.6156821 | O59: =E$22*K29+ROUND($F$14*365/12,2)+('Simple Bill Insert Calc (2)'!M17*2)/12 -> 232.998412 | P59: =E$22*L29+ROUND($F$14*365/12,2)+('Simple Bill Insert Calc (2)'!M17*2)/12 -> 166.6156821 | R59: 15 hot | S59: =C$28*K29+ROUND($P$14*365/12,2)+('Simple Bill Insert Calc (2)'!M17*2)/12 -> 143.7177369 | T59: =C$28*L29+ROUND($P$14*365/12,2)+('Simple Bill Insert Calc (2)'!M17*2)/12 -> 101.8046926 | U59: =D$28*K29+ROUND($P$14*365/12,2)+('Simple Bill Insert Calc (2)'!M17*2)/12 -> 142.4767233 | V59: =D$28*L29+ROUND($P$14*365/12,2)+('Simple Bill Insert Calc (2)'!M17*2)/12 -> 100.9049577 | W59: =E$28*K29+ROUND($P$14*365/12,2)+('Simple Bill Insert Calc (2)'!M17*2)/12 -> 142.4767233 | X59: =E$28*L29+ROUND($P$14*365/12,2)+('Simple Bill Insert Calc (2)'!M17*2)/12 -> 100.9049577
B60: 16 cool | C60: =C$28*MIN(I30,R30)+IF(R30-I30>0,C$29*(R30-I30))+ROUND($P$14*365/12,2)+('Simple Bill Insert Calc (2)'!M17*2)/12 -> 174.6519067 | D60: =C$28*MIN(J30,S30)+IF(S30-J30>0,C$29*(S30-J30))+ROUND($P$14*365/12,2)+('Simple Bill Insert Calc (2)'!M17*2)/12 -> 101.8374222 | E60: =D$28*MIN(I30,R30)+IF(R30-I30>0,D$29*(R30-I30))+ROUND($P$14*365/12,2)+('Simple Bill Insert Calc (2)'!M17*2)/12 -> 173.1830202 | F60: =D$28*MIN(J30,S30)+IF(S30-J30>0,D$29*(S30-J30))+ROUND($P$14*365/12,2)+('Simple Bill Insert Calc (2)'!M17*2)/12 -> 100.945901 | G60: =E$28*MIN(I30,R30)+IF(R30-I30>0,E$29*(R30-I30))+ROUND($P$14*365/12,2)+('Simple Bill Insert Calc (2)'!M17*2)/12 -> 173.1830202 | H60: =E$28*MIN(J30,S30)+IF(S30-J30>0,E$29*(S30-J30))+ROUND($P$14*365/12,2)+('Simple Bill Insert Calc (2)'!M17*2)/12 -> 100.945901 | J60: 16 cool | K60: =C$22*K30+ROUND($F$14*365/12,2)+('Simple Bill Insert Calc (2)'!M17*2)/12 -> 128.3791405 | L60: =C$22*L30+ROUND($F$14*365/12,2)+('Simple Bill Insert Calc (2)'!M17*2)/12 -> 226.6526958 | M60: =D$22*K30+ROUND($F$14*365/12,2)+('Simple Bill Insert Calc (2)'!M17*2)/12 -> 127.3895234 | N60: =D$22*L30+ROUND($F$14*365/12,2)+('Simple Bill Insert Calc (2)'!M17*2)/12 -> 224.9520205 | O60: =E$22*K30+ROUND($F$14*365/12,2)+('Simple Bill Insert Calc (2)'!M17*2)/12 -> 127.3895234 | P60: =E$22*L30+ROUND($F$14*365/12,2)+('Simple Bill Insert Calc (2)'!M17*2)/12 -> 224.9520205 | R60: 16 cool | S60: =C$28*K30+ROUND($P$14*365/12,2)+('Simple Bill Insert Calc (2)'!M17*2)/12 -> 77.03789368 | T60: =C$28*L30+ROUND($P$14*365/12,2)+('Simple Bill Insert Calc (2)'!M17*2)/12 -> 138.6373679 | U60: =D$28*K30+ROUND($P$14*365/12,2)+('Simple Bill Insert Calc (2)'!M17*2)/12 -> 76.33982353 | V60: =D$28*L30+ROUND($P$14*365/12,2)+('Simple Bill Insert Calc (2)'!M17*2)/12 -> 137.4377214 | W60: =E$28*K30+ROUND($P$14*365/12,2)+('Simple Bill Insert Calc (2)'!M17*2)/12 -> 76.33982353 | X60: =E$28*L30+ROUND($P$14*365/12,2)+('Simple Bill Insert Calc (2)'!M17*2)/12 -> 137.4377214
